Workbook

Sheet GUIA DE APLICAÇÃO
B1: ISA
D2: GUIA DE APLICAÇÃO
B3: ISBN 978-85-99764-26-8
B4: Indicadores de Sustentabilidade em Agroecossistemas - ISA
B5: O sistema ISA é composto por 7 pastas:
B6: 1ª - Guia de aplicação
B7: 2ª - Questionário
B8: 3ª - Indicadores
B9: 4ª - Relatório
B10: 5ª - Plano de adequação
B11: 6ª - Fórmulas utilizadas nos Indicadores
B12: 7ª - Base de dados
B13: A ferramenta ISA tem como objetivo avaliar limitações, potencialidades e aptidões para os diversos usos e ocupações na escala de um estabelecimento rural, a partir de uma abordagem integrando as dimensões ambiental, social e econômica. Para cada Indicador são atribuídos valores de 0 a 1. O valor 0,7 é considerado a linha de base de um bom desempenho ambiental, social e/ou econômico. São utilizadas funções em cada Indicador, comparando o valor aferido no estabelecimento rural com o valor de referência. No final é gerado um Índice Final (Aba Relatório) a partir da média dos 21 Indicadores de Sustentabilidade. A ferramenta auxilia o produtor e técnico no processo de tomada de decisão e no gerenciamento de riscos. Ela pode ser utilizada para elaboração de um diagnóstico, de um plano de ação e para o monitoramento do estabelecimento rural no decorrer do tempo. O preenchimento da planilha, software, aplicativo ou do formulário impresso se dará pelo entrevistador (colaborador), com base nas informações passadas pelo produtor (beneficiário) durante a entrevista, podendo contar com o auxílio de seus consultores ou responsáveis técnicos.
B16: Cronograma proposto para o preenchimento do ISA
B18: 1 - Fazer o croqui a partir do perímetro do imóvel rural. O perímetro é necessário para o preenchimento do CAR. Se o produtor não tiver, será necessário abrir o Google Earth, ou outro programa similar, para o levantamento do mesmo, incluindo, em alguns casos, a conferência no campo de algumas áreas limítrofes.
B20: 2 - A partir do perímetro, identificar no croqui do imóvel rural o uso e ocupação do solo e os remanescentes de vegetação nativa, áreas de pousio, nascentes, represas, lagos, cursos e corpos d'água, e áreas de servidão administrativa, como ferrovias, estradas municipais, linhas de transmissão de energia, entre outros, quando presentes no imóvel rural. Esses dados (polígonos, linhas ou pontos) poderão ser aproveitadas para gerar, retificar ou conferir o Cadastro Ambiental Rural (CAR).
B22: 3 - A partir do croqui gerado, e de informações levantadas no CAR, como, por exemplo, as Áreas de Preservação Permanente (APPs) que necessitam de restauração, inicia-se o planejamento da visita de campo, definindo-se os locais que serão percorridos, com o objetivo de verificar o manejo das áreas produtivas, o estado de conservação das áreas com vegetação nativa,o estado de conservação das estradas, definir os locais para a coleta de amostras de solo, quando necessário, e os locais para a avaliação da qualidade da água e dos ecossistemas aquáticos, quando presentes.
B25: Guia de preenchimento dos dados na planilha (incluindo exemplos)
B27: 1 QUESTIONÁRIO
A28: 1 | B28: Colar os croquis do imóvel (croqui gerado no Google Earth ou outro programa similar, e o croqui gerado no CAR).
A30: 5 | B30: Recomenda-se criar um código para salvar os arquivos gerados em cada visita para a aplicação do ISA no imóvel rural: 1º - Identificação do código do município do IBGE; 2º - Identificação do produtor rural; 3º - Data ou o ano da aplicação do ISA no imóvel rural. Exemplo: 3107109 Antônio da Silva 2023.
A33: 6 | B33: O preenchimento da posse de terra diz respeito ao vínculo que o produtor possui com o imóvel rural. Proprietário é a pessoa física ou jurídica que possui o imóvel rural, válido e regularmente destacado do patrimônio público, com o registro imobiliário no seu nome. Ele detém o domínio pleno direto (direito de dispor do imóvel rural) e útil (direito de utilizar ou usufruir do imóvel rural). O Posseiro é aquele que exerce o direito de posse por um ato translativo de domínio, por um documento de passagem de propriedade de um titular a outro, o que ocorre quando o título de propriedade ainda não foi levado a registro imobiliário. Arrendatário é aquele que arrenda (aluga) o imóvel rural para fins de exploração agrícola ou pecuária, nas condições de uma regular utilização. Parceiro, ou "Meeiro", é aquele que explora o imóvel rural, no todo ou em parte, mediante contrato agrário escrito ou verbal, remunerando o proprietário ou titular do domínio útil com um percentual da produção alcançada. Assentado, pessoa ou família contemplada por um projeto de Reforma Agrária; Usufrutuário é a pessoa que utiliza a terra como usufruto, geralmente com vínculo familiar, e não tem a posse ou propriedade.
A41: 7 | B41: A planilha ISA foi concebida para ser aplicada em um imóvel rural em consonância com a declaração do Cadastro Ambiental Rural (CAR). Caso o produtor possua outras áreas que compõem a renda ou façam parte do seu empreendimento rural (áreas não contíguas ao imóvel, áreas de arrendamento, áreas destinadas para a compensação de Reserva Legal), as mesmas serão descritas na tabela localizada no último subitem.
A44: 8 | B44: A caracterização do uso e ocupação do solo no imóvel rural tem como objetivo identificar as áreas de produção das culturas anuais, perenes, pastagens e florestas plantadas (silvicultura), além das áreas não agrícolas (construções, estradas, terreiros, etc.), áreas de pousio, espelho e cursos d'água (represas, lagos, lagoas, e cursos d'água), vegetação nativa e as áreas inaproveitáveis (vossorocas e outras áreas que no momento da avaliaçâo estavam inaproveitáveis para atividades econômicas). A somatória de todas as áreas lançadas neste item deve corresponder à área do imóvel rural lançada no item 7.
A48: 9 | B48: No levantamento do uso e ocupação do solo gerado no CAR, os dados são preenchidos automaticamente a partir do item 8. Se houver qualquer diferença em qualquer categoria do uso e ocupação entre as informações levantadas com o produtor (item 8) e identificadas no CAR, basta fazer a alteração dos dados no campo correspondente. É necessário fazer o lançamento da área de servidão administrativa, quando existente (Área de infraestrutura Pública; Área de Utilidade Pública; Reservatório para Abastecimento ou Geração de Energia; Entorno de Reservatório para Abastecimento ou Geração de Energia). Esta área será descontada no cálculo da Reserva Legal do Imóvel Rural.
B52: 2 INDICADORES
A54: 1 | B54: ÍNDICES DE PRODUTIVIDADE E PREÇOS DE VENDA
B55: OBJETIVO Levantar a renda bruta anual proveniente das atividades agrossilvipastoris do imóvel rural; verificar a produtividade e o valor de venda do(s) produto(s) de maior peso gerados por estas atividades e compará-los com a média dos índices de produtividade e a média dos valores de venda identificados no município ou na região. APLICAÇÃO 1ª ETAPA - Identificar as principais fontes de renda de atividades agropecuárias executadas no imóvel rural. O lançamento dos dados da renda bruta anual estimada dessas atividades é feito em ordem decrescente, (se houver mais de 3 atividades, estas podem ser agrupadas na última linha, somando-se a receita correspondente) no campo 1.1. 2ª ETAPA - Fazer o lançamento das principais atividades agrossilvipastoris e escoher a unidade de medida para avaliar a produtividade das mesmas (sc/ha; t/ha; @/ha/ano; L de leite/ha/dia, etc.). A unidade de medida pode ser modificada na Aba Fórmulas (qualquer uma das células K6 a K18). 3ª ETAPA - Levantar os índices de produtividade com o entrevistado: Para culturas perenes considerar a média de produção das duas últimas safras; para culturas anuais considerar a média de produção da última safra; para a criação de animais, considerar a média de produção no período de um ano. 4ª ETAPA - Levantar a média do preço de venda apurado na última safra ou no último ano (no caso de vendas parceladas, calcular o valor médio). 5ª ETAPA - Lançar a média de produtividade e do preço de venda dos produtos levantados na região ou município (relatórios anuais do IBGE, dados de cooperativas, associações ou escritório local de ATER, dados de produtores rurais considerados como referência na região, etc.). Os fatores de ponderação utilizados para avaliar produtividade e preço de venda apurados no imóvel rural em relação aos dados da região estão descritos no lado direito da tabela do campo 1.2. O cálculo do resultado final é feito automaticamente, a partir da média dos índices gerados de cada atividade do empreendimento. Se a renda bruta média gerada no imóvel rural for menor que R$ 300,00/ha/ano ao considerar o total da renda bruta estimada e a somatória das áreas descritas no questionário, é gerado um rebate de 30% na nota final deste indicador (cálculo realizado automaticamente neste indicador).
A66: 2 | B66: DIVERSIDADE DE RENDA
B67: OBJETIVO Levantar o perfil da renda anual gerada pelos familiares que possuem relação direta com as atividades produtivas no imóvel rural, incluindo a proporção da renda anual gerada por atividades agrícolas, pecuárias e florestais dentro do imóvel rural (indicador 1), de outras atividades e fontes de renda também geradas dentro do imóvel rural (turismo, artesanato, processamento de alimentos, produção de cachaça, queijo entre outros, item 2.1) e fora do imóvel rural (prestação de serviços, aposentadoria, bolsas de auxílio, aporte de recursos de outras atividades profissionais, locação de equipamentos, rendas de aluguel, entre outros, item 2.2). Verifica-se também a ocorrência de concentração da renda anual bruta estimada em uma única atividade agropecuária (acima de 80%, item 2.3). APLICAÇÃO Estimar as outras fontes de renda dentro do imóvel rural (item 2.1) e as fontes de renda fora do imóvel rural (atividades agropecuárias, ou não, realizadas fora do imóvel rural e recebimentos de pensão, aposentadoria, bolsas e outras ajudas financeiras - item 2.2). Os porcentuais de cada fonte de renda são lançados automaticamente, assim como a verificação de concentração de renda em uma única atividade agropecuária (item 2.3).
A75: 3 | B75: EVOLUÇÃO PATRIMONIAL DO IMÓVEL RURAL
B76: OBJETIVO Fazer uma estimativa do valor patrimonial do imóvel rural e analisar a evolução ou regressão patrimonial ao longo do tempo, a partir do estabelecimento de um corte temporal, por meio da verificação da valorização do preço da terra na região durante este período, do levantamento das benfeitorias, equipamentos e semoventes (animais) existentes e adquiridos durante o período avaliado, além da ampliação ou diminuição das áreas de produção agrossilvipastoril e de agricultura irrigada. APLICAÇÃO 1ª ETAPA - (item 3.1) - Definir o tempo de aferição da evolução patrimonial - referência de 1 a 2 anos ou o período referente à última aplicação do ISA. 2ª ETAPA - (item 3.2) - Lançar o valor estimado das instalações, benfeitorias ou reformas realizadas recentemente (durante o período estabelecido na primeira etapa - item 3.1) e o valor estimado das instalações e benfeitorias existentes antes do período estabelecido (lançar o valor estimado ou resgatar o valor lançado na última aplicação do ISA). Lançar o valor estimado das máquinas e equipamentos adquiridos recentemente (durante o período estabelecido na primeira etapa - item 3.1) e o valor estimado das máquinas e equipamentos existentes antes do período. 3ª ETAPA - (item 3.3) - Lançar o número de animais (semoventes) e a estimativa do valor de venda para cada categoria, como também o estoque de grãos existente no imóvel rural na ocasião da aplicação do ISA. Para o levantamento do valor histórico dos animais, verificar o número de animais e a estimativa do valor para cada categoria. O levantamento dos bens e semoventes do imóvel rural pode ser sincronizado com a atualização cadastral do produtor no banco, aproveitando os dados levantados pela instituição financeira para verificação do limite de crédito, na ocasião da obtenção de financiamentos para lavoura, custeio pecuário, investimentos, Pronaf, entre outros (realizado uma vez por ano). Se o produtor já possui estes dados, basta lançar o valor monetário de cada item sem fazer a descrição detalhada dos bens. 4ª ETAPA - (item 3.4) - Fazer o levantamento da área com agricultura irrigada no imóvel rural, quando presente, verificando-se também se houve alteração da área de agricultura irrigada na coluna "Histórico área total". 5ª ETAPA - (item 3.5) - Verificar se houve alguma alteração no histórico de uso e ocupação do solo durante o período estabelecido no item 3.1 (os dados do histórico são preenchidos automaticamente, se houver alguma alteração em relação à ocupação atual descrita no questionário, basta substituir os dados). 6ª ETAPA - (item 3.6) - Lançar os valores estimados do preço da terra atual e histórico (referência do período no item 3.1).
A83: 4 | B83: GRAU DE ENDIVIDAMENTO
B84: OBJETIVO Este indicador complementa as informações obtidas pelo indicador Evolução Patrimonial, e tem como objetivo verificar o grau de endividamento do produtor, por meio da avaliação da proporção do montante de empréstimos contraídos (custeio agrícola, pecuário, investimentos, Pronaf, entre outros) em relação à estimativa do valor patrimonial (valor do imóvel rural com todas as benfeitorias, equipamentos, semoventes e o uso e ocupação da terra, gerado no indicador 3). As notas atribuídas ao grau de endividamento (descritas nos fatores de ponderação) referem-se aos empreendimentos de menor escala ou familiares. Os empreendimentos de maior escala comportariam um grau de endividamento maior, considerando uma menor aversão ao risco financeiro e maior capacidade e lastro para o pagamento dos compromissos financeiros. APLICAÇÃO Levantar todos os financiamentos de curto e longo prazos contraídos pelo produtor até o presente momento e lançar o valor no item 4.1
A90: 5 | B90: SERVIÇOS BÁSICOS DISPONÍVEIS PARA O IMÓVEL RURAL/SEGURANÇA ALIMENTAR
B91: SERVIÇOS BÁSICOS - OBJETIVO Verificar, nas residências de familiares e de funcionários no imóvel rural, o acesso de alguns serviços básicos como: disponibilidade de água em quantidade e qualidade; energia elétrica; acesso regular para escoamento da produção e recebimento de insumos (trafegabilidade durante o ano); acesso ao serviço de saúde (verificar se o produtor é atendido pelo Programa Saúde da Família PSF); acesso regular ao transporte escolar; segurança no campo; internet; e coleta pública de lixo (coleta do lixo reciclável ou coleta do lixo domiciliar pela prefeitura). APLICAÇÃO 1ª ETAPA - Verificar quantas residências com moradores regulares possui o estabelecimento (item 5.1). 2ª ETAPA - Para cada residência, verificar a disponibilidade dos serviços listados no item 5.2. Para o preenchimento deste indicador, deve-se colocar 1 (se atende satisfatoriamente), 0,5 (se atende parcialmente), ou 0 (não atende ou inexistente). PRODUÇÃO PRÓPRIA DE ALIMENTOS - OBJETIVO Para os imóveis rurais classificados como familiares rurais (item 7 do questionário), avaliar a disponibilidade de alimentos (hortaliças, frutas, tubérculos e fontes de proteína animal) produzidos no próprio estabelecimento (verificar também o entorno das residências), e se estes são suficientes para complementar a oferta de alimentos a todas as pessoas envolvidas no empreendimento (item 5.3). APLICAÇÃO 1ª ETAPA - Verificar quantas residências com moradores regulares possui o estabelecimento. 2ª ETAPA - Para cada residência ou conjunto de residências, verificar se há produção de hortaliças, tubérculos, frutas e criação de animais para o consumo dos residentes. OBS: Os valores utilizados no preenchimento de cada item são: 1 (presente); 0,5 (parcial) ou 0 (inexistente). Entende-se por parcial a presença do item, mas em quantidade insuficiente para atender à demanda da família. Valores de referência para uma família com 5 pessoas (demanda média de 2.630 kcal/dia), conforme trabalho realizado pela Emater/MG: Citros, 4 pés; Mamoeiros, 13 pés; Bananeiras, 18 pés; Vacas de leite, 2; Cevados (porcos)/ano, 4; Frangos/ano, 100; Galinhas, 50; Galos, 3; Mandioca, 200 kg; Hortaliças (folhosas, frutos e tubérculos)/ano, 600 kg.
A109: 6 | B109: ESCOLARIDADE & CURSOS DIRECIONADOS ÀS PRINCIPAIS ATIVIDADES
B110: OBJETIVO Verificar as informações relativas à escolaridade e participação em cursos de capacitação (curta e média duração) direcionados às atividades agropecuárias do imóvel rural, de todos os integrantes da família com vínculo direto com as atividades do imóvel rural, e da mão de obra contratada efetiva. Verificar também o acesso das crianças e jovens em idade escolar, que residem no imóvel rural, à rede básica de ensino. APLICAÇÃO 1ª ETAPA - Verificar o número de adultos com vínculo direto à produção e empregados permanentes. Levantar o número de dependentes em idade escolar que residem no estabelecimento. 2ª ETAPA - Verificar com o entrevistado o grau de escolaridade dos integrantes família com vínculo direto com as atividades do imóvel rural, e da mão de obra contratada efetiva, e a participação dos mesmos em cursos de capacitação direcionado às atividades (no último ano), e se todos os dependentes em idade escolar estão frequentando a escola.
A119: 7 | B119: OCUPAÇÃO & EMPREGO
B120: OBJETIVO Verificar o cumprimento da legislação trabalhista e uma série de recomendações e determinações do Ministério do Trabalho para os imóveis rurais que empregam pessoas nos sistemas de produção (mão de obra contratada efetiva e temporária). APLICAÇÃO 1ª ETAPA - Verificar o número de funcionários permanentes (contratação efetiva) e temporários (item 7.1). 2ª ETAPA - A partir do levantamento do número de empregados permanentes e temporários, verificar quantas são atendidos pelo item 7.1 (referente às obrigações da legislação trabalhista) e item 7.2 (referente às recomendações e determinações do Ministério do Trabalho).
A127: 8 | B127: GESTÃO DO EMPREENDIMENTO
B128: OBJETIVO Avaliar a capacidade de gestão do empreendedor com base no uso de instrumentos de administração, controle de custos, contabilidade, acesso ao crédito e à assistência técnica, cumprimento da legislação ambiental, e, também, no grau de organização dos produtores da região. APLICAÇÃO 1ª ETAPA - Verificar com o entrevistado se é feito um controle de receitas e despesas no empreendimento rural (fluxo de caixa). 2ª ETAPA - Verificar se é feito um controle de custos de produção para as atividades desenvolvidas no imóvel rural. 3ª ETAPA - Verificar se o produtor tem acesso à assistência técnica (assistência de revendas ou lojas de insumos agropecuários não são consideradas). 4ª ETAPA - Verificar se o produtor participa ativamente ou de forma eventual das diversas formas de organização dos produtores rurais locais (Associações, Cooperativas, Sindicato, etc.). 5ª ETAPA - Verificar a situação da regularização ambiental do produtor com relação a água, licença ambiental e regularização da Reserva Legal (RL) e das Áreas de Preservação Permanente (APP) a partir do Cadastro Ambiental Rural (CAR). 6ª ETAPA - Verificar se o produtor tem acesso às linhas de crédito (custeio para o plantio de lavouras ou pecuário, financiamento de equipamentos e construções, reformas de pastos, entre outros, e crédito para a comercialização da produção). Para o preenchimento deste indicador, deve-se colocar o valor 1 (se a atividade é realizada satisfatoriamente), 0,5 (se a atividade é realizada parcialmente) ou 0 (se inexistente).
A140: 9 | B140: COMERCIALIZAÇÃO & INOVAÇÃO
B141: OBJETIVO Verificar se o produtor busca informações de mercado para a comercialização de sua produção, e se acessa mercados que agregam valor (produtos certificados ou mercados que pagam um diferencial na qualidade) ou mercados institucionais (programas de governo com comercialização direta do produtor ao consumidor, programa de abastecimento para a merenda escolar no município, entre outros). Verificar a utilização de ferramentas de gestão direcionadas aos fatores críticos identificados nas principais atividades, com foco na adoção de técnicas inovadoras, ambientalmente adequadas, e na capacidade de inovação do produtor rural. APLICAÇÃO 1ª ETAPA - Verificar com o entrevistado como é feita a comercialização da produção e como ele obtem informações sobre o mercado (consultas em sites, Cooperativas, Associações, jornal, etc.). Verificar também se há produção certificada ou direcionada para mercados institucionais (orgânica, cafés especiais, Programa de Aquisição de Alimentos - PAA, Programa Nacional de Alimentação Escolar - PNAE, entre outros). 2ª ETAPA - Verificar com o entrevistado, durante as visitas aos talhões, quais são os principais problemas e quais as medidas tomadas para o seu controle, verificando previamente na região quais as tecnologias inovadoras identificadas e, se estas ou outras estão sendo adotadas pelo produtor (caso afirmativo, fazer a descrição da técnica inovadora adotadas pelo produtor). A partir do perfil do produtor, verificar se este tem capacidade de inovação ou tem uma posição de liderança na comunidade (caso afirmativo fazer a descrição). É feita também a verificação (opcional) da adoção de algumas práticas visando uma cobertura permanente e diversificada do solo.
A152: 10 | B152: GERENCIAMENTO DE RESÍDUOS E EFLUENTES NO IMÓVEL RURAL
B153: OBJETIVO Verificar o índice de coleta e destinação adequada do lixo (reciclável e não reciclável) produzidos no imóvel rural; verificar a destinação adequada do esgoto doméstico; verificar o índice de reaproveitamento dos resíduos sólidos orgânicos gerados no imóvel rural (compostagem, adubação orgânica, alimentação de animais, etc.); e verificar o índice de tratamento e destinação adequada dos efluentes líquidos e gasosos, quando os mesmos forem gerados no imóvel rural. APLICAÇÃO 1ª ETAPA - Verificar com o entrevistado qual o destino do esgoto doméstico gerado em cada residência existente no imóvel rural (item 10.1). 2ª ETAPA - Verificar com o entrevistado qual o destino do lixo doméstico e do lixo gerado nas unidades de produção (lixo reciclável – embalagens, plástico, papel, latas, e o lixo não reciclável) (item 10.2). 3ª ETAPA - Estimar com o entrevistado qual a proporção (%) do total de resíduos orgânicos que são compostados ou reaproveitados nas unidades de produção (palhadas, esterco, cama de frango, entre outros). 4ª ETAPA - Verificar com o entrevistado se há alguma unidade de produção (curral, galpões para criação de animais, unidades de compostagem) ou de beneficiamento (café despolpado, chorumeira, etc.) que geram efluentes líquidos. Estimar qual a proporção (%) dos efluentes gerados que recebem tratamento e destinação adequada. 5ª ETAPA - Verificar com o entrevistado se há alguma unidade de produção que gere efluentes gasosos (caldeiras, carvoaria, biodigestores, etc.). Estimar qual a proporção (%) do total de efluentes gasosos gerados que possuem um tratamento adequado antes de serem lançados na atmosfera. 6ª ETAPA - Verificar no imóvel rural se tem alguma situação crítica com relação ao gerenciamento de resíduos e efluentes: fossa seca (negra) localizada próxima a um curso d'água ou poço artesiano; lançamento de efuentes (domésticos ou de criações) sem nehum tratamento em corpos d'água; esgoto a céu aberto, queima de resíduos plásticos, baterias, e outros materiais sintéticos no estabelecimento, entre outros.
A166: 11 | B166: SEGURANÇA DO TRABALHO / GESTÃO DO USO DE AGROTÓXICOS
B167: OBJETIVO Verificar se ocorre o uso de agrotóxicos no imóvel rural, levantar quantas pessoas manipulam ou estão expostas a esses produtos, se as mesmas utilizam equipamentos de proteção individual, e observar o armazenamento e disposição adequada das embalagens destes produtos (sugere-se fazer o mesmo procedimento para produtos veterinários, sobretudo os produtos utilizados para controle de parasitas, inseticidas e vacinas). APLICAÇÃO 1ª ETAPA - Verificar com o entrevistado se ocorre a utilização de agrotóxicos nos sistemas de produção agrossilvipastoris, quantas pessoas manuseiam esses produtos, e quantas utilizam o equipamento de proteção individual (preencher o número de pessoas). 2ª ETAPA - Verificar se o imóvel rural possui um local adequado para o armazenamento das embalagens de agrotóxicos (local exclusivo com acesso restrito e ventilado) e se o produtor faz a devolução dessas embalagens no local indicado pela revenda, conforme a Lei 12.305/10 que institui a Política Nacional de Resíduos Sólidos e trata da logística reversa dos resíduos (excolher a opção "sim" quando for adequado e suficiente).
A176: 12 | B176: CAPACIDADE PRODUTIVA DO SOLO
B177: OBJETIVO Avaliar aspectos relacionados a fertilidade e atividade biológica do solo, por meio de dez parâmetros relacionados às propriedades químicas e físicas do solo e de duas enzimas do solo relacionadas à atividade biológica (Arilsulfatase e Betaglicosidase). Para a interpretação dos dados relacionados à fertilidade do solo foram utilizadas as publicações: "Recomendações para o uso de corretivos e fertilizantes em Minas Gerais - 5ª aproximação" e "Cerrado: correção do solo e adubação" publicado pela Embrapa Cerrados. Os dados para análise da biologia do solo referem-se a tecnologia BioAS desenvolvida pela Embrapa (esta análise é opcional). APLICAÇÃO 1ª ETAPA - Verificar qual é a área mais representativa para a produção agrossilvipastoril (considerar o tamanho da área e o peso econômico - geração de renda), ou a área direcionada para as intervenções propostas no plano de adequação. Verificar se o entrevistado possui análises recentes de fertilidade do solo (período até 2 anos), e se as mesmas possuem análise granulométrica do solo (textura). 2ª ETAPA - A partir das informações levantadas verificar a necessidade de fazer outras coletas de amostras de solos para análise química em laboratório de solo. Se necessário, fazer a coleta de amostras de solo evitando talhões que foram recentemente adubados, locais próximos a brejos, casas, galpões, formigueiros ou voçorocas. As coletas devem ser realizadas na profundidade de 0-20 cm, com auxílio de um trado, caminhando em zigue-zague pela área. Após a coleta de amostras, o solo deve ser bem misturado, para obtenção de uma amostra composta do talhão. Desta, separa-se uma porção da amostra composta de, aproximadamente, 300 g, em saco plástico limpo e identificado (nome do talhão, data e o código do estabelecimento), para ser encaminhada ao laboratório de solos. Para as análises da biologia do solo, realizar o mesmo procedimento, porém, na profundidade de 0-10 cm. 3ª ETAPA - Ao lançar os dados da análise de solo, primeiro, fazer a descrição do talhão e a data da análise no laboratório (campo descrição do talhão). As interpretações dos teores de matéria orgânica e fósforo consideram a textura do solo. Pode ser inserido (opcional) dados sobre aspectos relacionados à atividade biológica do solo envolvendo a BioAS (análise das enzimas arilsulfatase e betaglicosidase em amostras de solo coletadas conforme a descrição da 2ª etapa, na profundidade de 0-10cm). As interpretações dos dados são baseados no sistema da Embrapa (Mendes et al., 2021).
A190: 13 | B190: AVALIAÇÃO DA QUALIDADE DA ÁGUA
B191: AVALIAÇÃO DA QUALIDADE DA ÁGUA SUPERFICIAL - OBJETIVO Avaliar os ecossistemas aquáticos a partir de dois segmentos de um curso d'água, quando presente no imóvel rural, à montante e à jusante, utilizando um protocolo de avaliação rápida dos ecossistemas aquáticos (item 3.1). Análises complementares podem ser realizadas por meio de fitas de análise de pH, nitrato e coliformes, e equipamentos para análise da turbidez (item 13.2). APLICAÇÃO 1ª ETAPA - Identificar os corpos d'água que passam pelo imóvel rural. A partir destas informações, escolher o curso d'água mais representativo ou mais importante para o imóvel rural (abastecimento ou irrigação). 2ª ETAPA - Definido o curso d'água, identificar os pontos de coleta de amostras de água (montante e jusante) para a realização das análises (Montante - local de entrada do curso d'água que passa dentro ou na divisa do imóvel rural, ou próximo de uma nascente; Jusante – local de saída do curso d'água que passa dentro ou na divisa do imóvel rural, ou próximo ao local onde um curso d'água deságua em outro corpo d'água). Para facilitar a coleta de amostras para a análise da qualidade da água em locais de dífícil acesso, recomenda-se utilizar um coletor com haste. 3ª ETAPA - item 13.1 - Para cada ponto de coleta aplicar o protocolo de avaliação rápida dos ecossistemas aquáticos. Pode ser levado um notebook, tablet ou o cheklist impresso para realizar o seu preenchimento no próprio local de avaliação. 4ª ETAPA (opcional) - item 13.2 - Se for utilizar as fitas para leitura de pH e nitrato, os resultados devem ser anotados ou registrados in loco, no caso da cartela microbiológica para análise da presença de coliformes termotolerantes, fazer a leitura após incubação por 15 horas (para a sua coleta, não tocar na cartela, deixar o excesso de água escorrer e guardar a mesma envolta em um papel alumínio até o local de incubação. Após a incubação, proceder a contagem das colônias, considerando sempre os dois lados da cartela. Coliformes fecais são os pontos azuis. Multiplicar cada ponto por 60 para lançar na planilha). A avaliação da turbidez pode ser feita no local utilizando-se equipamentos portáteis para a sua avaliação. AVALIAÇÃO DA QUALIDADE DA ÁGUA SUBTERRÂNEA - OBJETIVO Avaliar a qualidade da água subterrânea no imóvel rural, quando presente (poço proveniente do lençol freático (mais raso), ou poço artesiano, proveniente de aquíferos que estão abaixo de uma camada impermeável, portanto, mais profundos). Para tanto, são utilizados três parâmetros: pH; coliformes termotolerantes e nitrato (item 13.3). APLICAÇÃO 1ª ETAPA (opcional) - Verificar se existem poços para utilização de água subterrânea no estabelecimento (incluindo a captação de água de nascentes) ou coletar a água utilizada para consumo, o mais próximo da fonte. Uma vez identificados, eleger o de maior importância ou o mais utilizado pelo produtor. 2ª ETAPA (opcional) - Coletar amostras da água para realizar as análises no local.
A212: 14 | B212: RISCO DE CONTAMINAÇÃO DA ÁGUA POR AGROTÓXICOS
B213: OBJETIVO Estimar o risco de contaminação de corpos d'água pelo uso de agrotóxicos no imóvel rural, considerando parâmetros relacionados à persistência do princípio ativo no ambiente, sua mobilidade no perfil do solo e a toxicidade da formulação. São considerados todos os agrotóxicos eventualmente utilizados no imóvel rural, o volume aplicado e a vulnerabilidade de cada talhão, levando em conta, a granulometria do solo, a proximidade dos corpos d´água e o tipo de manejo do solo (relacionado ao preparo para o plantio e o manejo das entrelinhas de culturas perenes e florestais). APLICAÇÃO 1ª ETAPA - Levantar com o entrevistado todos os produtos utilizados (nome comercial) nas áreas de produção e pastagens para o controle de pragas, doenças e plantas invasoras. 2ª ETAPA - item 14.1 - Selecionar cada produto (lista do nome comercial dos produtos aparece em ordem alfabética ao clicar o campo Nome Comercial), descrever a cultura onde cada um foi aplicado, a área em ha e a dose utilizada (L ou kg/ha). Recomenda-se fazer o lançamento dos agrotóxicos agrupando-os por lavoura (café, milho, soja, etc.), mesmo que se repita um determinado produto em lavouras diferentes (as doses podem variar). Se houver mais de uma aplicação do mesmo produto na safra, lançar o volume total por hectare. 3ª ETAPA - Os dados de cada produto escolhido na lista do item 14.1 são preenchidos automaticamente na planilha: princípio ativo (no caso de produtos com mais de um princípio ativo, é lançado apenas o que tiver o maior potencial de contaminação); toxicidade; mobilidade do produto no ambiente, correspondente ao coeficiente de sorção do agrotóxico pela matéria orgânica do solo (Koc); persistência do produto no ambiente, correspondente a meia-vida de campo do agrotóxico em dias (t1/2). Uma lista de referência com os dados descritos acima está disponibilizada na Aba "Banco de dados". Informações de outros princípios ativos que não se encontram na lista podem ser obtidas no site http://sitem.herts.ac.uk/aeru/iupac/. Informações sobre o risco de contaminação de cada ingrediente ativo para o trabalhador rural, consumidor e o meio ambiente foram incluídos (índice da Universidade de Cornell - IEQ), além de informações sobre quais produtos utilizados no país estão banidos na União Européia. 4ª ETAPA - Para cada produto inserido no indicador, identificar as características da área onde o mesmo foi aplicado, considerando a granulometria ou o teor de argila (1, 2 ou 3, conforme descrição no item 14.2), a distância do curso d'água mais próximo da referida área (1, 2 ou 3, conforme descrição no item 14.2) e o tipo de manejo do solo (1, 2 ou 3, conforme descrição no item 14.2). O objetivo deste levantamento é verificar a vulnerabilidade destas áreas com relação à contaminação dos corpos d'água por agrotóxicos. 5ª ETAPA - O risco de contaminação é calculado automaticamente para cada produto. Para gerar uma nota no indicador, lançar no item 14.3 a identificação das culturas, a área respectiva de cada cultura ou talhão e lançar, para cada lavoura, e o maior risco de contaminação. O resultado desse indicador considera o risco máximo e a área equivalente de cada talhão ou cultura identificados no estabelecimento.
A232: 15 | B232: AVALIAÇÃO DE ÁREAS COM SOLO EM PROCESSO DE DEGRADAÇÃO
B233: OBJETIVO Verificar a presença de solos em estágio de degradação, dimensionar a área, a intensidade do processo (escala e potencial de impacto) e avaliar a tendência de comportamento do processo de degradação (intensificação, estabilização ou diminuição). APLICAÇÃO 1ª ETAPA - Identificar no estabelecimento áreas com solos em estágio de degradação (presença de erosão laminar, em sulcos ou voçorocas). 2ª ETAPA - Uma vez identificadas no campo, verificar qual a área apresenta maior intensidade e/ou maior estágio de degradação. A estimativa da área pode ser feita com o entrevistado ou com imagens de satélite, além da conferência no campo. Fazer o lançamento apenas da área com maior intensidade de estágio de degração e/ou de maior abrangência no item 15.1, lançando a área em hectares em uma das opções: estágio inicial; estágio intermediário; ou estágio avançado. 3ª ETAPA - Marcar uma das opções de tendência de comportamento do processo de erosão identificado no item 15.2: redução do processo; processo inalterado; intensificação do processo de erosão.
B243: Indicativos da Intensidade do estágio de degradação
C244: Inicial | D244: Intermediário | F244: Avançado
B245: Erosão laminar | C245: Redução de infiltração de água Raízes expostas | D245: Remoção do horizonte superficial do solo
B246: Erosão em sulcos | D246: Presença de sulcos rasos localizados | F246: Sulcos profundos e disseminados em toda a área
B247: Voçoroca | F247: Presença de voçorocas, movimento de massa (deslocamento de grandes volumes de solo)
A249: 16 | B249: GRAU DE ADOÇÃO DE PRÁTICAS CONSERVACIONISTAS
B250: OBJETIVO Avaliar o grau de adoção de uma série de medidas para a conservação do solo e água em todos os sistemas de produção no imóvel rural. A verificação é realizada em todos os talhões de lavouras e pastagens. Também é verificado com o produtor ou responsável pelo empreendimento quais estratégias vem sendo adotadas para o convívio com a seca ou estresse hídrico e para a conservação e reservação da água no imóvel rural. APLICAÇÃO 1ª ETAPA - Percorrer os talhões e pastegens, verificar o grau de adoção de práticas de conservação do solo e água (a somatória das áreas de produção para cada categoria - lavouras permanentes, lavouras temporárias, pastagens e florestas, aparecem automaticamente no cabeçalho da tabela do item 16.1). 2ª ETAPA - Após a verificação do grau de adoção de práticas conservacionistas, levando em conta a topografia do terreno, o tipo de cobertura vegetal, e, para as culturas permanentes e florestas plantadas o seu estágio de desenvolvimento, fazer o preenchimento das respectivas áreas de cada talhão e pastagem avaliado conforme as categorias do grau de adoção de práticas para a conservação dos solos (suficiente; insuficiente - as medidas adotadas não são suficientes para conter os processos erosivos, incluindo erosão laminar com baixo nível de intensidade; e situação inadequada - situações extremas de ausência de práticas de conservação dos solos e/ou presença de processos erosivos com alta intensidade). 3ª ETAPA - Verificar com o produtor o grau de adoção de estratégias para a conservação e reservação das águas, considerando todo o imóvel rural, marcando uma das opções: suficiente; insuficiente; ou situação inadequada ou de alta fragilidade (item 16.2).
B262: GRAU DE ADOÇÃO DE PRÁTICAS DE CONSERVAÇÃO DO SOLO (REFERÊNCIAS) SUFICIENTE - Plantio em nível; cobertura do solo permanente, diversificada e com raízes vivas; adoção do sistema de plantio direto na palha; terraceamento; rotação de culturas, consorciações, evitar a compactação do solo, etc. INSUFICIENTE - Solo desprotegido, plantio sem seguir as curvas de nível, uso de mecanização intensiva gerando compactação da área, sem rotação de culturas, etc. SITUAÇÃO INADEQUADA - Situação extrema de ausência de práticas de conservação dos solos, presença de erosão mais intensa, solos muito compactados, uso de grade e aração, presença de fogo, monocultivos sem rotação das culturas anuais, sem estratégias para manter o solo coberto na entresafra ou nas entrelinhas dos cultivos perenes, etc.
B268: GRAU DE ADOÇÃO DE ESTRATÉGIAS PARA A CONSERVAÇÃO E RESERVAÇÃO DAS ÁGUAS NO IMÓVEL RURAL (REFERÊNCIAS) SUFICIENTE - Práticas adotadas são suficientes para garantir o fornecimento de água para o abastecimento, dessedentação e/ou para as atividades de agricultura irrigada; implantação de estruturas para minimizar o poder erosivo do escoamento superficial das águas pluviais (principalmente as enxurradas) nas áreas de produção e nas estradas; adoção de estratégias para a manutenção ou incremento da Matéria Orgânica do solo e ativação da biologia do solo visando a estabilidade dos agregados e aumentas a capacidade de infiltração e retenção de água. INSUFICIENTE - Práticas adotadas não são suficientes para garantir o fornecimento de água para o abastecimento, dessedentação, para as atividades de agricultura irrigada, bem como evitar processos erosivos. SITUAÇÃO INADEQUADA - Escassez de água para abastecimento humano; escassez de água para a dessedentação de animais no imóvel rural; ausência de estratégias para convívio com a seca; processos erosivos recorrentes no imóvel rural.
B275: PLANTIO EM CURVA DE NÍVEL - Preparo do solo é realizado seguindo a direção da curva de nível do terreno. Dessa forma, para terrenos com pequena declividade, são criados obstáculos à descida da enxurrada, propiciando a redução dos processos erosivos e aumento da infiltração de água no solo. PREPARO DO TERRENO COM O MÍNIMO DE REVOLVIMENTO - Consiste em abrir apenas um sulco no solo onde serão introduzidas as sementes e o adubo, dispensando assim, os processos convencionais de aração e gradagem. Este tipo de preparo mantém os restos da cultura anterior sobre o solo. Com isso, atenua-se a erosão e a compactação das camadas mais profundas do solo devido à redução do uso de máquinas pesadas. PLANTIO DIRETO - É um sistema de semeadura, no qual a semente é colocada diretamente no solo não revolvido, usando-se máquinas específicas. Somente é aberto um pequeno sulco ou cova de largura e profundidade suficientes para a adequada cobertura e contato das sementes com o solo. MANTER O SOLO PROTEGIDO O ANO TODO - A permanência de palhadas de colheitas anteriores ou o uso de plantas de cobertura evitam que o solo fique exposto à insolação, reduz a evaporação, fornece também proteção contra o impacto das gotas de chuva, reduzindo o escoamento superficial e a erosão. Assim, a cobertura do solo apresenta como benefícios: a redução da incidência de plantas invasoras; promoção do equilíbrio da flora e da fauna do solo; favorecimento do manejo integrado de pragas e doenças; maior estabilização da taxa de reciclagem de nutrientes; e promoção da atividade biológica no solo. QUEBRA-VENTOS - Plantio de árvores em intervalos regulares no entorno de lavouras e pastagens em direção perpendicular aos ventos dominantes. Os quebra-ventos agem diretamente de duas formas sobre o ambiente: sombreando parcial e temporariamente as culturas e pastagens; diminuindo a velocidade do vento. Seus benefícios principais são as alterações no microclima, o que pode levar a incrementos na produção, reduzindo a necessidade por insumos externos. O sombreamento auxilia no aumento da umidade do solo, enquanto a redução dos ventos diminui a erosão eólica. A presença de árvores também funciona como um fator atrativo para diversas espécies. FAIXAS COM VEGETAÇÃO NATURAL, ROÇADAS ALTERNADAS - Supressão da vegetação nativa em faixas alternadas na abertura de novas áreas para cultivos ou revegetação com especies nativas nas áreas consolidadas. Para as culturas perenes, as roçadas alternadas permitem o estabelecimento de espécies atrativas para inimigos naturais de pragas. CULTURAS INTERCALARES - Podem ser utilizadas culturas comerciais ou não. O plantio de culturas de porte, ciclo e comportamento agronômico diferentes pode ser benéfico, pois, além do benefício direto do aumento da biodiversidade, possibilita um melhor aproveitamento dos nutrientes do solo, explorando diferentes camadas do solo. TERRACEAMENTO - Os terraços podem ser locados em nível, em desnível ou de forma mista. Os terraços em nível possuem as extremidades bloqueadas e têm a função de acumular e infiltrar a água, e são recomendados para áreas com boa permeabilidade e declividade de até 12%. Os terraços em desnível apresentam pequeno gradiente ao longo de seu comprimento e conduzem a água para as laterais, sendo mais adequados, para áreas com menor permeabilidade e/ou declividades superiores a 12%. Os terraços mistos englobam os dois tipos anteriores, ou seja, são projetados em pequeno desnível e com capacidade de acumulação de água que, ao ser excedida, escoa pelas laterais. Em encostas ou morros onde o volume e a velocidade da enxurrada são grandes, dependendo do comprimento de rampa e da declividade, o terraço em desnível é mais recomendado para se evitar que estes se rompam, podendo ser construídos com menor largura. A seleção do tipo de terraço a ser construído, assim como seu dimensionamento, sua locação e sua construção devem ser feitas por profissionais qualificados. Os terraços classificam-se ainda quanto a sua largura, em base estreita (menos de 3 m), base média (3 a 6 m) e base larga (6 a 12 m), e, quanto ao seu perfil, em terraço do tipo comum, embutido, murundu, e patamar (plataforma).
A298: 17 | B298: ESTADO DE CONSERVAÇÃO DAS ESTRADAS QUE CORTAM OU MARGEIAM O IMÓVEL RURAL
B299: OBJETIVO Verificar a presença de estruturas para a drenagem e escoamento das águas pluviais (enxurradas) das estradas localizadas dentro do imóvel rural ou que tangenciam o imóvel rural, observando a presença de abaulamentos ou declividade transversal das mesmas, a presença de lombadas para o desvio de enxurrada, quando necessário, a presença de bacias ou caixas de infiltração para captar a água proveniente do escoamento das estradas, quando necessário, e o estado de conservação das estradas observando a presença de buracos e sulcos de erosão. APLICAÇÃO 1ª ETAPA - Percorrer as estradas de acesso que cortam ou margeiam o imóvel rural, e as estradas internas, observando o estado de conservação dessas e a adoção de práticas conservacionistas. 2ª ETAPA - Depois de percorrer as estradas, fazer o preenchimento dos campos, por meio da estimativa do percentual da adoção de medidas de conservação das estradas (item 17.1) e do percentual da presença de buracos e sulcos de erosão nas estradas (item 17.2). 3ª ETAPA - Verificar a presença de pontos críticos nas estradas que podem comprometer o acesso e escoamento da produção e recebimento de insumos, ou que podem gerar significativos impactos ambientais como o assoreamento de corpos d'água. Caso afirmativo, fazer a descrição no campo abaixo do item 17.3.
B309: DECLIVIDADE TRANSVERSAL DA ESTRADA - É uma inclinação da seção transversal, a partir do eixo da estrada, para permitir o escoamento das águas superficiais para as valas laterais. LOMBADAS PARA DESVIO DE ENXURRADA - São elevações construídas transversalmente ao longo de toda a largura da plataforma da estrada, com o objetivo de conduzir adequadamente as águas superficiais, direcionando-as aos dispositivos encarregados de absorvê-las e ou armazená-las, tais como: terraços, caixas de retenção, etc. CAIXAS DE CAPTAÇÃO DE ÁGUA OU BARRAGINHAS - O objetivo dessa técnica é proporcionar a captação da águas de chuva, por meio da construção de pequenas barragens ou miniaçudes, nos locais de ocorrência de enxurradas volumosas e erosivas, barrando-as e amenizando seus efeitos erosivos. BACIAS DE INFILTRAÇÃO - Bacia ou caixa de infiltração é uma depressão no terreno construída, geralmente às margens da estrada, com o objetivo de reduzir o volume das enxurradas e promover a recarga da água subterrânea.
A318: 18 | B318: VEGETAÇÃO NATIVA - FITOFISIONOMIAS E ESTADO DE CONSERVAÇÃO
B319: OBJETIVO Avaliar o estado de preservação dos remanescentes de vegetação nativa e o nível de fragmentação desses habitats no imóvel rural. Verifica-se também se estes fragmentos de vegetação nativa têm ligação com outros fragmentos nos estabelecimentos rurais vizinhos, formando corredores ecológicos. São identificadas as fitofisionomias (campo rupestre/campo de altitude; campo higrófilo de várzea; cerrado ralo; cerrado típico; cerradão; mata de galeria; veredas; mata atlântica/mata seca; e vegetação de caatinga) e o estado de conservação com base nas referências para os estágios sucessionais das principais fitofisionomias dos biomas Mata Atlântica, Cerrado e Caatinga. APLICAÇÃO 1ª ETAPA - Identificar os diferentes tipos de vegetação nativa (selecionar o tipo de fitofisionomia no cabeçalho da tabela do Indicador - clicar com o mouse no cabeçalho, clicar novamente na seta que aparece no canto inferior direito, e, escolher uma das fitofisionomias listadas) 2ª ETAPA - Estimar a área correspondente de cada fragmento com vegetação nativa. Lançar as áreas no item 18.1 de acordo com o estágio sucessional (inicial, intermediário ou avançado). 3ª ETAPA - Verificar o número de fragmentos com vegetação nativa presentes no imóvel rural, conferindo no campo e a partir das imagens de satélite, (item 18.2). 4ª ETAPA - Verificar se algum fragmento de vegetação nativa tem conexão com a vegetação nativa de imoveis rurais vizinhos. Caso afirmativo, marcar a opção "sim" no item 18.3. 5ª ETAPA - Verificar se todos os fragmentos com vegetação nativa estão protegidos do pastoreio (com cercamento se necessário) e do fogo (presença de aceiros com manutenção anual). Caso afirmativo, marcar a opção "sim" no item 18.4.
B332: BIOMA MATA ATLÂNTICA - Estágio avançado 1. estratificação definida com a formação de três estratos: dossel, sub-dossel e sub-bosque; 2. dossel superior a 12 (doze) metros de altura e com ocorrência frequente de árvores emergentes; 3. sub-bosque normalmente menos expressivo do que no estágio intermediário; 4. menor densidade de cipós e arbustos em relação ao estágio intermediário; 5. riqueza e abundância de epífitas, especialmente nas Florestas Ombrófilas; 6. trepadeiras geralmente lenhosas, com maior frequência e riqueza de espécies na Floresta Estacional; 7. serapilheira presente variando em função da localização; 8. espécies lenhosas com distribuição diamétrica de grande amplitude com DAP médio superior a 18 (dezoito) centímetros.
B340: BIOMA MATA ATLÂNTICA - Estágio intermediário 1. estratificação incipiente com formação de dois estratos: dossel e sub-bosque; 2. predominância de espécies arbóreas formando um dossel definido entre 5 (cinco) e 12 (doze) metros de altura, com redução gradativa da densidade de arbustos e arvoretas; 3. presença marcante de cipós; 4. maior riqueza e abundância de epífitas em relação ao estágio inicial, sendo mais abundantes nas Florestas Ombrófilas; 5. trepadeiras, quando presentes, podem ser herbáceas ou lenhosas; 6. serapilheira presente variando de espessura de acordo com as estações do ano e a localização; 7. espécies lenhosas com distribuição diamétrica de moderada amplitude com DAP médio entre 10 (dez) centímetros e 20 (vinte) centímetros.
B347: BIOMA MATA ATLÂNTICA - Estágio Inicial 1. ausência de estratificação definida; 2. predominância de indivíduos jovens de espécies arbóreas, arbustivas e cipós, formando um adensamento (paliteiro) com altura de até 5 (cinco) metros; 3. espécies lenhosas com distribuição diamétrica de pequena amplitude com DAP médio de até 10 (dez) centímetros; 4. espécies pioneiras abundantes; 5. dominância de poucas espécies indicadoras; 6. epífitas, se existentes, são representadas principalmente por líquens, briófitas e pteridófitas com baixa diversidade; 7. serapilheira, quando existente, forma uma fina camada, pouco decomposta, contínua ou não; 8. trepadeiras, se presentes, geralmente herbáceas.
A354: 19 | B354: ADEQUAÇÃO DAS ÁREAS DE PRESERVAÇÃO PERMANENTE (APPs) DO IMÓVEL RURAL
B355: OBJETIVO Verificar se o uso e ocupação do solo nas APPs está em conformidade com o Novo Código Florestal, e verificar o estado de conservação das APPs (entorno de nascentes e corpos d’água). APLICAÇÃO 1ª ETAPA - O lançamento dos dados é feito automaticamente no item 19.1, a partir da identificação do uso e ocupação do solo nas APPs (item 9 do questionário). 2ª ETAPA - Verificar no campo e na imagem de satélite o percentual das APPs efetivamente protegidas e com bom estado de conservação (item19.2).
A362: 20 | B362: ADEQUAÇÃO DA RESERVA LEGAL (RL) DO IMÓVEL RURAL
B363: OBJETIVO Avaliar o cumprimento da exigência de Reserva Legal (RL) no imóvel rural, conforme o Novo Código Florestal. Verificar também se o imóvel rural possui área com vegetação nativa excedente à exigência para RL (considerado como um ativo ambiental). APLICAÇÃO A Verificação do cumprimento da RL é feita automaticamente para imóveis com área menor que 4 Módulos Fiscais (para as regiões Sul, Sudeste, parte do Centro Oeste e Nordeste), no campo "Áreas de/para RL não passíveis de recomposição". Para os demais imóveis rurais (>4MF), o preenchimento não será feito de forma automátca, utilizando-se os campos do item 20.1: "Área de RL fora do imóvel rural" (Se a RL, ou parte da RL, estiver localizada fora do imóvel rural); "Áreas de/para RL que necessitam de recomposição " (se a RL estiver localizada dentro do imóvel rural, verificar se a mesma possui alguma área que necessita de recomposição); "Áreas de/para RL não passíveis de recomposição".
A371: 21 | B371: DIVERSIFICAÇÃO DA PAISAGEM AGROSSILVIPASTORIL NO IMÓVEL RURAL
B372: OBJETIVO Verificar a diversificação da paisagem na escala de lavouras e talhões, e na escala do imóvel rural e seu entorno. APLICAÇÃO 1ª ETAPA - Avaliar, em cada talhão descrito no item 8 do questionário, o grau de adoção de práticas que auxiliem na indução da agrobiodiversidade (culturas intercalares, consórcios, integração LP, LPF, PF, policultivos, SAFs, adubação verde, roçadas em faixas alternadas, presença de barreiras vegetais no talhão, presença de corredores ecológicos no talhão, rotação de culturas, ativação da biologia do solo; diminuição dos distúrbios para a atividade biológica, como, por exemplo, uso indiscriminado de pesticidas e de adubos de alta solubilidade, mecanização intensa e pressão de monocultivos). O preenchimento do item 21.1 poderá ser realizado de forma similar ao item 16.1 do indicador 16 (grau de adoção de práticas conservacionistas). 2ª ETAPA - A diversificação da paisagem na escala do imóvel rural é aferida automaticamente, por meio da avaliação da diversidade das fitofisionomias dos remanescentes de vegetação nativa, e da diversificação do uso do solo no imóvel rural, por meio de uma adaptação do índice de Shannon-Wiever. 3ª ETAPA - O grau de diversificação do uso e ocupação do imóvel e das áreas no seu entorno é avaliado, ao considerar a proporção de cultivos e usos similares ao longo das áreas fronteiriças, com o objetivo de verificar se ocorre pressão de monocultivos. Se for identificado uma alta proporção das áreas limítrofes ao imóvel rural com o mesmo uso do solo (acima de 70%), marcar "sim" no item 21.3.
B383: ROTAÇÃO DE CULTURAS - A rotação de culturas consiste em alternar, anualmente, espécies vegetais, numa mesma área agrícola. As espécies escolhidas podem ter, ao mesmo tempo, propósito comercial e de recuperação do solo. A seleção de espécies baseia-se na diversidade botânica. Plantas com diferentes sistemas radiculares, hábitos de crescimento e exigências nutricionais podem ter efeito na interrupção dos ciclos de pragas e doenças. A diversidade de plantas influencia na diversidade da microbiota do solo, permitindo maior resiliência dos sistemas de produção. AGROFLORESTAS OU SISTEMAS DE POLICULTIVOS - Agrofloresta é a denominação do sistema de produção onde são introduzidas árvores e arbustos em áreas de produção agrícola ou pecuária. Dentro desse sistema estão reunidas diversas técnicas citadas acima, como: culturas em faixa, quebra-vento, culturas intercalares e rotação de culturas. Além das vantagens específicas a cada uma dessas técnicas, o uso mais amplo de espécies arbóreas otimiza o uso do espaço vertical do agroecossistema, reciclando nutrientes absorvidos pelas raízes profundas por meio da queda de folhas. CONSORCIAÇÃO - É o cultivo de duas ou mais espécies anuais e/ou perenes em uma mesma área em sistema de policultivo. O plantio nesse sistema é feito procurando distribuir o espaço da lavoura o mais conveniente possível, buscando uma baixa competição entre plantas pelos fatores de produção como luz, água e nutrientes. Assim, as características agronômicas de cada uma das culturas envolvidas na consorciação como o ciclo vegetativo, as épocas de cultivo, que devem ser distintas, e o porte das plantas devem ser considerados no planejamento da distribuição delas nas linhas de plantio. FAIXAS COM VEGETAÇÃO NATURAL, ROÇADAS ALTERNADAS - explanação no indicador 16. CULTURAS INTERCALARES - explanação no indicador 16

Sheet 1 QUESTIONÁRIO
B2: ISA | D2: QUESTIONÁRIO
B3: ISBN 978-85-99764-26-8
A4: 1 | B4: CROQUI DO IMÓVEL RURAL (CAR)
B33: Preencher todos os campos em amarelo
A35: 2 | B35: DATA
A37: 3 | B37: COLABORADOR(A)
B38: Nome
B40: CPF
A42: 4 | B42: BENEFICIÁRIO/A
B43: Nome
B45: CPF / CNPJ
B47: Idade do/a responsavel e/ou proprietário/a (anos)
A49: 5 | B49: LOCALIZAÇÃO E IDENTIFICAÇÃO DO IMÓVEL RURAL
B50: Geolocalização (coordenadas graus decimais)
H51: Proprietário
B52: Nome do município | E52: Estado | H52: Posseiro
H53: Assentado
B54: Nome do curso d'água principal mais próximo do imóvel rural | H54: Arrendatário
H55: Parceiro
A56: 6 | B56: POSSE DA TERRA | H56: Usufrutuário
C57: Escolha uma opção ao clicar no campo ao lado | H57: sim
B58: Sucessão - processo sucessório da gestão do imóvel rural em andamento* | H58: não
C59: Escolha uma opção | E59: *Envolvimento dos filhos nos negócios; participação dos filhos em cursos de capacitação.
B60: Participação da mulher na gestão do imóvel rural
C61: Escolha uma opção
A62: 7 | B62: DESCRIÇÃO DO IMÓVEL RURAL
B63: Nome do imóvel rural
B65: Área (ha)
B67: Tamanho do módulo fiscal no município (ha) | F67: Módulos Fiscais
F68: ='3 RELATÓRIO'!G10 -> 
B69: Enquadramento como Agricultura Familiar ( verificar se tem CAF)
C70: Escolha uma opção
B71: Áreas não contíguas ao imóvel rural e/ou áreas de arrendamento que integram a renda do produtor
B72: Identificação dos locais | F72: Área (ha)
A74: 8 | B74: USO E OCUPAÇÃO DO SOLO NO IMÓVEL RURAL
B75: Descrição (Questionário) | D75: Uso atual Área (ha) | E75: Proporção em relação a área total%
B76: Lavouras permanentes | E76: =(D76/'3 RELATÓRIO'!$G$9) -> 
B77: Lavouras temporárias | E77: =(D77/'3 RELATÓRIO'!$G$9) -> 
B78: Pastagens | E78: =(D78/'3 RELATÓRIO'!$G$9) -> 
B79: Silvicultura | E79: =(D79/'3 RELATÓRIO'!$G$9) -> 
B80: Área não agrícola | E80: =(D80/'3 RELATÓRIO'!$G$9) -> 
B81: Pousio | E81: =(D81/'3 RELATÓRIO'!$G$9) ->  | F81: Verificação
B82: Espelho/cursos d'água | E82: =(D82/'3 RELATÓRIO'!$G$9) -> 
B83: Vegetação nativa | E83: =(D83/'3 RELATÓRIO'!$G$9) -> 
B84: Áreas inaproveitáveis* | E84: =(D84/'3 RELATÓRIO'!$G$9) ->  | F84: =IF(H84>0,(H84/'3 RELATÓRIO'!$G$9),"") ->  | G84: Total (ha) | H84: =SUM(D76:D84) -> 0.00
B85: *Vossorocas e outras áreas que no momento da avaliação são inaproveitáveis para atividades econômicas
A86: 9 | B86: USO E OCUPAÇÃO DO SOLO / APP NO IMÓVEL RURAL (CAR)
B87: Descrição (CAR) | D87: Uso CAR (ha) | E87: Proporção em relação a área total%
B88: Área correspondente ao uso consolidado | D88: =SUM(D76:D80,D84) -> 0.00 | E88: =D88/'1 QUESTIONÁRIO'!$G$92 -> 
B89: Uso não consolidado / outros usos | D89: 0.00 | E89: =D89/'1 QUESTIONÁRIO'!$G$92 -> 
B90: Pousio | D90: =D81 -> 0.00 | E90: =D90/'1 QUESTIONÁRIO'!$G$92 ->  | H90: Diferença entre a área descrita no Imóvel Rural e a área do CAR
B91: Espelho/cursos d'água | D91: =D82 -> 0.00 | E91: =D91/'1 QUESTIONÁRIO'!$G$92 -> 
B92: Vegetação nativa | D92: =D83 -> 0.00 | E92: =D92/'1 QUESTIONÁRIO'!$G$92 ->  | F92: Total (ha) | G92: =D88+D90+D91+D92+D89 -> 0.00 | H92: =1-'1 QUESTIONÁRIO'!G92/'1 QUESTIONÁRIO'!H84 -> 
B93: Servidão administrativa* | F93: Nª de módulos Fiscais | H93: =+'1 QUESTIONÁRIO'!G92/'1 QUESTIONÁRIO'!B68 -> 
B94: * Estrada municipal, Ferrovia, área de infraestrutura pública; área de utilidade pública; reservatório e entorno de reservatório p/ abastecimento ou geração de energia
B95: ÁREAS DE PRESERVAÇÃO PERMANENTE - APPs (CAR)
D96: Área (ha) | E96: Proporção em relação a área total (%) | H96: 20% do imóvel rural | I96: =IF(B103=H96,0.2,0) -> 0.0%
B97: Área total de APPs | E97: =IF(D97>0,D97/'1 QUESTIONÁRIO'!$G$92,0) -> 0.0% | H97: 35% do imóvel rural | I97: =IF(B103=H97,0.35,0) -> 0.0%
B98: Área da APP a ser recuperada | E98: =IF(D98>0,D98/'1 QUESTIONÁRIO'!$G$92,0) -> 0.0% | H98: 80% do imóvel rural | I98: =IF(B103=H98,0.8,0) -> 0.0%
B99: Área de uso consolidado + vegetação nativa na APP | D99: =D97-D98 -> 0.00 | E99: =IF(D99>0,D99/'1 QUESTIONÁRIO'!$G$92,"") ->  | I99: =IF(B103=H99,0.8,0) -> 80.0%
B100: *Área a ser recuperada para imóveis até 4MF | D100: =IF(AND(E98>0.1,'1 QUESTIONÁRIO'!H93<2),'1 QUESTIONÁRIO'!G92*0.1,IF(AND(E98>0.2,'1 QUESTIONÁRIO'!H93<4),'1 QUESTIONÁRIO'!G92*0.2,D98)) -> 
A101: 10 | B101: ÁREA DE RESERVA LEGAL (RL)
B102: Escolha uma opção ao clicar no campo abaixo
B104: Área com vegetação nativa excedente à area exigida para RL no imóvel rural | G104: =IF(D92>'2 INDICADORES'!D392,'1 QUESTIONÁRIO'!D92-'2 INDICADORES'!D392,0) -> 0.00 | H104: =SUM(I96:I99) -> 80.0%
A105: 11 | B105: RECURSOS HÍDRICOS NO IMÓVEL RURAL
E106: Quantidade
B107: Cursos d´água
B108: Nascentes e olhos d'água perenes*
B109: Lagos e lagoas naturais
B110: Represas
B111: * Afloramento natural do lençol freático que apresenta perenidade e dá início a um curso d'água
B112: Fonte de água utilizada no imóvel rural:
B113: Superficial | F113: Escolha uma opção
B114: Subterrânea* | F114: Escolha uma opção
B115: * Nascentes, cisternas, poço tubular (artesiano)
B116: Problemas relacionados à qualidade e disponibilidade de água (para consumo humano e atividades)
C117: Escolha uma opção
B118: Especificar
A120: 12 | B120: REGULARIZAÇÃO AMBIENTAL DO IMÓVEL RURAL
B121: Possui regularização do uso da água (outorga ou uso insignificante)
B122: Outorga; ou cadastro de uso insignificante; ou cadastro na campanha "água: faça uso legal"; ou cadastro de pequeno núcleo populacional rural.
C123: Escolha uma opção
B124: Possui licenciamento ambiental ou certidão de não passível ou AAF
B125: Certidão de não passível (dispensa de licenciamento), Autorização Ambiental de Funcionamento (AAF), Licenciamento Ambiental.
C126: Escolha uma opção
B127: Possui regularização da Reserva Legal e das Áreas de Preservação Permanente
B128: Cadastro Ambiental Rural - CAR.
C129: Escolha uma opção
A130: 13 | B130: PONTOS CRÍTICOS - principais problemas enfrentados pelo produtor rural (na visão dele)
A138: 18
A176: 19 | B176: ATIVIDADE PECUÁRIA (opcional)
B178: 19.1 - Utiliza pastagens plantadas para a atividade pecuária | H178: caso afirmativo marque x
B179: Estimativa da área, considerando áreas próprias e arrendadas (ha)
B181: Total de UA (Unidade Animal) do empreendimento - item 12.3 => | G181: =('2 INDICADORES'!C60*1.5)+'2 INDICADORES'!#REF!+'2 INDICADORES'!#REF!+('2 INDICADORES'!#REF!*0.75)+('2 INDICADORES'!#REF!*0.75)+('2 INDICADORES'!#REF!*0.5)+('2 INDICADORES'!#REF!*0.5) -> 
B182: Estimativa da taxa média de lotação das áreas com pastagem | G182: =IF(G178="x",(G181/G179),"") -> 
B184: Proporção das pastagens no imóvel rural que apresentam processo de degradação dos solos e baixa capacidade de suporte de animais (%)
A187: 20 | B187: ADUBAÇÃO NITROGENADA NA LAVOURA DE MILHO (opcional)
B189: 20.1 - Possui lavoura de milho para produção de grãos
B190: Estimativa da área (ha)
B192: 20.2 - Possui lavoura de milho para produção de silagem
B193: Estimativa da área (ha)
B195: 20.3 - Estimativa da adubação nitrogenada para a lavoura de milho (kg de N/ha)*
B196: *Considerar apenas os adubos nitrogenados solúveis (NPK, ureia, sulfato de amônia, etc.)
B198: 20.4 - Produtividade da lavoura de milho para grãos (sc/ha)*
B199: Estimativa da relação: sc milho produzido (60 Kg)/kg de N via adubação/ha | I199: =IF(I189="x",(I198/I195),"") -> 
B201: 20.5 - Produtividade da lavoura de milho para silagem (t/ha)*
B202: Estimativa da relação: tonelada (t) de milho produzido (silagem)/kg de N via adubação/ha | I202: =IF(I192="x",(I201/I195),"") -> 

Sheet 2 INDICADORES
B1: ISA | C1: INDICADORES
B3: Preencher todos os campos em amarelo
A5: 1 | B5: ÍNDICES DE PRODUTIVIDADE E PREÇOS DE VENDA
B7: 1.1 Renda bruta anual estimada de atividades agrossilvipastoris no imóvel rural
B8: Descrição das atividades agrícolas, pecuárias e florestais | D8: Valor estimado anual (R$)*
F9: =(D9/($D$9+$D$10+$D$11+D27+$D$28+$D$29+'2 INDICADORES'!$D$32+'2 INDICADORES'!D33)) -> 
F10: =(D10/($D$9+$D$10+$D$11+D27+$D$28+$D$29+'2 INDICADORES'!$D$32+'2 INDICADORES'!D33)) -> 
F11: =(D11/($D$9+$D$10+$D$11+$D$27+$D$28+$D$29+'2 INDICADORES'!$D$32+D33)) -> 
B12: * Ordem decrescente (do maior para o menor)
B13: 1.2 Principais atividades executadas no imóvel rural
B14: Descrição das atividades | G14: Fator de ponderação
B15: Unidades de medida (selecione a unidade) | G15: > 20% | H15: 0.9
B16: Produtividade média atual | G16: produção ou preço de venda = ao regional | H16: 0.7
B17: Preço médio de venda (R$/unidade de venda)
B18: Produtividade média na região* | G18: < 20% | H18: 0.5
B19: Média de preço da região (R$/unidade de venda)* | G19: < 40% | H19: 0.3
B20: * Base de dados - Cooperativa no município, Emater, IBGE, etc.
B21: Resultado | C21: =IF(D16>0,FÓRMULAS!K22,0) -> 0.00 | D21: Referência - Depontti (2001); Correa (2007); Mattos Filho (2004); Lopez e Ridaura (2001).
A23: 2 | B23: DIVERSIDADE DE RENDA
B25: 2.1 Renda bruta anual estimada de outras atividades gerada dentro do imóvel rural*
B26: Descrição das atividades | D26: Valor estimado no ano (R$)
F27: =(D27/($D$9+$D$10+$D$11+$D$28+$D$29+'2 INDICADORES'!$D$32+D27+D33)) -> 
F28: =(D28/($D$9+$D$10+$D$11+$D$28+$D$29+'2 INDICADORES'!$D$32+'2 INDICADORES'!D33+D27)) -> 
F29: =(D29/($D$9+$D$10+$D$11+$D$27+$D$28+$D$29+'2 INDICADORES'!$D$32+'2 INDICADORES'!D33)) -> 
B30: *Turismo, artesanato, agroindústria, produção de cachaça, alimentos processados, etc.
B31: 2.2 Renda bruta anual estimada fora imóvel rural*
B32: Pensão, aposentadoria, ajudas financeiras (R$) | F32: =(D32/('2 INDICADORES'!$D$9+'2 INDICADORES'!$D$10+'2 INDICADORES'!$D$11+$D$27+'2 INDICADORES'!$D$28+'2 INDICADORES'!$D$29+$D$32+'2 INDICADORES'!D33)) -> 
B33: Outras atividades/prestação de serviços (R$) | F33: =(D33/('2 INDICADORES'!$D$9+'2 INDICADORES'!$D$10+'2 INDICADORES'!$D$11+$D$27+'2 INDICADORES'!$D$28+'2 INDICADORES'!$D$29+$D$33+'2 INDICADORES'!D32)) -> 
B34: *De todas as rendas das pessoas com vínculo direto com o estabelecimento (locação de máquinas, emprego fora do estabelecimento, prestação de serviços, etc.)
B35: 2.3 Diversidade de Renda | F35: Proporção da renda (%) | G35: Fator de ponderação
B36: Atividades agrícolas, pecuárias e florestais realizadas no estabelecimento | F36: =(F11+F10+F9) ->  | G36: 2.0
B37: Outras atividades realizadas no estabelecimento | F37: =(F29+F28+F27) ->  | G37: 2.0
B38: Atividades realizadas fora do estabelecimento | F38: ='2 INDICADORES'!F33 ->  | G38: 1.0
B39: Aposentadoria; Pensão; Ajuda Financeira; Outras fontes de renda | F39: ='2 INDICADORES'!F32 ->  | G39: 0.3
B40: Verificação - ocorrência de concentração da renda agropecuária em uma única atividade (> 80% da renda total apurada dentro e fora do empreendimento rural) | F40: =IF('2 INDICADORES'!F9>0.8,"sim","não") ->  | G40: Verificação da proporção de renda
B41: Resultado | C41: =IF(G41<0.99,"",FÓRMULAS!H29) ->  | D41: Adaptação APOIA-NovoRural (Rodrigues et al, 2003), também sugerido por Depontti (2001). | G41: =F36+F37+F38+F39 -> 
A43: 3 | B43: EVOLUÇÃO PATRIMONIAL DO IMÓVEL RURAL
B45: 3.1 Definição do período de tempo para avaliação da evolução patrimonial (anos)* | F45: 2.0
B46: *Mudar em caso de reaplicação do ISA por um período inferior ou superior a 2 anos
B47: 3.2 Avaliação dos bens do imóvel rural
B48: Construções/reformas realizadas no período recente (período de avaliação definido no item 3.1) | E48: Valor estimado (R$) | G48: Valor histórico*
E49: R$ 0.00
B50: Demais instalações e outras benfeitorias já existentes no imóvel rural* | E50: Valor estimado (R$) | G50: Valor histórico*
E51: R$ 0.00 | G51: =IF(E51>0,((1+0.04167)^'2 INDICADORES'!$F$45*E51)," ") -> R$ 0.00
B52: *Depreciação vida útil 40 anos | D52: Total | E52: =SUM(E49:E51) -> R$ 0.00 | G52: =SUM(G51:G51) -> R$ 0.00
B53: Máquinas e equipamentos adquiridos (período de avaliação item 3.1) | E53: Valor estimado (R$) | G53: Valor histórico*
E54: R$ 0.00
B55: Demais máquinas e equipamentos já existentes no imóvel rural* | E55: Valor estimado (R$) | G55: Valor histórico*
E56: R$ 0.00 | G56: =IF(E56>0,((1+0.052632)^'2 INDICADORES'!$F$45*E56)," ") -> R$ 0.00
B57: *Depreciação vida útil 20 anos | D57: Total | E57: =SUM(E54:E56) -> R$ 0.00 | G57: =SUM(G56:G56) -> R$ 0.00
B58: 3.3 Avaliação semoventes / estoque* | E58: Valor estimado - Histórico (período de avaliação item 3.1)
B59: Descrição | C59: Quantidade (un.) | D59: Valor estimado (R$) | E59: Quantidade (un.) | F59: Valor histórico (R$)
B60: Estoque de grãos/produtos
B61: Bovinos
B62: Equinos/Muares
B63: Suínos
B64: Caprinos / ovinos
B65: Aves
B66: Outros | D66: R$ 0.00 | F66: R$ 0.00
B67: *Milho, soja, café, entre outros. | C67: Total | D67: =SUM(D60:D66) -> R$ 0.00 | E67: Total | F67: =SUM(F60:F66) -> R$ 0.00
B68: 3.4 Irrigação (caso afirmativo preencha os dados abaixo) | D68: Histórico Área Total (ha)*
B69: Tipo de irrigação | C69: Área total (ha)
D70: ='2 INDICADORES'!C70 -> 0
B72: 3.5 Uso e ocupação do solo | C72: Uso atual (ha) | D72: Uso histórico (ha)*
B73: Lavouras permanentes | C73: ='1 QUESTIONÁRIO'!D76 -> 0 | D73: =C73 -> 0.00
B74: Lavouras temporárias | C74: ='1 QUESTIONÁRIO'!D77 -> 0 | D74: 0.00
B75: Pastagens | C75: ='1 QUESTIONÁRIO'!D78 -> 0 | D75: 0.00
B76: Silvicultura | C76: ='1 QUESTIONÁRIO'!D79 -> 0 | D76: 0.00
B77: Área não agrícola | C77: ='1 QUESTIONÁRIO'!D80 -> 0 | D77: 0.00
B78: Pousio | C78: ='1 QUESTIONÁRIO'!D81 -> 0 | D78: 0.00
B79: Espelho/cursos d'água | C79: ='1 QUESTIONÁRIO'!D82 -> 0 | D79: 0.00
B80: Vegetação nativa | C80: ='1 QUESTIONÁRIO'!D83 -> 0 | D80: 0.00
B81: Áreas inaproveitáveis | C81: ='1 QUESTIONÁRIO'!D84 -> 0 | D81: 0.00
B82: Total (ha) | C82: =SUM(C73:C81) -> 0.00 | D82: =SUM(D73:D81) -> 0.00
B83: 3.6 Valor da terra | C83: Atual (R$/ha) | D83: Histórico (R$/ha)*
B84: Valor de referência na região
B85: *período de avaliação item 3.1
B86: Estimativa patrimonial do imóvel rural** | C86: Atual (R$) | D86: Histórico (R$)*
C87: =FÓRMULAS!E44+FÓRMULAS!E45+FÓRMULAS!E46+FÓRMULAS!E47+FÓRMULAS!E48+'2 INDICADORES'!D67+'2 INDICADORES'!E57+'2 INDICADORES'!E52+FÓRMULAS!J52 ->  | D87: =FÓRMULAS!I44+FÓRMULAS!I45+FÓRMULAS!I46+FÓRMULAS!I47+FÓRMULAS!I48+'2 INDICADORES'!G52+'2 INDICADORES'!G57+'2 INDICADORES'!F67 -> 
B88: ** (Somatória de benfeitorias, máquinas, equipamentos, animais e valor da terra)
B89: Evolução Patrimonial | F89: Evolução no período (%) | G89: Fator de ponderação
B91: Fator externo | C91: Valor da terra na região | F91: =IF('2 INDICADORES'!C84>0,('2 INDICADORES'!C84/'2 INDICADORES'!D84-1),"") ->  | G91: 0.6
B92: Fatores internos em relação ao imóvel rural | C92: Benfeitorias | F92: =IF('2 INDICADORES'!E52>0,('2 INDICADORES'!E52/'2 INDICADORES'!G52-1),"") -> 84.3% | G92: 1.0
C93: Equipamentos | F93: =IF('2 INDICADORES'!E57>0,('2 INDICADORES'!E57/'2 INDICADORES'!G57-1),"") -> 80.5% | G93: 1.0
C94: Semoventes / Estoque de grãos | F94: =IF('2 INDICADORES'!D67>0,('2 INDICADORES'!D67/'2 INDICADORES'!F67-1),"") -> 0.0% | G94: 1.0
C95: Ampliação da área de lavoura e/ou agricultura irrigada | F95: =+FÓRMULAS!H52 ->  | G95: 1.0
B96: Média anual da Evolução Patrimonial total (%) | F96: =(+FÓRMULAS!H56)/F45 -> 
B97: Média anual da Evolução Patrimonial (sem valorização da terra) (%) | F97: =(FÓRMULAS!H54)/F45 -> 
B99: Resultado | C99: =IF(FÓRMULAS!I36>1,1,FÓRMULAS!I36) ->  | D99: Adaptação APOIA-NovoRural (Rodrigues et al, 2003); Gitman (1987).
A101: 4 | B101: GRAU DE ENDIVIDAMENTO
F102: % dívidas/valor pat. | G102: Fator de ponderação
B103: 4.1 Valor da dívida financeira em relação à estimativa patrimonial | F103: 0-7,5% | G103: 07 - 1 (y = 0,04x + 0,7)
B104: Valor Total - financiamentos e outros compromissos financeiros | F104: 7,5-30% | G104: 1 - 01 (y = -0,04x + 1,3)
B105: Total de dívidas/valor patrimonial estimado (%) | E105: =E104/C87 ->  | F105: >30% | G105: 0.1
B106: Resultado | C106: =FÓRMULAS!G63 ->  | D106: Adaptação APOIA-NovoRural (Rodrigues et al, 2003), também sugerido por Depontti (2001).
A108: 5 | B108: SERVIÇOS BÁSICOS DISPONÍVEIS PARA O IMÓVEL RURAL
B110: 5.1 Total de residências no imóvel rural
D111: Escolha uma opção: 1 (atende satisfatoriamente); 0,5 (parcialmente); 0 (inexistente)
B112: 5.2 Serviços básicos disponíveis | D112: Residência rural (1) | E112: Outras residências | F112: Fator de ponderação
B113: Disponibilidade de água (quantidade e qualidade) | F113: 1,0 ou 3,0**
B114: Acesso a energia elétrica | F114: 1.0
B115: Acesso regular para escoamento da produção | F115: 1.0
B116: Acesso ao serviço de saúde* | F116: 1.0
B117: Acesso regular ao transporte escolar | F117: 1.0
B118: Segurança no campo | F118: 1.0
B119: Internet | F119: 1.0
B120: Coleta pública de lixo | F120: 1.0
B121: * Produtor atendido pelo Programa Saúde da Família - PSF | D121: ** Se o produtor tem problemas de escasses de água (item 10.6 do questionário) o peso será = 3,0
B122: Resultado Parcial | C122: =IF('1 QUESTIONÁRIO'!B117="sim",(FÓRMULAS!H72/10),(FÓRMULAS!H72/8)) -> 0.00 | D122: Adaptação APOIA-NovoRural (Rodrigues et al, 2003).
B123: 5.3 Produção própria de alimentos (para imóveis rurais menores que 4 MF) | D123: Escolha uma opção: 1 (atende satisfatoriamente); 0,5 (parcialmente); 0 (inexistente)
D124: Residência rural (1) | E124: Outras residências | F124: Fator de ponderação
B125: Hortaliças, grãos e tubérculos | F125: 1.0
B126: Pomar | F126: 1.0
B127: Criação de animais (carne, leite, ovos) | F127: 1.0
B128: Resultado Parcial | C128: =IF('1 QUESTIONÁRIO'!F68>4,"",FÓRMULAS!F84/3) ->  | D128: Referência - Correa (2007).
B129: Resultado | C129: =IF(C128="",C122,(((C122*2)+C128)/3)) -> 0.00
A131: 6 | B131: ESCOLARIDADE & CURSOS DIRECIONADOS ÀS PRINCIPAIS ATIVIDADES
D132: Marque o nº de pessoas em cada campo
B133: 6.1 Grau de escolaridade | D133: Integrantes da família com vínculo direto | E133: Trabalhadores permanentes
B135: Número de adultos no imóvel rural | F135: Fator de ponderação
B136: Menos de 9 anos de estudo | F136: 0.7
B137: Ensino Fundamental completo | F137: 1.0
B138: Ensino Médio completo | F138: 1.2
B139: Curso superior | F139: 1.5
D140: Marque o nº de pessoas em cada campo
B141: 6.2 Cursos direcionados às principais atividades geradas no imóvel rural | D141: Integrantes da família com vínculo direto | E141: Trabalhadores permanentes
B142: Capacitação curta temporada* | F142: 0.5
B143: Capacitação longa temporada** | F143: 0.8
B144: * nº de pessoas que fizeram cursos de especialização direcionados às atividades. | E144: ** nº de pessoas que fizeram cursos técnicos em agropecuária ou afins.
D145: Marque o nº de pessoas em cada campo
B146: 6.3 Frequência da rede de ensino dos dependentes | D146: Dependentes (6 a 18 anos) dos integrantes*** | E146: Dependentes (6 a 18 anos) de trabalhadores residentes*** | F146: Fator de ponderação
B148: Número de dependentes no imóvel rural***
B149: Frequenta rede de ensino | F149: 1.0
B150: *** Dependentes que residem no estabelecimento (até o 2º grau).
B151: Resultado | C151: =IF(FÓRMULAS!K97>1,1,FÓRMULAS!K97) ->  | D151: Referência: Calorio (1997), Correa (2007) e Rodrigues et al. (2003).
A153: 7 | B153: OCUPAÇÃO & EMPREGO
E154: Marque o nº de pessoas em cada campo
B155: 7.1 Cumprimento da Legislação Trabalhista | E155: Contratação efetiva | F155: Contratação temporária | G155: Fator de ponderação
B157: Número de funcionários no imóvel rural
B158: Registro de funcionários (carteira de trabalho) | G158: 1.0
B159: Pagamento de hora extra / banco de horas* / ausência de hora extra | G159: 1.0
B160: 7.2 Adoção de benefícios / observância das recomendações/determinações do Ministério do Trabalho | E160: Contratação efetiva | F160: Contratação temporária
B162: Acima de 1 salário mínimo | G162: 1.0
B163: Auxílio alimentação | G163: 1.0
B164: Auxílio moradia | G164: 1.0
B165: Auxílio educação e transporte | G165: 1.0
B166: Participação nos lucros | G166: 5.0
B167: Seguro contra acidentes | G167: 3.0
B168: Acesso a lazer | G168: 1.0
B169: Espaço para cultivo de alimentos | G169: 3.0
B170: * Permitido em contrato sindical.
B171: Resultado | C171: =IF(FÓRMULAS!H105>1,1,FÓRMULAS!H105) -> 0.70 | D171: Adaptação APOIA-NovoRural (Rodrigues et al, 2003).
A173: 8 | B173: GESTÃO DO EMPREENDIMENTO
C174: Escolha uma opção: 1 (atende satisfatoriamente); 0,5 (parcialmente); 0 (inexistente) | F174: Fator de ponderação
B175: 8.1 Controle administrativo | C175: Fluxo de caixa (receita/despesa) | F175: 1.0
C176: Custo de produção das atividades | F176: 1.0
B177: 8.2 Acesso à assistência técnica (particular ou pública)* | F177: 1.0
B178: 8.3 Participação - formas associativas - ativa (1) ou passiva (0,5) | F178: 1.0
B179: 8.4 Regularização ambiental (Uso da água, CAR e Licenciamento)** | F179: 2.0
B180: 8.5 Acesso as linhas de financiamento | C180: Utiliza crédito para investimento | F180: 0.4
C181: Utiliza crédito para custeio | F181: 0.4
C182: Utiliza crédito para comercialização | F182: 0.2
B183: * Não considerar assistência técnica de revendas de insumos. | D183: ** Verificar item 12 do Questionário
B184: Resultado | C184: =((+E175*F175+E176*F176+E177+E178+E179*2+E180*F180+E181*F181+E182*F182)/7) -> 0.00 | D184: Referência: Correa (2007).
A186: 9 | B186: COMERCIALIZAÇÃO & INOVAÇÃO
B187: 9.1 Comercialização | D187: Escolha uma opção | F187: Fator de ponderação
B188: Busca informação para comercialização / diversificar compradores | F188: 0.4
B189: Gera produtos certificados e/ou mercado institucional | F189: 0.4
B190: 9.2 Inovação | D190: Escolha uma opção
B191: Adoção de técnicas inovadoras* | F191: 0.3
B192: Descrição
B193: Capacidade de inovação ou liderança na comunidade | F193: 0.4
B194: Descrição
B195: * Conceito, ideia, prática ou tecnologia, percebidas como nova pelo indivíduo e/ou grupo social. Conhecimento científico e tecnológico transformados em boas práticas.
B196: Práticas regenerativas (opcional) | D196: Escolha uma opção | E196: Caso afirmativo, qual a proporção da área de produção que adota esta prática (%)
B197: Uso de bioinsumos nas áreas de produção agropecuária
B198: Uso de plantas de cobertura / plantas perenes para sombreamento**
B199: ** Estratégias para cobertura permanente do solo; aumentar a biodiversidade e/ou bem estar animal
B200: Resultado | C200: =IF(FÓRMULAS!F126>1,1,FÓRMULAS!F126) -> 0.00
A202: 10 | B202: GERENCIAMENTO DE RESÍDUOS E EFLUENTES GERADOS NO IMÓVEL RURAL
D204: Escolha uma opção ao clicar no campo abaixo | H204: Fator de ponderação
D205: Residência rural (1) | F205: Outras residências
B206: 10.1.Esgoto residências - destinação | G206: =FÓRMULAS!M141 ->  | H206: 1.0
B207: 10.2.Lixo domiciliar e das atividades - destinação | G207: =FÓRMULAS!M147 ->  | H207: 1.0
B208: Preenchimento obrigatório | F208: Dados: (%)
B209: 10.3.Resíduos sólidos orgânicos - compostagem e/ou reaproveitamento no campo | H209: 1.0
B210: Deixar o campo em branco quando não houver geração de efluentes líquidos e/ou gasosos | F210: Dados: (%)
B211: 10.4.Efluentes líquidos (quando existentes) - tratamento / destinação adequada | G211: =IF(ISBLANK(F211),FÓRMULAS!$K$134," ") -> Não se aplica | H211: 1.0
B212: 10.5.Efluentes gasosos (quando existentes) - tratamento / destinação adequada | G212: =IF(ISBLANK(F212),FÓRMULAS!$K$134," ") -> Não se aplica | H212: 1.0
B213: * Estação de tratamento; biodigestor; compostagem; etc. | D213: Escolha uma opção
B214: 10.6 Imóvel rural possui pontos críticos com relação à gestão de resíduos e efluentes
B215: Caso afirmativo - Especificar
B216: Resultado | C216: =IF(FÓRMULAS!H134=0,0.7,+FÓRMULAS!F135) -> 0.70 | D216: Adaptação APOIA-NovoRural (Rodrigues et al, 2003).
A218: 11 | B218: SEGURANÇA DO TRABALHO REFERENTE AO USO DE AGROTÓXICOS
E219: Número de pessoas | F219: Fator de ponderação
B220: Quantas pessoas fazem o manuseio de agrotóxicos | F220: 1.0
B221: Quantas pessoas utilizam EPI adequadamente | F221: 1.0
D222: Escolha uma opção
B223: Armazenamento adequado das embalagens | F223: 1.0 | G223: sim
B224: Devolução das embalagens de agrotóxicos | F224: 1.0 | G224: não
... 176 more rows

Sheet 3 RELATÓRIO
B1: ISA
D2: RELATÓRIO
B5: DATA DA APLICAÇÃO | G5: =IF('1 QUESTIONÁRIO'!B36="","",'1 QUESTIONÁRIO'!B36) -> 
B6: TÉCNICO | G6: =IF('1 QUESTIONÁRIO'!B39="","",'1 QUESTIONÁRIO'!B39) -> 
B7: MUNICÍPIO | G7: =IF('1 QUESTIONÁRIO'!B53="","",'1 QUESTIONÁRIO'!B53) -> 
B8: PRODUTOR | G8: =IF('1 QUESTIONÁRIO'!B44="","",'1 QUESTIONÁRIO'!B44) -> 
B9: Área total do estabelecimento (ha) | G9: ='1 QUESTIONÁRIO'!B66 -> 0.0
B10: Nº de módulos fiscais rurais | G10: =IF(G9>0,('3 RELATÓRIO'!G9/'1 QUESTIONÁRIO'!B68),"") -> 
B11: Área (arrendamento/áreas não contíguas) | G11: ='1 QUESTIONÁRIO'!F73 -> 0.0
B12: ÍNDICE DE SUSTENTABILIDADE | G12: =G97 -> 
B14: ÍNDICE DE SUSTENTABILIDADE | G14: =G97 -> 
B29: Posse da terra | G29: ='1 QUESTIONÁRIO'!B57 -> 0.0%
B30: Tipologia do produtor(a) | G30: =IF('1 QUESTIONÁRIO'!B70="x","Agricultura Familiar","Patronal") -> Patronal
B31: Idade do proprietário (anos) | G31: ='1 QUESTIONÁRIO'!B48 -> 0
B33: APPs (% área total) | G33: ='1 QUESTIONÁRIO'!E97 -> 0.0%
B34: Área a ser recuperada - APPs (% área total) | G34: =FÓRMULAS!G663 -> 
B35: Área a ser recuperada - APPs (ha) | G35: ='1 QUESTIONÁRIO'!D98 -> 0
B36: Área com vegetação nativa excedente a RL(ha) | G36: ='1 QUESTIONÁRIO'!G104 -> 0
B37: Nº de fragmentos com vegetação nativa | G37: =+'2 INDICADORES'!E376 -> 0
B38: Nº de cursos d'água | G38: ='1 QUESTIONÁRIO'!E107 -> 0
B39: Nº de nascentes | G39: ='1 QUESTIONÁRIO'!E108 -> 0
B40: Nº de lagos e lagoas naturais | G40: ='1 QUESTIONÁRIO'!E109 -> 0
B41: Nº de represas | G41: ='1 QUESTIONÁRIO'!E110 -> 0
B42: Área com irrigação (ha) | G42: =+'2 INDICADORES'!C71 -> 0
B43: Problemas com abastecimento de água | G43: =IF('1 QUESTIONÁRIO'!B117="x","sim","não") -> não
G44: Resultados | I44: Indices
A45: Capacidade produtiva do solo | B45: Matéria orgânica do solo (dag kg-1) | G45: ='2 INDICADORES'!C232 -> 0.00 | H45: 0.7 | I45: =+'2 INDICADORES'!E232 -> 0.00 | J45: 0.7
B46: Fósforo disponível (mg dm-3) | G46: ='2 INDICADORES'!C233 -> 0.00 | H46: 0.7 | I46: =+'2 INDICADORES'!E233 -> 0.00 | J46: 0.7
B47: Cálcio trocável (cmolc dm-3) | G47: ='2 INDICADORES'!C234 -> 0.00 | H47: 0.7 | I47: =+'2 INDICADORES'!E234 -> 0.00 | J47: 0.7
B48: Magnésio trocável (cmolc dm-3) | G48: ='2 INDICADORES'!C235 -> 0.00 | H48: 0.7 | I48: =+'2 INDICADORES'!E235 -> 0.00 | J48: 0.7
B49: Potássio trocável (mg dm-3) | G49: ='2 INDICADORES'!C236 -> 0.00 | H49: 0.7 | I49: =+'2 INDICADORES'!E236 -> 0.00 | J49: 0.7
B50: Acidez ativa (pH) | G50: ='2 INDICADORES'!C237 -> 0.00 | H50: 0.7 | I50: =+'2 INDICADORES'!E237 -> 0.00 | J50: 0.7
B51: Alumínio trocável (cmolc dm-3) | G51: ='2 INDICADORES'!C238 -> 0.00 | H51: 0.7 | I51: =+'2 INDICADORES'!E238 -> 0.00 | J51: 0.7
B52: CTC efetiva (cmolc dm-3) | G52: ='2 INDICADORES'!C239 -> 0.00 | H52: 0.7 | I52: =+'2 INDICADORES'!E239 -> 0.00 | J52: 0.7
B53: Saturação por bases (%) | G53: ='2 INDICADORES'!C240 -> 0.00 | H53: 0.7 | I53: =+'2 INDICADORES'!E240 -> 0.00 | J53: 0.7
B54: Arilsulfatase (mg p-nitrofenol kg-1 h-1) | G54: ='2 INDICADORES'!C243 -> 0
B55: Betaglicosidase (mg p-nitrofenol kg-1 h-1) | G55: ='2 INDICADORES'!C244 -> 0
B56: IQS Biológico | G56: ='2 INDICADORES'!C246 -> 0.00 | H56: 0.7 | I56: =G56 -> 0.00
B57: IQS Químico | G57: ='2 INDICADORES'!C249 -> 0.00
B58: IQS FertBio | G58: ='2 INDICADORES'!C250 -> 0
B59: Erosão do solo - área | G59: =SUM('2 INDICADORES'!D336:D338) -> 0
B60: Erosão do solo - intensidade | G60: ='Base de dados'!UW28 -> 0
B61: Erosão do solo - tendência de comportamento | G61: ='Base de dados'!UZ28 -> 0
B62: Erosão do solo | G62: ='2 INDICADORES'!C340 -> 0.70 | I62: =G62 -> 0.70
B63: Conservação solo/água | G63: ='2 INDICADORES'!C353 ->  | I63: =G63 -> 
B64: Indução agrobiodiversidade | G64: ='2 INDICADORES'!C411 ->  | I64: =G64 -> 
B65: Produtividade | G65: ='2 INDICADORES'!C21 -> 0 | I65: =G65 -> 0.00
B66: Capacidade produtiva do solo (subíndice) | G66: =IF(I56>0,AVERAGE(I45:I46,I53,I56,I62:I65),AVERAGE(I45:I46,I53,I62:I65)) -> 
B83: Adoção de técnicas inovadoras | F83: =IF('2 INDICADORES'!C192="","",'2 INDICADORES'!C192) -> 
B84: Capacidade de inovação ou liderança | F84: =IF('2 INDICADORES'!C194="","",'2 INDICADORES'!C194) -> 
B86: Renda bruta (R$/ano) | G86: =SUM('2 INDICADORES'!D9:E11)+SUM('2 INDICADORES'!D27:E29) -> 0 | K86: Média anual evolução patrimonial total (%) | O86: ='2 INDICADORES'!F96 -> 
B87: Renda bruta (R$/ha/ano) | G87: =+G86/('1 QUESTIONÁRIO'!B66+'1 QUESTIONÁRIO'!F73) ->  | K87: Média anual evol. Pat. (s/ valor. da terra) (%) | O87: ='2 INDICADORES'!F97 -> 
B88: Proporção principal atividade/renda bruta | G88: =+'2 INDICADORES'!F9 ->  | K88: Qte de agrotóxicos / área cultivada (L/ha/ano) | O88: =FÓRMULAS!D562 -> 
B89: Instalações e outras benfeitorias (R$) | G89: =+'2 INDICADORES'!E52 -> R$ 0.00 | H89: =G89/$G$93 ->  | K89: Índice Final EIQ cumulativo (agrotóxicos) | O89: =SUM('2 INDICADORES'!D320:F320,FÓRMULAS!D490:L490,FÓRMULAS!D518:L518,FÓRMULAS!D545:I545) -> 0
B90: Máquinas e Equipamentos (R$) | G90: =+'2 INDICADORES'!E57 -> R$ 0.00 | H90: =G90/$G$93 ->  | K90: Identificaçao da principal atvidade agropecuária | O90: ='2 INDICADORES'!D14 -> 0.0%
B91: Animais (semoventes) (R$) | G91: =+'2 INDICADORES'!D67 -> R$ 0.00 | H91: =G91/$G$93 ->  | K91: Unidade | O91: ='2 INDICADORES'!D15 -> 0
B92: Valor da terra na região (R$/ha) | G92: =+'2 INDICADORES'!C84 -> 0 | H92: =(G92*G9)/$G$93 ->  | K92: Produtividade | O92: ='2 INDICADORES'!D16 -> 0
B93: Estimativa Patrimonial do imóvel rural | G93: ='2 INDICADORES'!C87 ->  | K93: Participação da mulher na gestão | O93: ='1 QUESTIONÁRIO'!B61 -> 0.0%
B94: Receita bruta anual / estimativa patrimonial | G94: =G86/G93 ->  | K94: Processo sucessório em andamento | O94: ='1 QUESTIONÁRIO'!B59 -> 0.0%
B96: Desvio - padrão | C96: =STDEV(G98:G108,G109:G118) ->  | G96: =G5 -> 
B97: ÍNDICE DE SUSTENTABILIDADE | G97: =AVERAGE(G98:G118) -> 
A98: Aspectos socioeconômicos | B98: 1.Produtividade | G98: ='2 INDICADORES'!C21 -> 0.00 | J98: 0.7
B99: 2.Diversificação da renda | G99: ='2 INDICADORES'!C41 ->  | J99: 0.7
B100: 3.Evolução patrimonial | G100: ='2 INDICADORES'!C99 ->  | J100: 0.7
B101: 4.Grau de endividamento | G101: ='2 INDICADORES'!C106 ->  | J101: 0.7
B102: 5.Serviços básicos / Seg. alimentar | G102: ='2 INDICADORES'!C129 -> 0.00 | J102: 0.7
B103: 6.Escolaridade & capacitação | G103: ='2 INDICADORES'!C151 ->  | J103: 0.7
B104: 7.Ocupação & emprego | G104: ='2 INDICADORES'!C171 -> 0.70 | J104: 0.7
B105: 8.Gestão | G105: ='2 INDICADORES'!C184 -> 0.00 | J105: 0.7
B106: 9.Comercialização & Inovação | G106: ='2 INDICADORES'!C200 -> 0.00 | J106: 0.7
A107: Aspectos ambientais | B107: 10.Gerenciamento de resíduos | G107: ='2 INDICADORES'!C216 -> 0.70 | J107: 0.7
B108: 11.Segurança do trabalho | G108: ='2 INDICADORES'!C225 -> 0.70 | J108: 0.7
B109: 12.Capacidade produtiva do solo | G109: ='2 INDICADORES'!C253 -> 0.00 | J109: 0.7
B110: 13.Qualidade da água | G110: ='2 INDICADORES'!C300 -> 0.00 | J110: 0.7
B111: 14.Risco de contaminação da água | G111: ='2 INDICADORES'!C332 -> 1.00 | J111: 0.7
B112: 15.Solos degradados | G112: ='2 INDICADORES'!C340 -> 0.70 | J112: 0.7
B113: 16.Práticas de conservação | G113: ='2 INDICADORES'!C353 ->  | J113: 0.7
B114: 17.Estradas | G114: ='2 INDICADORES'!C366 -> 0.00 | J114: 0.7
B115: 18.Vegetação nativa | G115: ='2 INDICADORES'!C381 -> 0.00 | J115: 0.7
B116: 19.APPs | G116: ='2 INDICADORES'!C389 -> 0.00 | J116: 0.7
B117: 20.Reserva Legal | G117: ='2 INDICADORES'!C400 ->  | J117: 0.7
B118: 21.Diversificação da paisagem | G118: ='2 INDICADORES'!C416 ->  | J118: 0.7
G121: Histórico I | H121: Histórico II
B122: ÍNDICE DE SUSTENTABILIDADE | G122: 0.61 | H122: 0.55
B123: 1.Produtividade | G123: 0.66 | H123: 0.63
B124: 2.Diversificação da renda | G124: 0.63 | H124: 0.60
B125: 3.Evolução patrimonial | G125: 1.00 | H125: 0.70
B126: 4.Grau de endividamento | G126: 0.70 | H126: 0.70
B127: 5.Serviços básicos / Seg. alimentar | G127: 0.80 | H127: 0.80
B128: 6.Escolaridade & capacitação | G128: 0.81 | H128: 0.60
B129: 7.Ocupação & emprego | G129: 0.50 | H129: 0.50
B130: 8.Gestão | G130: 0.69 | H130: 0.40
B131: 9.Comercialização & Inovação | G131: 0.60 | H131: 0.50
B132: 10.Gerenciamento de resíduos | G132: 0.13 | H132: 0.13
B133: 11.Segurança do trabalho | G133: 0.35 | H133: 0.35
B134: 12.Capacidade produtiva do solo | G134: 0.48 | H134: 0.48
B135: 13.Qualidade da água | G135: 0.54 | H135: 0.54
B136: 14.Risco de contaminação da água | G136: 0.30 | H136: 0.60
B137: 15.Solos degradados | G137: 0.50 | H137: 0.34
B138: 16.Práticas de conservação | G138: 0.60 | H138: 0.50
B139: 17.Estradas | G139: 0.55 | H139: 0.40
B140: 18.Vegetação nativa | G140: 0.75 | H140: 0.60
B141: 19.APPs | G141: 0.48 | H141: 0.48
B142: 20.Reserva Legal | G142: 1.00 | H142: 1.00
B143: 21.Diversificação da paisagem | G143: 0.76 | H143: 0.60

Sheet 4 PLANO ADEQUAÇÃO
B1: ISA
D2: PLANO DE ADEQUAÇÃO
B6: PRODUTOR | D6: =IF('1 QUESTIONÁRIO'!B44="","",'1 QUESTIONÁRIO'!B44) -> 
B7: MUNICÍPIO | D7: =IF('1 QUESTIONÁRIO'!B53="","",'1 QUESTIONÁRIO'!B53) -> 
B8: DATA DA APLICAÇÃO | D8: =IF('1 QUESTIONÁRIO'!B36="","",'1 QUESTIONÁRIO'!B36) -> 
B10: TÉCNICO / REGISTRO PROFISSIONAL | D10: =IF('1 QUESTIONÁRIO'!B39="","",'1 QUESTIONÁRIO'!B39) -> 
B12: ITEM | C12: Índice | D12: PROPOSIÇÕES | E12: Período de execução
B13: ='3 RELATÓRIO'!B107 -> 10.Gerenciamento de resíduos | C13: ='3 RELATÓRIO'!G107 -> 0.70
B14: ='3 RELATÓRIO'!B112 -> 15.Solos degradados | C14: ='3 RELATÓRIO'!G112 -> 0.70
B15: ='3 RELATÓRIO'!B114 -> 17.Estradas | C15: ='3 RELATÓRIO'!G114 -> 0.00
B16: ='3 RELATÓRIO'!B108 -> 11.Segurança do trabalho | C16: ='3 RELATÓRIO'!G108 -> 0.70
B17: ='3 RELATÓRIO'!B116 -> 19.APPs | C17: ='3 RELATÓRIO'!G116 -> 0.00
B18: ='3 RELATÓRIO'!B111 -> 14.Risco de contaminação da água | C18: ='3 RELATÓRIO'!G111 -> 1.00
B19: ='3 RELATÓRIO'!B99 -> 2.Diversificação da renda | C19: ='3 RELATÓRIO'!G99 -> 
B20: ='3 RELATÓRIO'!B113 -> 16.Práticas de conservação | C20: ='3 RELATÓRIO'!G113 -> 
B21: ='3 RELATÓRIO'!B104 -> 7.Ocupação & emprego | C21: ='3 RELATÓRIO'!G104 -> 0.70
B22: ='3 RELATÓRIO'!B106 -> 9.Comercialização & Inovação | C22: ='3 RELATÓRIO'!G106 -> 0.00
B23: ='3 RELATÓRIO'!B98 -> 1.Produtividade | C23: ='3 RELATÓRIO'!G98 -> 0.00
B24: ='3 RELATÓRIO'!B115 -> 18.Vegetação nativa | C24: ='3 RELATÓRIO'!G115 -> 0.00
B25: ='3 RELATÓRIO'!B118 -> 21.Diversificação da paisagem | C25: ='3 RELATÓRIO'!G118 -> 
B26: ='3 RELATÓRIO'!B109 -> 12.Capacidade produtiva do solo | C26: ='3 RELATÓRIO'!G109 -> 0.00
B27: ='3 RELATÓRIO'!B102 -> 5.Serviços básicos / Seg. alimentar | C27: ='3 RELATÓRIO'!G102 -> 0.00
B28: ='3 RELATÓRIO'!B117 -> 20.Reserva Legal | C28: ='3 RELATÓRIO'!G117 -> 
B29: ='3 RELATÓRIO'!B110 -> 13.Qualidade da água | C29: ='3 RELATÓRIO'!G110 -> 0.00
B30: ='3 RELATÓRIO'!B103 -> 6.Escolaridade & capacitação | C30: ='3 RELATÓRIO'!G103 -> 
B31: ='3 RELATÓRIO'!B100 -> 3.Evolução patrimonial | C31: ='3 RELATÓRIO'!G100 -> 
B32: ='3 RELATÓRIO'!B105 -> 8.Gestão | C32: ='3 RELATÓRIO'!G105 -> 0.00
B33: ='3 RELATÓRIO'!B101 -> 4.Grau de endividamento | C33: ='3 RELATÓRIO'!G101 -> 
B34: Regularização ambiental do empreendimento | C34: ='1 QUESTIONÁRIO'!B126 -> 0.00
B35: Regularização do uso da água | C35: ='1 QUESTIONÁRIO'!B123 -> 0.00
B36: Regularização da Reserva Legal | C36: ='1 QUESTIONÁRIO'!B129 -> 0.00

Sheet Plan1 (hidden)

Sheet Sheet3 (hidden)

Sheet Sheet4 (hidden)

Sheet Sheet5 (hidden)

Sheet Sheet6 (hidden)

Sheet Relatório de Assist (2) (hidden)
L1: RELATÓRIO DE ASSISTÊNCIA TÉCNICA AO PRODUTOR RURAL | R1: =C9 -> Visita N° | S1: =D9 -> 1
K3: Formulário atualizado em: UPEC–05/01/2012
B5: Produtor: | O5: CPF:
B6: Município: | K6: Comunidade:
B7: Convênio: | J7: META: | L7: Nº Convênio:
B8: Nome do Técnico / Matrícula:
C9: Visita N° | D9: 1
G10: ORIENTAÇÃO TÉCNICA (Situação Atual, Orientações e Recomendações)
B43: Assinaturas
C47: Data | I47: Técnico Responsável / Nº Conselho | L47: Produtor
B48: MOD.230-07 E MAPA/EMBRAPA | L48: Formulário atualizado em: UPEC–13/03/2013

Sheet FÓRMULAS
B1: ISA | D1: FÓRMULAS
B4: INDICADORES
K5: Unidades de medida
K6: Sc/ha
A7: 1 | B7: Fator de Ponderação | F7: Fórmulas | K7: Ton./ha
B8: 20% maior | D8: 0.9 | F8: Fórmula (R parcial) = Yo + ax | K8: Kg/ha
B9: produtividade ou preço de venda = a regional | D9: 0.7 | K9: @/ha/ano
F10: yo | G10: -0.30 | K10: L de leite/ha/ano
B11: 20% menor | D11: 0.5 | F11: a | G11: 0.01 | K11: L de leite/vc/dia
B12: 40% menor | D12: 0.3 | F12: =(G10+G11*(100+(FÓRMULAS!E18*100))) ->  | G12: =(G10+G11*(100+(FÓRMULAS!F18*100))) ->  | H12: =(G10+G11*(100+(FÓRMULAS!G18*100))) ->  | K12: Kg/dia
F13: =(G10+G11*(100+(FÓRMULAS!E19*100))) ->  | G13: =(G10+G11*(100+(FÓRMULAS!F19*100))) ->  | H13: =(G10+G11*(100+(FÓRMULAS!G19*100))) ->  | K13: Kg de alimento/kg de carne produzida
F14: Fórmula (resultado final) = média dos valores atribuídos no resultado parcial | K14: Leitões comercializados/porca/ano
K15: Ovos/galinha/ano
K16: Conversão Alimentar/dúzia de ovos
K17: Conversão Alimentar/Kg
B18: Variação do item 1.3 em relação ao item 1.5 | E18: =IF('2 INDICADORES'!D16>0,(('2 INDICADORES'!D16/'2 INDICADORES'!D18)-1),"") ->  | F18: =IF('2 INDICADORES'!E16>0,(('2 INDICADORES'!E16/'2 INDICADORES'!E18)-1),"") ->  | G18: =IF('2 INDICADORES'!F16>0,(('2 INDICADORES'!F16/'2 INDICADORES'!F18)-1),"") ->  | H18: 1.0 | K18: Percentagem de postura
B19: Variação do item 1.4 em relação ao item 1.6 | E19: =IF('2 INDICADORES'!D17>0,(('2 INDICADORES'!D17/'2 INDICADORES'!D19)-1),"") ->  | F19: =IF('2 INDICADORES'!E17>0,(('2 INDICADORES'!E17/'2 INDICADORES'!E19)-1),"") ->  | G19: =IF('2 INDICADORES'!F17>0,(('2 INDICADORES'!F17/'2 INDICADORES'!F19)-1),"") ->  | H19: 1.0
E20: 1.0 | F20: 1.0 | G20: 1.0 | H20: Matriz de ponderação
B21: Resultado parcial | C21: Produtividade | E21: =IF(ISBLANK('2 INDICADORES'!D16),"",IF(FÓRMULAS!F12>1,1,FÓRMULAS!F12)) ->  | F21: =IF(ISBLANK('2 INDICADORES'!E16),"",IF(FÓRMULAS!G12>1,1,FÓRMULAS!G12)) ->  | G21: =IF(ISBLANK('2 INDICADORES'!F16),"",IF(FÓRMULAS!H12>1,1,FÓRMULAS!H12)) ->  | J21: =AVERAGE(FÓRMULAS!E21:G22) -> 
C22: Preço de venda | E22: =IF(ISBLANK('2 INDICADORES'!D17),"",IF(FÓRMULAS!F13>1,1,FÓRMULAS!F13)) ->  | F22: =IF(ISBLANK('2 INDICADORES'!E17),"",IF(FÓRMULAS!G13>1,1,FÓRMULAS!G13)) ->  | G22: =IF(ISBLANK('2 INDICADORES'!F17),"",IF(FÓRMULAS!H13>1,1,FÓRMULAS!H13)) ->  | J22: =IF('3 RELATÓRIO'!G87<300,FÓRMULAS!J21*0.7,FÓRMULAS!J21) ->  | K22: =IF(J22<0,0,J22) -> 
A24: 2 | B24: Fator de Ponderação | F24: Fórmulas | J24: 0.3
B25: item 2.3 | C25: 1 - (F362 *0,3) | F25: (1- ((F362 * 0,3) + (F372 * 0,3) + (F382 * 1) + (F392 * 2))) - 10% (se identificada a concentração de renda acima de 80% - célula I142 do questionário) | J25: 0.3
B26: item 2.3 | C26: 1 - (F372 *0,3) | J26: 1.0
B27: item 2.3 | C27: 1 - (F382 *1) | J27: 2.0
B28: item 2.3 | C28: 1 - (F392 *2)
F29: =1-(('2 INDICADORES'!F36^2*FÓRMULAS!J24)+('2 INDICADORES'!F37^2*FÓRMULAS!J25)+('2 INDICADORES'!F38^2*FÓRMULAS!J26)+('2 INDICADORES'!F39^2*FÓRMULAS!J27)) ->  | G29: =IF(AND('2 INDICADORES'!F36>70%,'2 INDICADORES'!F40="sim"),F29-10%,F29) ->  | H29: =IF(FÓRMULAS!G29<0.1,0.1,FÓRMULAS!G29) -> 
A31: 3 | B31: Fator de Ponderação | F31: Fórmulas | K31: =+FÓRMULAS!M31 ->  | M31: =(+(FÓRMULAS!E50-FÓRMULAS!J50)/('2 INDICADORES'!C87-'2 INDICADORES'!D87)) -> 
B32: item 3.1 | C32: 0.6 | F32: (0,6*F109+F110+F111+F112+F113) + acréscimo da variação do balanço patrimonial (sem a valorização da terra F115) que excedeu a variação de 6% aa no período avaliado (4 anos = 26%)* | K32: =+FÓRMULAS!M32 ->  | M32: =('2 INDICADORES'!$E$52-'2 INDICADORES'!$G$52)/('2 INDICADORES'!$C$87-'2 INDICADORES'!$D$87) -> 
B33: item 3.2 | C33: 1.0 | K33: =+FÓRMULAS!M33 ->  | M33: =('2 INDICADORES'!$E$57-'2 INDICADORES'!$G$57)/('2 INDICADORES'!$C$87-'2 INDICADORES'!$D$87) -> 
B34: item 3.3 | C34: 1.0 | K34: =+FÓRMULAS!M34 ->  | M34: =('2 INDICADORES'!$D$67-'2 INDICADORES'!$F$67)/('2 INDICADORES'!$C$87-'2 INDICADORES'!$D$87) -> 
B35: item 3.4 | C35: 1.0 | K35: =+FÓRMULAS!M35 ->  | M35: =(FÓRMULAS!J52/('2 INDICADORES'!C87-'2 INDICADORES'!D87)) -> 
F36: =(FÓRMULAS!M31*'2 INDICADORES'!G91+FÓRMULAS!M32*'2 INDICADORES'!G92+FÓRMULAS!M33*'2 INDICADORES'!G93+FÓRMULAS!M34*'2 INDICADORES'!G94+FÓRMULAS!M35*'2 INDICADORES'!G95) ->  | G36: =IF('2 INDICADORES'!F97>26%,F36*((1+('2 INDICADORES'!F97-0.26))),F36) ->  | H36: =IF('2 INDICADORES'!F96>0,G36,1-(0.3-10*'2 INDICADORES'!F96)) ->  | I36: =IF(H36<0,0,H36) ->  | M36: =M35+M34+M33+M32+M31 -> 
B37: Aspersão | I37: Verificação | K37: =SUM(FÓRMULAS!M31:M35) -> 
B38: Gotejamento/microaspersão
B39: Pivô central
B40: Outras categorias | D40: Item 3.2
B41: Diversos tipos de irrigação | D41: Fórmula - VR(valor residual) = (1-T)N x VI, em que: T = taxa de depreciação; N = tempo (nº de anos); e VI = valor inicial
B43: Categorias | D43: Ponderação | E43: Valor total atual | G43: Área total | H43: Ponderação | I43: Valor histórico | K43: Área total
B44: Vegetação nativa e outros | D44: 1.00 | E44: =('2 INDICADORES'!C84*D44)*G44*('3 RELATÓRIO'!$G$9) ->  | G44: ='1 QUESTIONÁRIO'!E80+'1 QUESTIONÁRIO'!E81+'1 QUESTIONÁRIO'!E82+'1 QUESTIONÁRIO'!E83+'1 QUESTIONÁRIO'!E84 ->  | H44: =+D44 -> 1.00 | I44: =(K44*H44)*'3 RELATÓRIO'!G9*'2 INDICADORES'!D84 ->  | K44: =+('2 INDICADORES'!D78+'2 INDICADORES'!D77+'2 INDICADORES'!D79+'2 INDICADORES'!D80+'2 INDICADORES'!D81)/'2 INDICADORES'!D82 -> 
B45: Pastagens | D45: 1.00 | E45: =('2 INDICADORES'!C84*D45)*G45*('3 RELATÓRIO'!$G$9) ->  | G45: ='1 QUESTIONÁRIO'!E78 ->  | H45: =+D45 -> 1.00 | I45: =(K45*H45)*'3 RELATÓRIO'!G9*'2 INDICADORES'!D84 ->  | K45: =+'2 INDICADORES'!D75/'2 INDICADORES'!D82 -> 
B46: Lavoura temporária | D46: 1.00 | E46: =('2 INDICADORES'!C84*D46)*G46*('3 RELATÓRIO'!$G$9) ->  | G46: ='1 QUESTIONÁRIO'!E77 ->  | H46: =+D46 -> 1.00 | I46: =K46*'3 RELATÓRIO'!G9*('2 INDICADORES'!D84*H46) ->  | K46: =+'2 INDICADORES'!D74/'2 INDICADORES'!D82 -> 
B47: Irrigação (+ R$1.000,00/ha) | D47: 1,000.00 | E47: =+'3 RELATÓRIO'!G9*G47*D47 ->  | G47: ='2 INDICADORES'!C71/'3 RELATÓRIO'!G9 ->  | H47: =+D47 -> 1,000.00 | I47: =+'3 RELATÓRIO'!G9*K47*H47 ->  | K47: =+'2 INDICADORES'!D71/'3 RELATÓRIO'!G9 -> 
B48: Lav. perene/silvicutura | D48: 1.00 | E48: =('2 INDICADORES'!C84*D48)*G48*('3 RELATÓRIO'!$G$9) ->  | G48: ='1 QUESTIONÁRIO'!E76+'1 QUESTIONÁRIO'!E79 ->  | H48: =+D48 -> 1.00 | I48: =K48*'3 RELATÓRIO'!G9*('2 INDICADORES'!D84*H48) ->  | K48: =+('2 INDICADORES'!D73+'2 INDICADORES'!D76)/'2 INDICADORES'!D82 -> 
G49: =+G48+G46+G45+G44 ->  | J49: Histórico | K49: =+K48+K46+K45+K44 -> 
B50: Valor Total da terra | E50: =E44+E45+E46+E47+E48 ->  | J50: =I44+I45+I46+I47+I48 -> 
B52: Evolução decorrente da modificação do uso do solo | H52: =J52/'2 INDICADORES'!C87 ->  | J52: =(((FÓRMULAS!G46-FÓRMULAS!K46)*'3 RELATÓRIO'!G9*'2 INDICADORES'!C84*1.1)+((FÓRMULAS!G47-FÓRMULAS!K47)*'3 RELATÓRIO'!G9*('2 INDICADORES'!C84+1000))+((FÓRMULAS!G48-FÓRMULAS!K48)*'3 RELATÓRIO'!G9*'2 INDICADORES'!C84*1.3)) -> 
J53: =('2 INDICADORES'!$C$84*FÓRMULAS!D44)*FÓRMULAS!K44*'3 RELATÓRIO'!$G$9 -> 
B54: Evolução patrimonial (sem a valorização do preço da terra) | H54: =IF('2 INDICADORES'!D87>0,('2 INDICADORES'!C87/L58-1),"") ->  | J54: =('2 INDICADORES'!$C$84*FÓRMULAS!D45)*FÓRMULAS!K45*'3 RELATÓRIO'!$G$9 -> 
J55: =('2 INDICADORES'!$C$84*FÓRMULAS!D46)*FÓRMULAS!K46*'3 RELATÓRIO'!$G$9 -> 
B56: Evolução patrimonial total | H56: =IF('2 INDICADORES'!C87>0,('2 INDICADORES'!C87/'2 INDICADORES'!D87-1),"") ->  | J56: =FÓRMULAS!I47 -> 
L57: =SUM(J53:K58) -> 
J58: =('2 INDICADORES'!$C$84*FÓRMULAS!D48)*FÓRMULAS!K48*'3 RELATÓRIO'!$G$9 ->  | L58: =+L57+'2 INDICADORES'!G52+'2 INDICADORES'!G57+'2 INDICADORES'!F67 -> 
A60: 4 | B60: Fator de Ponderação | F60: Fórmulas
B61: 0% | C61: 0.7 | F61: y = 0,04x + 0,7 y = -0,04x + 1,3
B62: 0-7,5% | C62: y = 0,04x + 0,7
B63: 7,5-30% | C63: y = -0,04x + 1,3 | F63: =IF('2 INDICADORES'!E105=0,0.7,0) ->  | G63: =SUM(F63:F66) -> 
B64: 15-30% | C64: y = -0,4x + 1,29 | F64: =IF('2 INDICADORES'!E105>0,G64,0) ->  | G64: =IF('2 INDICADORES'!E105>=0.075,0,H64) ->  | H64: =0.04*('2 INDICADORES'!E105*100)+0.7 -> 
B65: >30% | C65: 0.1 | F65: =IF('2 INDICADORES'!E105>=0.075,G65,0) ->  | G65: =IF('2 INDICADORES'!E105>0.3,0,H65) ->  | H65: =-0.04*('2 INDICADORES'!E105*100)+1.3 -> 
B66: >25% | C66: 0.1 | F66: =IF('2 INDICADORES'!E105>0.3,0.1,0) -> 
A69: 5 | B69: Fator de Ponderação | F69: Fórmulas | K69: 1
B70: =+'2 INDICADORES'!B113:C113 -> Disponibilidade de água (quantidade e qualidade) | C70: 1 a 3 | F70: ((SOMA(D135:G143))/Nº de residências)/Nº de variáveis(9) | K70: 0.5
B71: =+'2 INDICADORES'!B114:C114 -> Acesso a energia elétrica | C71: 1.0 | K71: 0
B72: =+'2 INDICADORES'!B115:C115 -> Acesso regular para escoamento da produção | C72: 1.0 | F72: =IF(G72>0,1,0) -> 0 | G72: =+'2 INDICADORES'!D119+'2 INDICADORES'!D116+'2 INDICADORES'!D115+'2 INDICADORES'!D114+'2 INDICADORES'!D113*I72+'2 INDICADORES'!D120+'2 INDICADORES'!D117+'2 INDICADORES'!D118 -> 0 | H72: =(('2 INDICADORES'!D113*I72+'2 INDICADORES'!D114+'2 INDICADORES'!D115+'2 INDICADORES'!D116+'2 INDICADORES'!D117+'2 INDICADORES'!D118+'2 INDICADORES'!D119)+('2 INDICADORES'!E113*I72+'2 INDICADORES'!E114+'2 INDICADORES'!E115+'2 INDICADORES'!E116+'2 INDICADORES'!E117+'2 INDICADORES'!E118+'2 INDICADORES'!E119))/H74 -> 0 | I72: =IF('1 QUESTIONÁRIO'!B117="sim",3,1) -> 1
B73: =+'2 INDICADORES'!B116:C116 -> Acesso ao serviço de saúde* | C73: 1.0 | F73: =IF(G73>0,1,0) -> 0 | G73: =+'2 INDICADORES'!E119+'2 INDICADORES'!E116+'2 INDICADORES'!E115+'2 INDICADORES'!E114+'2 INDICADORES'!E113*I72+'2 INDICADORES'!E120+'2 INDICADORES'!E117+'2 INDICADORES'!E118 -> 0 | H73: =+F75+F74+F73+F72 -> 0
B74: =+'2 INDICADORES'!B117:C117 -> Acesso regular ao transporte escolar | C74: 1.0 | F74: 0 | G74: 0 | H74: =IF(H73=0,1,H73) -> 1.00
B75: =+'2 INDICADORES'!B118:C118 -> Segurança no campo | C75: 1.0 | F75: 0 | G75: 0
B76: =+'2 INDICADORES'!B119:C119 -> Internet | C76: 1.0
B77: =+'2 INDICADORES'!B120:C120 -> Coleta pública de lixo | C77: 1.0
B79: Fator de Ponderação | F79: Fórmulas | K79: Referência: Família com 5 pessoas e média de 2.630 kcal/dia: 4 pés citros; 13 mamoeiros; 18 bananeiras; 2 vacas leite; 4 cevados (porco)/ano; 100 frangos/ano; 50 galinhas; 3 galos; 600 kg de hortaliças (folhosas/frutos/tubérculos/ano); 200 kg mandioca.
B80: =+'2 INDICADORES'!B125:C125 -> Hortaliças, grãos e tubérculos | C80: 1.0 | F80: Fórmula: ((SOMA(D148:G150)/Nº de residências)/Nº de variáveis(3)
B81: =+'2 INDICADORES'!B126:C126 -> Pomar | C81: 1.0
B82: =+'2 INDICADORES'!B127:C127 -> Criação de animais (carne, leite, ovos) | C82: 1.0 | F82: =IF(G82>0,1,0) -> 0 | G82: ='2 INDICADORES'!D125+'2 INDICADORES'!D126+'2 INDICADORES'!D127 -> 0
F83: =IF(G83>0,1,0) -> 0 | G83: ='2 INDICADORES'!E125+'2 INDICADORES'!E126+'2 INDICADORES'!E127 -> 0
F84: =IF(('2 INDICADORES'!D125+'2 INDICADORES'!D126+'2 INDICADORES'!D127)=0,0,(('2 INDICADORES'!D125+'2 INDICADORES'!D126+'2 INDICADORES'!D127)+('2 INDICADORES'!E125+'2 INDICADORES'!E126+'2 INDICADORES'!E127))/F85) -> 0
F85: =SUM(F82:F83) -> 0
A89: 6 | B89: Fator de Ponderação | F89: Fórmulas
B90: =+'2 INDICADORES'!B136:C136 -> Menos de 9 anos de estudo | C90: 0.7 | F90: Fórmula: limiar de sustentabilidade (0,7) => adultos com no mínimo 5 anos de escolaridade (equivalente a 4 anos na grade escolar antiga) e crianças na rede de ensino. Cursos de capacitação direcionados para a atividade e mão de obra qualificada => acréscimo máx. 0,3 nota final
B91: =+'2 INDICADORES'!B137:C137 -> Ensino Fundamental completo | C91: 1.0
B92: =+'2 INDICADORES'!B138:C138 -> Ensino Médio completo | C92: 1.2
B93: =+'2 INDICADORES'!B139:C139 -> Curso superior | C93: 1.5
B94: =+'2 INDICADORES'!B142:C142 -> Capacitação curta temporada* | C94: 0.5 | F94: Fórmula dos item 6.1 = (D158*0,7 + D159*1 + D160*1,2 + D161*1,5) + (F158*0,7 + F159*1 + F160*1,2 + F161*1,5)/nº pessoas * 0,7. Fórmula do item 6.2 = (D165*0,5 + D166*0,8)+(F165*0,5 + F166*0,8)/nº pessoas * 0,3. Fórmula do item 6.3 = (E171 + G172)/nº pessoas * 0,7
B95: =+'2 INDICADORES'!B143:C143 -> Capacitação longa temporada** | C95: 0.8
B96: =+'2 INDICADORES'!B149:C149 -> Frequenta rede de ensino | C96: 1.0 | F96: =IF('2 INDICADORES'!D135>0,((('2 INDICADORES'!D136*'2 INDICADORES'!F136+'2 INDICADORES'!D137*'2 INDICADORES'!F137+'2 INDICADORES'!D138*'2 INDICADORES'!F138+'2 INDICADORES'!D139*'2 INDICADORES'!F139))*0.7),0) -> 0 | G96: =IF('2 INDICADORES'!D135>0,(('2 INDICADORES'!D142*'2 INDICADORES'!F142+'2 INDICADORES'!D143*'2 INDICADORES'!F143))*0.3,0) -> 0 | H96: =+'2 INDICADORES'!D135+'2 INDICADORES'!E135 -> 0 | I96: =IF('2 INDICADORES'!D148>0,(('2 INDICADORES'!D149*'2 INDICADORES'!F149)*0.7),0) -> 0 | K96: =I98+G98 -> 
F97: =IF('2 INDICADORES'!E135>0,((('2 INDICADORES'!E136*'2 INDICADORES'!F136+'2 INDICADORES'!E137*'2 INDICADORES'!F137+'2 INDICADORES'!E138*'2 INDICADORES'!F138+'2 INDICADORES'!E139*'2 INDICADORES'!F139))*0.7),0) -> 0 | G97: =IF('2 INDICADORES'!E135>0,(('2 INDICADORES'!E142*'2 INDICADORES'!F142+'2 INDICADORES'!E143*'2 INDICADORES'!F143))*0.3,0) -> 0 | H97: =+'2 INDICADORES'!D148+'2 INDICADORES'!E148 -> 0 | I97: =IF('2 INDICADORES'!E148>0,(('2 INDICADORES'!E149*'2 INDICADORES'!F149))*0.7,0) -> 0 | K97: =K96 -> 
F98: =(F96+F97)/H96 ->  | G98: =(G96+G97)/H96 ->  | H98: =(I96+I97)/H97 ->  | I98: =IF(OR('2 INDICADORES'!D148>0,'2 INDICADORES'!E148>0),((H98+F98)/2),F98) -> 
A100: 7 | B100: Fator de Ponderação | F100: Fórmulas
B101: =+'2 INDICADORES'!B158:D158 -> Registro de funcionários (carteira de trabalho) | C101: 1.0 | F101: Fórmula: = 0,7 se houver o cumprimento da lei referente ao registro e pagamento de hora extra de todos os funcionários; auxílios e benefícios acréscimo - máx.0,3
B102: =+'2 INDICADORES'!B159:D159 -> Pagamento de hora extra / banco de horas* / ausência de hora extra | C102: 1.0
B103: =+'2 INDICADORES'!B162:D162 -> Acima de 1 salário mínimo | C103: 1.0 | F103: =IF('2 INDICADORES'!E157>0,((('2 INDICADORES'!E158*'2 INDICADORES'!$G$158+'2 INDICADORES'!E159*'2 INDICADORES'!$G$159)/('2 INDICADORES'!E157*2))*0.7),0.7) -> 0.70 | G103: =IF('2 INDICADORES'!E157>0,(('2 INDICADORES'!E162*'2 INDICADORES'!$G$162+'2 INDICADORES'!E163*'2 INDICADORES'!$G$163+'2 INDICADORES'!E164*'2 INDICADORES'!$G$164+'2 INDICADORES'!E165*'2 INDICADORES'!$G$165+'2 INDICADORES'!E166*'2 INDICADORES'!$G$166+'2 INDICADORES'!E167*'2 INDICADORES'!$G$167+'2 INDICADORES'!E168*'2 INDICADORES'!$G$168+'2 INDICADORES'!E169*'2 INDICADORES'!$G$169)/('2 INDICADORES'!E157*8)*0.3),0) -> 0 | H103: =(F103+G103) -> 0.70
B104: =+'2 INDICADORES'!B163:D163 -> Auxílio alimentação | C104: 1.0 | F104: =IF('2 INDICADORES'!F157>0,((('2 INDICADORES'!F158*'2 INDICADORES'!$G$158+'2 INDICADORES'!F159*'2 INDICADORES'!$G$159)/('2 INDICADORES'!F157*2))*0.7),0.7) -> 0.70 | G104: =IF('2 INDICADORES'!F157>0,(('2 INDICADORES'!F162*'2 INDICADORES'!$G$162+'2 INDICADORES'!F163*'2 INDICADORES'!$G$163+'2 INDICADORES'!F164*'2 INDICADORES'!$G$164+'2 INDICADORES'!F165*'2 INDICADORES'!$G$165+'2 INDICADORES'!F166*'2 INDICADORES'!$G$166+'2 INDICADORES'!F167*'2 INDICADORES'!$G$167+'2 INDICADORES'!F168*'2 INDICADORES'!$G$168+'2 INDICADORES'!F169*'2 INDICADORES'!$G$169)/('2 INDICADORES'!F157*8)*0.3),0) -> 0 | H104: =(F104+G104) -> 0.70
B105: =+'2 INDICADORES'!B164:D164 -> Auxílio moradia | C105: 1.0 | F105: =+H103 -> 0.70 | G105: =IF('2 INDICADORES'!F157>0,(H104+F105)/2,F105) -> 0.70 | H105: =IF(SUM('2 INDICADORES'!E157:F157)=0,0.7,FÓRMULAS!G105) -> 0.70
B106: =+'2 INDICADORES'!B165:D165 -> Auxílio educação e transporte | C106: 1.0
B107: =+'2 INDICADORES'!B166:D166 -> Participação nos lucros | C107: 5.0
B108: =+'2 INDICADORES'!B167:D167 -> Seguro contra acidentes | C108: 3.0
B109: =+'2 INDICADORES'!B168:D168 -> Acesso a lazer | C109: 1.0
B110: =+'2 INDICADORES'!B169:D169 -> Espaço para cultivo de alimentos | C110: 3.0
A113: 8 | B113: Fator de Ponderação | F113: Fórmulas
B114: =+'2 INDICADORES'!C175 -> Fluxo de caixa (receita/despesa) | C114: 0.5 | F114: E198+E199+E200+E201+(E202*2)+ (0,4*E203)+(0,4*E204)+(0,2*E205)/7
B115: =+'2 INDICADORES'!C176 -> Custo de produção das atividades | C115: 0.5
B116: =+'2 INDICADORES'!B177:D177 -> 8.2 Acesso à assistência técnica (particular ou pública)* | C116: 1.0
B117: =+'2 INDICADORES'!B178:D178 -> 8.3 Participação - formas associativas - ativa (1) ou passiva (0,5) | C117: 1.0
B118: =+'2 INDICADORES'!B179:D179 -> 8.4 Regularização ambiental (Uso da água, CAR e Licenciamento)** | C118: 1.0
B119: =+'2 INDICADORES'!C180 -> Utiliza crédito para investimento | C119: 0.4
B120: =+'2 INDICADORES'!C181 -> Utiliza crédito para custeio | C120: 0.4
B121: =+'2 INDICADORES'!C182 -> Utiliza crédito para comercialização | C121: 0.2
A124: 9 | B124: Fator de Ponderação | F124: Fórmulas
B125: =+'2 INDICADORES'!B188:D188 -> Busca informação para comercialização / diversificar compradores | C125: 0.4 | D125: =IF('2 INDICADORES'!E188="sim",1,0) -> 0 | F125: (0,4*E211)+(0,4*E212)+(0,3*E214)+ (0,4*E216)
B126: =+'2 INDICADORES'!B189:D189 -> Gera produtos certificados e/ou mercado institucional | C126: 0.4 | D126: =IF('2 INDICADORES'!E189="sim",1,0) -> 0 | F126: =(D125*C125+D126*C126+D127*C127+D128*C128) -> 0.00
B127: =+'2 INDICADORES'!B191:D191 -> Adoção de técnicas inovadoras* | C127: 0.3 | D127: =IF('2 INDICADORES'!E191="sim",1,0) -> 0
B128: =+'2 INDICADORES'!B193:D193 -> Capacidade de inovação ou liderança na comunidade | C128: 0.4 | D128: =IF('2 INDICADORES'!E193="sim",1,0) -> 0
A132: 10 | B132: Fator de Ponderação | F132: Fórmulas
B133: 10.1.Esgoto residências - destinação | C133: 1.0 | F133: (F236+F237+F238+F239+F240)
B134: 10.2.Lixo domiciliar e das atividades - destinação | C134: 1.0 | F134: =IF(G134>1,1,G134) ->  | G134: =IF(H134>0,I134/H134,I134) ->  | H134: =COUNTIF('2 INDICADORES'!F206:G212,">=0") -> 0 | I134: ='2 INDICADORES'!G206+'2 INDICADORES'!G207+'2 INDICADORES'!F209+'2 INDICADORES'!F211+'2 INDICADORES'!F212 ->  | K134: Não se aplica
B135: 10.3.Resíduos sólidos orgânicos - compostagem e/ou reaproveitamento no campo | C135: 1.0 | F135: =IF('2 INDICADORES'!F214="sim",FÓRMULAS!F134*0.7,FÓRMULAS!F134) -> 
B136: 10.4.Efluentes líquidos (quando existentes) - tratamento / destinação adequada | C136: 1.0
B137: 10.5.Efluentes gasosos (quando existentes) - tratamento / destinação adequada | C137: 1.0
F139: Fator de ponderação
B140: Ausência de coleta e tratamento de esgoto | F140: 0.00 | G140: =IF('2 INDICADORES'!$D$206=FÓRMULAS!B140,1,0) -> 0 | H140: =G140*F140 -> 0 | I140: =IF('2 INDICADORES'!$F$206=FÓRMULAS!B140,1,0) -> 0 | J140: =I140*F140 -> 0 | K140: =SUM(G140:G144) -> 0 | L140: =SUM(I140:I144) -> 0 | M140: =L140+K140 -> 0
B141: Fossa rudimentar; fossa negra sem revestimento | F141: 0.25 | G141: =IF('2 INDICADORES'!$D$206=FÓRMULAS!B141,1,0) -> 0 | H141: =G141*F141 -> 0 | I141: =IF('2 INDICADORES'!$F$206=FÓRMULAS!B141,1,0) -> 0 | J141: =I141*F141 -> 0 | K141: =SUM(H140:H144) -> 0 | L141: =SUM(J140:J144) -> 0 | M141: =SUM(K141:L141)/M140 -> 
B142: Fossa séptica sem tratamento do efluente | F142: 0.35 | G142: =IF('2 INDICADORES'!$D$206=FÓRMULAS!B142,1,0) -> 0 | H142: =G142*F142 -> 0 | I142: =IF('2 INDICADORES'!$F$206=FÓRMULAS!B142,1,0) -> 0 | J142: =I142*F142 -> 0
B143: Fossa séptica com tratamento do efluente | F143: 0.75 | G143: =IF('2 INDICADORES'!$D$206=FÓRMULAS!B143,1,0) -> 0 | H143: =G143*F143 -> 0 | I143: =IF('2 INDICADORES'!$F$206=FÓRMULAS!B143,1,0) -> 0 | J143: =I143*F143 -> 0
B144: Fossa TEVAP; separação e tratamento águas cinzas | F144: 1.00 | G144: =IF('2 INDICADORES'!$D$206=FÓRMULAS!B144,1,0) -> 0 | H144: =G144*F144 -> 0 | I144: =IF('2 INDICADORES'!$F$206=FÓRMULAS!B144,1,0) -> 0 | J144: =I144*F144 -> 0
B146: Queimado/descartado em local inapropriado | F146: 0.00 | G146: =IF('2 INDICADORES'!$D$207=FÓRMULAS!B146,1,0) -> 0 | H146: =G146*F146 -> 0 | I146: =IF('2 INDICADORES'!$F$207=FÓRMULAS!B146,1,0) -> 0 | J146: =I146*F146 -> 0 | K146: =SUM(G146:G149) -> 0 | L146: =SUM(I146:I149) -> 0 | M146: =L146+K146 -> 0
B147: Enterrado no imóvel rural | F147: 0.30 | G147: =IF('2 INDICADORES'!$D$207=FÓRMULAS!B147,1,0) -> 0 | H147: =G147*F147 -> 0 | I147: =IF('2 INDICADORES'!$F$207=FÓRMULAS!B147,1,0) -> 0 | J147: =I147*F147 -> 0 | K147: =SUM(H146:H149) -> 0 | L147: =SUM(J146:J149) -> 0 | M147: =SUM(K147:L147)/M146 -> 
B148: Lixo levado pelo produtor | F148: 0.80 | G148: =IF('2 INDICADORES'!$D$207=FÓRMULAS!B148,1,0) -> 0 | H148: =G148*F148 -> 0 | I148: =IF('2 INDICADORES'!$F$207=FÓRMULAS!B148,1,0) -> 0 | J148: =I148*F148 -> 0
B149: Lixo coletado pela prefeitura | F149: 1.00 | G149: =IF('2 INDICADORES'!$D$207=FÓRMULAS!B149,1,0) -> 0 | H149: =G149*F149 -> 0 | I149: =IF('2 INDICADORES'!$F$207=FÓRMULAS!B149,1,0) -> 0 | J149: =I149*F149 -> 0
A151: 11 | B151: Fator de Ponderação | F151: Fórmulas
B152: =+'2 INDICADORES'!B220:D220 -> Quantas pessoas fazem o manuseio de agrotóxicos | C152: 1.0 | F152: Fórmula: 0,7, se atende todas as regras, conforme legislação ambiental vigente (EPI; armazenamento e devolução de embalagens)
B153: =+'2 INDICADORES'!B221:D221 -> Quantas pessoas utilizam EPI adequadamente | C153: 1.0
B154: =+'2 INDICADORES'!B223:D223 -> Armazenamento adequado das embalagens | C154: 1.0 | F154: =IF('2 INDICADORES'!E220>0,('2 INDICADORES'!E221/'2 INDICADORES'!E220),0.7) -> 0.70 | G154: =IF('2 INDICADORES'!E220>0,(H154+H155+F154)/3*0.7,0.7) -> 0.70 | H154: =IF('2 INDICADORES'!E223="sim",1,0) -> 0
B155: =+'2 INDICADORES'!B224:D224 -> Devolução das embalagens de agrotóxicos | C155: 1.0 | H155: =IF('2 INDICADORES'!E224="sim",1,0) -> 0
A157: 12 | B157: MO - Fator Ponderação
B158: Classificação | F158: Ponderação | H158: Classes de textura (dag kg-1 de argila)
B159: Arenosa | C159: Média | D159: Argilosa | E159: Muito Arg. | H159: Arenosa | J159: ≤ 15
B160: 0.00 | C160: 0.00 | D160: 0.00 | E160: 0.00 | F160: 0.10 | H160: Média | J160: 16 a 34
B161: 0.80 | C161: 1.60 | D161: 2.40 | E161: 2.80 | F161: 0.50 | H161: Argilosa | J161: 35 a 60
B162: 1.10 | C162: 2.10 | D162: 3.10 | E162: 3.60 | F162: 0.70 | H162: Muito argilosa | J162: > 60
B163: 1.50 | C163: 3.00 | D163: 4.50 | E163: 5.20 | F163: 1.00
B164: 4.50 | C164: 9.00 | D164: 13.50 | E164: 15.60 | F164: 0.70
B165: MO - Fórmulas
B166: Arenosa | C166: Yo + ax + bx2 + cx3 | E166: Fórmula2 = Yo + ax | G166: Média | H166: Yo + ax + bx2 + cx3 | J166: Fórmula2 = Yo + ax | M166: =IF(AND('2 INDICADORES'!E231="Arenosa"),IF('2 INDICADORES'!C232<1.5,FÓRMULAS!E169,FÓRMULAS!F169),0) -> 0.00
C167: Yo | D167: 0.100 | E167: Yo | F167: 1.15 | H167: Yo | I167: 0.100 | J167: Yo | K167: 1.15 | M167: =IF(AND('2 INDICADORES'!E231="Média"),IF('2 INDICADORES'!C232<3,FÓRMULAS!J169,FÓRMULAS!K169),0) -> 0.00
C168: a | D168: 0.360 | E168: a | F168: -0.10 | H168: a | I168: 0.002 | J168: a | K168: -0.05 | M168: =IF(AND('2 INDICADORES'!E231="Argilosa"),IF('2 INDICADORES'!C232<4.5,FÓRMULAS!E174,FÓRMULAS!F174),0) -> 0.00
C169: b | D169: 0.193 | E169: =D167+D168*'2 INDICADORES'!C232+D169*'2 INDICADORES'!C232^2+D170*'2 INDICADORES'!C232^3 -> 0.10 | F169: =F167+F168*'2 INDICADORES'!C232 -> 1.15 | H169: b | I169: 0.218 | J169: =I167+I168*'2 INDICADORES'!C232+I169*'2 INDICADORES'!C232^2+I170*'2 INDICADORES'!C232^3 -> 0.10 | K169: =K167+K168*'2 INDICADORES'!C232 -> 1.15 | M169: =IF(AND('2 INDICADORES'!E231="Muito Argilosa"),IF('2 INDICADORES'!C232<5.2,FÓRMULAS!J174,FÓRMULAS!K174),0) -> 0.00
C170: c | D170: -0.022 | H170: c | I170: -0.040 | M170: =(M166+M167+M168+M169) -> 0.00
B171: Argilosa | C171: Yo + ax + bx2 + cx3 | E171: Fórmula2 = Yo + ax | G171: Muito Argilosa | H171: Yo + ax + bx2 + cx3 | J171: Fórmula2 = Yo + ax
C172: Yo | D172: 0.100 | E172: Yo | F172: 1.15 | H172: Yo | I172: 0.100 | J172: Yo | K172: 1.15
C173: a | D173: -0.045 | E173: a | F173: -0.03 | H173: a | I173: -0.049 | J173: a | K173: -0.03
C174: b | D174: 0.127 | E174: =D172+D173*'2 INDICADORES'!C232+D174*'2 INDICADORES'!C232^2+D175*'2 INDICADORES'!C232^3 -> 0.10 | F174: =F172+F173*'2 INDICADORES'!C232 -> 1.15 | H174: b | I174: 0.098 | J174: =I172+I173*'2 INDICADORES'!C232+I174*'2 INDICADORES'!C232^2+I175*'2 INDICADORES'!C232^3 -> 0.10 | K174: =K172+K173*'2 INDICADORES'!C232 -> 1.15
C175: c | D175: -0.016 | H175: c | I175: -0.011
B176: MO - Representação Gráfica
B189: P - Fator Ponderação
B190: Classificação | F190: Ponderação
B191: Arenosa | C191: Média | D191: Argilosa | E191: Muito Arg.
B192: 0.00 | C192: 0.00 | D192: 0.00 | E192: 0.00 | F192: 0.10
B193: 12.10 | C193: 10.10 | D193: 5.10 | E193: 3.10 | F193: 0.25
B194: 18.10 | C194: 15.10 | D194: 8.10 | E194: 4.10 | F194: 0.50
B195: 25.10 | C195: 20.10 | D195: 12.10 | E195: 6.10 | F195: 0.70
B196: 40.00 | C196: 30.00 | D196: 18.00 | E196: 9.00 | F196: 1.00
B197: 400.00 | C197: 300.00 | D197: 180.00 | E197: 90.00 | F197: 0.70
A198: P - Fórmulas
A199: Arenosa | B199: Yo + ax | D199: F2 = Yo + ax + bx2 | F199: F3 = Yo + ax | H199: Média | I199: F1 = Yo + ax + bx2 | K199: F2 = Yo + ax + bx2 | M199: F3 = Yo + ax
B200: Yo | C200: 0.10 | D200: Yo | E200: -0.47 | F200: Yo | G200: 1.02 | I200: Yo | J200: 0.10 | K200: Yo | L200: -0.30 | M200: Yo | N200: 1.03
B201: a | C201: 0.01 | D201: a | E201: 0.07 | F201: a | G201: -0.00 | I201: a | J201: -0.01 | K201: a | L201: 0.06 | M201: a | N201: -0.00
D202: b | E202: -0.00 | I202: b | J202: 0.00 | K202: b | L202: -0.00
A203: Argilosa | B203: F1 = Yo + ax + bx2 | D203: F2 = Yo + ax + bx2 | F203: F3 = Yo + ax | H203: Muito Argilosa | I203: F1 = Yo + ax + bx2 | K203: F2 = Yo + ax + bx2 | M203: F3 = Yo + ax
B204: Yo | C204: 0.10 | D204: Yo | E204: 0.10 | F204: Yo | G204: 1.04 | I204: Yo | J204: 0.10 | K204: Yo | L204: 0.11 | M204: Yo | N204: 1.03
B205: a | C205: -0.00 | D205: a | E205: 0.05 | F205: a | G205: -0.00 | I205: a | J205: -0.10 | K205: a | L205: 0.09 | M205: a | N205: -0.00
B206: b | C206: 0.01 | D206: b | E206: 0.00 | I206: b | J206: 0.05 | K206: b | L206: 0.00
A207: Atual | B207: =C200+C201*'2 INDICADORES'!C233 -> 0.10 | C207: =E200+E201*'2 INDICADORES'!C233+E202*'2 INDICADORES'!C233^2 -> -0.47 | D207: =0.1946+0.0201*'2 INDICADORES'!C233 -> 0.19 | E207: =G200+G201*'2 INDICADORES'!C233 -> 1.02 | F207: =IF('2 INDICADORES'!C233<=12.1,B207,IF(AND('2 INDICADORES'!C233>12.1,'2 INDICADORES'!C233<25.1),C207,IF('2 INDICADORES'!C233>40,E207,D207))) -> 0.10 | I207: Atual | J207: =J200+J201*'2 INDICADORES'!C233+J202*'2 INDICADORES'!C233^2 -> 0.10 | K207: =L200+L201*'2 INDICADORES'!C233+L202*'2 INDICADORES'!C233^2 -> -0.30 | L207: =N200+N201*'2 INDICADORES'!C233 -> 1.03 | M207: =IF(AND('2 INDICADORES'!C233>15.1,'2 INDICADORES'!C233<30),K207,IF('2 INDICADORES'!C233>=30,L207,J207)) -> 0.10
A208: Atual | B208: =C204+C205*'2 INDICADORES'!C233+C206*'2 INDICADORES'!C233^2 -> 0.10 | C208: =E204+E205*'2 INDICADORES'!C233+E206*'2 INDICADORES'!C233^2 -> 0.10 | D208: =G204+G205*'2 INDICADORES'!C233 -> 1.04 | E208: =IF(AND('2 INDICADORES'!C233>8.1,'2 INDICADORES'!C233<18),C208,IF('2 INDICADORES'!C233>=18,D208,B208)) -> 0.10 | I208: Atual | J208: =J204+J205*'2 INDICADORES'!C233+J206*'2 INDICADORES'!C233^2 -> 0.10 | K208: =L204+L205*'2 INDICADORES'!C233+L206*'2 INDICADORES'!C233^2 -> 0.11 | L208: =N204+N205*'2 INDICADORES'!C233 -> 1.03 | M208: =IF(AND('2 INDICADORES'!C233>4.1,'2 INDICADORES'!C233<9),K208,IF('2 INDICADORES'!C233>=9,L208,J208)) -> 0.10
B209: =IF(AND('2 INDICADORES'!E231="Arenosa"),IF('2 INDICADORES'!C233<0,0,IF(FÓRMULAS!F207>1,1,FÓRMULAS!F207)),0) -> 0.00 | C209: =IF(AND('2 INDICADORES'!E231="Média"),IF('2 INDICADORES'!C233<0,0,IF(FÓRMULAS!M207>1,1,FÓRMULAS!M207)),0) -> 0.00 | D209: =IF(AND('2 INDICADORES'!E231="Argilosa"),IF('2 INDICADORES'!C233<0,0,IF(FÓRMULAS!E208>1,1,FÓRMULAS!E208)),0) -> 0.00 | E209: =IF(AND('2 INDICADORES'!E231="Muito Argilosa"),IF('2 INDICADORES'!C233<0,0,IF(FÓRMULAS!M208>1,1,FÓRMULAS!M208)),0) -> 0.00 | F209: =(B209+C209+D209+E209) -> 0.00
B210: P - Representação Gráfica
B226: Ca - Fator Ponderação | E226: Ca - Fórmulas
B227: Classificação | C227: Ponderação | E227: F1 = Yo + ax + bx2 | H227: F2 = Yo + ax + bx2 | J227: F3 = Yo + ax
B228: 0.00 | C228: 0.10 | E228: Yo | F228: 0.10 | H228: Yo | I228: 0.32 | J228: Yo | K228: 1.08
B229: 0.41 | C229: 0.25 | E229: a | F229: 0.38 | H229: a | I229: 0.14 | J229: a | K229: -0.02
B230: 1.21 | C230: 0.50 | E230: b | F230: -0.04 | H230: b | I230: 0.01
B231: 2.41 | C231: 0.70
B232: 4.00 | C232: 1.00 | E232: Atual | F232: =F228+F229*'2 INDICADORES'!C234+F230*'2 INDICADORES'!C234^2 -> 0.10 | G232: =I228+I229*'2 INDICADORES'!C234+I230*'2 INDICADORES'!C234^2 -> 0.32 | H232: =K228+K229*'2 INDICADORES'!C234 -> 1.08 | I232: =IF(AND('2 INDICADORES'!C234>1.21,'2 INDICADORES'!C234<4),G232,IF('2 INDICADORES'!C234>=4,H232,F232)) -> 0.10
B233: 20.00 | C233: 0.70
B234: Ca - Representação Gráfica
B242: Mg - Fator Ponderação | E242: Mg - Fórmulas
B243: Classificação | C243: Ponderação | E243: F1 = Yo + ax + bx2 | H243: F2 = Yo + ax + bx2 | J243: F3 = Yo + ax
B244: 0.00 | C244: 0.10 | E244: Yo | F244: 0.10 | H244: Yo | I244: 0.32 | J244: Yo | K244: 1.08
B245: 0.16 | C245: 0.25 | E245: a | F245: 0.97 | H245: a | I245: 0.36 | J245: a | K245: -0.05
B246: 0.46 | C246: 0.50 | E246: b | F246: -0.23 | H246: b | I246: 0.06
B247: 0.91 | C247: 0.70 | E247: Atual | F247: =F244+F245*'2 INDICADORES'!C235+F246*'2 INDICADORES'!C235^2 -> 0.10 | G247: =I244+I245*'2 INDICADORES'!C235+I246*'2 INDICADORES'!C235^2 -> 0.32 | H247: =K244+K245*'2 INDICADORES'!C235 -> 1.08 | I247: =IF(AND('2 INDICADORES'!C235>0.46,'2 INDICADORES'!C235<1.5),G247,IF('2 INDICADORES'!C235>=1.5,H247,F247)) -> 0.10
B248: 1.50 | C248: 1.00
B249: 7.50 | C249: 0.70
B250: Mg - Representação Gráfica
B258: K - Fator Ponderação | E258: K - Fórmulas
B259: Classificação | C259: Ponderação | E259: F1 = Yo + ax + bx2 | H259: F2 = Yo + ax + bx2 | J259: F3 = Yo + ax
B260: 0.00 | C260: 0.10 | E260: Yo | F260: 0.10 | H260: Yo | I260: 0.21 | J260: Yo | K260: 1.08
B261: 16.00 | C261: 0.25 | E261: a | F261: 0.01 | H261: a | I261: 0.01 | J261: a | K261: -0.00
B262: 41.00 | C262: 0.50 | E262: b | F262: 0.00 | H262: b | I262: -0.00
B263: 71.00 | C263: 0.70 | E263: Atual | F263: =F260+F261*'2 INDICADORES'!C236+F262*'2 INDICADORES'!C236^2 -> 0.10 | G263: =I260+I261*'2 INDICADORES'!C236+I262*'2 INDICADORES'!C236^2 -> 0.21 | H263: =K260+K261*'2 INDICADORES'!C236 -> 1.08 | I263: =IF(AND('2 INDICADORES'!C236>41,'2 INDICADORES'!C236<120),G263,IF('2 INDICADORES'!C236>=120,H263,F263)) -> 0.10
B264: 120.00 | C264: 1.00
B265: 600.00 | C265: 0.70
B266: K - Representação Gráfica
... 313 more rows

Sheet Base de dados
A1: ISA | C1: BASE DE DADOS
A2: AGROTÓXICOS | C2: =COUNTA(C13:AIN13) -> 753
A3: Ação | C3: Herbicida | D3: Fungicida | E3: Inseticida | F3: Inseticida | G3: Herbicida | H3: Herbicida | I3: Inseticida | J3: Inseticida | K3: Inseticida | L3: Inseticida | M3: Herbicida | N3: Fungicida | O3: Herbicida | P3: Herbicida | Q3: Acaridica | R3: Fungicida | S3: Inseticida | T3: Herbicida | U3: Herbicida | V3: Herbicida | W3: Inseticida | X3: Fungicida | Y3: Herbicida | Z3: Herbicida | AA3: Herbicida | AB3: Fungicida | AC3: Inseticida | AD3: Fungicida | AE3: Herbicida | AF3: Herbicida | AG3: Inseticida | AH3: Fungicida | AI3: Inseticida | AJ3: Inseticida | AK3: Fungicida | AL3: Herbicida | AM3: Herbicida | AN3: Herbicida | AO3: Herbicida | AP3: Herbicida | AQ3: Fungicida | AR3: Acaridica | AS3: Inseticida | AT3: Herbicida | AU3: Fungicida | AV3: Fungicida | AW3: Inseticida | AX3: Inseticida | AY3: Fungicida | AZ3: Fungicida | BA3: Fungicida | BB3: Fungicida | BC3: Inseticida | BD3: Herbicida | BE3: Herbicida | BF3: Herbicida | BG3: Fungicida | BH3: Herbicida | BI3: Herbicida | BJ3: Inseticida | BK3: Fungicida | BL3: Fungicida | BM3: Herbicida | BN3: Herbicida | BO3: Herbicida | BP3: Herbicida | BQ3: Fungicida | BR3: Fungicida | BS3: Fungicida | BT3: Herbicida | BU3: Herbicida | BV3: Inseticida | BW3: Herbicida | BX3: Inseticida | BY3: Inseticida | BZ3: Inseticida | CA3: Inseticida | CB3: Inseticida | CC3: Herbicida | CD3: Fungicida | CE3: Fungicida | CF3: Inseticida | CG3: Herbicida | CH3: Fungicida | CI3: Fungicida | CJ3: Inseticida | CK3: Inseticida | CL3: Fungicida | CM3: Fungicida | CN3: Fungicida | CO3: Inseticida | CP3: Inseticida | CQ3: Inseticida | CR3: Herbicida | CS3: Fungicida | CT3: Inseticida | CU3: Fungicida | CV3: Inseticida | CW3: Fungicida | CX3: Inseticida | CY3: Inseticida | CZ3: Fungicida | DA3: Fungicida | DB3: Herbicida | DC3: Inseticida | DD3: Inseticida | DE3: Inseticida | DF3: Herbicida | DG3: Herbicida | DH3: Inseticida | DI3: Herbicida | DJ3: Fungicida | DK3: Fungicida | DL3: Inseticida | DM3: Herbicida | DN3: Fungicida | DO3: Fungicida | DP3: Inseticida | DQ3: Herbicida | DR3: Inseticida | DS3: Herbicida | DT3: Inseticida | DU3: Herbicida | DV3: Fungicida | DW3: Inseticida | DX3: Herbicida | DY3: Fungicida | DZ3: Fungicida | EA3: Fungicida | EB3: Inseticida | EC3: Inseticida | ED3: Inseticida | EE3: Fungicida | EF3: Fungicida | EG3: Inseticida | EH3: Fungicida | EI3: Inseticida | EJ3: Fungicida | EK3: Herbicida | EL3: Herbicida | EM3: Inseticida | EN3: Inseticida | EO3: Inseticida | EP3: Fungicida | EQ3: Inseticida | ER3: Inseticida | ES3: Fungicida | ET3: Fungicida | EU3: Herbicida | EV3: Fungicida | EW3: Fungicida | EX3: Inseticida | EY3: Fungicida | EZ3: Inseticida | FA3: Inseticida | FB3: Inseticida | FC3: Fungicida | FD3: Inseticida | FE3: Herbicida | FF3: Inseticida | FG3: Inseticida | FH3: Fungicida | FI3: Fungicida | FJ3: Inseticida | FK3: Inseticida | FL3: Fungicida | FM3: Fungicida | FN3: Inseticida | FO3: Herbicida | FP3: Herbicida | FQ3: Herbicida | FR3: Herbicida | FS3: Herbicida | FT3: Inseticida | FU3: Inseticida | FV3: Inseticida | FW3: Fungicida | FX3: Herbicida | FY3: Herbicida | FZ3: Herbicida | GA3: Fungicida | GB3: Inseticida | GC3: Inseticida | GD3: Herbicida | GE3: Herbicida | GF3: Fungicida | GG3: Inseticida | GH3: Fungicida | GI3: Fungicida | GJ3: Inseticida | GK3: Herbicida | GL3: Fungicida | GM3: Inseticida | GN3: Inseticida | GO3: Herbicida | GP3: Fungicida | GQ3: Inseticida | GR3: Inseticida | GS3: Herbicida | GT3: Fungicida | GU3: Fungicida | GV3: Fungicida | GW3: Fungicida | GX3: Inseticida | GY3: Inseticida | GZ3: Acaridica | HA3: Inseticida | HB3: Fungicida | HC3: Fungicida | HD3: Fungicida | HE3: Inseticida | HF3: Fungicida | HG3: Inseticida | HH3: Fungicida | HI3: Inseticida | HJ3: Inseticida | HK3: Fungicida | HL3: Fungicida | HM3: Herbicida | HN3: Inseticida | HO3: Herbicida | HP3: Herbicida | HQ3: Herbicida | HR3: Herbicida | HS3: Fungicida | HT3: Fungicida | HU3: Inseticida | HV3: Inseticida | HW3: Inseticida | HX3: Inseticida | HY3: Inseticida | HZ3: Fungicida | IA3: Inseticida | IB3: Inseticida | IC3: Herbicida | ID3: Inseticida | IE3: Herbicida | IF3: Herbicida | IG3: Herbicida | IH3: Herbicida | II3: Herbicida | IJ3: Fungicida | IK3: Fungicida | IL3: Herbicida | IM3: Herbicida | IN3: Herbicida | IO3: Herbicida | IP3: Fungicida | IQ3: Fungicida | IR3: Herbicida | IS3: Herbicida | IT3: Fungicida | IU3: Fungicida | IV3: Inseticida | IW3: Fungicida | IX3: Fungicida | IY3: Fungicida | IZ3: Inseticida | JA3: Inseticida | JB3: Herbicida | JC3: Fungicida | JD3: Fungicida | JE3: Fungicida | JF3: Fungicida | JG3: Herbicida | JH3: Fungicida | JI3: Fungicida | JJ3: Inseticida | JK3: Inseticida | JL3: Inseticida | JM3: Inseticida | JN3: Inseticida | JO3: Herbicida | JP3: Inseticida | JQ3: Acaridica | JR3: Herbicida | JS3: Fungicida | JT3: Inseticida | JU3: Inseticida | JV3: Inseticida | JW3: Herbicida | JX3: Herbicida | JY3: Herbicida | JZ3: Fungicida | KA3: Herbicida | KB3: Inseticida | KC3: Fungicida | KD3: Inseticida | KE3: Herbicida | KF3: Fungicida | KG3: Acaridica | KH3: Inseticida | KI3: Fungicida | KJ3: Inseticida | KK3: Inseticida | KL3: Herbicida | KM3: Inseticida | KN3: Fungicida | KO3: Herbicida | KP3: Herbicida | KQ3: Fungicida | KR3: Inseticida | KS3: Herbicida | KT3: Herbicida | KU3: Fungicida | KV3: Inseticida | KW3: Fungicida | KX3: Inseticida | KY3: Herbicida | KZ3: Herbicida | LA3: Herbicida | LB3: Herbicida | LC3: Fungicida | LD3: Fungicida | LE3: Inseticida | LF3: Fungicida | LG3: Herbicida | LH3: Fungicida | LI3: Fungicida | LJ3: Fungicida | LK3: Fungicida | LL3: Fungicida | LM3: Fungicida | LN3: Fungicida | LO3: Herbicida | LP3: Herbicida | LQ3: Herbicida | LR3: Herbicida | LS3: Inseticida | LT3: Fungicida | LU3: Fungicida | LV3: Inseticida | LW3: Inseticida | LX3: Inseticida | LY3: Fungicida | LZ3: Fungicida | MA3: Fungicida | MB3: Fungicida | MC3: Inseticida | MD3: Fungicida | ME3: Herbicida | MF3: Herbicida | MG3: Inseticida | MH3: Fungicida | MI3: Inseticida | MJ3: Inseticida | MK3: Inseticida | ML3: Inseticida | MM3: Inseticida | MN3: Herbicida | MO3: Herbicida | MP3: Inseticida | MQ3: Herbicida | MR3: Herbicida | MS3: Herbicida | MT3: Herbicida | MU3: Fungicida | MV3: Herbicida | MW3: Herbicida | MX3: Herbicida | MY3: Herbicida | MZ3: Herbicida | NA3: Herbicida | NB3: Inseticida | NC3: Herbicida | ND3: Herbicida | NE3: Herbicida | NF3: Herbicida | NG3: Herbicida | NH3: Fungicida | NI3: Inseticida | NJ3: Inseticida | NK3: Herbicida | NL3: Herbicida | NM3: Herbicida | NN3: Herbicida | NO3: Herbicida | NP3: Inseticida | NQ3: Herbicida | NR3: Herbicida | NS3: Herbicida | NT3: Herbicida | NU3: Inseticida | NV3: Fungicida | NW3: Fungicida | NX3: Fungicida | NY3: Herbicida | NZ3: Fungicida | OA3: Fungicida | OB3: Fungicida | OC3: Herbicida | OD3: Herbicida | OE3: Herbicida | OF3: Herbicida | OG3: Herbicida | OH3: Fungicida | OI3: Inseticida | OJ3: Inseticida | OK3: Inseticida | OL3: Fungicida | OM3: Inseticida | ON3: Fungicida | OO3: Inseticida | OP3: Herbicida | OQ3: Inseticida | OR3: Fungicida | OS3: Inseticida | OT3: Inseticida | OU3: Inseticida | OV3: Herbicida | OW3: Herbicida | OX3: Fungicida | OY3: Fungicida | OZ3: Fungicida | PA3: Fungicida | PB3: Herbicida | PC3: Fungicida | PD3: Inseticida | PE3: Inseticida | PF3: Herbicida | PG3: Fungicida | PH3: Inseticida | PI3: Herbicida | PJ3: Fungicida | PK3: Herbicida | PL3: Herbicida | PM3: Fungicida | PN3: Herbicida | PO3: Herbicida | PP3: Inseticida | PQ3: Herbicida | PR3: Fungicida | PS3: Herbicida | PT3: Herbicida | PU3: Herbicida | PV3: Inseticida | PW3: Inseticida | PX3: Inseticida | PY3: Herbicida | PZ3: Herbicida | QA3: Herbicida | QB3: Herbicida | QC3: Inseticida | QD3: Inseticida | QE3: Herbicida | QF3: Inseticida | QG3: Fungicida | QH3: Herbicida | QI3: Inseticida | QJ3: Fungicida | QK3: Fungicida | QL3: Fungicida | QM3: Fungicida | QN3: Inseticida | QO3: Inseticida | QP3: Inseticida | QQ3: Fungicida | QR3: Fungicida | QS3: Inseticida | QT3: Herbicida | QU3: Fungicida | QV3: Inseticida | QW3: Herbicida | QX3: Fungicida | QY3: Fungicida | QZ3: Herbicida | RA3: Herbicida | RB3: Inseticida | RC3: Inseticida | RD3: Fungicida | RE3: Herbicida | RF3: Fungicida | RG3: Inseticida | RH3: Inseticida | RI3: Fungicida | RJ3: Herbicida | RK3: Herbicida | RL3: Inseticida | RM3: Inseticida | RN3: Herbicida | RO3: Herbicida | RP3: Herbicida | RQ3: Herbicida | RR3: Fungicida | RS3: Inseticida | RT3: Fungicida | RU3: Inseticida | RV3: Fungicida | RW3: Fungicida | RX3: Herbicida | RY3: Herbicida | RZ3: Herbicida | SA3: Fungicida | SB3: Inseticida | SC3: Herbicida | SD3: Herbicida | SE3: Herbicida | SF3: Fungicida | SG3: Inseticida | SH3: Inseticida | SI3: Inseticida | SJ3: Inseticida | SK3: Herbicida | SL3: Inseticida | SM3: Herbicida | SN3: Inseticida | SO3: Fungicida | SP3: Acaridica | SQ3: Acaridica | SR3: Herbicida | SS3: Herbicida | ST3: Fungicida | SU3: Fungicida | SV3: Fungicida | SW3: Fungicida | SX3: Inseticida | SY3: Fungicida | SZ3: Herbicida | TA3: Acaridica | TB3: Herbicida | TC3: Fungicida | TD3: Fungicida | TE3: Herbicida | TF3: Herbicida | TG3: Herbicida | TH3: Herbicida | TI3: Herbicida | TJ3: Herbicida | TK3: Fungicida | TL3: Herbicida | TM3: Fungicida | TN3: Herbicida | TO3: Inseticida | TP3: Fungicida | TQ3: Fungicida | TR3: Herbicida | TS3: Fungicida | TT3: Fungicida | TU3: Herbicida | TV3: Inseticida | TW3: Fungicida | TX3: Inseticida | TY3: Inseticida | TZ3: Inseticida | UA3: Fungicida | UB3: Inseticida | UC3: Inseticida | UD3: Herbicida | UE3: Herbicida | UF3: Herbicida | UG3: Herbicida | UH3: Herbicida | UI3: Inseticida | UJ3: Fungicida | UK3: Inseticida | UL3: Herbicida | UM3: Inseticida | UN3: Herbicida | UO3: Inseticida | UP3: Fungicida | UQ3: Herbicida | UR3: Inseticida | US3: Fungicida | UT3: Herbicida | UU3: Herbicida | UV3: Herbicida | UW3: Herbicida | UX3: Herbicida | UY3: Fungicida | UZ3: Herbicida | VA3: Fungicida | VB3: Fungicida | VC3: Fungicida | VD3: Inseticida | VE3: Fungicida | VF3: Inseticida | VG3: Inseticida | VH3: Herbicida | VI3: Fungicida | VJ3: Fungicida | VK3: Herbicida | VL3: Herbicida | VM3: Acaridica | VN3: Fungicida | VO3: Fungicida | VP3: Fungicida | VQ3: Fungicida | VR3: Fungicida | VS3: Herbicida | VT3: Herbicida | VU3: Herbicida | VV3: Herbicida | VW3: Herbicida | VX3: Herbicida | VY3: Herbicida | VZ3: Herbicida | WA3: Fungicida | WB3: Inseticida | WC3: Herbicida | WD3: Herbicida | WE3: Herbicida | WF3: Herbicida | WG3: Herbicida | WH3: Inseticida | WI3: Inseticida | WJ3: Herbicida | WK3: Herbicida | WL3: Inseticida | WM3: Herbicida | WN3: Fungicida | WO3: Fungicida | WP3: Inseticida | WQ3: Fungicida | WR3: Inseticida | WS3: Inseticida | WT3: Herbicida | WU3: Herbicida | WV3: Herbicida | WW3: Fungicida | WX3: Herbicida | WY3: Herbicida | WZ3: Herbicida | XA3: Fungicida | XB3: Acaridica | XC3: Inseticida | XD3: Inseticida | XE3: Herbicida | XF3: Inseticida | XG3: Herbicida | XH3: Herbicida | XI3: Fungicida | XJ3: Herbicida | XK3: Herbicida | XL3: Herbicida | XM3: Fungicida | XN3: Inseticida | XO3: Herbicida | XP3: Herbicida | XQ3: Herbicida | XR3: Herbicida | XS3: Inseticida | XT3: Fungicida | XU3: Herbicida | XV3: Inseticida | XW3: Fungicida | XX3: Acaridica | XY3: Herbicida | XZ3: Herbicida | YA3: Inseticida | YB3: Herbicida | YC3: Fungicida | YD3: Inseticida | YE3: Fungicida | YF3: Herbicida | YG3: Herbicida | YH3: Fungicida | YI3: Herbicida | YJ3: Inseticida | YK3: Herbicida | YL3: Inseticida | YM3: Inseticida | YN3: Herbicida | YO3: Inseticida | YP3: Inseticida | YQ3: Herbicida | YR3: Fungicida | YS3: Fungicida | YT3: Fungicida | YU3: Herbicida | YV3: Inseticida | YW3: Herbicida | YX3: Inseticida | YY3: Inseticida | YZ3: Inseticida | ZA3: Inseticida | ZB3: Fungicida | ZC3: Fungicida | ZD3: Herbicida | ZE3: Inseticida | ZF3: Herbicida | ZG3: Fungicida | ZH3: Fungicida | ZI3: Inseticida | ZJ3: Herbicida | ZK3: Fungicida | ZL3: Fungicida | ZM3: Inseticida | ZN3: Inseticida | ZO3: Inseticida | ZP3: Herbicida | ZQ3: Fungicida | ZR3: Fungicida | ZS3: Fungicida | ZT3: Inseticida | ZU3: Fungicida | ZV3: Herbicida | ZW3: Fungicida | ZX3: Fungicida | ZY3: Inseticida | ZZ3: Herbicida | AAA3: Herbicida | AAB3: Herbicida | AAC3: Inseticida | AAD3: Herbicida | AAE3: Herbicida | AAF3: Fungicida | AAG3: Fungicida | AAH3: Herbicida | AAI3: Inseticida | AAJ3: Fungicida | AAK3: Inseticida | AAL3: Herbicida | AAM3: Inseticida | AAN3: Fungicida | AAO3: Inseticida | AAP3: Fungicida | AAQ3: Fungicida | AAR3: Herbicida | AAS3: Herbicida | AAT3: Inseticida | AAU3: Herbicida | AAV3: Fungicida | AAW3: Herbicida | AAX3: Fungicida | AAY3: Fungicida | AAZ3: Fungicida | ABA3: Inseticida | ABB3: Fungicida | ABC3: Fungicida | ABD3: Herbicida | ABE3: Fungicida | ABF3: Fungicida | ABG3: Fungicida | ABH3: Herbicida | ABI3: Fungicida | ABJ3: Inseticida | ABK3: Herbicida | ABL3: Fungicida | ABM3: Inseticida | ABN3: Herbicida | ABO3: Fungicida | ABP3: Fungicida | ABQ3: Herbicida | ABR3: Herbicida | ABS3: Fungicida | ABT3: Inseticida | ABU3: Fungicida | ABV3: Herbicida | ABW3: Herbicida | ABX3: Fungicida | ABY3: Fungicida | ABZ3: Fungicida | ACA3: Fungicida | ACB3: Herbicida | ACC3: Inseticida | ACD3: Inseticida | ACE3: Fungicida | ACF3: Inseticida | ACG3: Inseticida | ACH3: Fungicida | ACI3: Fungicida | ACJ3: Fungicida | ACK3: Fungicida | ACL3: Herbicida | ACM3: Herbicida | ACN3: Inseticida | ACO3: Fungicida | ACP3: Herbicida | ACQ3: Fungicida | ACR3: Fungicida | ACS3: Herbicida | ACT3: Herbicida | ACU3: Fungicida | ACV3: Fungicida | ACW3: Herbicida | ACX3: Fungicida | ACY3: Fungicida | ACZ3: Fungicida | ANY3: =COUNTA(AIP3:ANW3) -> 0
A4: Grupo Químico | C4: Ácido Ariloxialcanóico | D4: Triazol | E4: Avermectina | F4: Avermectina | G4: Sulfoniluréia | H4: Sulfoniluréia | I4: Organofosforado | J4: Organofosforado | K4: Organofosforado | L4: Neonicotinóide | M4: Cloracetanilida | N4: Benzotiadiazol | O4: éter difenílico | P4: Éter difenílico | Q4: piretróide | R4: Estrobilurina | S4: Neonicotinoide | T4: Triazolona | U4: Uréia | V4: Triazolona | W4: ácido tetramico | X4: Estrobilurina | Y4: ácido ariloxialcanóico | Z4: Cloracetanilida | AA4: Cloracetanilida | AB4: pirazol carboxamida | AC4: Piretroide | AD4: fosfonato | AE4: Alquilazina | AF4: Sulfoniluréia | AG4: Antranilamida | AH4: Triazol | AI4: Semicarbazone | AJ4: Piretróide | AK4: Pirimidilamina | AL4: Triazina | AM4: Triazina | AN4: triazolinona | AO4: Ácido Ariloxialcanóico | AP4: ácido piridiniloxialcanóico | AQ4: Estrobilurina | AR4: arilformamidina | AS4: Avermectina | AT4: Imidazolinonas | AU4: Dimetilditiocarbamato | AV4: alquilenobis | AW4: Benzoiluréia | AX4: tiadiazinona | AY4: Fenilpiridinilamina | AZ4: estrobilurina | BA4: Triazol | BB4: Acilalaninato | BC4: Benzoiluréia | BD4: oxima ciclohexanodiona | BE4: ácido piridiniloxialcanóico | BF4: ácido piridiniloxialcanóico | BG4: Triazol | BH4: sulfanililcarbamato | BI4: sulfanililcarbamato | BJ4: benzoiluréia | BK4: Triazol | BL4: Triazol | BM4: Triazina | BN4: Triazina | BO4: Triazina | BP4: Triazina | BQ4: Dicarboximida | BR4: Triazol | BS4: Inorgânico | BT4: oxima ciclohexanodiona | BU4: Triazolona | BV4: Neonicotinóide | BW4: Uréia | BX4: Organofosforado | BY4: Oxadiazina | BZ4: Avermectina | CA4: Tetranortriterpenóide | CB4: Tetranortriterpenóide | CC4: sulfoniluréia | CD4: Estrobilurina | CE4: Estrobilurina | CF4: Neonicotinóide | CG4: Benzotiadiazinona | CH4: isotiocianato de metila | CI4: Triazol | CJ4: metilcarbamato de oxima | CK4: Diamida do ácido fitálico | CL4: triazol | CM4: acilalaninato | CN4: Benzimidazóis | CO4: Antranilamida | CP4: Metilcarbamato de benzofuranila | CQ4: Metilcarbamato de benzofuranila | CR4: Benzotiadiazinona | CS4: Valinamida carbamato | CT4: avermectina | CU4: pirazol carboxamida | CV4: Piretróide | CW4: Composto inorgânico | CX4: Piretróide | CY4: Piretróide | CZ4: benzotiazol | DA4: Benzotiadiazol | DB4: ácido pirimidiniloxibenzóico | DC4: Piretróide | DD4: benzoiluréia | DE4: Éter piridiloxipropílico | DF4: éter difenílico | DG4: Bipiridílio | DH4: Piretróide | DI4: Triazolona | DJ4: =DJ5 -> Boscalid | DK4: Anilida | DL4: metilcarbamato de oxima | DM4: Uracila | DN4: alifático halogenado | DO4: triazol | DP4: Piretróide | DQ4: isotiocianato de metila | DR4: tiadiazinona | DS4: Uréia | DT4: organofosforado | DU4: Tricetona | DV4: inorgânico | DW4: neonicotinóide | DX4: ácido piridinocarboxílico | DY4: Anilida | DZ4: Dicarboximida | EA4: Dicarboximida | EB4: Carbamato | EC4: Piretróide | ED4: Metilcarbamato de naftila | EE4: Benzimidazóis | EF4: Benzimidazóis | EG4: nicotinóide | EH4: Benzimidazóis | EI4: metilcarbamato de benzofuranila | EJ4: carboxanilida | EK4: Éter difenílico | EL4: Triazolona | EM4: tiocarbamato | EN4: tiocarbamato | EO4: Benzoiluréia | EP4: antibioótico | EQ4: Organofosforado | ER4: Organofosforado | ES4: Triazol | ET4: Fenamidona | EU4: Oxima ciclohexanodiona | EV4: Benzimidazóis | EW4: Carbonitrilas | EX4: Benzoiluréia | EY4: Dicarboximida | EZ4: Pirazol | FA4: piridina azometina | FB4: Antranilamida | FC4: imidazol | FD4: antranilamida | FE4: sulfoniluréia | FF4: organofosforado | FG4: Neonicotinóide | FH4: Fenilpiridinilamina | FI4: acetamida | FJ4: Piretróide | FK4: Piretróide | FL4: Triazol | FM4: anilinopirimidina | FN4: Triazinamina | FO4: Sulfoniluréia | FP4: Oxima ciclohexanodiona | FQ4: ácido ariloxifenoxipropiônico | FR4: isoxazolidinona | FS4: sulfonanilida triazolopirimidina | FT4: Antranilamida | FU4: análogo de pirazol | FV4: benzoiluréia | FW4: carbamato | FX4: Sulfoniluréia | FY4: Sulfoniluréia | FZ4: Sulfoniluréia | GA4: Carbonitrilas | GB4: Organofosforado | GC4: Neocotinoide | GD4: Sulfonanilida triazolopirimidina | GE4: Uréia | GF4: Estrobilurina | GG4: Piretróide | GH4: Fenilpiridinilamina | GI4: triazol | GJ4: Neonicotinóide | GK4: Imidazolinonas | GL4: Alquilenobis (ditiocarbamato) | GM4: Éter piridiloxipropílico | GN4: organofosforado | GO4: Triazina | GP4: Triazol | GQ4: Neonicotinóide | GR4: Neonicotinoide | GS4: Imidazolinonas | GT4: Composto inorgânico | GU4: Carbonitrilas | GV4: Alquilenobis (ditiocarbamato) | GW4: Alquilenobis (ditiocarbamato) | GX4: Benzoiluréia | GY4: Organofosforado | GZ4: acylacetonitrila | HA4: Piretróide | HB4: Carbonitrilas | HC4: Carbonitrilas | HD4: Carbonitrilas | HE4: Piretróide | HF4: isotiocianato de metila | HG4: Piretróide | HH4: quinona | HI4: Piretróide | HJ4: Antranilamida | HK4: Benzimidazóis | HL4: Benzimidazóis | HM4: Bipiridílio | HN4: feniltiouréia | HO4: Bipiridílio | HP4: Ácido Benzóico | HQ4: Bipiridílio | HR4: Sulfonanilida triazolopirimidina | HS4: Triazol | HT4: Triazol | HU4: Benzoiluréia | HV4: Benzoiluréia | HW4: Benzoiluréia | HX4: Benzoiluréia | HY4: organofosforado | HZ4: morfolina | IA4: organofosforado | IB4: Benzoiluréia | IC4: triazolinona | ID4: Neonicotinóide | IE4: Uréia | IF4: Bipiridílio | IG4: Bipiridílio | IH4: Amônia Quaternária | II4: Uréia | IJ4: Alquilenobis (ditiocarbamato) | IK4: quinona | IL4: Uréia | IM4: Uréia | IN4: Ácido Ariloxialcanóico | IO4: Benzotiadiazinona | IP4: guanidina | IQ4: guanidina | IR4: Éter difenílico | IS4: Cloroacetanilida | IT4: Triazol | IU4: Estrobilurina | IV4: Piretróide | IW4: Inorgânico | IX4: Triazol | IY4: Alquilenobis (ditiocarbamato) | IZ4: Neonicotinoide | JA4: cetoenol | JB4: sulfoniluréia | JC4: Composto inorgânico | JD4: Triazol | JE4: acetamida | JF4: oxazolidinadiona | JG4: Sulfoniluréia | JH4: Triazol | JI4: anilinopirimidina | JJ4: Piretróide | JK4: espinosinas | JL4: espinosinas | JM4: cetoenol | JN4: cetoenol | JO4: Alquilazina | JP4: Piretróide | JQ4: difenil oxazolina | JR4: sulfoniluréia | JS4: éter tiadiazólico | JT4: Organofosforado | JU4: espinosinas | JV4: sulfoxaminas | JW4: Triazina | JX4: Triazina | JY4: ácido quinolinocarboxílico | JZ4: oxazolidinadiona | KA4: Homoalanina substituída | KB4: Piretroide | KC4: Fenamidona | KD4: Organophosphate | KE4: Ácido ariloxifenoxipropiônico | KF4: Pirazol | KG4: pirazol | KH4: Piretróide | KI4: Morfolina | KJ4: Piretróide | KK4: Piretróide | KL4: Homoalanina substituída | KM4: Fenilpirazol | KN4: Triazol | KO4: Sulfoniluréia | KP4: Éter difenílico | KQ4: Estrobilurina | KR4: nicotinóide | KS4: Arilpicolinato | KT4: Ácido ariloxifenoxipropiônico | KU4: Fenilpiridinilamina | KV4: Diamida do ácido fitálico | KW4: fenilpirrol | KX4: Benzoiluréia | KY4: Sulfonanilida triazolopirimidina | KZ4: Ciclohexenodicarboximida | LA4: Ciclohexenodicarboximida | LB4: Ciclohexenodicarboximida | LC4: benzamida | LD4: Benzamida | LE4: Butenolida | LF4: Triazol | LG4: ácido piridiniloxialcanóico | LH4: carboxamida | LI4: Triazol | LJ4: Carboxamida | LK4: Triazol | LL4: Acilalaninato | LM4: Dicarboximida | LN4: Dicarboximida | LO4: Éter difenílico | LP4: Sulfoniluréia | LQ4: Isoxazol | LR4: Uréia | LS4: Antranilamida | LT4: morfolina | LU4: fosfonato | LV4: Composto inorgânico | LW4: organofosforado | LX4: organofosforado | LY4: Triazolintiona | LZ4: Fenilpiridinilamina | MA4: Benzimidazóis | MB4: Carbonitrilas | MC4: Piretróide | MD4: Triazol | ME4: Éter difenílico | MF4: Ácido ariloxifenoxipropiônico | MG4: carbamato | MH4: acilalaninato | MI4: Neonicotinóide | MJ4: Éter difenílico | MK4: piretróide | ML4: Piretróide | MM4: Benzoiluréia | MN4: Arilpicolinato | MO4: Cloroacetanilida | MP4: Composto inorgânico | MQ4: triazina | MR4: Triazina | MS4: Triazina | MT4: sulfoniluréia | MU4: Carbonitrilas | MV4: Glicina Substituída | MW4: Homoalanina substituída | MX4: Glicina Substituída | MY4: Éter difenílico | MZ4: Bipiridílio | NA4: Bipiridílio | NB4: Organofosforado | NC4: Uréia | ND4: sulfoniluréia | NE4: ácido piridinocarboxílico | NF4: sulfoniluréia | NG4: ácido ariloxifenoxipropiônico | NH4: imidazol | NI4: benzoiluréia | NJ4: antranilamida | NK4: pirimidinadiona | NL4: Bipiridílio | NM4: Dinitroanilina | NN4: Triazina | NO4: Uréia | NP4: Piretróide | NQ4: Triazinona | NR4: Triazinona | NS4: Triazinona | NT4: Triazinona | NU4: iazolidinacarboxamida | NV4: Inorgânico | NW4: Organoestânico | NX4: Triazol | NY4: Sulfoniluréia | NZ4: Carbonitrilas | OA4: Imidazol | OB4: Imidazol | OC4: Imidazolinonas | OD4: Imidazolinonas | OE4: Imidazolinonas | OF4: Imidazolinonas | OG4: imidazolinona | OH4: Triazol | OI4: Neonicotinóide | OJ4: Neonicotinóide | OK4: organofosforado | OL4: Triazol | OM4: Benzoiluréia | ON4: carboxamida | OO4: Benzoiluréia | OP4: Fluorakyltriazine | OQ4: Oxadiazina | OR4: carbamato | OS4: Piretróide | OT4: Fenilpirazol | OU4: Diacilhidrazina | OV4: sulfoniluréia | OW4: Sulfoniluréia | OX4: Triazol | OY4: Dicarboximida | OZ4: Carbonitrilas | PA4: phenyloxoethyl thiophene amide, | PB4: Isoxazol | PC4: Triazol | PD4: Piretróide | PE4: Piretróide | PF4: Cloracetanilida | PG4: Composto inorgânico | PH4: Piretróide | PI4: Uréia | PJ4: antibioótico | PK4: Sulfoniluréia | PL4: sulfoniluréia | PM4: phenyloxoethyl thiophene amide, | PN4: Triazolona | PO4: Imidazolinonas | PP4: Organofosforado | PQ4: Uracila | PR4: Composto inorgânico | PS4: Sulfoniluréia | PT4: Cloracetanilida | PU4: Éter difenílico | PV4: Piretróide | PW4: metilcarbamato de oxima | PX4: carbamato | PY4: Uréia | PZ4: Homoalanina substituída | QA4: Uréia | QB4: Uréia | QC4: Organofosforado | QD4: Benzoiluréia | QE4: Tricetona | QF4: Fenilpirazol | QG4: Imidazol | QH4: Triazinona | QI4: Organofosforado | QJ4: Triazol | QK4: Alquilenobis (ditiocarbamato) | QL4: éter mandelamida | QM4: Alquilenobis (ditiocarbamato) | QN4: Fenilpirazol | QO4: metilcarbamato de benzofuranila | QP4: Benzoiluréia | QQ4: Acilalaninato | QR4: fenilpirrol | QS4: Neonicotinóide | QT4: ácido ariloxialcanóico | QU4: triazol | QV4: Piretróide | QW4: Tricetona | QX4: Dicarboximida | QY4: Organoestânico | QZ4: Tricetona | RA4: Tricetona | RB4: semicarbazone | RC4: Semicarbazone | RD4: Acilalaninato | RE4: isotiocianato de metila | RF4: triazol | RG4: metilcarbamato de oxima | RH4: organofosforado | RI4: alquilenobis | RJ4: Cloroacetanilida | RK4: Cloroacetanilida | RL4: metilcarbamato de oxima | RM4: Diacilhidrazina | RN4: Triazinona | RO4: Alquilazina | RP4: Sulfoniluréia | RQ4: Sulfoniluréia | RR4: Triazol | RS4: diacilhidrazina | RT4: carboxamida | RU4: sulfonamida fluoroalifática | RV4: feniluréia | RW4: carboxamida | RX4: organoarsênico | RY4: Éter difenílico | RZ4: Sulfoniluréia | SA4: Triazol | SB4: espinosinas | SC4: Sulfoniluréia | SD4: Sulfoniluréia | SE4: Sulfoniluréia | SF4: Triazol | SG4: Benzoiluréia | SH4: Organofosforado | SI4: Éter difenílico | SJ4: Organofosforado | SK4: Sulfoniluréia | SL4: Neonicotinóide | SM4: Bipiridílio | SN4: cetoenol | SO4: Triazol | SP4: acylacetonitrila | SQ4: sulfito de alquila | SR4: Imidazolinonas | SS4: Imidazolinonas | ST4: Triazol | SU4: triazol | SV4: Triazol | SW4: Carboxamida | SX4: Organofosforado | SY4: Dicarboximida | SZ4: sulfoniluréia | TA4: pirazol | TB4: oxadiazolona | TC4: Piperidinil Tiazol Izoxazolina | TD4: Composto inorgânico | TE4: Éter difenílico | TF4: Sulfonanilida triazolopirimidina | TG4: ácido ariloxifenoxipropiônico | TH4: Sulfoniluréia | TI4: Bipiridílio | TJ4: Homoalanina substituída | TK4: feniluréia | TL4: Dinitroanilina | TM4: Alquilenobis (ditiocarbamato) | TN4: sulfonanilida triazolopirimidina | TO4: Piretróide | TP4: Alquilenobis (ditiocarbamato) | TQ4: Triazol | TR4: ácido piridinocarboxílico | TS4: estrobilurina | TT4: carboxamida | TU4: Ácido ariloxifenoxipropiônico | TV4: piridina azometina | TW4: Estrobilurina | TX4: análogo de pirazol | TY4: Piretróide | TZ4: piridazinona | UA4: anilinopirimidina | UB4: Organofosforado | UC4: Éter piridiloxipropílico | UD4: análogo de ácido pirimidiniloxibenzóico | UE4: Pirazol | UF4: Imidazolinonas | UG4: oxima ciclohexanodiona | UH4: Ácido ariloxifenoxipropiônico | UI4: feniltiouréia | UJ4: alquilenobis | UK4: Neocotinoide | UL4: Triazolona | UM4: Éter difenílico | UN4: Oxima ciclohexanodiona | UO4: Metilcarbamato de benzofuranila | UP4: Triazol | UQ4: Dinitroanilina | UR4: Antranilamida | US4: triazol | UT4: Sulfonanilida triazolopirimidina | UU4: Triazina | UV4: Triazina | UW4: Triazina | UX4: Triazina | UY4: Triazol | UZ4: Triazina | VA4: Estrobilurina | VB4: Estrobilurina | VC4: Triazol | VD4: Éter piridiloxipropílico | VE4: Dicarboximida | VF4: avermectina | VG4: Organofosforado | VH4: oxima ciclohexanodiona | VI4: Pirazol | VJ4: Triazolintiona | VK4: triazina | VL4: Anilida | VM4: sulfito de alquila | VN4: Triazol | VO4: Triazol | VP4: alquilenobis | VQ4: Triazol | VR4: Triazolintiona | VS4: Isoxazol | VT4: Alquilazina | VU4: ácido quinolinocarboxílico | VV4: Ácido ariloxifenoxipropiônico | VW4: ácido ariloxifenoxipropiônico | VX4: Ciclohexenodicarboximida | VY4: Triazolona | VZ4: Ácido Benzóico | WA4: Triazol | WB4: Organofosforado | WC4: Cloroacetanilida | WD4: Ácido ariloxifenoxipropiônico | WE4: Imidazolinonas | WF4: sulfonanilida triazolopirimidina | WG4: isoxazolidinona | WH4: Organofosforado | WI4: Fenilpirazol | WJ4: Bipiridílio | WK4: Amônia Quaternária | WL4: Fenilpirazol | WM4: Ciclohexenodicarboximida | WN4: éter mandelamida | WO4: Dimetilditiocarbamato | WP4: Fenilpirazol | WQ4: Alquilenobis (ditiocarbamato) | WR4: Neonicotinóide | WS4: Éter difenílico | WT4: ácido pirimidiniloxibenzóico | WU4: Sulfoniluréia | WV4: oxadiazolona | WW4: Dicarboximida | WX4: Glicina Substituída | WY4: Glicina Substituída | WZ4: Glicina Substituída | XA4: Dicarboximida | XB4: piretróide | XC4: organofosforado | XD4: Piretróide | XE4: pirimidinadiona | XF4: piridazinona | XG4: Sulfoniluréia | XH4: Triazolona | XI4: Triazol | XJ4: Sulfonanilida triazolopirimidina | XK4: Oxima ciclohexanodiona | XL4: Ácido ariloxifenoxipropiônico | XM4: Dimetilditiocarbamato | XN4: carbamato | XO4: sulfoniluréia | XP4: Triazinona | XQ4: Cloroacetanilida | XR4: oxima ciclohexanodiona | XS4: Metilcarbamato de naftila | XT4: Dicarboximida | XU4: Triazina | XV4: Butenolida | XW4: Triazol | XX4: difenil oxazolina | XY4: Benzoilciclohexanodiona | XZ4: Triazolona | YA4: Neonicotinóide | YB4: Imidazolinonas | YC4: Triazol | YD4: Piretróide | YE4: Triazol | YF4: Sulfonanilida triazolopirimidina | YG4: Uréia | YH4: Anilida | YI4: Triazolona | YJ4: Piretróide | YK4: Anilida | YL4: Fenilpirazol | YM4: Fenilpirazol | YN4: análogo de ácido pirimidiniloxibenzóico | YO4: Piretróide | YP4: Fenilpirazol | YQ4: Sulfoniluréia | YR4: Triazol | YS4: carboxamida | YT4: inorgânico | YU4: Triazolona | YV4: sulfonamida fluoroalifática | YW4: Sulfoniluréia | YX4: sulfoxaminas | YY4: Piretróide | YZ4: Organofosforado | ZA4: Organofosforado | ZB4: Dicarboximida | ZC4: Dicarboximida | ZD4: Ciclohexenodicarboximida | ZE4: Organofosforado | ZF4: Ciclohexenodicarboximida | ZG4: Inorgânico | ZH4: Benzimidazóis | ZI4: organofosforado | ZJ4: Cloracetanilida | ZK4: Triazol | ZL4: Triazol | ZM4: iazolidinacarboxamida | ZN4: Piretróide | ZO4: Piretróide | ZP4: Ácido ariloxifenoxipropiônico | ZQ4: Triazol | ZR4: Triazol | ZS4: Triazol | ZT4: diacilhidrazina | ZU4: Triazol | ZV4: Uréia | ZW4: Benzimidazóis | ZX4: benzimidazol | ZY4: Benzoiluréia | ZZ4: Benzoilciclohexanodiona | AAA4: Triazinona | AAB4: oxima ciclohexanodiona | AAC4: organofosforado | AAD4: Triazina | AAE4: Triazina | AAF4: éter tiadiazólico | AAG4: Triazol | AAH4: ácido piridinocarboxílico | AAI4: Benzoiluréia | AAJ4: benzimidazol | AAK4: neonicotinóide | AAL4: Triazolona | AAM4: Éter piridiloxipropílico | AAN4: Triazol | AAO4: Carbamato | AAP4: Benzimidazóis | AAQ4: Dimetilditiocarbamato | AAR4: Bipiridílio | AAS4: Triazinona | AAT4: Pirazol | AAU4: ácido ariloxifenoxipropiônico | AAV4: Benzimidazóis | AAW4: ácido piridiniloxialcanóico | AAX4: Triazol | AAY4: Valinamida carbamato | AAZ4: Carbonitrilas | ABA4: Piretróide | ABB4: Triazol | ABC4: benzotiazol | ABD4: ácido piridiniloxialcanóico | ABE4: Estrobilurina | ABF4: imidazol | ABG4: Estrobilurina | ABH4: sulfoniluréia | ABI4: imidazol | ABJ4: Benzoiluréia | ABK4: Dinitroanilina | ABL4: Triazol | ABM4: Triazinamina | ABN4: Ácido dioxociclohexanocarboxílico | ABO4: Triazol | ABP4: triazol | ABQ4: Ácido dioxociclohexanocarboxílico | ABR4: Glicina Substituída | ABS4: anilinopirimidina | ABT4: Piretróide | ABU4: Inorgânico | ABV4: Sulfoniluréia | ABW4: Triazinona | ABX4: Estrobilurina | ABY4: Triazol | ABZ4: Benzamida | ACA4: Triazol | ACB4: ácido ariloxifenoxipropiônico | ACC4: Antranilamida | ACD4: Semicarbazone | ACE4: Morfolina | ACF4: Avermectina | ACG4: Organofosforado | ACH4: Triazol | ACI4: Dimetilditiocarbamato | ACJ4: carboxanilida | ACK4: Dimetilditiocarbamato | ACL4: organoarsênico | ACM4: Benzotiadiazinona | ACN4: Benzoiluréia | ACO4: benzamida | ACP4: Pirazol | ACQ4: Estrobilurina | ACR4: Pirimidilamina | ACS4: imidazolinona | ACT4: Sulfoniluréia | ACU4: Carbonitrilas | ACV4: Carbonitrilas | ACW4: Ciclohexenodicarboximida | ACX4: Triazol | ACY4: Piperidinil Tiazol Izoxazolina | ACZ4: benzamida
A5: PRODUTO | C5: 2,4 D | D5: Abacus | E5: Abamectim | F5: Abamectina | G5: Accent | H5: Accurate | I5: Ace | J5: Acefato | K5: Acehero | L5: Acetamiprido | M5: Acetocloro | N5: Acibenzolar-S-metílico | O5: Acifluorfem-sódico | P5: Acillatem | Q5: Acrinatrina | R5: Acronis | S5: Actara | T5: Adengo | U5: Afalon | V5: Affinity | W5: Afidopiropeno | X5: Agria | Y5: Agritone | Z5: Alaclor | AA5: =AA6 -> Alacloro | AB5: Alade | AC5: =AC6 -> Alfa-Cipermetrina | AD5: Aliette | AE5: Alion | AF5: Ally | AG5: Altacor | AH5: Alto 100 | AI5: Alverde | AJ5: Ametista | AK5: Ametoctradina | AL5: Ametrex | AM5: Ametrina | AN5: Amicarbazona | AO5: Aminol 806 | AP5: Aminopiralide | AQ5: Amistar | AR5: Amitraz | AS5: Ampligo | AT5: Amplo | AU5: Anchor | AV5: Antracol | AW5: Antrimo | AX5: Applaud | AY5: Approve | AZ5: Aproach Power | BA5: Aproach Prima | BB5: Apron RFC | BC5: Aptika | BD5: Aramo | BE5: Arbust | BF5: Arreio | BG5: Artea | BH5: Asulam | BI5: Asulox | BJ5: Atabron | BK5: Atento | BL5: Ativum | BM5: Atranex | BN5: Atrasimex | BO5: Atrasimex | BP5: =BP6 -> Atrazina | BQ5: Attic | BR5: AUG | BS5: Auge | BT5: Aura | BU5: Aurora | BV5: Autêntico | BW5: Aval | BX5: Avant | BY5: Avatar | BZ5: Avicta | CA5: Azadiractina | CB5: Azamax | CC5: Azimsulfurom | CD5: Azimut | CE5: =CE6 -> Azoxistrobina | CF5: Bamako | CG5: Basagran | CH5: Basamid | CI5: Baytan | CJ5: Bazuka | CK5: Belt | CL5: Belyan | CM5: Benalaxil | CN5: Bendazol | CO5: Benevia | CP5: Benforce | CQ5: =CQ6 -> Benfuracarb | CR5: =CR6 -> Bentazona | CS5: Bentiavalicarbe isopropílico | CT5: Benzoato de emamectina | CU5: Benzovindiflupir | CV5: =CV6 -> Beta-ciflutrina | CW5: Bicarbonato de potássio | CX5: Bifentrina | CY5: Biflex | CZ5: Bim | DA5: Bion | DB5: Bispirabaque | DC5: Bistar | DD5: Bistrifluron | DE5: Blade | DF5: Blazer | DG5: Blowout | DH5: Bold | DI5: Boral | DJ5: =DJ6 -> Boscalid | DK5: Boscalida | DL5: Brilhante | DM5: Bromacila | DN5: Brometo de metila | DO5: Bromuconazol | DP5: Bulldock | DQ5: Bunema | DR5: Buprofezina | DS5: Butiron | DT5: Cadusafós | DU5: Callisto | DV5: Calpik | DW5: Calypso | DX5: Campestre | DY5: Cantus | DZ5: Captan | EA5: Captana | EB5: Captor | EC5: Capture | ED5: Carbaril | EE5: Carben | EF5: Carbendazim | EG5: Carbine | EH5: Carbomax | EI5: Carbossulfano | EJ5: Carboxina | EK5: Cardeal | EL5: =EL6 -> Carfentrazona-etílica | EM5: Cartape | EN5: Cartarys | EO5: Cascade | EP5: Casugamicina | EQ5: Catcher | ER5: Cefanol | ES5: Celeiro | ET5: Censor | EU5: Centurion | EV5: Cercobin | EW5: Cerconil | EX5: Certero | EY5: Certus | EZ5: Chaser | FA5: Chess | FB5: =FB6 -> Ciantraniliprole | FC5: Ciazofamida | FD5: Ciclaniliprole | FE5: Ciclossulfamurom | FF5: Cierto | FG5: Cigaral | FH5: Cignus | FI5: Cimoxanil | FJ5: Cipermetrina | FK5: Cipertrin | FL5: =FL6 -> Ciproconazol | FM5: ciprodinil | FN5: =FN6 -> Ciromazina | FO5: Classic | FP5: Cletodim | FQ5: Clodinafope-Propargil | FR5: Clomazona | FS5: Cloransulam-metílico | FT5: =FT6 -> Clorantraniliprole | FU5: Clorfenapir | FV5: Clorfuazurom | FW5: Cloridrato de propamocarbe | FX5: Clorim | FY5: =FY6 -> Clorimurom-etílico | FZ5: Clorimuron | GA5: Clorotalonil | GB5: Clorpirifós | GC5: Clotianidina | GD5: Coact | GE5: Combine | GF5: Comet | GG5: Commanche | GH5: Completto | GI5: Condor | GJ5: Connect | GK5: Contain | GL5: Controller | GM5: Cordial | GN5: Counter | GO5: Coyote | GP5: Cronnos | GQ5: Cropstar | GR5: Cruiser | GS5: Cultifix | GT5: Cupravit | GU5: Cuprodil | GV5: Cuprosate Gold | GW5: Cuprozeb | GX5: Curyom | GY5: Curyom | GZ5: Cyflumetofen | HA5: Cyptrin | HB5: Dacobre | HC5: Daconil | HD5: Dacostar | HE5: Danimen | HF5: Dazomete | HG5: Decis | HH5: Delan | HI5: =HI6 -> Deltametrina | HJ5: Dermacor | HK5: Derosal | HL5: Derox | HM5: Dessicash | HN5: Diafenturiom | HO5: =HO6 -> Dibrometo de diquate | HP5: Dicamba | HQ5: =HQ6 -> Dicloreto de Paraquate | HR5: =HR6 -> Diclosulam | HS5: Difcor | HT5: =HT6 -> Difenoconazol | HU5: Diflubenzuron | HV5: Diflucrop | HW5: Diflumax | HX5: Dimax | HY5: Dimetoato | HZ5: Dimetomorfe | IA5: Dimexion | IB5: Dimilim | IC5: Dinamic | ID5: Dinofeturam | IE5: Diox | IF5: Diquash | IG5: Diquat | IH5: Diquate | II5: Direx | IJ5: Dithane | IK5: Ditianona | IL5: Diurex | IM5: Diuron | IN5: DMA | IO5: Doble | IP5: Dodex | IQ5: Dodina | IR5: Drible | IS5: Dual Gold | IT5: Egan | IU5: Elatus | IV5: Eleitto | IW5: Ellect | IX5: Eminent | IY5: Emzeb | IZ5: Engeo | JA5: Envidor | JB5: Envoke | JC5: Enxofre | JD5: Epoxiconazol | JE5: Equation | JF5: Equation | JG5: Equip Plus | JH5: Erradicur | JI5: Erune | JJ5: =JJ6 -> Esfenvalerato | JK5: Espinetoram | JL5: Espinosade | JM5: Espirodiclofeno | JN5: Espiromesifeno | JO5: Esplanade | JP5: =JP6 -> Etofenproxi | JQ5: Etoxazol | JR5: Etoxissulfurom | JS5: Etridiazol | JT5: Evolution | JU5: Exalt | JV5: Expedition | JW5: Extrazin | JX5: Facero | JY5: Facet | JZ5: Famoxadona | KA5: Fascinate | KB5: Fastac | KC5: =KC6 -> Fenamidona | KD5: Fenitrotiona | KE5: =KE6 -> Fenoxaprop-P-ethyl | KF5: Fenpirazamina | KG5: Fenpiroximato | KH5: =KH6 -> Fenpropatrina | KI5: Fenpropimorfe | KJ5: Fentrol | KK5: Fersol | KL5: Finale | KM5: Fipronil | KN5: Flare | KO5: =KO6 -> Flazassulfurom | KP5: Flex | KQ5: Flint | KR5: Flonicamida | KS5: Florpirauxifen-benzil | KT5: Fluazifope-p-butil | KU5: =KU6 -> Fluazinam | KV5: =KV6 -> Flubendiamida | KW5: Fludioxonil | KX5: =KX6 -> Flufenoxurom | KY5: =KY6 -> Flumetsulam | KZ5: =KZ6 -> Flumicloraque-pentílico | LA5: =LA6 -> Flumioxazina | LB5: Flumyzin | LC5: Fluopicolide | LD5: Fluopiram | LE5: =LE6 -> Flupiradifurona | LF5: Fluquinconazol | LG5: Fluroxipir | LH5: Flutolanil | LI5: Flutriafol | LJ5: Fluxapiroxade | LK5: Folicur | LL5: Folio Gold | LM5: Folpan Agricur | LN5: =LN6 -> Folpete | LO5: Fomesafen | LP5: =LP6 -> Foransulfurom | LQ5: Fordor | LR5: Fortaleza | LS5: Fortenza | LT5: Forum | LU5: Fosetil | LV5: Fosfeto de alúminio | LW5: Fosmete | LX5: Fostiazato | LY5: Fox | LZ5: Frowncide | MA5: Fungicarb | MB5: Funginil | MC5: Fury | MD5: Fusão | ME5: Fusiflex | MF5: Fusilade | MG5: Futur | MH5: Galben | MI5: Galil | MJ5: Gallaxy | MK5: Gama-cialotrina | ML5: Gama-Cialotrina | MM5: Game | MN5: Gapper | MO5: Gardomil | MP5: Gastoxin | MQ5: Gesagard | MR5: Gesapax | MS5: Gesaprim | MT5: Gladium | MU5: Glider | MV5: Glifosato | MW5: =MW6 -> Glufosinato de amônio | MX5: Glyphotal | MY5: Goal | MZ5: Gramocil | NA5: Gramoxone | NB5: Graolin | NC5: Graslan | ND5: Gulliver | NE5: Halauxifen-metíl | NF5: Halossulfurom-metílico | NG5: Haloxifope-P-metílico | NH5: Hanami | NI5: Hanaro | NJ5: Hayate | NK5: Heat | NL5: Helmoxone | NM5: Herbadox | NN5: Herbipak | NO5: Herburon | NP5: Hero | NQ5: Hexafort | NR5: Hexanil | NS5: Hexazinona | NT5: Hexazuron | NU5: Hexitiazox | NV5: =NV6 -> Hidróxido de cobre | NW5: =NW6 -> Hidróxido de Fentina | NX5: Horos | NY5: Hussar | NZ5: Ichiban | OA5: Imazacure | OB5: =OB6 -> Imazalil | OC5: =OC6 -> Imazamoxi | OD5: =OD6 -> Imazapique | OE5: =OE6 -> Imazapir | OF5: Imazaquim | OG5: Imazetapir | OH5: =OH6 -> Imibenconazol | OI5: Imidacloprido | OJ5: Imidagold | OK5: Imidam | OL5: Impact | OM5: Impessive | ON5: Impirfluxam | OO5: Imunit | OP5: Indaziflam | OQ5: Indoxacarb | OR5: Infinito | OS5: Insemat | OT5: Instal | OU5: Intrepid | OV5: Invest | OW5: =OW6 -> Iodossulfurom-metílico-sódico | OX5: Ipconazol | OY5: =OY6 -> Iprodiona | OZ5: Isatalonil | PA5: Isofetamida | PB5: =PB6 -> Isoxaflutol | PC5: Juno | PD5: K-Obiol | PE5: K-Othrine | PF5: Kadett | PG5: Kaligreen | PH5: Karate zeon | PI5: Karmex | PJ5: Kasumin | PK5: Katana | PL5: Kelion | PM5: Kenja | PN5: Kicker | PO5: Kifix | PP5: Klorpan | PQ5: Krovar | PR5: Kumulus | PS5: Kyron | PT5: Laço | PU5: Lactofen | PV5: =PV6 -> Lambda-Cialotrina | PW5: Lannate | PX5: Larvin | PY5: Lava | PZ5: Liberty | QA5: Linurex Agricur | QB5: =QB6 -> Linurom | QC5: Lorsban | QD5: =QD6 -> Lufenuron | QE5: Lumica | QF5: Maestro | QG5: Magnate | QH5: Magnus | QI5: Malation | QJ5: Manage | QK5: Mancozeb | QL5: mandipropamida | QM5: Manzate | QN5: Marathon | QO5: Marshal | QP5: Match | QQ5: Maxim | QR5: Maxim XL | QS5: Maxsan | QT5: MCPA | QU5: mefentrifluconazol | QV5: Meothrin | QW5: Meristo | QX5: Merpan | QY5: Mertin | QZ5: Meson | RA5: Mesotriona | RB5: Metaflumizone | RC5: =RC6 -> Metaflumizone | RD5: =RD6 -> Metalaxil-M | RE5: Metam-sódico | RF5: Metconazol | RG5: Methomex | RH5: Metidationa | RI5: Metiram | RJ5: Metolachlor | RK5: =RK6 -> Metolacloro | RL5: Metomil | RM5: =RM6 -> Metoxifenozida | RN5: =RN6 -> Metribuzim | RO5: Metribuzin | RP5: =RP6 -> Metsulfurom-metílico | RQ5: Metsuram | RR5: =RR6 -> Miclobutanil | RS5: Mimic | RT5: Miravis | RU5: Mirex S | RV5: Moceren | RW5: Moncut | RX5: MSMA | RY5: Naja | RZ5: Narval | SA5: Nativo | SB5: Natular | SC5: Nicopec | SD5: Nicosulfuron | SE5: Nippon | SF5: Nomad | SG5: Nomolt | SH5: Nordik | SI5: =SI6 -> Novalurom | SJ5: Nufos | SK5: Nufuron | SL5: Nuprid | SM5: Nuquat | SN5: Oberon | SO5: Odin | SP5: Okay | SQ5: Omite | SR5: Oneshot | SS5: Only | ST5: Opera | SU5: Ópera Ultra | SV5: Orius | SW5: Orkestra | SX5: Orthene | SY5: Orthocide | SZ5: Orthosulfamuron | TA5: Ortus | TB5: Oxadiazona | TC5: Oxatiapiprolina | TD5: Oxicloreto de cobre | TE5: =TE6 -> Oxyfluorfem | TF5: Pacto | TG5: Panther | TH5: Panzer | TI5: Paraquat | TJ5: Patrol | TK5: Pencicurom | TL5: =TL6 -> Pendimetalina | TM5: Penncozeb | TN5: Penoxsulam | TO5: Permetrina | TP5: Persist | TQ5: Photon | TR5: Picloram | TS5: Picoxistrobina | TT5: pidiflumetofen | TU5: Pilot | TV5: Pimetrozina | TW5: =TW6 -> Piraclostrobina | TX5: Pirate | TY5: Pirephos | TZ5: Piridabem | UA5: Pirimetanil | UB5: =UB6 -> Pirimifós-metílico | UC5: =UC6 -> Piriproxifem | UD5: Piritiobaque-sódico | UE5: Piroxassulfona | UF5: Plateau | UG5: Poast | UH5: Podium | UI5: Polo | UJ5: Polyram | UK5: Poncho | UL5: Ponteiro | UM5: Ponto | UN5: Poquer | UO5: Pottente | UP5: Praise | UQ5: Premerlin | UR5: Premio | US5: Premis | UT5: Prevail | UU5: Primagram Gold | UV5: Primaiz Gold | UW5: Primatop | UX5: Primestra Gold | UY5: Primo | UZ5: Primóleo | VA5: Priori | VB5: Priori Xtra | VC5: Prisma | VD5: Privilege | VE5: =VE6 -> Procimidona | VF5: Proclaim | VG5: Profenofós | VH5: Profoxidim | VI5: Prolectus | VJ5: Proline | VK5: Prometrina | VL5: Propanil | VM5: Propargito | VN5: Propiconazol | VO5: Propiconazole | VP5: Propinebe | VQ5: Prospect | VR5: =VR6 -> Protioconazol | VS5: Provence | VT5: Provence Total | VU5: Quincloraque | VV5: =VV6 -> Quizalofop-P-ethyl | VW5: Quizalofope-P-tefurílico | VX5: Radiant | VY5: Rage | VZ5: Rainvel | WA5: Rancona | WB5: Rapel | WC5: Raprus | WD5: Rapsode | WE5: Raptor | WF5: Raster | WG5: Reator | WH5: Record | WI5: Regent | WJ5: Reglone | WK5: Reglone | WL5: Rephon | WM5: Resource | WN5: Revus | WO5: Rhodiauram | WP5: Rhyme | WQ5: Ridomil Gold | WR5: Rigol | WS5: Rimon | WT5: Riper | WU5: Rometsol | WV5: Ronstar | WW5: Rotaxil | WX5: Roundup | WY5: Roundup Ready | WZ5: Roundup Transorb | XA5: Rovral | XB5: Rufast | XC5: Rugby | XD5: Safety | XE5: Saflufenacil | XF5: Sanmite | XG5: Sanson | XH5: Savana | XI5: Score | XJ5: Scorpion | XK5: Select | XL5: Selefen | XM5: Sementiran | XN5: Semevin | XO5: Sempra | XP5: Sencor | XQ5: Sequence | XR5: Setoxidim | XS5: Sevin | XT5: Sialex | XU5: Simazina | XV5: Sivanto | XW5: Skip | XX5: Smite | XY5: Soberan | XZ5: Solara | YA5: Sombrero | YB5: Soyaquim | YC5: Spectro | YD5: Sperto | YE5: Sphere Max | YF5: Spider | YG5: Spike | YH5: Spot | YI5: Spotlight | YJ5: Stallion | YK5: Stam | YL5: Standak | YM5: Standak Top | YN5: Staple | YO5: Starion | YP5: Start | YQ5: Stoy | YR5: Stratego | YS5: Sugoy | YT5: Sulfato de cobre | YU5: =YU6 -> Sulfentrazona | YV5: Sulfluramida | YW5: Sulfometuron metílico | YX5: Sulfoxaflor | YY5: Sumidan | YZ5: Sumifog | ZA5: Sumigran | ZB5: Sumiguard | ZC5: Sumilex | ZD5: Sumisoya | ZE5: Sumithion | ZF5: Sumyzin | ZG5: Supera | ZH5: Support | ZI5: Suprathion | ZJ5: Surpass | ZK5: Systemic | ZL5: Systhane | ZM5: Talento | ZN5: Talisman | ZO5: Talstar | ZP5: Targa | ZQ5: Tasker | ZR5: Tebuco | ZS5: Tebuconazol | ZT5: Tebufenozida | ZU5: Tebufort | ZV5: =ZV6 -> Tebutiurom | ZW5: Tebuzim | ZX5: Tecto | ZY5: =ZY6 -> Teflubenzurom | ZZ5: =ZZ6 -> Tembotriona | AAA5: Tenace | AAB5: Tepraloxidim | AAC5: Terbufós | AAD5: Terbumax | AAE5: Terbutilazina | AAF5: Terrazole | AAG5: =AAG6 -> Tetraconazol | AAH5: Texaro | AAI5: Thorn | AAJ5: Tiabendazol | AAK5: Tiacloprido | AAL5: Tiencarbazona | AAM5: Tiger | AAN5: Tilt | AAO5: Tiodicarbe | AAP5: =AAP6 -> Tiofanato-metílico | AAQ5: =AAQ6 -> Tiram | AAR5: Tocha | AAS5: Token | AAT5: Tolfenpirade | AAU5: Topic | AAV5: Topsin | AAW5: Tordon Ultra | AAX5: Tornado | AAY5: Totalit | AAZ5: Totalit | ABA5: Trebon | ABB5: =ABB6 -> Triadimenol | ABC5: Triciclazol | ABD5: Tricopir-butolítico | ABE5: Tridium | ABF5: Trifimine | ABG5: =ABG6 -> Trifloxistrobina | ABH5: Trifloxisulfuron | ABI5: Triflumizol | ABJ5: =ABJ6 -> Triflumurom | ABK5: Trifluralina | ABL5: Trifoli | ABM5: Trigard | ABN5: Trinexapaque-etílico | ABO5: Trinity | ABP5: Triticonazol | ABQ5: Trix | ABR5: Trop | ABS5: Truzon | ABT5: Turbo | ABU5: Tutor | ABV5: Twister | ABW5: Unimark | ABX5: Unizeb | ABY5: UPL | ABZ5: Verango Prime | ACA5: Verdadero | ACB5: Verdict-max | ACC5: Verimark | ACD5: Verismo | ACE5: Versatilis | ACF5: Vertimec | ACG5: Vexter | ACH5: Vincit | ACI5: Vitavax | ACJ5: Vitavax Thiram | ACK5: Vitavax-Thiram | ACL5: Volcane | ACM5: Volt | ACN5: Wasp | ACO5: Xavante | ACP5: Yamato | ACQ5: Yoda | ACR5: Zampo | ACS5: Zaphir | ACT5: Zartan | ACU5: Zetanil | ACV5: Zetaram | ACW5: Zethamaxx | ACX5: Zoom | ACY5: Zorvec | ACZ5: Zoxamida
A6: 14.5 - Ingrediente Ativo do produto | C6: 2,4 D | D6: Epoxiconazol | E6: Abamectim | F6: Abamectim | G6: Nicossulfurom | H6: Metsulfurom-metílico | I6: Acefato | J6: Acefato | K6: Acefato | L6: Acetamiprido | M6: Acetocloro | N6: Acibenzolar-S-metílico | O6: Acifluorfem-sódico | P6: lactofem | Q6: Acrinatrina | R6: Piraclostrobina | S6: Tiametoxam | T6: Tiencarbazona | U6: Linurom | V6: Carfentrazona-etílica | W6: Afidopiropeno | X6: Azoxistrobina | Y6: MCPA | Z6: Alacloro | AA6: Alacloro | AB6: Benzovindiflupir | AC6: Alfa-Cipermetrina | AD6: Fosetil | AE6: Indaziflam | AF6: Sulfometuron metílico | AG6: Clorantraniliprole | AH6: Ciproconazol | AI6: Metaflumizone | AJ6: Cipermetrina | AK6: Ametoctradina | AL6: Ametrina | AM6: Ametrina | AN6: Amicarbazona | AO6: 2,4 D | AP6: Aminopiralide | AQ6: Azoxistrobina | AR6: Amitraz | AS6: Abamectim | AT6: Imazamoxi | AU6: Tiram | AV6: Propinebe | AW6: Teflubenzurom | AX6: Buprofezina | AY6: Fluazinam | AZ6: Picoxistrobina | BA6: Ciproconazol | BB6: Metalaxil-M | BC6: Lufenuron | BD6: Tepraloxidim | BE6: Tricopir-butolítico | BF6: Fluroxipir | BG6: Ciproconazol | BH6: Asulam | BI6: Asulam | BJ6: Clorfuazurom | BK6: Fluquinconazol | BL6: Epoxiconazol | BM6: Atrazina | BN6: Atrazina | BO6: Simazina | BP6: Atrazina | BQ6: Iprodiona | BR6: Propiconazol | BS6: Hidróxido de cobre | BT6: Profoxidim | BU6: Carfentrazona-etílica | BV6: Acetamiprido | BW6: Tebutiurom | BX6: Acefato | BY6: Indoxacarb | BZ6: Abamectim | CA6: Azadiractina | CB6: Azadiractina | CC6: Azimsulfurom | CD6: Azoxistrobina | CE6: Azoxistrobina | CF6: Imidacloprido | CG6: Bentazona | CH6: Dazomete | CI6: Triadimenol | CJ6: Metomil | CK6: Flubendiamida | CL6: mefentrifluconazol | CM6: Benalaxil | CN6: Carbendazim | CO6: Ciantraniliprole | CP6: Benfuracarb | CQ6: Benfuracarb | CR6: Bentazona | CS6: Bentiavalicarbe isopropílico | CT6: Benzoato de emamectina | CU6: Benzovindiflupir | CV6: Beta-ciflutrina | CW6: Bicarbonato de potássio | CX6: Bifentrina | CY6: Bifentrina | CZ6: Triciclazol | DA6: Acibenzolar-S-metílico | DB6: Bispirabaque | DC6: Bifentrina | DD6: Bistrifluron | DE6: Piriproxifem | DF6: Acifluorfem-sódico | DG6: Dibrometo de diquate | DH6: Fenpropatrina | DI6: Sulfentrazona | DJ6: Boscalid | DK6: Boscalid | DL6: Metomil | DM6: Bromacila | DN6: Brometo de metila | DO6: Bromuconazol | DP6: Beta-ciflutrina | DQ6: Metam-sódico | DR6: Buprofezina | DS6: Tebutiurom | DT6: Cadusafós | DU6: Mesotriona | DV6: Sulfato de cobre | DW6: Tiacloprido | DX6: Picloram | DY6: Boscalid | DZ6: Captana | EA6: Captana | EB6: Tiodicarbe | EC6: Bifentrina | ED6: Carbaril | EE6: Carbendazim | EF6: Carbendazim | EG6: Flonicamida | EH6: Carbendazim | EI6: Carbossulfano | EJ6: Carboxina | EK6: Fomesafem | EL6: Carfentrazona-etílica | EM6: Cartape | EN6: Cartape | EO6: Flufenoxurom | EP6: Casugamicina | EQ6: Clorpirifós | ER6: Acefato | ES6: Flutriafol | ET6: Fenamidona | EU6: Cletodim | EV6: Tiofanato-metílico | EW6: Clorotalonil | EX6: Triflumurom | EY6: Iprodiona | EZ6: Tolfenpirade | FA6: Pimetrozina | FB6: Ciantraniliprole | FC6: Ciazofamida | FD6: Ciclaniliprole | FE6: Ciclossulfamurom | FF6: Fostiazato | FG6: Imidacloprido | FH6: Fluazinam | FI6: Cimoxanil | FJ6: Cipermetrina | FK6: Cipermetrina | FL6: Ciproconazol | FM6: ciprodinil | FN6: Ciromazina | FO6: Clorimurom-etílico | FP6: Cletodim | FQ6: Clodinafope-Propargil | FR6: Clomazona | FS6: Cloransulam-metílico | FT6: Clorantraniliprole | FU6: Clorfenapir | FV6: Clorfuazurom | FW6: Cloridrato de propamocarbe | FX6: Clorimurom-etílico | FY6: Clorimurom-etílico | FZ6: Clorimurom-etílico | GA6: Clorotalonil | GB6: Clorpirifós | GC6: Clotianidina | GD6: Diclosulam | GE6: Tebutiurom | GF6: Piraclostrobina | GG6: Cipermetrina | GH6: Fluazinam | GI6: Bromuconazol | GJ6: Imidacloprido | GK6: Imazapir | GL6: Mancozebe | GM6: Piriproxifem | GN6: Terbufós | GO6: Atrazina | GP6: Tebuconazol | GQ6: Imidacloprido | GR6: Tiametoxam | GS6: Imazapir | GT6: Oxicloreto de cobre | GU6: Clorotalonil | GV6: Mancozebe | GW6: Mancozebe | GX6: Lufenuron | GY6: Profenofós | GZ6: Cyflumetofen | HA6: Cipermetrina | HB6: Clorotalonil | HC6: Clorotalonil | HD6: Clorotalonil | HE6: Fenpropatrina | HF6: Dazomete | HG6: Deltametrina | HH6: Ditianona | HI6: Deltametrina | HJ6: Clorantraniliprole | HK6: Carbendazim | HL6: Carbendazim | HM6: Dibrometo de diquate | HN6: Diafenturiom | HO6: Dibrometo de diquate | HP6: Dicamba | HQ6: Dicloreto de Paraquate | HR6: Diclosulam | HS6: Difenoconazol | HT6: Difenoconazol | HU6: Diflubenzurom | HV6: Diflubenzurom | HW6: Diflubenzurom | HX6: Diflubenzurom | HY6: Dimetoato | HZ6: Dimetomorfe | IA6: Dimetoato | IB6: Diflubenzurom | IC6: Amicarbazona | ID6: Dinofeturam | IE6: Diurom | IF6: Dibrometo de diquate | IG6: Dibrometo de diquate | IH6: Diquate | II6: Diurom | IJ6: Mancozebe | IK6: Ditianona | IL6: Diurom | IM6: Diurom | IN6: 2,4 D | IO6: Bentazona | IP6: Dodina | IQ6: Dodina | IR6: Lactofem | IS6: Metolacloro | IT6: Tebuconazol | IU6: Azoxistrobina | IV6: Etofenproxi | IW6: Hidróxido de cobre | IX6: Tetraconazol | IY6: Mancozebe | IZ6: Tiametoxam | JA6: Espirodiclofeno | JB6: Trifloxisulfuron | JC6: Enxofre | JD6: Epoxiconazol | JE6: Cimoxanil | JF6: Famoxadona | JG6: Foransulfurom | JH6: Tebuconazol | JI6: Pirimetanil | JJ6: Esfenvalerato | JK6: Espinetoram | JL6: Espinosade | JM6: Espirodiclofeno | JN6: Espiromesifeno | JO6: Indaziflam | JP6: Etofenproxi | JQ6: Etoxazol | JR6: Etoxissulfurom | JS6: Etridiazol | JT6: Acefato | JU6: Espinetoram | JV6: Sulfoxaflor | JW6: Atrazina | JX6: Atrazina | JY6: Quincloraque | JZ6: Famoxadona | KA6: Glufosinato de amônio | KB6: Alfa-Cipermetrina | KC6: Fenamidona | KD6: Fenitrotiona | KE6: Fenoxaprop-P-ethyl | KF6: Fenpirazamina | KG6: Fenpiroximato | KH6: Fenpropatrina | KI6: Fenpropimorfe | KJ6: Gama-Cialotrina | KK6: Permetrina | KL6: Glufosinato de amônio | KM6: Fipronil | KN6: Difenoconazol | KO6: Flazassulfurom | KP6: Fomesafem | KQ6: Trifloxistrobina | KR6: Flonicamida | KS6: Florpirauxifen-benzil | KT6: Fluazifope-p-butil | KU6: Fluazinam | KV6: Flubendiamida | KW6: Fludioxonil | KX6: Flufenoxurom | KY6: Flumetsulam | KZ6: Flumicloraque-pentílico | LA6: Flumioxazina | LB6: Flumioxazina | LC6: Fluopicolide | LD6: Fluopiram | LE6: Flupiradifurona | LF6: Fluquinconazol | LG6: Fluroxipir | LH6: Flutolanil | LI6: Flutriafol | LJ6: Fluxapiroxade | LK6: Tebucozanol | LL6: Metalaxil-M | LM6: Folpete | LN6: Folpete | LO6: Fomesafem | LP6: Foransulfurom | LQ6: Isoxaflutol | LR6: Tebutiurom | LS6: Ciantraniliprole | LT6: Dimetomorfe | LU6: Fosetil | LV6: Fosfeto de alúminio | LW6: Fosmete | LX6: Fostiazato | LY6: Protioconazol | LZ6: Fluazinam | MA6: Carbendazim | MB6: Clorotalonil | MC6: Cipermetrina | MD6: Tebuconazol | ME6: Fomesafem | MF6: Fluazifope-p-butil | MG6: Tiodicarbe | MH6: Benalaxil | MI6: Imidacloprido | MJ6: Novalurom | MK6: Gama-cialotrina | ML6: Gama-Cialotrina | MM6: Lufenuron | MN6: Florpirauxifen-benzil | MO6: Metolacloro | MP6: Fosfeto de alúminio | MQ6: Prometrina | MR6: Ametrina | MS6: Atrazina | MT6: Etoxissulfurom | MU6: Clorotalonil | MV6: glifosato | MW6: Glufosinato de amônio | MX6: glifosato | MY6: Oxyfluorfem | MZ6: Dicloreto de Paraquate | NA6: Dicloreto de Paraquate | NB6: Pirimifós-metílico | NC6: Tebutiurom | ND6: Azimsulfurom | NE6: Halauxifen-metíl | NF6: Halossulfurom-metílico | NG6: Haloxifope-P-metílico | NH6: Ciazofamida | NI6: Bistrifluron | NJ6: Ciclaniliprole | NK6: Saflufenacil | NL6: Dicloreto de Paraquate | NM6: Pendimetalina | NN6: Ametrina | NO6: Diurom | NP6: Cipermetrina | NQ6: Hexazinona | NR6: Hexazinona | NS6: Hexazinona | NT6: Hexazinona | NU6: Hexitiazox | NV6: Hidróxido de cobre | NW6: Hidróxido de Fentina | NX6: Tebuconazol | NY6: Iodossulfurom-metílico-sódico | NZ6: Clorotalonil | OA6: Imazalil | OB6: Imazalil | OC6: Imazamoxi | OD6: Imazapique | OE6: Imazapir | OF6: Imazaquim | OG6: Imazetapir | OH6: Imibenconazol | OI6: Imidacloprido | OJ6: Imidacloprido | OK6: Fosmete | OL6: Flutriafol | OM6: Diflubenzurom | ON6: Impirfluxam | OO6: Teflubenzurom | OP6: Indaziflam | OQ6: Indoxacarb | OR6: Cloridrato de propamocarbe | OS6: Bifentrina | OT6: Fipronil | OU6: Metoxifenozida | OV6: Ciclossulfamurom | OW6: Iodossulfurom-metílico-sódico | OX6: Ipconazol | OY6: Iprodiona | OZ6: Clorotalonil | PA6: Isofetamida | PB6: Isoxaflutol | PC6: Propiconazol | PD6: Deltametrina | PE6: Deltametrina | PF6: Acetocloro | PG6: Bicarbonato de potássio | PH6: Lambda-Cialotrina | PI6: Diurom | PJ6: Casugamicina | PK6: Flazassulfurom | PL6: Orthosulfamuron | PM6: Isofetamida | PN6: Sulfentrazona | PO6: Imazapique | PP6: Clorpirifós | PQ6: Bromacila | PR6: Enxofre | PS6: Nicossulfurom | PT6: Alacloro | PU6: Lactofem | PV6: Lambda-Cialotrina | PW6: Metomil | PX6: Tiodicarbe | PY6: Tebutiurom | PZ6: Glufosinato de amônio | QA6: Linurom | QB6: Linurom | QC6: Clorpirifós | QD6: Lufenuron | QE6: Mesotriona | QF6: Fipronil | QG6: Imazalil | QH6: Hexazinona | QI6: Malation | QJ6: Imibenconazol | QK6: Mancozebe | QL6: mandipropamida | QM6: Mancozebe | QN6: Fipronil | QO6: Carbossulfano | QP6: Lufenuron | QQ6: Metalaxil-M | QR6: Fludioxonil | QS6: Dinofeturam | QT6: MCPA | QU6: mefentrifluconazol | QV6: Fenpropatrina | QW6: Mesotriona | QX6: Captana | QY6: Hidróxido de Fentina | QZ6: Mesotriona | RA6: Mesotriona | RB6: Metaflumizone | RC6: Metaflumizone | RD6: Metalaxil-M | RE6: Metam-sódico | RF6: Metconazol | RG6: Metomil | RH6: Metidationa | RI6: Metiram | RJ6: Metolacloro | RK6: Metolacloro | RL6: Metomil | RM6: Metoxifenozida | RN6: Metribuzim | RO6: Indaziflam | RP6: Metsulfurom-metílico | RQ6: Metsulfurom-metílico | RR6: Miclobutanil | RS6: Tebufenozida | RT6: pidiflumetofen | RU6: Sulfluramida | RV6: Pencicurom | RW6: Flutolanil | RX6: MSMA | RY6: lactofem | RZ6: Nicossulfurom | SA6: Tebuconazol | SB6: Espinosade | SC6: Nicossulfurom | SD6: Nicossulfurom | SE6: Nicossulfurom | SF6: Propiconazol | SG6: Teflubenzurom | SH6: Malation | SI6: Novalurom | SJ6: Clorpirifós | SK6: Metsulfurom-metílico | SL6: Imidacloprido | SM6: Dicloreto de Paraquate | SN6: Espiromesifeno | SO6: Tebuconazol | SP6: Cyflumetofen | SQ6: Propargito | SR6: Imazaquim | SS6: Imazapique | ST6: Epoxiconazol | SU6: Metconazol | SV6: Tebuconazol | SW6: Fluxapiroxade | SX6: Acefato | SY6: Captana | SZ6: Orthosulfamuron | TA6: Fenpiroximato | TB6: Oxadiazona | TC6: Oxatiapiprolina | TD6: Oxicloreto de cobre | TE6: Oxyfluorfem | TF6: Cloransulam-metílico | TG6: Quizalofope-P-tefurílico | TH6: Clorimurom-etílico | TI6: Dicloreto de Paraquate | TJ6: Glufosinato de amônio | TK6: Pencicurom | TL6: Pendimetalina | TM6: Mancozebe | TN6: Penoxsulam | TO6: Permetrina | TP6: Mancozebe | TQ6: Triadimenol | TR6: Picloram | TS6: Picoxistrobina | TT6: pidiflumetofen | TU6: Fluazifope-p-butil | TV6: Pimetrozina | TW6: Piraclostrobina | TX6: Clorfenapir | TY6: Esfenvalerato | TZ6: Piridabem | UA6: Pirimetanil | UB6: Pirimifós-metílico | UC6: Piriproxifem | UD6: Piritiobaque-sódico | UE6: Piroxassulfona | UF6: Imazapique | UG6: Setoxidim | UH6: Fenoxaprop-P-ethyl | UI6: Diafenturiom | UJ6: Metiram | UK6: Clotianidina | UL6: Sulfentrazona | UM6: Novalurom | UN6: Cletodim | UO6: Benfuracarb | UP6: Epoxiconazol | UQ6: Trifluralina | UR6: Clorantraniliprole | US6: Triticonazol | UT6: Flumetsulam | UU6: Atrazina | UV6: Atrazina | UW6: Atrazina | UX6: Atrazina | UY6: Ciproconazol | UZ6: Atrazina | VA6: Azoxistrobina | VB6: Azoxistrobina | VC6: Difenoconazol | VD6: Piriproxifem | VE6: Procimidona | VF6: Benzoato de emamectina | VG6: Profenofós | VH6: Profoxidim | VI6: Fenpirazamina | VJ6: Protioconazol | VK6: Prometrina | VL6: Propanil | VM6: Propargito | VN6: Propiconazol | VO6: Propiconazol | VP6: Propinebe | VQ6: Epoxiconazol | VR6: Protioconazol | VS6: Isoxaflutol | VT6: Indaziflam | VU6: Quincloraque | VV6: Quizalofop-P-ethyl | VW6: Quizalofope-P-tefurílico | VX6: Flumicloraque-pentílico | VY6: Carfentrazona-etílica | VZ6: Dicamba | WA6: Ipconazol | WB6: Acefato | WC6: Metolacloro | WD6: Fenoxaprop-P-ethyl | WE6: Imazamoxi | WF6: Penoxsulam | WG6: Clomazona | WH6: Clorpirifós | WI6: Fipronil | WJ6: Dibrometo de diquate | WK6: Diquate | WL6: Fipronil | WM6: Flumicloraque-pentílico | WN6: mandipropamida | WO6: Tiram | WP6: Fipronil | WQ6: Mancozebe | WR6: Imidacloprido | WS6: Novalurom | WT6: Bispirabaque | WU6: Metsulfurom-metílico | WV6: Oxadiazona | WW6: Procimidona | WX6: Glifosato - Sal de Isopropilamina | WY6: glifosato | WZ6: glifosato | XA6: Iprodiona | XB6: Acrinatrina | XC6: Cadusafós | XD6: Etofenproxi | XE6: Saflufenacil | XF6: Piridabem | XG6: Nicossulfurom | XH6: Carfentrazona-etílica | XI6: Difenoconazol | XJ6: Flumetsulam | XK6: Cletodim | XL6: Fenoxaprop-P-ethyl | XM6: Tiram | XN6: Tiodicarbe | XO6: Halossulfurom-metílico | XP6: Metribuzim | XQ6: Metolacloro | XR6: Setoxidim | XS6: Carbaril | XT6: Procimidona | XU6: Simazina | XV6: Flupiradifurona | XW6: Flutriafol | XX6: Etoxazol | XY6: Tembotriona | XZ6: Sulfentrazona | YA6: Imidacloprido | YB6: Imazaquim | YC6: Difenoconazol | YD6: Bifentrina | YE6: Ciproconazol | YF6: Diclosulam | YG6: Tebutiurom | YH6: Boscalid | YI6: Carfentrazona-etílica | YJ6: Gama-Cialotrina | YK6: Propanil | YL6: Fipronil | YM6: Fipronil | YN6: Piritiobaque-sódico | YO6: Bifentrina | YP6: Fipronil | YQ6: Nicossulfurom | YR6: Propiconazol | YS6: Impirfluxam | YT6: Sulfato de cobre | YU6: Sulfentrazona | YV6: Sulfluramida | YW6: Sulfometuron metílico | YX6: Sulfoxaflor | YY6: Esfenvalerato | YZ6: Fenitrotiona | ZA6: Fenitrotiona | ZB6: Procimidona | ZC6: Procimidona | ZD6: Flumioxazina | ZE6: Fenitrotiona | ZF6: Flumioxazina | ZG6: Hidróxido de cobre | ZH6: Tiofanato-metílico | ZI6: Metidationa | ZJ6: Acetocloro | ZK6: Tebuconazol | ZL6: Miclobutanil | ZM6: Hexitiazox | ZN6: Bifentrina | ZO6: Bifentrina | ZP6: Quizalofop-P-ethyl | ZQ6: Flutriafol | ZR6: Tebuconazol | ZS6: Tebuconazol | ZT6: Tebufenozida | ZU6: Tebuconazol | ZV6: Tebutiurom | ZW6: Carbendazim | ZX6: Tiabendazol | ZY6: Teflubenzurom | ZZ6: Tembotriona | AAA6: Metribuzim | AAB6: Tepraloxidim | AAC6: Terbufós | AAD6: Terbutilazina | AAE6: Terbutilazina | AAF6: Etridiazol | AAG6: Tetraconazol | AAH6: Halauxifen-metíl | AAI6: Triflumurom | AAJ6: Tiabendazol | AAK6: Tiacloprido | AAL6: Tiencarbazona | AAM6: Piriproxifem | AAN6: Propiconazol | AAO6: Tiodicarbe | AAP6: Tiofanato-metílico | AAQ6: Tiram | AAR6: Dicloreto de Paraquate | AAS6: Hexazinona | AAT6: Tolfenpirade | AAU6: Clodinafope-Propargil | AAV6: Tiofanato-metílico | AAW6: Aminopiralide | AAX6: Flutriafol | AAY6: Bentiavalicarbe isopropílico | AAZ6: Clorotalonil | ABA6: Etofenproxi | ABB6: Triadimenol | ABC6: Triciclazol | ABD6: Tricopir-butolítico | ABE6: Azoxistrobina | ABF6: Triflumizol | ABG6: Trifloxistrobina | ABH6: Trifloxisulfuron | ABI6: Triflumizol | ABJ6: Triflumurom | ABK6: Trifluralina | ABL6: Flutriafol | ABM6: Ciromazina | ABN6: Trinexapaque-etílico | ABO6: Flutriafol | ABP6: Triticonazol | ABQ6: Trinexapaque-etílico | ABR6: glifosato | ABS6: ciprodinil | ABT6: Beta-ciflutrina | ABU6: Hidróxido de cobre | ABV6: Clorimurom-etílico | ABW6: Metribuzim | ABX6: Azoxistrobina | ABY6: Ciproconazol | ABZ6: Fluopiram | ACA6: Ciproconazol | ACB6: Haloxifope-P-metílico | ACC6: Ciantraniliprole | ACD6: Metaflumizone | ACE6: Fenpropimorfe | ACF6: Abamectim | ACG6: Clorpirifós | ACH6: Flutriafol | ACI6: Tiram | ACJ6: Carboxina | ACK6: Tiram | ACL6: MSMA | ACM6: Bentazona | ACN6: Triflumurom | ACO6: Fluopicolide | ACP6: Piroxassulfona | ACQ6: Azoxistrobina | ACR6: Ametoctradina | ACS6: Imazetapir | ACT6: Metsulfurom-metílico | ACU6: Clorotalonil | ACV6: Clorotalonil | ACW6: Flumioxazina | ACX6: Flutriafol | ACY6: Oxatiapiprolina | ACZ6: Zoxamida
A7: 14.6 - Toxicidade para peixes - 96h LC50 (mg l-1) | C7: 63.4 | D7: 3.14 | E7: 0.0036 | F7: 0.0036 | G7: 65.7 | H7: 150 | I7: 0.63 | J7: 0.63 | K7: 0.63 | L7: 100 | M7: 0.36 | O7: 17 | P7: 0.1 | Q7: 0.0061 | R7: 0.006 | S7: 125 | T7: 104 | U7: 3.15 | V7: 1.6 | W7: 18.3 | X7: 0.47 | Y7: 100 | Z7: 1.8 | AA7: 1.8 | AB7: 0.0035 | AC7: 0.0018 | AD7: 122 | AE7: 1 | AF7: 12.5 | AG7: 12 | AH7: 19 | AI7: 0.228 | AJ7: 0.0028 | AK7: 0.065 | AL7: 5 | AM7: 5 | AN7: 120 | AO7: 63.4 | AP7: 100 | AQ7: 0.47 | AR7: 0.74 | AS7: 0.0036 | AT7: 122 | AU7: 0,171 | AV7: 0.33 | AW7: 0.0065 | AX7: 0.33 | AY7: 0.055 | AZ7: 0.075 | BA7: 19 | BB7: 100 | BC7: 29 | BD7: 82.5 | BE7: 1.3 | BF7: 14.3 | BG7: 19 | BH7: 91.3 | BI7: 91.3 | BJ7: 300 | BK7: 1.9 | BL7: 3.14 | BM7: 4.5 | BN7: 4.5 | BO7: 90 | BP7: 4.5 | BQ7: 36.2 | BR7: 2.6 | BS7: 0,017 | BT7: 15 | BU7: 1.6 | BV7: 100 | BW7: 87 | BX7: 0.63 | BY7: 0.17 | BZ7: 0.0036 | CC7: 154 | CD7: 0.47 | CE7: 0.47 | CF7: 211 | CG7: 100 | CH7: 0.3 | CI7: 21.3 | CJ7: 0.63 | CK7: 0.06 | CL7: 0.532 | CM7: 3.75 | CN7: 0.19 | CO7: 12.6 | CP7: 0,038 | CQ7: 0,038 | CR7: 100 | CS7: 10 | CU7: 0.0035 | CV7: 6.8e-05 | CW7: 1200 | CX7: 0.00026 | CY7: 0.00026 | CZ7: 7.3 | DB7: 95 | DC7: 0.00026 | DD7: 0.5 | DE7: 0.27 | DF7: 17 | DG7: 67 | DH7: 0.0023 | DI7: 93.8 | DJ7: 2.7 | DK7: 2.7 | DL7: 0.63 | DM7: 36 | DO7: 1.7 | DP7: 6.8e-05 | DQ7: 0.175 | DR7: 0.33 | DS7: 87 | DT7: 0.13 | DU7: 120 | DV7: 13.2 | DW7: 90.1 | DX7: 8.8 | DY7: 2.7 | DZ7: 0.186 | EA7: 0.186 | EB7: 1.4 | EC7: 0.00026 | ED7: 2.6 | EE7: 0.19 | EF7: 0.19 | EG7: 100 | EH7: 0.19 | EI7: 0.015 | EJ7: 2.3 | EK7: 170 | EL7: 1.6 | EM7: 1.6 | EN7: 1.6 | EO7: 0.0049 | EQ7: 0.0013 | ER7: 0.63 | ES7: 33 | ET7: 0.74 | EU7: 25 | EV7: 11 | EW7: 17 | EX7: 0.021 | EY7: 36.2 | EZ7: 0.049 | FA7: 100 | FB7: 12.6 | FC7: 0.56 | FD7: 0.195 | FE7: 7.7 | FF7: 114 | FG7: 211 | FH7: 0.055 | FI7: 29 | FJ7: 0.0028 | FK7: 0.0028 | FL7: 19 | FM7: 2.41 | FN7: 100 | FO7: 8.4 | FP7: 25 | FQ7: 0.21 | FR7: 14.4 | FS7: 86 | FT7: 12 | FU7: 0.007 | FV7: 300 | FW7: 99 | FX7: 8.4 | FY7: 8.4 | FZ7: 8.4 | GA7: 17 | GB7: 0.0013 | GC7: 104.2 | GD7: 110 | GE7: 87 | GF7: 0.006 | GG7: 0.0028 | GH7: 0.055 | GI7: 1.7 | GJ7: 211 | GK7: 100 | GL7: 0.074 | GM7: 0.27 | GN7: 0.004 | GO7: 4.5 | GP7: 4.4 | GQ7: 211 | GR7: 125 | GS7: 100 | GT7: 43.8 | GU7: 17 | GV7: 0.074 | GW7: 0.074 | GX7: 29 | GY7: 0.08 | GZ7: 0.63 | HA7: 0.0028 | HB7: 17 | HC7: 17 | HD7: 17 | HE7: 0.0023 | HF7: 0.3 | HG7: 0.00026 | HH7: 0.07 | HI7: 0.00026 | HJ7: 12 | HK7: 0.19 | HL7: 0.19 | HM7: 67 | HN7: 0.007 | HO7: 67 | HP7: 98.85 | HQ7: 19 | HR7: 110 | HS7: 1.1 | HT7: 1.1 | HU7: 0.13 | HV7: 0.13 | HW7: 0.13 | HX7: 0.13 | HY7: 30.2 | HZ7: 6.1 | IA7: 30.2 | IB7: 0.13 | IC7: 120 | ID7: 100 | IE7: 6.7 | IF7: 67 | IG7: 67 | IH7: 21 | II7: 6.7 | IJ7: 0.074 | IK7: 0.07 | IL7: 6.7 | IM7: 6.7 | IN7: 63.4 | IO7: 100 | IP7: 0.57 | IQ7: 0.57 | IR7: 0.1 | IS7: 1.23 | IT7: 4.4 | IU7: 0.47 | IV7: 0.0027 | IW7: 0,017 | IX7: 4.3 | IY7: 0.074 | IZ7: 125 | JA7: 0.035 | JB7: 730 | JC7: 0.063 | JD7: 3.14 | JE7: 29 | JF7: 0.011 | JG7: 100 | JH7: 4.4 | JI7: 10.56 | JJ7: 0.0001 | JK7: 2.69 | JM7: 0.035 | JN7: 0.016 | JO7: 1 | JP7: 0.0027 | JR7: 80 | JS7: 2.4 | JT7: 0.63 | JU7: 2.69 | JV7: 101 | JW7: 4.5 | JX7: 4.5 | JY7: 100 | JZ7: 0.011 | KA7: 710 | KB7: 0.0018 | KC7: 0.74 | KD7: 1.3 | KE7: 0.19 | KF7: 5.2 | KG7: 0.00105 | KH7: 0.0023 | KI7: 2.3 | KJ7: 2000 | KK7: 0.0125 | KL7: 710 | KM7: 0,248 | KN7: 1.1 | KO7: 22 | KP7: 170 | KQ7: 0,022 | KR7: 100 | KS7: 100 | KT7: 1.41 | KU7: 0.055 | KV7: 0.06 | KW7: 0.23 | KX7: 0.0049 | KY7: 300 | KZ7: 1.1 | LA7: 2.3 | LB7: 2.3 | LC7: 0.36 | LD7: 0.98 | LE7: 70.5 | LF7: 1.9 | LG7: 14.3 | LH7: 5.4 | LI7: 33 | LJ7: 546 | LK7: 4.4 | LL7: 100 | LM7: 0,233 | LN7: 0,233 | LO7: 170 | LP7: 100 | LQ7: 1.7 | LR7: 87 | LS7: 12.6 | LT7: 6.1 | LU7: 122 | LV7: 0.0097 | LW7: 0.24 | LX7: 114 | LY7: 1.83 | LZ7: 0.055 | MA7: 0.19 | MB7: 17 | MC7: 0.0028 | MD7: 4.4 | ME7: 170 | MF7: 1.41 | MG7: 0,038 | MH7: 3.75 | MI7: 211 | MJ7: 1 | MK7: 0.00035 | ML7: 2000 | MM7: 29 | MN7: 100 | MO7: 1.23 | MP7: 0.0097 | MQ7: 5.5 | MR7: 5 | MS7: 4.5 | MT7: 80 | MU7: 17 | MV7: 38 | MW7: 710 | MX7: 38 | MY7: 0.25 | MZ7: 19 | NA7: 19 | NB7: 0,404 | NC7: 87 | ND7: 154 | NE7: 1.33 | NF7: 118 | NG7: 0.088 | NH7: 0.56 | NI7: 0.5 | NJ7: 0.195 | NK7: 98 | NL7: 19 | NM7: 0,196 | NN7: 5 | NO7: 6.7 | NP7: 0.0028 | NQ7: 320 | NR7: 320 | NS7: 320 | NT7: 320 | NU7: 3.2 | NV7: 0,017 | NW7: 0.05 | NX7: 4.4 | NY7: 100 | NZ7: 17 | OA7: 1,48 | OB7: 1,48 | OC7: 122 | OD7: 100 | OE7: 100 | OF7: 100 | OG7: 340 | OH7: 0,0085 | OI7: 211 | OJ7: 211 | OK7: 0.24 | OL7: 33 | OM7: 0.13 | OO7: 0.0065 | OP7: 1 | OQ7: 0.17 | OR7: 99 | OS7: 0.00026 | OT7: 0,248 | OU7: 4.2 | OV7: 7.7 | OW7: 100 | OX7: 1.5 | OY7: 36.2 | OZ7: 17 | PA7: 2.27 | PB7: 1.7 | PC7: 2.6 | PD7: 0.00026 | PE7: 0.00026 | PF7: 0.36 | PG7: 1200 | PH7: 0.00021 | PI7: 6.7 | PK7: 22 | PL7: 100 | PM7: 2.27 | PN7: 93.8 | PO7: 100 | PP7: 0.0013 | PQ7: 36 | PR7: 0.063 | PS7: 65.7 | PT7: 1.8 | PU7: 0.1 | PV7: 0.00021 | PW7: 0.63 | PX7: 0,038 | PY7: 87 | PZ7: 710 | QA7: 3.15 | QB7: 3.15 | QC7: 0.0013 | QD7: 29 | QE7: 120 | QF7: 0,248 | QG7: 1,50 | QH7: 320 | QI7: 0.018 | QJ7: 0,0085 | QK7: 0.074 | QL7: 2.9 | QM7: 0.074 | QN7: 0,248 | QO7: 0.015 | QP7: 29 | QQ7: 100 | QR7: 0.23 | QS7: 100 | QT7: 100 | QU7: 0.532 | QV7: 0.0023 | QW7: 120 | QX7: 0.186 | QY7: 0.05 | QZ7: 120 | RA7: 120 | RB7: 0.288 | RC7: 0.228 | RD7: 100 | RE7: 0.175 | RF7: 2.1 | RG7: 0.63 | RH7: 0.01 | RI7: 0.336 | RJ7: 1.23 | RK7: 1.23 | RL7: 0.63 | RM7: 4.2 | RN7: 74.6 | RO7: 1 | RP7: 150 | RQ7: 150 | RR7: 2 | RS7: 3 | RT7: 0.18 | RU7: 8 | RV7: 0.3 | RW7: 5.4 | RY7: 0.1 | RZ7: 65.7 | SA7: 4.4 | SC7: 65,21 | SD7: 65,7 | SE7: 65,24 | SF7: 2.6 | SG7: 0.0065 | SH7: 0.018 | SI7: 1 | SJ7: 0.0013 | SK7: 150 | SL7: 211 | SM7: 19 | SN7: 0.016 | SO7: 4.4 | SP7: 0.63 | SQ7: 0.043 | SR7: 100 | SS7: 100 | ST7: 3.14 | SU7: 2.1 | SV7: 4.4 | SW7: 546 | SX7: 0.63 | SY7: 0.186 | SZ7: 100 | TA7: 0.00105 | TB7: 1.2 | TC7: 0.69 | TD7: 43.8 | TE7: 0.25 | TF7: 5620 | TG7: 0.23 | TH7: 8.4 | TI7: 19 | TJ7: 710 | TK7: 0.3 | TL7: 0,196 | TM7: 0.074 | TN7: 100 | TO7: 0.0125 | TP7: 0.074 | TQ7: 21.3 | TR7: 8.8 | TS7: 0.075 | TT7: 0.18 | TU7: 1.41 | TV7: 100 | TW7: 0.006 | TX7: 0.007 | TY7: 0.0001 | TZ7: 0.0007 | UA7: 10.56 | UB7: 0,404 | UC7: 0.27 | UD7: 930 | UE7: 2.2 | UF7: 100 | UG7: 170 | UH7: 0.19 | UI7: 0.007 | UJ7: 0.336 | UK7: 104.2 | UL7: 93.8 | UM7: 1 | UN7: 25 | UO7: 0,038 | UP7: 3.14 | UQ7: 0,088 | UR7: 12 | US7: 3.6 | UT7: 300 | UU7: 4.5 | UV7: 4.5 | UW7: 4.5 | UX7: 4.5 | UY7: 19 | UZ7: 4.5 | VA7: 0.47 | VB7: 0.47 | VC7: 1.1 | VD7: 0.27 | VE7: 7.22 | VG7: 0.08 | VH7: 15 | VI7: 5.2 | VJ7: 1.83 | VK7: 5.5 | VL7: 5.4 | VM7: 0.043 | VN7: 2.6 | VO7: 2.6 | VP7: 0.33 | VQ7: 3.14 | VR7: 1.83 | VS7: 1.7 | VT7: 1 | VU7: 100 | VV7: 0.21 | VW7: 0.23 | VX7: 1.1 | VY7: 1.6 | VZ7: 98.85 | WA7: 1.5 | WB7: 0.63 | WC7: 1.23 | WD7: 0.19 | WE7: 122 | WF7: 100 | WG7: 14.4 | WH7: 0.0013 | WI7: 0,248 | WJ7: 67 | WK7: 21 | WL7: 0,248 | WM7: 1.1 | WN7: 2.9 | WO7: 0,171 | WP7: 0,248 | WQ7: 0.074 | WR7: 211 | WS7: 1 | WT7: 95 | WU7: 150 | WV7: 1.2 | WW7: 7.22 | WX7: 38 | WY7: 38 | WZ7: 38 | XA7: 36.2 | XB7: 0.0061 | XC7: 0.13 | XD7: 0.0027 | XE7: 98 | XF7: 0.0007 | XG7: 65.7 | XH7: 1.6 | XI7: 1.1 | XJ7: 300 | XK7: 25 | XL7: 0.19 | XM7: 0,171 | XN7: 0,038 | XO7: 118 | XP7: 74.6 | XQ7: 1.23 | XR7: 170 | XS7: 2.6 | XT7: 7.22 | XU7: 90 | XV7: 70.5 | XW7: 33 | XY7: 100 | XZ7: 93.8 | YA7: 211 | YB7: 100 | YC7: 1.1 | YD7: 0.00026 | YE7: 19 | YF7: 110 | YG7: 87 | YH7: 2.7 | YI7: 1.6 | YJ7: 2000 | YK7: 5.4 | YL7: 0.248 | YM7: 0,248 | YN7: 930 | YO7: 0.00026 | YP7: 0,248 | YQ7: 65,32 | YR7: 2.6 | YT7: 13.2 | YU7: 93.8 | YV7: 8 | YW7: 12.5 | YX7: 101 | YY7: 0.0001 | YZ7: 1,3 | ZA7: 1,3 | ZB7: 7.22 | ZC7: 7.22 | ZD7: 2.3 | ZE7: 1,3 | ZF7: 2.3 | ZG7: 0,017 | ZH7: 11 | ZI7: 0.01 | ZJ7: 0.36 | ZK7: 4.4 | ZL7: 2 | ZM7: 3.2 | ZN7: 0.00026 | ZO7: 0.00026 | ZP7: 0.21 | ZQ7: 33 | ZR7: 4.4 | ZS7: 4.4 | ZT7: 3 | ZU7: 4.4 | ZV7: 87 | ZW7: 0.19 | ZX7: 0.55 | ZY7: 0.0065 | ZZ7: 100 | AAA7: 74.6 | AAB7: 82.5 | AAC7: 0.004 | AAD7: 2.2 | AAE7: 2.2 | AAF7: 2.4 | AAG7: 4.3 | AAH7: 1.33 | AAI7: 0.021 | AAJ7: 0.55 | AAK7: 90.1 | AAL7: 104 | AAM7: 0.27 | AAN7: 2.6 | AAO7: 1.4 | AAP7: 11 | AAQ7: 0,171 | AAR7: 19 | AAS7: 320 | AAT7: 0.049 | AAU7: 0.21 | AAV7: 11 | AAW7: 100 | AAX7: 33 | AAY7: 10 | AAZ7: 17 | ABA7: 0.0027 | ABB7: 21.3 | ABC7: 7.3 | ABD7: 1.3 | ABE7: 0.47 | ABF7: 0.57 | ABG7: 0,022 | ABH7: 730 | ABI7: 0.57 | ABJ7: 0.021 | ABK7: 0,088 | ABL7: 33 | ABM7: 100 | ABO7: 33 | ABP7: 3.6 | ABR7: 38 | ABS7: 2.41 | ABT7: 6.8e-05 | ABU7: 0,017 | ABV7: 8.4 | ABW7: 74.6 | ABX7: 0.47 | ABY7: 19 | ABZ7: 0.98 | ACA7: 19 | ACB7: 0.088 | ACC7: 12.6 | ACD7: 0.228 | ACE7: 2.3 | ACF7: 0.0036 | ACG7: 0.0013 | ACH7: 33 | ACI7: 0,171 | ACJ7: 2.3 | ACK7: 0,171 | ACM7: 100 | ACN7: 0.021 | ACO7: 0.36 | ACP7: 2.2 | ACQ7: 0.47 | ACR7: 0.065 | ACS7: 340 | ACT7: 150 | ACU7: 17 | ACV7: 17 | ACW7: 2.3 | ACX7: 33 | ACY7: 0.69 | ACZ7: 0.16
A8: 14.7 - Toxicidade - DAH (mg kg-1 dia-1) | C8: 0.050 | D8: 0.008 | E8: 0.003 | F8: 0.003 | G8: 2.000 | H8: 0.220 | I8: 0.003 | J8: 0.003 | K8: 0.003 | L8: 0.025 | M8: 0,0036 | P8: 0.002 | Q8: 0.010 | R8: 0.030 | S8: 0.026 | T8: 0.23 | U8: 0.003 | V8: 0,03 | X8: 0,2 | Y8: 0.050 | Z8: 0,01 | AA8: 0,01 | AB8: 0.050 | AC8: 0,015 | AD8: 1.000 | AE8: 0,00001 | AG8: 1.580 | AH8: 0.020 | AI8: 0.030 | AJ8: 0.050 | AK8: 10.000 | AL8: 0,0150 | AM8: 0,0150 | AO8: 0.050 | AP8: 0.26 | AQ8: 0,2 | AR8: 0.003 | AS8: 0.003 | AT8: 9.000 | AU8: 0.010 | AV8: 0.025 | AW8: 0.010 | AX8: 0.010 | AY8: 0.010 | BA8: 0.020 | BB8: 0,08 | BC8: 0.016 | BD8: 0.025 | BE8: 0.030 | BF8: 0.800 | BG8: 0.020 | BH8: 0.36 | BI8: 0.36 | BK8: 0.002 | BL8: 0.008 | BM8: 0.020 | BN8: 0.020 | BP8: 0.020 | BQ8: 0.060 | BR8: 0.040 | BS8: 0.150 | BT8: 0.005 | BU8: 0,03 | BV8: 0.025 | BW8: 0.070 | BX8: 0.003 | BY8: 0.005 | BZ8: 0.003 | CC8: 0.10 | CD8: 0,2 | CE8: 0,2 | CF8: 0.060 | CG8: 0.100 | CH8: 0.010 | CI8: 0.050 | CJ8: 0.003 | CK8: 0.017 | CL8: 0.035 | CM8: 0.040 | CN8: 0.020 | CO8: 0.010 | CP8: 0,01 | CQ8: 0,01 | CR8: 0.100 | CS8: 0.100 | CU8: 0.050 | CV8: 0.003 | CX8: 0.015 | CY8: 0.015 | DB8: 0.01 | DC8: 0.015 | DE8: 0.100 | DG8: 0,0024 | DH8: 0.030 | DI8: 0,0001 | DJ8: 0.040 | DK8: 0.040 | DL8: 0.003 | DO8: 0.010 | DP8: 0.003 | DQ8: 0.001 | DR8: 0.010 | DS8: 0.070 | DT8: 0.000 | DU8: 0,01 | DV8: 0.150 | DW8: 0.010 | DX8: 0.300 | DY8: 0.040 | DZ8: 0.100 | EA8: 0.100 | EB8: 0,01 | EC8: 0.015 | ED8: 0.008 | EE8: 0.020 | EF8: 0.020 | EG8: 0.025 | EH8: 0.020 | EI8: 0.005 | EJ8: 0.008 | EK8: 0.003 | EL8: 0,03 | EO8: 0,01 | EQ8: 0.010 | ER8: 0.003 | ES8: 0.010 | ET8: 0.030 | EU8: 0,16 | EV8: 0.080 | EW8: 15.000 | EX8: 0.014 | EY8: 0.060 | FA8: 0.030 | FB8: 0.010 | FC8: 0.170 | FF8: 0.004 | FG8: 0.060 | FH8: 0.010 | FI8: 0.013 | FJ8: 0.050 | FK8: 0.050 | FL8: 0.020 | FM8: 0.030 | FN8: 0,06 | FO8: 0.020 | FP8: 0,16 | FQ8: 0.003 | FR8: 0.133 | FT8: 1.580 | FU8: 0.015 | FW8: 0.290 | FX8: 0.020 | FY8: 0.020 | FZ8: 0.020 | GA8: 15.000 | GB8: 0.010 | GC8: 0.097 | GD8: 0.050 | GE8: 0.070 | GF8: 0.030 | GG8: 0.050 | GH8: 0.010 | GI8: 0.010 | GJ8: 0.060 | GK8: 0,0001 | GL8: 0.050 | GM8: 0.100 | GN8: 0.001 | GO8: 0.020 | GP8: 0.030 | GQ8: 0.060 | GR8: 0.026 | GS8: 0,0001 | GT8: 0.150 | GU8: 15.000 | GV8: 0.050 | GW8: 0.050 | GX8: 0.016 | GY8: 0.030 | GZ8: 0.170 | HA8: 0.050 | HB8: 15.000 | HC8: 15.000 | HD8: 15.000 | HE8: 0.030 | HF8: 0.010 | HG8: 0.010 | HH8: 0.010 | HI8: 0.010 | HJ8: 1.580 | HK8: 0.020 | HL8: 0.020 | HM8: 0,0024 | HO8: 0,0024 | HP8: 0.300 | HQ8: 0.004 | HR8: 0.050 | HS8: 0.010 | HT8: 0.010 | HU8: 0.100 | HV8: 0.100 | HW8: 0.100 | HX8: 0.100 | HZ8: 0.050 | IB8: 0.100 | IE8: 0.007 | IF8: 0,0024 | IG8: 0,0024 | IH8: 0.00 | II8: 0.007 | IJ8: 0.050 | IK8: 0.010 | IL8: 0.007 | IM8: 0.007 | IN8: 0.050 | IO8: 0.100 | IP8: 0.100 | IQ8: 0.100 | IR8: 0.002 | IS8: 0.100 | IT8: 0.030 | IU8: 0,2 | IV8: 0.030 | IW8: 0.150 | IX8: 0.004 | IY8: 0.050 | IZ8: 0.026 | JA8: 0.015 | JB8: 0.04 | JD8: 0.008 | JE8: 0.013 | JF8: 0.006 | JG8: 0.250 | JH8: 0.030 | JI8: 0.170 | JJ8: 0.018 | JK8: 0.025 | JM8: 0.015 | JN8: 0.030 | JO8: 0,00001 | JP8: 0.030 | JR8: 0.040 | JS8: 0.015 | JT8: 0.003 | JU8: 0.025 | JV8: 0.040 | JW8: 0.020 | JX8: 0.020 | JZ8: 0.006 | KA8: 0,021 | KB8: 0,015 | KC8: 0.030 | KD8: 0.005 | KE8: 0.010 | KF8: 0.130 | KG8: 0.010 | KH8: 0.030 | KI8: 0.003 | KJ8: 0,0012 | KL8: 0,021 | KM8: 0,0002 | KN8: 0.010 | KO8: 0,013 | KP8: 0.003 | KQ8: 0.100 | KR8: 0.025 | KS8: 0.50 | KT8: 0,01 | KU8: 0.010 | KV8: 0.017 | KW8: 0.370 | KX8: 0,01 | KY8: 0.000 | KZ8: 0.000 | LA8: 0,009 | LB8: 0,009 | LC8: 0.080 | LD8: 0.012 | LE8: 64.000 | LF8: 0.002 | LG8: 0.800 | LH8: 0.090 | LI8: 0.010 | LJ8: 0.020 | LK8: 0.030 | LL8: 0,08 | LM8: 0.100 | LN8: 0.100 | LO8: 0.003 | LP8: 0.250 | LQ8: 0,02 | LR8: 0.070 | LS8: 0.010 | LT8: 0.050 | LU8: 1.000 | LV8: 0.019 | LW8: 0.001 | LX8: 0.004 | LY8: 0.050 | LZ8: 0.010 | MA8: 0.020 | MB8: 15.000 | MC8: 0.050 | MD8: 0.030 | ME8: 0.003 | MF8: 0,01 | MG8: 0,01 | MH8: 0.040 | MI8: 0.060 | MJ8: 0.010 | MK8: 0.001 | ML8: 0,0012 | MM8: 0.016 | MN8: 0.50 | MO8: 0.100 | MP8: 0.019 | MR8: 0,0150 | MS8: 0.020 | MT8: 0.040 | MU8: 15.000 | MV8: 0.300 | MW8: 0,021 | MX8: 0.300 | MY8: 3.000 | MZ8: 0.004 | NA8: 0.004 | NB8: 0,004 | NC8: 0.070 | ND8: 0.10 | NE8: 0.06 | NF8: 0.063 | NG8: 0.00 | NH8: 0.170 | NL8: 0.004 | NM8: 0,125 | NN8: 0,0150 | NO8: 0.007 | NP8: 0.050 | NQ8: 0.050 | NR8: 0.050 | NS8: 0.050 | NT8: 0.050 | NU8: 0.030 | NV8: 0.150 | NW8: 0.001 | NX8: 0.030 | NY8: 0.030 | NZ8: 15.000 | OA8: 0,025 | OB8: 0,025 | OC8: 9.000 | OD8: 0.500 | OE8: 0,0001 | OF8: 0.250 | OH8: 0.670 | OI8: 0.060 | OJ8: 0.060 | OK8: 0.001 | OL8: 0.010 | OM8: 0.100 | OO8: 0.010 | OP8: 0,00001 | OQ8: 0.005 | OR8: 0.290 | OS8: 0.015 | OT8: 0,0002 | OU8: 0.100 | OW8: 0.030 | OX8: 0.015 | OY8: 0.060 | OZ8: 15.000 | PA8: 0.020 | PB8: 0,02 | PC8: 0.040 | PD8: 0.010 | PE8: 0.010 | PF8: 0,0036 | PH8: 0.005 | PI8: 0.007 | PK8: 0,013 | PM8: 0.020 | PN8: 0,0001 | PO8: 0.500 | PP8: 0.010 | PS8: 2.000 | PT8: 0.010 | PU8: 0.002 | PV8: 0.005 | PW8: 0.003 | PX8: 0,01 | PY8: 0.070 | PZ8: 0,021 | QA8: 0.003 | QB8: 0.003 | QC8: 0.010 | QD8: 0.016 | QE8: 0,01 | QF8: 0,0002 | QG8: 0,027 | QH8: 0.050 | QI8: 0.030 | QJ8: 0.670 | QK8: 0.050 | QL8: 0.150 | QM8: 0.050 | QN8: 0,0002 | QO8: 0.005 | QP8: 0.016 | QQ8: 0,08 | QR8: 0.370 | QT8: 0.050 | QU8: 0.035 | QV8: 0.030 | QW8: 0,01 | QX8: 0.100 | QY8: 0.001 | QZ8: 0,01 | RA8: 0,01 | RB8: 0.010 | RC8: 0.030 | RD8: 0,08 | RE8: 0.001 | RF8: 0.010 | RG8: 0.003 | RH8: 0.001 | RI8: 0.030 | RJ8: 0.100 | RK8: 0.100 | RL8: 0.003 | RM8: 0.100 | RN8: 0,013 | RO8: 0,00001 | RP8: 0.220 | RQ8: 0.220 | RR8: 0,025 | RS8: 0.020 | RT8: 0.092 | RV8: 0.200 | RW8: 0.090 | RY8: 0.002 | RZ8: 2.000 | SA8: 0.030 | SC8: 2,14 | SD8: 2,0 | SE8: 2,17 | SF8: 0.040 | SG8: 0.010 | SH8: 0.030 | SI8: 0.010 | SJ8: 0.010 | SK8: 0.220 | SL8: 0.060 | SM8: 0.004 | SN8: 0.030 | SO8: 0.030 | SP8: 0.170 | SQ8: 0.030 | SR8: 0.250 | SS8: 0.500 | ST8: 0.008 | SU8: 0.010 | SV8: 0.030 | SW8: 0.020 | SX8: 0.003 | SY8: 0.100 | TA8: 0.010 | TB8: 0.004 | TC8: 1.040 | TD8: 0.150 | TE8: 3.000 | TF8: 0,0001 | TG8: 0.013 | TH8: 0.020 | TI8: 0.004 | TJ8: 0,021 | TK8: 0.200 | TL8: 0,125 | TM8: 0.050 | TN8: 0.05 | TP8: 0.050 | TQ8: 0.050 | TR8: 0.300 | TT8: 0.092 | TU8: 0,01 | TV8: 0.030 | TW8: 0.030 | TX8: 0.015 | TY8: 0.018 | TZ8: 0.010 | UA8: 0.170 | UB8: 0,004 | UC8: 0.100 | UF8: 0.500 | UH8: 0.010 | UJ8: 0.030 | UK8: 0.097 | UL8: 0,0001 | UM8: 0.010 | UN8: 0,16 | UO8: 0,01 | UP8: 0.008 | UQ8: 15.000 | UR8: 1.580 | US8: 0.025 | UT8: 0.000 | UU8: 0.020 | UV8: 0.020 | UW8: 0.020 | UX8: 0.020 | UY8: 0.020 | UZ8: 0.020 | VA8: 0,2 | VB8: 0,2 | VC8: 0.010 | VD8: 0.100 | VE8: 0.003 | VG8: 0.030 | VH8: 0.005 | VI8: 0.130 | VJ8: 0.050 | VL8: 0.02 | VM8: 0.030 | VN8: 0.040 | VO8: 0.040 | VP8: 0.025 | VQ8: 0.008 | VR8: 0.050 | VS8: 0,02 | VT8: 0,00001 | VV8: 0,0013 | VW8: 0.013 | VX8: 0.000 | VY8: 0,03 | VZ8: 0.300 | WA8: 0.015 | WB8: 0.003 | WC8: 0.100 | WD8: 0.010 | WE8: 9.000 | WF8: 0.05 | WG8: 0.133 | WH8: 0.010 | WI8: 0,0002 | WJ8: 0,0024 | WK8: 0.00 | WL8: 0,0002 | WM8: 0.000 | WN8: 0.150 | WO8: 0.010 | WP8: 0,0002 | WQ8: 0.050 | WR8: 0.060 | WS8: 0.010 | WT8: 0.01 | WU8: 0.220 | WV8: 0.004 | WW8: 0.003 | WX8: 0.300 | WY8: 0.300 | WZ8: 0.300 | XA8: 0.060 | XB8: 0.010 | XC8: 0.000 | XD8: 0.030 | XF8: 0.010 | XG8: 2.000 | XH8: 0,03 | XI8: 0.010 | XJ8: 0.000 | XK8: 0,16 | XL8: 0.010 | XM8: 0.010 | XN8: 0,01 | XO8: 0.063 | XP8: 0,013 | XQ8: 0.100 | XS8: 0.008 | XT8: 0.003 | XV8: 64.000 | XW8: 0.010 | XY8: 0.010 | XZ8: 0,0001 | YA8: 0.060 | YB8: 0.250 | YC8: 0.010 | YD8: 0.015 | YE8: 0.020 | YF8: 0.050 | YG8: 0.070 | YH8: 0.040 | YI8: 0,03 | YJ8: 0,0012 | YK8: 0.02 | YL8: 0.000 | YM8: 0,0002 | YO8: 0.015 | YP8: 0,0002 | YQ8: 2,25 | YR8: 0.040 | YT8: 0.150 | YU8: 0,0001 | YX8: 0.040 | YY8: 0.018 | YZ8: 0,005 | ZA8: 0,005 | ZB8: 0.003 | ZC8: 0.003 | ZD8: 0,009 | ZE8: 0,005 | ZF8: 0.009 | ZG8: 0.150 | ZH8: 0.080 | ZI8: 0.001 | ZJ8: 0,0036 | ZK8: 0.030 | ZL8: 0,025 | ZM8: 0.030 | ZN8: 0.015 | ZO8: 0.015 | ZP8: 0,0013 | ZQ8: 0.010 | ZR8: 0.030 | ZS8: 0.030 | ZT8: 0.020 | ZU8: 0.030 | ZV8: 0.070 | ZW8: 0.020 | ZX8: 0.100 | ZY8: 0.010 | ZZ8: 0.010 | AAA8: 0,013 | AAB8: 0.025 | AAC8: 0.001 | AAD8: 0.00 | AAE8: 0.00 | AAF8: 0.015 | AAG8: 0.004 | AAH8: 0.06 | AAI8: 0.014 | AAJ8: 0.100 | AAK8: 0.010 | AAL8: 0.23 | AAM8: 0.100 | AAN8: 0.040 | AAO8: 0,01 | AAP8: 0.080 | AAQ8: 0.010 | AAR8: 0.004 | AAS8: 0.050 | AAU8: 0.003 | AAV8: 0.080 | AAW8: 0.26 | AAX8: 0.010 | AAY8: 0.100 | AAZ8: 15.000 | ABA8: 0.030 | ABB8: 0.050 | ABD8: 0.030 | ABE8: 0,2 | ABF8: 0.050 | ABG8: 0.100 | ABH8: 0.04 | ABI8: 0.050 | ABJ8: 0.014 | ABK8: 15.000 | ABL8: 0.010 | ABM8: 0,06 | ABO8: 0.010 | ABP8: 0.025 | ABR8: 0.300 | ABS8: 0.030 | ABT8: 0.003 | ABU8: 0.150 | ABV8: 0.020 | ABW8: 0,013 | ABX8: 0,2 | ABY8: 0.020 | ABZ8: 0.012 | ACA8: 0.020 | ACB8: 0.00 | ACC8: 0.010 | ACD8: 0.030 | ACE8: 0.003 | ACF8: 0.003 | ACG8: 0.010 | ACH8: 0.010 | ACI8: 0.010 | ACJ8: 0.008 | ACK8: 0.010 | ACM8: 0.100 | ACN8: 0.014 | ACO8: 0.080 | ACQ8: 0,2 | ACR8: 10.000 | ACT8: 0.220 | ACU8: 15.000 | ACV8: 15.000 | ACW8: 0,009 | ACX8: 0.010 | ACY8: 1.040 | ACZ8: 0.500
A9: Índice para Toxicidade do produto (>2,5) | C9: 1.75 | D9: 2.80 | E9: 4.52 | F9: 4.52 | G9: 0.94 | H9: 1.24 | I9: 3.40 | J9: 3.40 | K9: 3.40 | L9: 1.80 | M9: 3.44 | P9: 3.91 | Q9: =IF(Q7>0,(((4-LOG10(Q7))+(-LOG(Q8)))/2),"") -> 4.11 | R9: 3.87 | S9: 1.74 | T9: =IF(T7>0,(((4-LOG10(T7))+(-LOG(T8)))/2),"") -> 1.31 | U9: 3.01 | V9: 2.66 | X9: 2.51 | Y9: =IF(Y7>0,(((4-LOG10(Y7))+(-LOG(Y8)))/2),"") -> 1.65 | Z9: 2.87 | AA9: 2.87 | AB9: =IF(AB7>0,(((4-LOG10(AB7))+(-LOG(AB8)))/2),"") -> 3.88 | AC9: 4.28 | AD9: =IF(AD7>0,(((4-LOG10(AD7))+(-LOG(AD8)))/2),"") -> 0.96 | AE9: 4.50 | AG9: 1.36 | AH9: 2.21 | AI9: 3.08 | AJ9: 3.93 | AK9: =IF(AK7>0,(((4-LOG10(AK7))+(-LOG(AK8)))/2),"") -> 2.09 | AL9: 2.56 | AM9: 2.56 | AO9: 1.75 | AP9: =IF(AP7>0,(((4-LOG10(AP7))+(-LOG(AP8)))/2),"") -> 1.29 | AQ9: 2.51 | AR9: =IF(AR7>0,(((4-LOG10(AR7))+(-LOG(AR8)))/2),"") -> 3.33 | AS9: 4.52 | AT9: 0.48 | AU9: 3.38 | AV9: =IF(AV7>0,(((4-LOG10(AV7))+(-LOG(AV8)))/2),"") -> 3.04 | AW9: 4.09 | AX9: =IF(AX7>0,(((4-LOG10(AX7))+(-LOG(AX8)))/2),"") -> 3.24 | AY9: 3.63 | BA9: 2.21 | BB9: 1.55 | BC9: 2.17 | BD9: =IF(BD7>0,(((4-LOG10(BD7))+(-LOG(BD8)))/2),"") -> 1.84 | BE9: =IF(BE7>0,(((4-LOG10(BE7))+(-LOG(BE8)))/2),"") -> 2.70 | BF9: =IF(BF7>0,(((4-LOG10(BF7))+(-LOG(BF8)))/2),"") -> 1.47 | BG9: 2.21 | BH9: =IF(BH7>0,(((4-LOG10(BH7))+(-LOG(BH8)))/2),"") -> 1.24 | BI9: =IF(BI7>0,(((4-LOG10(BI7))+(-LOG(BI8)))/2),"") -> 1.24 | BK9: =IF(BK7>0,(((4-LOG10(BK7))+(-LOG(BK8)))/2),"") -> 3.21 | BL9: 2.80 | BM9: 2.52 | BN9: 2.52 | BP9: 2.52 | BQ9: 1.83 | BR9: 2.49 | BS9: 3.30 | BT9: =IF(BT7>0,(((4-LOG10(BT7))+(-LOG(BT8)))/2),"") -> 2.56 | BU9: 2.66 | BV9: 1.80 | BW9: 1.61 | BX9: 3.40 | BY9: =IF(BY7>0,(((4-LOG10(BY7))+(-LOG(BY8)))/2),"") -> 3.54 | BZ9: 4.52 | CC9: =IF(CC7>0,(((4-LOG10(CC7))+(-LOG(CC8)))/2),"") -> 1.41 | CD9: 2.51 | CE9: 2.51 | CF9: 1.45 | CG9: 1.50 | CH9: =IF(CH7>0,(((4-LOG10(CH7))+(-LOG(CH8)))/2),"") -> 3.26 | CI9: 1.99 | CJ9: 3.40 | CK9: 3.50 | CL9: =IF(CL7>0,(((4-LOG10(CL7))+(-LOG(CL8)))/2),"") -> 2.87 | CM9: =IF(CM7>0,(((4-LOG10(CM7))+(-LOG(CM8)))/2),"") -> 2.41 | CN9: 3.21 | CO9: 2.45 | CP9: 3.71 | CQ9: 3.71 | CR9: 1.50 | CS9: =IF(CS7>0,(((4-LOG10(CS7))+(-LOG(CS8)))/2),"") -> 2.00 | CT9: =IF(CT7>0,(((4-LOG10(CT7))+(-LOG(CT8)))/2),"") ->  | CU9: =IF(CU7>0,(((4-LOG10(CU7))+(-LOG(CU8)))/2),"") -> 3.88 | CV9: 5.35 | CX9: =IF(CX7>0,(((4-LOG10(CX7))+(-LOG(CX8)))/2),"") -> 4.70 | CY9: =IF(CY7>0,(((4-LOG10(CY7))+(-LOG(CY8)))/2),"") -> 4.70 | DB9: =IF(DB7>0,(((4-LOG10(DB7))+(-LOG(DB8)))/2),"") -> 2.01 | DC9: =IF(DC7>0,(((4-LOG10(DC7))+(-LOG(DC8)))/2),"") -> 4.70 | DE9: 2.78 | DG9: 2.40 | DH9: 4.08 | DI9: 3.01 | DJ9: 2.48 | DK9: 2.48 | DL9: 3.40 | DO9: =IF(DO7>0,(((4-LOG10(DO7))+(-LOG(DO8)))/2),"") -> 2.88 | DP9: 5.35 | DQ9: =IF(DQ7>0,(((4-LOG10(DQ7))+(-LOG(DQ8)))/2),"") -> 3.88 | DR9: =IF(DR7>0,(((4-LOG10(DR7))+(-LOG(DR8)))/2),"") -> 3.24 | DS9: 1.61 | DT9: =IF(DT7>0,(((4-LOG10(DT7))+(-LOG(DT8)))/2),"") -> 4.14 | DU9: 1.96 | DV9: =IF(DV7>0,(((4-LOG10(DV7))+(-LOG(DV8)))/2),"") -> 1.85 | DW9: =IF(DW7>0,(((4-LOG10(DW7))+(-LOG(DW8)))/2),"") -> 2.02 | DX9: =IF(DX7>0,(((4-LOG10(DX7))+(-LOG(DX8)))/2),"") -> 1.79 | DY9: 2.48 | DZ9: 2.87 | EA9: 2.87 | EB9: 2.93 | EC9: =IF(EC7>0,(((4-LOG10(EC7))+(-LOG(EC8)))/2),"") -> 4.70 | ED9: 2.85 | EE9: 3.21 | EF9: 3.21 | EG9: =IF(EG7>0,(((4-LOG10(EG7))+(-LOG(EG8)))/2),"") -> 1.80 | EH9: 3.21 | EI9: =IF(EI7>0,(((4-LOG10(EI7))+(-LOG(EI8)))/2),"") -> 4.06 | EJ9: =IF(EJ7>0,(((4-LOG10(EJ7))+(-LOG(EJ8)))/2),"") -> 2.87 | EK9: 2.15 | EL9: 2.66 | EO9: 4.15 | EQ9: 4.44 | ER9: 3.40 | ES9: 2.24 | ET9: 2.83 | EU9: 1.70 | EV9: 2.03 | EW9: 0.80 | EX9: 3.77 | EY9: 1.83 | FA9: =IF(FA7>0,(((4-LOG10(FA7))+(-LOG(FA8)))/2),"") -> 1.76 | FB9: 2.45 | FC9: =IF(FC7>0,(((4-LOG10(FC7))+(-LOG(FC8)))/2),"") -> 2.51 | FF9: =IF(FF7>0,(((4-LOG10(FF7))+(-LOG(FF8)))/2),"") -> 2.17 | FG9: 1.45 | FH9: 3.63 | FI9: =IF(FI7>0,(((4-LOG10(FI7))+(-LOG(FI8)))/2),"") -> 2.21 | FJ9: 3.93 | FK9: 3.93 | FL9: 2.21 | FM9: =IF(FM7>0,(((4-LOG10(FM7))+(-LOG(FM8)))/2),"") -> 2.57 | FN9: 1.61 | FO9: 2.39 | FP9: 1.70 | FQ9: =IF(FQ7>0,(((4-LOG10(FQ7))+(-LOG(FQ8)))/2),"") -> 3.60 | FR9: =IF(FR7>0,(((4-LOG10(FR7))+(-LOG(FR8)))/2),"") -> 1.86 | FT9: 1.36 | FU9: =IF(FU7>0,(((4-LOG10(FU7))+(-LOG(FU8)))/2),"") -> 3.99 | FW9: =IF(FW7>0,(((4-LOG10(FW7))+(-LOG(FW8)))/2),"") -> 1.27 | FX9: 2.39 | FY9: 2.39 | FZ9: 2.39 | GA9: 0.80 | GB9: 4.44 | GC9: =IF(GC7>0,(((4-LOG10(GC7))+(-LOG(GC8)))/2),"") -> 1.50 | GD9: 1.63 | GE9: 1.61 | GF9: 3.87 | GG9: 3.93 | GH9: 3.63 | GI9: =IF(GI7>0,(((4-LOG10(GI7))+(-LOG(GI8)))/2),"") -> 2.88 | GJ9: 1.45 | GK9: 3.00 | GL9: 3.22 | GM9: 2.78 | GN9: =IF(GN7>0,(((4-LOG10(GN7))+(-LOG(GN8)))/2),"") -> 4.81 | GO9: 2.52 | GP9: 2.44 | GQ9: 1.45 | GR9: 1.74 | GS9: 3.00 | GT9: =IF(GT7>0,(((4-LOG10(GT7))+(-LOG(GT8)))/2),"") -> 1.59 | GU9: 0.80 | GV9: 3.22 | GW9: 3.22 | GX9: 2.17 | GY9: =IF(GY7>0,(((4-LOG10(GY7))+(-LOG(GY8)))/2),"") -> 3.31 | GZ9: =IF(GZ7>0,(((4-LOG10(GZ7))+(-LOG(GZ8)))/2),"") -> 2.49 | HA9: 3.93 | HB9: 0.80 | HC9: 0.80 | HD9: 0.80 | HE9: 4.08 | HF9: =IF(HF7>0,(((4-LOG10(HF7))+(-LOG(HF8)))/2),"") -> 3.26 | HG9: 4.79 | HH9: =IF(HH7>0,(((4-LOG10(HH7))+(-LOG(HH8)))/2),"") -> 3.58 | HI9: 4.79 | HJ9: 1.36 | HK9: 3.21 | HL9: 3.21 | HM9: 2.40 | HO9: 2.40 | HP9: =IF(HP7>0,(((4-LOG10(HP7))+(-LOG(HP8)))/2),"") -> 1.26 | HQ9: 2.56 | HR9: 1.63 | HS9: 2.98 | HT9: 2.98 | HU9: 2.94 | HV9: 2.94 | HW9: 2.94 | HX9: 2.94 | HZ9: =IF(HZ7>0,(((4-LOG10(HZ7))+(-LOG(HZ8)))/2),"") -> 2.26 | IB9: 2.94 | IE9: 2.66 | IF9: 2.40 | IG9: 2.40 | IH9: =IF(IH7>0,(((4-LOG10(IH7))+(-LOG(IH8)))/2),"") -> 2.69 | II9: 2.66 | IJ9: 3.22 | IK9: =IF(IK7>0,(((4-LOG10(IK7))+(-LOG(IK8)))/2),"") -> 3.58 | IL9: 2.66 | IM9: 2.66 | IN9: 1.75 | IO9: 1.50 | IP9: =IF(IP7>0,(((4-LOG10(IP7))+(-LOG(IP8)))/2),"") -> 2.62 | IQ9: =IF(IQ7>0,(((4-LOG10(IQ7))+(-LOG(IQ8)))/2),"") -> 2.62 | IR9: 3.91 | IS9: 2.46 | IT9: 2.44 | IU9: 2.51 | IV9: 4.05 | IW9: 3.30 | IX9: 2.88 | IY9: 3.22 | IZ9: 1.74 | JA9: =IF(JA7>0,(((4-LOG10(JA7))+(-LOG(JA8)))/2),"") -> 3.64 | JB9: =IF(JB7>0,(((4-LOG10(JB7))+(-LOG(JB8)))/2),"") -> 1.27 | JD9: 2.80 | JE9: =IF(JE7>0,(((4-LOG10(JE7))+(-LOG(JE8)))/2),"") -> 2.21 | JF9: =IF(JF7>0,(((4-LOG10(JF7))+(-LOG(JF8)))/2),"") -> 4.09 | JG9: 1.30 | JH9: 2.44 | JI9: =IF(JI7>0,(((4-LOG10(JI7))+(-LOG(JI8)))/2),"") -> 1.87 | JJ9: 4.88 | JK9: =IF(JK7>0,(((4-LOG10(JK7))+(-LOG(JK8)))/2),"") -> 2.59 | JM9: =IF(JM7>0,(((4-LOG10(JM7))+(-LOG(JM8)))/2),"") -> 3.64 | JN9: =IF(JN7>0,(((4-LOG10(JN7))+(-LOG(JN8)))/2),"") -> 3.66 | JO9: 4.50 | JP9: 4.05 | JR9: =IF(JR7>0,(((4-LOG10(JR7))+(-LOG(JR8)))/2),"") -> 1.75 | JS9: =IF(JS7>0,(((4-LOG10(JS7))+(-LOG(JS8)))/2),"") -> 2.72 | JT9: 3.40 | JU9: =IF(JU7>0,(((4-LOG10(JU7))+(-LOG(JU8)))/2),"") -> 2.59 | JV9: =IF(JV7>0,(((4-LOG10(JV7))+(-LOG(JV8)))/2),"") -> 1.70 | JW9: 2.52 | JX9: 2.52 | JZ9: =IF(JZ7>0,(((4-LOG10(JZ7))+(-LOG(JZ8)))/2),"") -> 4.09 | KA9: 1.41 | KB9: 4.28 | KC9: 2.83 | KD9: =IF(KD7>0,(((4-LOG10(KD7))+(-LOG(KD8)))/2),"") -> 3.09 | KE9: 3.36 | KF9: =IF(KF7>0,(((4-LOG10(KF7))+(-LOG(KF8)))/2),"") -> 2.09 | KG9: =IF(KG7>0,(((4-LOG10(KG7))+(-LOG(KG8)))/2),"") -> 4.49 | KH9: 4.08 | KI9: =IF(KI7>0,(((4-LOG10(KI7))+(-LOG(KI8)))/2),"") -> 3.08 | KJ9: 1.81 | KL9: 1.41 | KM9: 4.15 | KN9: 2.98 | KO9: 2.27 | KP9: 2.15 | KQ9: 3.33 | KR9: =IF(KR7>0,(((4-LOG10(KR7))+(-LOG(KR8)))/2),"") -> 1.80 | KS9: =IF(KS7>0,(((4-LOG10(KS7))+(-LOG(KS8)))/2),"") -> 1.15 | KT9: 2.93 | KU9: 3.63 | KV9: 3.50 | KW9: =IF(KW7>0,(((4-LOG10(KW7))+(-LOG(KW8)))/2),"") -> 2.54 | KX9: 4.15 | KY9: 2.76 | KZ9: 3.98 | LA9: 2.84 | LB9: 2.84 | LC9: =IF(LC7>0,(((4-LOG10(LC7))+(-LOG(LC8)))/2),"") -> 2.77 | LD9: =IF(LD7>0,(((4-LOG10(LD7))+(-LOG(LD8)))/2),"") -> 2.96 | LE9: 0.17 | LF9: =IF(LF7>0,(((4-LOG10(LF7))+(-LOG(LF8)))/2),"") -> 3.21 | LG9: =IF(LG7>0,(((4-LOG10(LG7))+(-LOG(LG8)))/2),"") -> 1.47 | LH9: =IF(LH7>0,(((4-LOG10(LH7))+(-LOG(LH8)))/2),"") -> 2.16 | LI9: 2.24 | LJ9: 1.48 | LK9: 2.44 | LL9: 1.55 | LM9: 2.82 | LN9: 2.82 | LO9: 2.15 | LP9: 1.30 | LQ9: 2.73 | LR9: 1.61 | LS9: 2.45 | LT9: =IF(LT7>0,(((4-LOG10(LT7))+(-LOG(LT8)))/2),"") -> 2.26 | LU9: =IF(LU7>0,(((4-LOG10(LU7))+(-LOG(LU8)))/2),"") -> 0.96 | LV9: =IF(LV7>0,(((4-LOG10(LV7))+(-LOG(LV8)))/2),"") -> 3.87 | LW9: =IF(LW7>0,(((4-LOG10(LW7))+(-LOG(LW8)))/2),"") -> 3.81 | LX9: =IF(LX7>0,(((4-LOG10(LX7))+(-LOG(LX8)))/2),"") -> 2.17 | LY9: 2.52 | LZ9: 3.63 | MA9: 3.21 | MB9: 0.80 | MC9: 3.93 | MD9: 2.44 | ME9: 2.15 | MF9: 2.93 | MG9: 3.71 | MH9: =IF(MH7>0,(((4-LOG10(MH7))+(-LOG(MH8)))/2),"") -> 2.41 | MI9: 1.45 | MJ9: 3.00 | MK9: =IF(MK7>0,(((4-LOG10(MK7))+(-LOG(MK8)))/2),"") -> 5.19 | ML9: 1.81 | MM9: 2.17 | MN9: =IF(MN7>0,(((4-LOG10(MN7))+(-LOG(MN8)))/2),"") -> 1.15 | MO9: 2.46 | MP9: =IF(MP7>0,(((4-LOG10(MP7))+(-LOG(MP8)))/2),"") -> 3.87 | MR9: 2.56 | MS9: 2.52 | MT9: =IF(MT7>0,(((4-LOG10(MT7))+(-LOG(MT8)))/2),"") -> 1.75 | MU9: 0.80 | MV9: 1.47 | MW9: 1.41 | MX9: 1.47 | MY9: 2.06 | MZ9: 2.56 | NA9: 2.56 | NB9: 3.40 | NC9: 1.61 | ND9: =IF(ND7>0,(((4-LOG10(ND7))+(-LOG(ND8)))/2),"") -> 1.41 | NE9: =IF(NE7>0,(((4-LOG10(NE7))+(-LOG(NE8)))/2),"") -> 2.56 | NF9: =IF(NF7>0,(((4-LOG10(NF7))+(-LOG(NF8)))/2),"") -> 1.56 | NG9: =IF(NG7>0,(((4-LOG10(NG7))+(-LOG(NG8)))/2),"") -> 4.12 | NH9: =IF(NH7>0,(((4-LOG10(NH7))+(-LOG(NH8)))/2),"") -> 2.51 | NL9: 2.56 | NM9: 2.81 | NN9: 2.56 | NO9: 2.66 | NP9: 3.93 | NQ9: 1.40 | NR9: 1.40 | NS9: 1.40 | NT9: 1.40 | NU9: =IF(NU7>0,(((4-LOG10(NU7))+(-LOG(NU8)))/2),"") -> 2.51 | NV9: 3.30 | NW9: 4.30 | NX9: 2.44 | NY9: 1.76 | NZ9: 0.80 | OA9: 2.72 | OB9: 2.72 | OC9: 0.48 | OD9: 1.15 | OE9: 3.00 | OF9: 1.30 | OH9: 3.12 | OI9: 1.45 | OJ9: 1.45 | OK9: =IF(OK7>0,(((4-LOG10(OK7))+(-LOG(OK8)))/2),"") -> 3.81 | OL9: 2.24 | OM9: 2.94 | OO9: 4.09 | OP9: 4.50 | OQ9: =IF(OQ7>0,(((4-LOG10(OQ7))+(-LOG(OQ8)))/2),"") -> 3.54 | OR9: =IF(OR7>0,(((4-LOG10(OR7))+(-LOG(OR8)))/2),"") -> 1.27 | OS9: =IF(OS7>0,(((4-LOG10(OS7))+(-LOG(OS8)))/2),"") -> 4.70 | OT9: 4.15 | OU9: 2.19 | OW9: 1.76 | OX9: =IF(OX7>0,(((4-LOG10(OX7))+(-LOG(OX8)))/2),"") -> 2.82 | OY9: 1.83 | OZ9: 0.80 | PA9: =IF(PA7>0,(((4-LOG10(PA7))+(-LOG(PA8)))/2),"") -> 2.67 | PB9: 2.73 | PC9: 2.49 | PD9: 4.79 | PE9: 4.79 | PF9: 3.44 | PH9: 4.99 | PI9: 2.66 | PK9: 2.27 | PM9: =IF(PM7>0,(((4-LOG10(PM7))+(-LOG(PM8)))/2),"") -> 2.67 | PN9: 3.01 | PO9: 1.15 | PP9: 4.44 | PS9: 0.94 | PT9: 2.87 | PU9: 3.91 | PV9: 4.99 | PW9: 3.40 | PX9: 3.71 | PY9: 1.61 | PZ9: 1.41 | QA9: 3.01 | QB9: 3.01 | QC9: 4.44 | QD9: 2.17 | QE9: 1.96 | QF9: 4.15 | QG9: 2.70 | QH9: 1.40 | QI9: 3.63 | QJ9: 3.12 | QK9: 3.22 | QL9: =IF(QL7>0,(((4-LOG10(QL7))+(-LOG(QL8)))/2),"") -> 2.18 | QM9: 3.22 | QN9: 4.15 | QO9: =IF(QO7>0,(((4-LOG10(QO7))+(-LOG(QO8)))/2),"") -> 4.06 | QP9: 2.17 | QQ9: 1.55 | QR9: =IF(QR7>0,(((4-LOG10(QR7))+(-LOG(QR8)))/2),"") -> 2.54 | QT9: =IF(QT7>0,(((4-LOG10(QT7))+(-LOG(QT8)))/2),"") -> 1.65 | QU9: =IF(QU7>0,(((4-LOG10(QU7))+(-LOG(QU8)))/2),"") -> 2.87 | QV9: 4.08 | QW9: 1.96 | QX9: 2.87 | QY9: 4.30 | QZ9: 1.96 | RA9: 1.96 | RB9: =IF(RB7>0,(((4-LOG10(RB7))+(-LOG(RB8)))/2),"") -> 3.27 | RC9: 3.08 | RD9: 1.55 | RE9: =IF(RE7>0,(((4-LOG10(RE7))+(-LOG(RE8)))/2),"") -> 3.88 | RF9: =IF(RF7>0,(((4-LOG10(RF7))+(-LOG(RF8)))/2),"") -> 2.84 | RG9: 3.40 | RH9: =IF(RH7>0,(((4-LOG10(RH7))+(-LOG(RH8)))/2),"") -> 4.50 | RI9: =IF(RI7>0,(((4-LOG10(RI7))+(-LOG(RI8)))/2),"") -> 3.00 | RJ9: 2.46 | RK9: 2.46 | RL9: 3.40 | RM9: 2.19 | RN9: 2.01 | RO9: 4.50 | RP9: 1.24 | RQ9: 1.24 | RR9: 2.65 | RS9: =IF(RS7>0,(((4-LOG10(RS7))+(-LOG(RS8)))/2),"") -> 2.61 | RT9: =IF(RT7>0,(((4-LOG10(RT7))+(-LOG(RT8)))/2),"") -> 2.89 | RV9: =IF(RV7>0,(((4-LOG10(RV7))+(-LOG(RV8)))/2),"") -> 2.61 | RW9: =IF(RW7>0,(((4-LOG10(RW7))+(-LOG(RW8)))/2),"") -> 2.16 | RY9: 3.91 | RZ9: 0.94 | SA9: 2.44 | SC9: 0.93 | SD9: 0.94 | SE9: 0.92 | SF9: 2.49 | SG9: 4.09 | SH9: 3.63 | SI9: 3.00 | SJ9: 4.44 | SK9: 1.24 | SL9: 1.45 | SM9: 2.56 | SN9: =IF(SN7>0,(((4-LOG10(SN7))+(-LOG(SN8)))/2),"") -> 3.66 | SO9: 2.44 | SP9: =IF(SP7>0,(((4-LOG10(SP7))+(-LOG(SP8)))/2),"") -> 2.49 | SQ9: =IF(SQ7>0,(((4-LOG10(SQ7))+(-LOG(SQ8)))/2),"") -> 3.44 | SR9: 1.30 | SS9: 1.15 | ST9: 2.80 | SU9: =IF(SU7>0,(((4-LOG10(SU7))+(-LOG(SU8)))/2),"") -> 2.84 | SV9: 2.44 | SW9: 1.48 | SX9: 3.40 | SY9: 2.87 | TA9: =IF(TA7>0,(((4-LOG10(TA7))+(-LOG(TA8)))/2),"") -> 4.49 | TB9: =IF(TB7>0,(((4-LOG10(TB7))+(-LOG(TB8)))/2),"") -> 3.18 | TC9: =IF(TC7>0,(((4-LOG10(TC7))+(-LOG(TC8)))/2),"") -> 2.07 | TD9: =IF(TD7>0,(((4-LOG10(TD7))+(-LOG(TD8)))/2),"") -> 1.59 | TE9: 2.06 | TF9: 2.13 | TG9: =IF(TG7>0,(((4-LOG10(TG7))+(-LOG(TG8)))/2),"") -> 3.26 | TH9: 2.39 | TI9: 2.56 | TJ9: 1.41 | TK9: =IF(TK7>0,(((4-LOG10(TK7))+(-LOG(TK8)))/2),"") -> 2.61 | TL9: 2.81 | TM9: 3.22 | TN9: =IF(TN7>0,(((4-LOG10(TN7))+(-LOG(TN8)))/2),"") -> 1.65 | TP9: 3.22 | TQ9: 1.99 | TR9: =IF(TR7>0,(((4-LOG10(TR7))+(-LOG(TR8)))/2),"") -> 1.79 | TT9: =IF(TT7>0,(((4-LOG10(TT7))+(-LOG(TT8)))/2),"") -> 2.89 | TU9: 2.93 | TV9: =IF(TV7>0,(((4-LOG10(TV7))+(-LOG(TV8)))/2),"") -> 1.76 | TW9: 3.87 | TX9: =IF(TX7>0,(((4-LOG10(TX7))+(-LOG(TX8)))/2),"") -> 3.99 | TY9: 4.88 | TZ9: =IF(TZ7>0,(((4-LOG10(TZ7))+(-LOG(TZ8)))/2),"") -> 4.58 | UA9: =IF(UA7>0,(((4-LOG10(UA7))+(-LOG(UA8)))/2),"") -> 1.87 | UB9: 3.40 | UC9: 2.78 | UF9: 1.15 | UH9: 3.36 | UJ9: =IF(UJ7>0,(((4-LOG10(UJ7))+(-LOG(UJ8)))/2),"") -> 3.00 | UK9: =IF(UK7>0,(((4-LOG10(UK7))+(-LOG(UK8)))/2),"") -> 1.50 | UL9: 3.01 | UM9: 3.00 | UN9: 1.70 | UO9: 3.71 | UP9: 2.80 | UQ9: 1.94 | UR9: 1.36 | US9: =IF(US7>0,(((4-LOG10(US7))+(-LOG(US8)))/2),"") -> 2.52 | UT9: 2.76 | UU9: 2.52 | UV9: 2.52 | UW9: 2.52 | UX9: 2.52 | UY9: 2.21 | UZ9: 2.52 | VA9: 2.51 | VB9: 2.51 | VC9: 2.98 | VD9: 2.78 | VE9: 2.85 | VF9: =IF(VF7>0,(((4-LOG10(VF7))+(-LOG(VF8)))/2),"") ->  | VG9: =IF(VG7>0,(((4-LOG10(VG7))+(-LOG(VG8)))/2),"") -> 3.31 | VH9: =IF(VH7>0,(((4-LOG10(VH7))+(-LOG(VH8)))/2),"") -> 2.56 | VI9: =IF(VI7>0,(((4-LOG10(VI7))+(-LOG(VI8)))/2),"") -> 2.09 | VJ9: 2.52 | VL9: =IF(VL7>0,(((4-LOG10(VL7))+(-LOG(VL8)))/2),"") -> 2.48 | VM9: =IF(VM7>0,(((4-LOG10(VM7))+(-LOG(VM8)))/2),"") -> 3.44 | VN9: 2.49 | VO9: 2.49 | VP9: =IF(VP7>0,(((4-LOG10(VP7))+(-LOG(VP8)))/2),"") -> 3.04 | VQ9: 2.80 | VR9: 2.52 | VS9: 2.73 | VT9: 4.50 | VV9: 3.78 | VW9: =IF(VW7>0,(((4-LOG10(VW7))+(-LOG(VW8)))/2),"") -> 3.26 | VX9: 3.98 | VY9: 2.66 | VZ9: =IF(VZ7>0,(((4-LOG10(VZ7))+(-LOG(VZ8)))/2),"") -> 1.26 | WA9: =IF(WA7>0,(((4-LOG10(WA7))+(-LOG(WA8)))/2),"") -> 2.82 | WB9: 3.40 | WC9: 2.46 | WD9: 3.36 | WE9: 0.48 | WF9: =IF(WF7>0,(((4-LOG10(WF7))+(-LOG(WF8)))/2),"") -> 1.65 | WG9: =IF(WG7>0,(((4-LOG10(WG7))+(-LOG(WG8)))/2),"") -> 1.86 | WH9: 4.44 | WI9: 4.15 | WJ9: 2.40 | WK9: =IF(WK7>0,(((4-LOG10(WK7))+(-LOG(WK8)))/2),"") -> 2.69 | WL9: 4.15 | WM9: 3.98 | WN9: =IF(WN7>0,(((4-LOG10(WN7))+(-LOG(WN8)))/2),"") -> 2.18 | WO9: 3.38 | WP9: 4.15 | WQ9: 3.22 | WR9: 1.45 | WS9: 3.00 | WT9: =IF(WT7>0,(((4-LOG10(WT7))+(-LOG(WT8)))/2),"") -> 2.01 | WU9: 1.24 | WV9: =IF(WV7>0,(((4-LOG10(WV7))+(-LOG(WV8)))/2),"") -> 3.18 | WW9: 2.85 | WX9: 1.47 | WY9: 1.47 | WZ9: 1.47 | XA9: 1.83 | XB9: =IF(XB7>0,(((4-LOG10(XB7))+(-LOG(XB8)))/2),"") -> 4.11 | XC9: =IF(XC7>0,(((4-LOG10(XC7))+(-LOG(XC8)))/2),"") -> 4.14 | XD9: 4.05 | XF9: =IF(XF7>0,(((4-LOG10(XF7))+(-LOG(XF8)))/2),"") -> 4.58 | XG9: 0.94 | XH9: 2.66 | XI9: 2.98 | XJ9: 2.76 | XK9: 1.70 | XL9: 3.36 | XM9: 3.38 | XN9: 3.71 | XO9: =IF(XO7>0,(((4-LOG10(XO7))+(-LOG(XO8)))/2),"") -> 1.56 | XP9: 2.01 | XQ9: 2.46 | XS9: 2.85 | XT9: 2.85 | XV9: 0.17 | XW9: 2.24 | XY9: 2.00 | XZ9: 3.01 | YA9: 1.45 | YB9: 1.30 | YC9: 2.98 | YD9: =IF(YD7>0,(((4-LOG10(YD7))+(-LOG(YD8)))/2),"") -> 4.70 | YE9: 2.21 | YF9: 1.63 | YG9: 1.61 | YH9: 2.48 | YI9: 2.66 | YJ9: 1.81 | YK9: =IF(YK7>0,(((4-LOG10(YK7))+(-LOG(YK8)))/2),"") -> 2.48 | YL9: 4.15 | YM9: 4.15 | YO9: =IF(YO7>0,(((4-LOG10(YO7))+(-LOG(YO8)))/2),"") -> 4.70 | YP9: 4.15 | YQ9: 0.92 | YR9: 2.49 | YT9: =IF(YT7>0,(((4-LOG10(YT7))+(-LOG(YT8)))/2),"") -> 1.85 | YU9: 3.01 | YX9: =IF(YX7>0,(((4-LOG10(YX7))+(-LOG(YX8)))/2),"") -> 1.70 | YY9: 4.88 | YZ9: 3.09 | ZA9: 3.09 | ZB9: 2.85 | ZC9: 2.85 | ZD9: 2.84 | ZE9: 3.09 | ZF9: 2.84 | ZG9: 3.30 | ZH9: 2.03 | ZI9: =IF(ZI7>0,(((4-LOG10(ZI7))+(-LOG(ZI8)))/2),"") -> 4.50 | ZJ9: 3.44 | ZK9: 2.44 | ZL9: 2.65 | ZM9: =IF(ZM7>0,(((4-LOG10(ZM7))+(-LOG(ZM8)))/2),"") -> 2.51 | ZN9: =IF(ZN7>0,(((4-LOG10(ZN7))+(-LOG(ZN8)))/2),"") -> 4.70 | ZO9: =IF(ZO7>0,(((4-LOG10(ZO7))+(-LOG(ZO8)))/2),"") -> 4.70 | ZP9: 3.78 | ZQ9: 2.24 | ZR9: 2.44 | ZS9: 2.44 | ZT9: =IF(ZT7>0,(((4-LOG10(ZT7))+(-LOG(ZT8)))/2),"") -> 2.61 | ZU9: 2.44 | ZV9: 1.61 | ZW9: 3.21 | ZX9: =IF(ZX7>0,(((4-LOG10(ZX7))+(-LOG(ZX8)))/2),"") -> 2.63 | ZY9: 4.09 | ZZ9: 2.00 | AAA9: 2.01 | AAB9: =IF(AAB7>0,(((4-LOG10(AAB7))+(-LOG(AAB8)))/2),"") -> 1.84 | AAC9: =IF(AAC7>0,(((4-LOG10(AAC7))+(-LOG(AAC8)))/2),"") -> 4.81 | AAD9: =IF(AAD7>0,(((4-LOG10(AAD7))+(-LOG(AAD8)))/2),"") -> 3.03 | AAE9: =IF(AAE7>0,(((4-LOG10(AAE7))+(-LOG(AAE8)))/2),"") -> 3.03 | AAF9: =IF(AAF7>0,(((4-LOG10(AAF7))+(-LOG(AAF8)))/2),"") -> 2.72 | AAG9: 2.88 | AAH9: =IF(AAH7>0,(((4-LOG10(AAH7))+(-LOG(AAH8)))/2),"") -> 2.56 | AAI9: 3.77 | AAJ9: =IF(AAJ7>0,(((4-LOG10(AAJ7))+(-LOG(AAJ8)))/2),"") -> 2.63 | AAK9: =IF(AAK7>0,(((4-LOG10(AAK7))+(-LOG(AAK8)))/2),"") -> 2.02 | AAL9: =IF(AAL7>0,(((4-LOG10(AAL7))+(-LOG(AAL8)))/2),"") -> 1.31 | AAM9: 2.78 | AAN9: 2.49 | AAO9: 2.93 | AAP9: 2.03 | AAQ9: 3.38 | AAR9: 2.56 | AAS9: 1.40 | AAU9: =IF(AAU7>0,(((4-LOG10(AAU7))+(-LOG(AAU8)))/2),"") -> 3.60 | AAV9: 2.03 | AAW9: =IF(AAW7>0,(((4-LOG10(AAW7))+(-LOG(AAW8)))/2),"") -> 1.29 | AAX9: 2.24 | AAY9: =IF(AAY7>0,(((4-LOG10(AAY7))+(-LOG(AAY8)))/2),"") -> 2.00 | AAZ9: 0.80 | ABA9: 4.05 | ABB9: 1.99 | ABD9: =IF(ABD7>0,(((4-LOG10(ABD7))+(-LOG(ABD8)))/2),"") -> 2.70 | ABE9: 2.51 | ABF9: =IF(ABF7>0,(((4-LOG10(ABF7))+(-LOG(ABF8)))/2),"") -> 2.77 | ABG9: 3.33 | ABH9: =IF(ABH7>0,(((4-LOG10(ABH7))+(-LOG(ABH8)))/2),"") -> 1.27 | ABI9: =IF(ABI7>0,(((4-LOG10(ABI7))+(-LOG(ABI8)))/2),"") -> 2.77 | ABJ9: 3.77 | ABK9: 1.94 | ABL9: 2.24 | ABM9: 1.61 | ABO9: 2.24 | ABP9: =IF(ABP7>0,(((4-LOG10(ABP7))+(-LOG(ABP8)))/2),"") -> 2.52 | ABR9: 1.47 | ABS9: =IF(ABS7>0,(((4-LOG10(ABS7))+(-LOG(ABS8)))/2),"") -> 2.57 | ABT9: 5.35 | ABU9: 3.30 | ABV9: 2.39 | ABW9: 2.01 | ABX9: 2.51 | ABY9: 2.21 | ABZ9: =IF(ABZ7>0,(((4-LOG10(ABZ7))+(-LOG(ABZ8)))/2),"") -> 2.96 | ACA9: 2.21 | ACB9: =IF(ACB7>0,(((4-LOG10(ACB7))+(-LOG(ACB8)))/2),"") -> 4.12 | ACC9: 2.45 | ACD9: 3.08 | ACE9: =IF(ACE7>0,(((4-LOG10(ACE7))+(-LOG(ACE8)))/2),"") -> 3.08 | ACF9: 4.52 | ACG9: 4.44 | ACH9: 2.24 | ACI9: 3.38 | ACJ9: =IF(ACJ7>0,(((4-LOG10(ACJ7))+(-LOG(ACJ8)))/2),"") -> 2.87 | ACK9: 3.38 | ACM9: 1.50 | ACN9: 3.77 | ACO9: =IF(ACO7>0,(((4-LOG10(ACO7))+(-LOG(ACO8)))/2),"") -> 2.77 | ACQ9: 2.51 | ACR9: =IF(ACR7>0,(((4-LOG10(ACR7))+(-LOG(ACR8)))/2),"") -> 2.09 | ACT9: 1.24 | ACU9: 0.80 | ACV9: 0.80 | ACW9: 2.84 | ACX9: 2.24 | ACY9: =IF(ACY7>0,(((4-LOG10(ACY7))+(-LOG(ACY8)))/2),"") -> 2.07 | ACZ9: =IF(ACZ7>0,(((4-LOG10(ACZ7))+(-LOG(ACZ8)))/2),"") -> 2.55
A10: 14.8 - Koc | C10: 242 | D10: 1,073 | E10: 6,631 | F10: 6,631 | G10: 21 | H10: 40 | I10: 72 | J10: 72 | K10: 72 | L10: 200 | M10: 156 | P10: 10,000 | Q10: 744 | R10: 9,315 | S10: 56 | U10: 620 | V10: 866 | X10: 589 | Y10: 74 | Z10: 335 | AA10: 335 | AC10: 288,735 | AE10: 1,000 | AF10: 85 | AG10: 301 | AH10: 364 | AI10: 30,714 | AJ10: 156,250 | AK10: 90 | AL10: 316 | AM10: 316 | AN10: 30 | AO10: 242 | AQ10: 589 | AR10: 1,000 | AS10: 6,631 | AT10: 12 | AU10: 9,629 | AW10: 26,062 | AX10: 5,363 | AY10: 220 | AZ10: 965 | BA10: 364 | BB10: 79 | BC10: 41,182 | BG10: 364 | BJ10: 20,800 | BL10: 1,073 | BM10: 174 | BN10: 174 | BO10: 130 | BP10: 174 | BQ10: 700 | BR10: 2,252 | BS10: 12,000 | BU10: 866 | BV10: 200 | BW10: 80 | BX10: 72 | BY10: 4,483 | BZ10: 6,631 | CC10: 74 | CD10: 589 | CE10: 589 | CF10: 225 | CG10: 86 | CH10: 10 | CI10: 750 | CJ10: 25 | CK10: 2,197 | CM10: 4,998 | CN10: 225 | CO10: 241 | CP10: 9,100 | CQ10: 9,100 | CR10: 86 | CS10: 245 | CV10: 64,300 | CX10: 236,610 | CY10: 236,610 | CZ10: 169 | DC10: 236,610 | DD10: 37,480 | DE10: 21,175 | DG10: 2,184,750 | DH10: 35,660 | DI10: 43 | DJ10: 772 | DK10: 772 | DL10: 25 | DM10: 32 | DO10: 872 | DP10: 64,300 | DQ10: 18 | DR10: 5,363 | DS10: 80 | DU10: 112 | DV10: 9,500 | DX10: 13 | DY10: 772 | DZ10: 200 | EA10: 200 | EB10: 1 | EC10: 236,610 | ED10: 300 | EE10: 225 | EF10: 225 | EG10: 2 | EH10: 225 | EJ10: 99 | EK10: 228 | EL10: 866 | EO10: 157,643 | EQ10: 8,151 | ER10: 72 | ES10: 205 | ET10: 388 | EU10: 23 | EV10: 220 | EW10: 2,632 | EX10: 2,967 | EY10: 700 | EZ10: 63,300 | FB10: 241 | FE10: 1,440 | FF10: 239 | FG10: 225 | FH10: 220 | FJ10: 156,250 | FK10: 156,250 | FL10: 364 | FN10: 409 | FO10: 106 | FP10: 23 | FR10: 300 | FS10: 30 | FT10: 301 | FU10: 12,000 | FV10: 20,800 | FX10: 106 | FY10: 106 | FZ10: 106 | GA10: 2,632 | GB10: 8,151 | GC10: 123 | GD10: 90 | GE10: 80 | GF10: 9,315 | GG10: 156,250 | GH10: 220 | GI10: 872 | GJ10: 225 | GK10: 125 | GL10: 998 | GM10: 21,175 | GN10: 500 | GO10: 174 | GP10: 769 | GQ10: 225 | GR10: 56 | GS10: 125 | GT10: 1,000 | GU10: 2,632 | GV10: 998 | GW10: 998 | GX10: 41,182 | GY10: 2,016 | GZ10: 173,900 | HA10: 156,250 | HB10: 2,632 | HC10: 2,632 | HD10: 2,632 | HE10: 35,660 | HF10: 10 | HG10: 10,240,000 | HH10: 3,627 | HI10: 10,240,000 | HJ10: 301 | HK10: 225 | HL10: 225 | HM10: 2,184,750 | HN10: 43,546 | HO10: 2,184,750 | HQ10: 1,000,000 | HR10: 90 | HS10: 3,760 | HT10: 3,760 | HU10: 4,620 | HV10: 4,620 | HW10: 4,620 | HX10: 4,620 | IB10: 4,620 | IC10: 30 | ID10: 26 | IE10: 1,067 | IF10: 2,184,750 | IG10: 2,184,750 | IH10: 2,185,000 | II10: 1,067 | IJ10: 998 | IK10: 3,627 | IL10: 1,067 | IM10: 1,067 | IN10: 242 | IO10: 86 | IP10: 4,236,500 | IQ10: 4,236,500 | IR10: 10,000 | IS10: 226 | IT10: 769 | IU10: 589 | IV10: 17,757 | IW10: 12,000 | IX10: 1,152 | IY10: 998 | IZ10: 56 | JA10: 31,037 | JC10: 1,950 | JD10: 1,073 | JF10: 3,847 | JG10: 78 | JH10: 769 | JJ10: 251,717 | JK10: 22,836 | JM10: 31,037 | JN10: 30,900 | JO10: 1,000 | JP10: 17,757 | JR10: 134 | JS10: 1,000 | JT10: 72 | JU10: 22,836 | JV10: 41 | JW10: 174 | JX10: 174 | JY10: 50 | JZ10: 3,847 | KA10: 600 | KB10: 288,735 | KC10: 388 | KD10: 2,000 | KE10: 11,354 | KH10: 35,660 | KJ10: 59,677 | KK10: 100,000 | KL10: 600 | KM10: 727 | KN10: 3,760 | KO10: 46 | KP10: 228 | KQ10: 2,287 | KR10: 2 | KS10: 105 | KT10: 3,394 | KU10: 220 | KV10: 2,197 | KW10: 145,600 | KX10: 157,643 | KY10: 28 | KZ10: 30 | LA10: 889 | LB10: 889 | LE10: 98 | LI10: 205 | LJ10: 728 | LK10: 769 | LL10: 79 | LM10: 304 | LN10: 304 | LO10: 228 | LP10: 78 | LQ10: 145 | LR10: 80 | LS10: 241 | LW10: 3,534 | LX10: 239 | LY10: 2,556 | LZ10: 220 | MA10: 225 | MB10: 2,632 | MC10: 156,250 | MD10: 769 | ME10: 228 | MF10: 3,394 | MG10: 9,100 | MH10: 4,998 | MI10: 225 | MJ10: 9,598 | MK10: 59,677 | ML10: 59,677 | MM10: 41,182 | MN10: 105 | MO10: 226 | MQ10: 400 | MR10: 316 | MS10: 174 | MT10: 134 | MU10: 2,632 | MV10: 28,700 | MW10: 600 | MX10: 28,700 | MY10: 7,566 | MZ10: 1,000,000 | NA10: 1,000,000 | NB10: 1,100 | NC10: 80 | ND10: 74 | NE10: 1,417 | NF10: 109 | NI10: 37,480 | NK10: 20 | NL10: 1,000,000 | NM10: 17,491 | NN10: 316 | NO10: 1,067 | NP10: 156,250 | NQ10: 54 | NR10: 54 | NS10: 54 | NT10: 54 | NV10: 12,000 | NW10: 3,104 | NX10: 769 | NY10: 45 | NZ10: 2,632 | OA10: 4,753 | OB10: 4,753 | OC10: 12 | OD10: 137 | OE10: 125 | OF10: 18 | OG10: 52 | OH10: 13,120 | OI10: 225 | OJ10: 225 | OK10: 3,534 | OL10: 205 | OM10: 4,620 | OO10: 26,062 | OP10: 1,000 | OQ10: 4,483 | OS10: 236,610 | OT10: 727 | OU10: 402 | OV10: 1,440 | OW10: 45 | OY10: 700 | OZ10: 2,632 | PB10: 145 | PC10: 2,252 | PD10: 10,240,000 | PE10: 10,240,000 | PF10: 156 | PH10: 157,450 | PI10: 1,067 | PK10: 46 | PL10: 353 | PN10: 43 | PO10: 137 | PP10: 8,151 | PQ10: 32 | PR10: 1,950 | PS10: 21 | PT10: 335 | PU10: 10,000 | PV10: 157,450 | PW10: 25 | PX10: 9,100 | PY10: 80 | PZ10: 600 | QA10: 620 | QB10: 620 | QC10: 8,151 | QD10: 41,182 | QE10: 112 | QF10: 727 | QG10: 4,753 | QH10: 54 | QI10: 217 | QJ10: 13,120 | QK10: 998 | QM10: 998 | QN10: 727 | QP10: 41,182 | QQ10: 79 | QR10: 145,600 | QS10: 26 | QT10: 74 | QV10: 35,660 | QW10: 112 | QX10: 200 | QY10: 3,104 | QZ10: 112 | RA10: 112 | RB10: 30,714 | RC10: 30,714 | RD10: 79 | RE10: 18 | RG10: 25 | RH10: 400 | RI10: 903,012 | RJ10: 226 | RK10: 226 | RL10: 25 | RM10: 402 | RN10: 38 | RO10: 1,000 | RP10: 40 | RQ10: 40 | RR10: 517 | RU10: 3,500,000 | RY10: 10,000 | RZ10: 21 | SA10: 769 | SC10: 30 | SD10: 30 | SE10: 30 | SF10: 2,252 | SG10: 26,062 | SH10: 217 | SI10: 9,598 | SJ10: 8,151 | SK10: 40 | SL10: 225 | SM10: 1,000,000 | SN10: 30,900 | SO10: 769 | SP10: 173,900 | SR10: 18 | SS10: 137 | ST10: 1,073 | SV10: 769 | SW10: 728 | SX10: 72 | SY10: 200 | SZ10: 353 | TB10: 3,200 | TC10: 165 | TD10: 1,000 | TE10: 7,566 | TF10: 30 | TG10: 477 | TH10: 106 | TI10: 1,000,000 | TJ10: 600 | TL10: 17,491 | TM10: 998 | TN10: 73 | TO10: 100,000 | TP10: 998 | TQ10: 750 | TR10: 13 | TS10: 965 | TU10: 3,394 | TW10: 9,315 | TX10: 12,000 | TY10: 251,717 | UB10: 1,100 | UC10: 21,175 | UE10: 223 | UF10: 137 | UG10: 75 | UH10: 11,354 | UI10: 43,546 | UJ10: 903,012 | UK10: 123 | UL10: 43 | UM10: 9,598 | UN10: 23 | UO10: 9,100 | UP10: 1,073 | UQ10: 15,800 | UR10: 301 | US10: 374 | UT10: 28 | UU10: 174 | UV10: 174 | UW10: 174 | UX10: 174 | UY10: 364 | UZ10: 174 | VA10: 589 | VB10: 589 | VC10: 3,760 | VD10: 21,175 | VE10: 378 | VG10: 2,016 | VJ10: 2,556 | VK10: 400 | VL10: 149 | VN10: 2,252 | VO10: 2,252 | VQ10: 1,073 | VR10: 2,556 | VS10: 145 | VT10: 1,000 | VU10: 50 | VV10: 1,816 | VW10: 477 | VX10: 30 | VY10: 866 | WB10: 72 | WC10: 226 | WD10: 11,354 | WE10: 12 | WF10: 73 | WG10: 300 | WH10: 8,151 | WI10: 727 | WJ10: 2,184,750 | WK10: 2,185,000 | WL10: 727 | WM10: 30 | WO10: 9,629 | WP10: 727 | WQ10: 998 | WR10: 225 | WS10: 9,598 | WU10: 40 | WV10: 3,200 | WW10: 378 | WX10: 28,700 | WY10: 28,700 | WZ10: 28,700 | XA10: 700 | XB10: 744 | XD10: 17,757 | XE10: 20 | XG10: 21 | XH10: 866 | XI10: 3,760 | XJ10: 28 | XK10: 23 | XL10: 11,354 | XM10: 9,629 | XN10: 9,100 | XO10: 109 | XP10: 38 | XQ10: 226 | XR10: 75 | XS10: 300 | XT10: 378 | XU10: 130 | XV10: 98 | XW10: 205 | XY10: 66 | XZ10: 43 | YA10: 225 | YB10: 18 | YC10: 3,760 | YD10: 236,610 | YE10: 364 | YF10: 90 | YG10: 80 | YH10: 772 | YI10: 866 | YJ10: 59,677 | YK10: 149 | YL10: 727 | YM10: 727 | YO10: 236,610 | YP10: 727 | YQ10: 30 | YR10: 2,252 | YT10: 9,500 | YU10: 43 | YV10: 3,500,000 | YW10: 85 | YX10: 41 | YY10: 251,717 | YZ10: 2,000 | ZA10: 2,000 | ZB10: 378 | ZC10: 378 | ZD10: 889 | ZE10: 2,000 | ZF10: 889 | ZG10: 12,000 | ZH10: 220 | ZI10: 400 | ZJ10: 156 | ZK10: 769 | ZL10: 517 | ZN10: 236,610 | ZO10: 236,610 | ZP10: 1,816 | ZQ10: 205 | ZR10: 769 | ZS10: 769 | ZU10: 769 | ZV10: 80 | ZW10: 225 | ZX10: 3,983 | ZY10: 26,062 | ZZ10: 66 | AAA10: 38 | AAC10: 500 | AAF10: 1,000 | AAG10: 1,152 | AAH10: 1,417 | AAI10: 2,967 | AAJ10: 3,983 | AAM10: 21,175 | AAN10: 2,252 | AAO10: 1 | AAP10: 220 | AAQ10: 9,629 | AAR10: 1,000,000 | AAS10: 54 | AAT10: 63,300 | AAV10: 220 | AAX10: 205 | AAY10: 245 | AAZ10: 2,632 | ABA10: 17,757 | ABB10: 750 | ABC10: 169 | ABE10: 589 | ABF10: 1,373 | ABG10: 2,287 | ABI10: 1,373 | ABJ10: 2,967 | ABK10: 15,800 | ABL10: 205 | ABM10: 409 | ABO10: 205 | ABP10: 374 | ABR10: 28,700 | ABT10: 64,300 | ABU10: 12,000 | ABV10: 106 | ABW10: 38 | ABX10: 589 | ABY10: 364 | ACA10: 364 | ACC10: 241 | ACD10: 30,714 | ACF10: 5 | ACG10: 8,151 | ACH10: 205 | ACI10: 9,629 | ACJ10: 99 | ACK10: 9,629 | ACM10: 86 | ACN10: 2,967 | ACP10: 223 | ACQ10: 589 | ACR10: 90 | ACS10: 52 | ACT10: 40 | ACU10: 2,632 | ACV10: 2,632 | ACW10: 889 | ACX10: 205 | ACY10: 165 | ACZ10: 1,224
A11: 14.9 - t1/2 (DT50) | C11: 10.0 | D11: 354.0 | E11: 30.0 | F11: 30.0 | G11: 26.0 | H11: 10.0 | I11: 7.0 | J11: 7.0 | K11: 7.0 | L11: 1.6 | M11: 14.0 | O11: 59.0 | P11: 4.0 | Q11: 39.2 | R11: 32.0 | S11: 50.0 | T11: 11.6 | U11: 48.0 | V11: 1.0 | W11: 8.8 | X11: 78.0 | Y11: 12.1 | Z11: 14.0 | AA11: 14.0 | AB11: 908.0 | AC11: 23.0 | AD11: 0.1 | AE11: 150.0 | AF11: 24.0 | AG11: 597.0 | AH11: 142.0 | AI11: 141.0 | AJ11: 60.0 | AK11: 1.8 | AL11: 37.0 | AM11: 37.0 | AN11: 21.0 | AO11: 10.0 | AP11: 35.0 | AQ11: 78.0 | AR11: 0.2 | AS11: 30.0 | AT11: 200.2 | AU11: 4.9 | AV11: 4.3 | AW11: 92.0 | AX11: 55.4 | AY11: 11.0 | AZ11: 24.4 | BA11: 142.0 | BB11: 6.5 | BC11: 16.3 | BD11: 10.0 | BE11: 1.5 | BF11: 13.1 | BG11: 142.0 | BH11: 3.2 | BI11: 3.2 | BJ11: 90.0 | BK11: 350.0 | BL11: 354.0 | BM11: 75.0 | BN11: 75.0 | BO11: 60.0 | BP11: 75.0 | BQ11: 3.7 | BR11: 214.0 | BS11: 10,000.0 | BT11: 8.0 | BU11: 1.0 | BV11: 1.6 | BW11: 400.0 | BX11: 7.0 | BY11: 113.2 | BZ11: 30.0 | CC11: 64.0 | CD11: 78.0 | CE11: 78.0 | CF11: 191.0 | CG11: 13.0 | CH11: 0.5 | CI11: 250.0 | CJ11: 7.0 | CK11: 8.0 | CL11: 268.0 | CM11: 33.2 | CN11: 40.0 | CO11: 34.4 | CP11: 0.5 | CQ11: 0.5 | CR11: 13.0 | CS11: 13.8 | CU11: 908.0 | CV11: 13.0 | CW11: 0.1 | CX11: 26.0 | CY11: 26.0 | CZ11: 450.0 | DB11: 13.0 | DC11: 26.0 | DD11: 80.5 | DE11: 10.0 | DF11: 59.0 | DG11: 2,345.0 | DH11: 34.0 | DI11: 541.0 | DJ11: 200.0 | DK11: 200.0 | DL11: 7.0 | DM11: 60.0 | DO11: 190.0 | DP11: 13.0 | DQ11: 7.0 | DR11: 55.4 | DS11: 400.0 | DT11: 38.0 | DU11: 19.6 | DV11: 0.1 | DW11: 0.9 | DX11: 23.0 | DY11: 200.0 | DZ11: 0.8 | EA11: 0.8 | EB11: 0.7 | EC11: 26.0 | ED11: 16.0 | EE11: 40.0 | EF11: 40.0 | EG11: 3.1 | EH11: 40.0 | EI11: 21.0 | EJ11: 0.5 | EK11: 86.0 | EL11: 1.0 | EO11: 42.0 | EQ11: 50.0 | ER11: 7.0 | ES11: 1,358.0 | ET11: 8.5 | EU11: 0.6 | EV11: 0.5 | EW11: 9.2 | EX11: 22.0 | EY11: 3.7 | EZ11: 4.0 | FA11: 5.0 | FB11: 34.4 | FC11: 10.0 | FD11: 1,161.0 | FE11: 15.0 | FF11: 13.0 | FG11: 191.0 | FH11: 11.0 | FI11: 1.7 | FJ11: 60.0 | FK11: 60.0 | FL11: 142.0 | FM11: 37.0 | FN11: 93.0 | FO11: 40.0 | FP11: 0.6 | FQ11: 0.8 | FR11: 22.6 | FS11: 11.0 | FT11: 597.0 | FU11: 1.4 | FV11: 90.0 | FW11: 39.3 | FX11: 40.0 | FY11: 40.0 | FZ11: 40.0 | GA11: 9.2 | GB11: 50.0 | GC11: 545.0 | GD11: 49.0 | GE11: 400.0 | GF11: 32.0 | GG11: 60.0 | GH11: 11.0 | GI11: 190.0 | GJ11: 191.0 | GK11: 11.0 | GL11: 0.1 | GM11: 10.0 | GN11: 8.0 | GO11: 75.0 | GP11: 63.0 | GQ11: 191.0 | GR11: 50.0 | GS11: 11.0 | GT11: 0.1 | GU11: 9.2 | GV11: 0.1 | GW11: 0.1 | GX11: 16.3 | GY11: 7.0 | GZ11: 9.0 | HA11: 60.0 | HB11: 9.2 | HC11: 9.2 | HD11: 9.2 | HE11: 34.0 | HF11: 0.5 | HG11: 13.0 | HH11: 10.5 | HI11: 13.0 | HJ11: 597.0 | HK11: 40.0 | HL11: 40.0 | HM11: 2,345.0 | HN11: 0.5 | HO11: 2,345.0 | HP11: 9.6 | HQ11: 3,000.0 | HR11: 49.0 | HS11: 130.0 | HT11: 130.0 | HU11: 3.0 | HV11: 3.0 | HW11: 3.0 | HX11: 3.0 | HY11: 2.5 | HZ11: 72.7 | IA11: 2.5 | IB11: 3.0 | IC11: 21.0 | ID11: 82.0 | IE11: 75.5 | IF11: 2,345.0 | IG11: 2,345.0 | IH11: 2,345.0 | II11: 75.5 | IJ11: 0.1 | IK11: 10.5 | IL11: 75.5 | IM11: 75.5 | IN11: 10.0 | IO11: 13.0 | IP11: 4.7 | IQ11: 4.7 | IR11: 4.0 | IS11: 15.0 | IT11: 63.0 | IU11: 78.0 | IV11: 11.0 | IW11: 10,000.0 | IX11: 61.0 | IY11: 0.1 | IZ11: 50.0 | JA11: 7.0 | JB11: 6.5 | JC11: 30.0 | JD11: 354.0 | JE11: 1.7 | JF11: 41.1 | JG11: 25.4 | JH11: 63.0 | JI11: 50.9 | JJ11: 66.6 | JK11: 16.1 | JM11: 7.0 | JN11: 4.1 | JO11: 150.0 | JP11: 11.0 | JR11: 18.0 | JS11: 20.0 | JT11: 7.0 | JU11: 16.1 | JV11: 2.2 | JW11: 75.0 | JX11: 75.0 | JY11: 450.0 | JZ11: 41.1 | KA11: 7.4 | KB11: 23.0 | KC11: 8.5 | KD11: 2.7 | KE11: 0.4 | KF11: 99.6 | KG11: 135.1 | KH11: 34.0 | KI11: 35.0 | KJ11: 26.8 | KK11: 13.0 | KL11: 7.4 | KM11: 142.0 | KN11: 130.0 | KO11: 41.2 | KP11: 86.0 | KQ11: 0.3 | KR11: 3.1 | KS11: 39.8 | KT11: 1.0 | KU11: 11.0 | KV11: 8.0 | KW11: 164.0 | KX11: 42.0 | KY11: 45.0 | KZ11: 2.5 | LA11: 21.9 | LB11: 21.9 | LC11: 271.0 | LD11: 309.0 | LE11: 57.1 | LF11: 350.0 | LG11: 13.1 | LH11: 400.0 | LI11: 1,358.0 | LJ11: 183.0 | LK11: 62.0 | LL11: 6.5 | LM11: 4.7 | LN11: 4.7 | LO11: 86.0 | LP11: 25.4 | LQ11: 0.9 | LR11: 400.0 | LS11: 34.4 | LT11: 72.7 | LU11: 0.1 | LW11: 3.2 | LX11: 13.0 | LY11: 0.5 | LZ11: 11.0 | MA11: 40.0 | MB11: 9.2 | MC11: 60.0 | MD11: 63.0 | ME11: 86.0 | MF11: 1.0 | MG11: 0.5 | MH11: 33.2 | MI11: 191.0 | MJ11: 72.0 | MK11: 26.8 | ML11: 26.8 | MM11: 16.3 | MN11: 39.8 | MO11: 15.0 | MQ11: 41.0 | MR11: 37.0 | MS11: 75.0 | MT11: 18.0 | MU11: 9.2 | MV11: 12.0 | MW11: 7.4 | MX11: 12.0 | MY11: 35.0 | MZ11: 3,000.0 | NA11: 3,000.0 | NB11: 39.0 | NC11: 400.0 | ND11: 64.0 | NE11: 1.3 | NF11: 26.7 | NG11: 0.5 | NH11: 10.0 | NI11: 80.5 | NJ11: 1,161.0 | NL11: 3,000.0 | NM11: 182.3 | NN11: 37.0 | NO11: 75.5 | NP11: 60.0 | NQ11: 105.0 | NR11: 105.0 | NS11: 105.0 | NT11: 105.0 | NU11: 30.0 | NV11: 10,000.0 | NW11: 26.0 | NX11: 63.0 | NY11: 2.7 | NZ11: 9.2 | OA11: 76.3 | OB11: 76.3 | OC11: 200.2 | OD11: 120.0 | OE11: 11.0 | OF11: 60.0 | OG11: 90.0 | OH11: 15.0 | OI11: 191.0 | OJ11: 191.0 | OK11: 3.2 | OL11: 1,358.0 | OM11: 3.0 | OO11: 92.0 | OP11: 150.0 | OQ11: 113.2 | OR11: 39.3 | OS11: 26.0 | OT11: 142.0 | OU11: 146.0 | OV11: 15.0 | OW11: 2.7 | OX11: 50.0 | OY11: 3.7 | OZ11: 9.2 | PA11: 37.1 | PB11: 0.9 | PC11: 214.0 | PD11: 13.0 | PE11: 13.0 | PF11: 14.0 | PG11: 0.1 | PH11: 25.0 | PI11: 75.5 | PK11: 41.2 | PL11: 12.5 | PM11: 37.1 | PN11: 541.0 | PO11: 120.0 | PP11: 50.0 | PQ11: 60.0 | PR11: 30.0 | PS11: 26.0 | PT11: 14.0 | PU11: 4.0 | PV11: 25.0 | PW11: 7.0 | PX11: 0.5 | PY11: 400.0 | PZ11: 7.4 | QA11: 48.0 | QB11: 48.0 | QC11: 50.0 | QD11: 16.3 | QE11: 19.6 | QF11: 142.0 | QG11: 76.3 | QH11: 105.0 | QI11: 0.2 | QJ11: 15.0 | QK11: 0.1 | QL11: 49.1 | QM11: 0.1 | QN11: 142.0 | QO11: 21.0 | QP11: 16.3 | QQ11: 6.5 | QR11: 164.0 | QS11: 82.0 | QT11: 12.1 | QU11: 268.0 | QV11: 34.0 | QW11: 19.6 | QX11: 0.8 | QY11: 26.0 | QZ11: 19.6 | RA11: 19.6 | RB11: 141.0 | RC11: 141.0 | RD11: 6.5 | RE11: 7.0 | RF11: 142.2 | RG11: 7.0 | RH11: 10.0 | RI11: 1.3 | RJ11: 15.0 | RK11: 15.0 | RL11: 7.0 | RM11: 146.0 | RN11: 11.5 | RO11: 150.0 | RP11: 10.0 | RQ11: 10.0 | RR11: 560.0 | RS11: 400.0 | RT11: 2,416.0 | RV11: 82.4 | RW11: 400.0 | RY11: 4.0 | RZ11: 26.0 | SA11: 63.0 | SC11: 26.0 | SD11: 26.0 | SE11: 26.0 | SF11: 214.0 | SG11: 92.0 | SH11: 0.2 | SI11: 72.0 | SJ11: 50.0 | SK11: 10.0 | SL11: 191.0 | SM11: 3,000.0 | SN11: 4.1 | SO11: 63.0 | SP11: 9.0 | SQ11: 56.0 | SR11: 60.0 | SS11: 120.0 | ST11: 354.0 | SU11: 142.2 | SV11: 63.0 | SW11: 183.0 | SX11: 7.0 | SY11: 0.8 | SZ11: 12.5 | TA11: 135.1 | TB11: 502.0 | TC11: 121.2 | TD11: 0.1 | TE11: 35.0 | TF11: 11.0 | TG11: 0.2 | TH11: 40.0 | TI11: 3,000.0 | TJ11: 7.4 | TK11: 82.4 | TL11: 182.3 | TM11: 0.1 | TN11: 21.7 | TO11: 13.0 | TP11: 0.1 | TQ11: 250.0 | TR11: 23.0 | TS11: 24.4 | TT11: 2,416.0 | TU11: 1.0 | TV11: 5.0 | TW11: 32.0 | TX11: 1.4 | TY11: 66.6 | TZ11: 55.0 | UA11: 50.9 | UB11: 39.0 | UC11: 10.0 | UD11: 60.0 | UE11: 22.0 | UF11: 120.0 | UG11: 1.2 | UH11: 0.4 | UI11: 0.5 | UJ11: 1.3 | UK11: 545.0 | UL11: 541.0 | UM11: 72.0 | UN11: 0.6 | UO11: 0.5 | UP11: 354.0 | UQ11: 181.0 | UR11: 597.0 | US11: 237.0 | UT11: 45.0 | UU11: 75.0 | UV11: 75.0 | UW11: 75.0 | UX11: 75.0 | UY11: 142.0 | UZ11: 75.0 | VA11: 78.0 | VB11: 78.0 | VC11: 130.0 | VD11: 10.0 | VE11: 7.0 | VG11: 7.0 | VH11: 8.0 | VI11: 99.6 | VJ11: 0.5 | VK11: 41.0 | VL11: 0.4 | VM11: 56.0 | VN11: 214.0 | VO11: 214.0 | VP11: 4.3 | VQ11: 354.0 | VR11: 0.5 | VS11: 0.9 | VT11: 150.0 | VU11: 450.0 | VV11: 2.0 | VW11: 0.2 | VX11: 2.5 | VY11: 1.0 | VZ11: 9.6 | WA11: 50.0 | WB11: 7.0 | WC11: 15.0 | WD11: 0.4 | WE11: 200.2 | WF11: 21.7 | WG11: 22.6 | WH11: 50.0 | WI11: 142.0 | WJ11: 2,345.0 | WK11: 2,345.0 | WL11: 142.0 | WM11: 2.5 | WN11: 49.1 | WO11: 4.9 | WP11: 142.0 | WQ11: 0.1 | WR11: 191.0 | WS11: 72.0 | WT11: 13.0 | WU11: 10.0 | WV11: 502.0 | WW11: 7.0 | WX11: 12.0 | WY11: 12.0 | WZ11: 12.0 | XA11: 3.7 | XB11: 39.2 | XC11: 38.0 | XD11: 11.0 | XF11: 55.0 | XG11: 26.0 | XH11: 1.0 | XI11: 130.0 | XJ11: 45.0 | XK11: 0.6 | XL11: 0.4 | XM11: 4.9 | XN11: 0.5 | XO11: 26.7 | XP11: 11.5 | XQ11: 15.0 | XR11: 1.2 | XS11: 16.0 | XT11: 7.0 | XU11: 60.0 | XV11: 57.1 | XW11: 1,358.0 | XY11: 30.0 | XZ11: 541.0 | YA11: 191.0 | YB11: 60.0 | YC11: 130.0 | YD11: 26.0 | YE11: 142.0 | YF11: 49.0 | YG11: 400.0 | YH11: 200.0 | YI11: 1.0 | YJ11: 26.8 | YK11: 0.4 | YL11: 142.0 | YM11: 142.0 | YN11: 60.0 | YO11: 26.0 | YP11: 142.0 | YQ11: 26.0 | YR11: 214.0 | YT11: 0.1 | YU11: 541.0 | YW11: 24.0 | YX11: 2.2 | YY11: 66.6 | YZ11: 2.7 | ZA11: 2.7 | ZB11: 7.0 | ZC11: 7.0 | ZD11: 21.9 | ZE11: 2.7 | ZF11: 20.0 | ZG11: 10,000.0 | ZH11: 0.5 | ZI11: 10.0 | ZJ11: 14.0 | ZK11: 63.0 | ZL11: 560.0 | ZM11: 30.0 | ZN11: 26.0 | ZO11: 26.0 | ZP11: 2.0 | ZQ11: 1,358.0 | ZR11: 63.0 | ZS11: 63.0 | ZT11: 400.0 | ZU11: 63.0 | ZV11: 400.0 | ZW11: 40.0 | ZX11: 500.0 | ZY11: 92.0 | ZZ11: 30.0 | AAA11: 11.5 | AAB11: 10.0 | AAC11: 8.0 | AAD11: 72.0 | AAE11: 72.0 | AAF11: 20.0 | AAG11: 61.0 | AAH11: 1.3 | AAI11: 22.0 | AAJ11: 500.0 | AAK11: 0.9 | AAL11: 11.6 | AAM11: 10.0 | AAN11: 214.0 | AAO11: 0.7 | AAP11: 0.5 | AAQ11: 4.9 | AAR11: 3,000.0 | AAS11: 105.0 | AAT11: 4.0 | AAU11: 0.8 | AAV11: 0.5 | AAW11: 35.0 | AAX11: 1,358.0 | AAY11: 13.8 | AAZ11: 9.2 | ABA11: 11.0 | ABB11: 250.0 | ABC11: 450.0 | ABD11: 1.5 | ABE11: 78.0 | ABF11: 13.0 | ABG11: 0.3 | ABH11: 6.5 | ABI11: 13.0 | ABJ11: 22.0 | ABK11: 181.0 | ABL11: 1,358.0 | ABM11: 93.0 | ABO11: 1,358.0 | ABP11: 237.0 | ABR11: 12.0 | ABS11: 37.0 | ABT11: 13.0 | ABU11: 10,000.0 | ABV11: 40.0 | ABW11: 11.5 | ABX11: 78.0 | ABY11: 142.0 | ABZ11: 309.0 | ACA11: 142.0 | ACB11: 0.5 | ACC11: 34.4 | ACD11: 141.0 | ACE11: 35.0 | ACF11: 30.0 | ACG11: 50.0 | ACH11: 1,358.0 | ACI11: 4.9 | ACJ11: 0.5 | ACK11: 4.9 | ACM11: 13.0 | ACN11: 22.0 | ACO11: 271.0 | ACP11: 22.0 | ACQ11: 78.0 | ACR11: 1.8 | ACS11: 90.0 | ACT11: 10.0 | ACU11: 9.2 | ACV11: 9.2 | ACW11: 21.9 | ACX11: 1,358.0 | ACY11: 121.2 | ACZ11: 5.5
A12: Índice de vulnerabilidade GUS (IUPAC) (>2) | C12: 1.62 | D12: 2.47 | E12: 0.26 | F12: 0.26 | G12: 3.79 | H12: 2.40 | I12: 1.81 | J12: 1.81 | K12: 1.81 | L12: 2.18 | M12: 1.58 | O12: 3.15 | P12: 0.00 | Q12: -0.92 | R12: 0.05 | S12: 3.82 | T12: 3.42 | U12: 2.03 | V12: 0.00 | X12: 2.65 | Y12: 3.13 | Z12: 1.08 | AA12: 1.08 | AB12: 0.91 | AC12: -2.00 | AE12: 2.18 | AF12: 3.92 | AG12: 4.22 | AH12: 3.10 | AI12: -1.05 | AJ12: -2.12 | AK12: 0.55 | AL12: 0.52 | AM12: 0.52 | AN12: 4.89 | AO12: 1.62 | AP12: 3.34 | AQ12: 2.65 | AR12: 0.00 | AS12: 0.26 | AT12: 6.76 | AU12: 0.01 | AW12: -0.82 | AX12: 1.21 | AY12: 1.73 | AZ12: 1.35 | BA12: 3.10 | BB12: 1.71 | BC12: -0.75 | BD12: 4.77 | BF12: 1.03 | BG12: 3.10 | BH12: 2.58 | BI12: 2.58 | BJ12: -0.62 | BK12: 2.30 | BL12: 2.47 | BM12: 3.30 | BN12: 3.30 | BO12: 2.20 | BP12: 3.30 | BQ12: 0.58 | BR12: 1.51 | BS12: -0.32 | BT12: 0.47 | BU12: 0.00 | BV12: 2.18 | BW12: 5.46 | BX12: 1.81 | BY12: 0.27 | BZ12: 0.26 | CC12: 1.18 | CD12: 2.65 | CE12: 2.65 | CF12: 3.76 | CG12: 2.30 | CH12: 0.13 | CI12: 3.34 | CJ12: 2.20 | CK12: 3.98 | CL12: 1.06 | CM12: 2.29 | CN12: 2.53 | CO12: 2.63 | CP12: -0.04 | CQ12: -0.03 | CR12: 2.30 | CS12: 1.99 | CU12: 0.91 | CV12: -0.90 | CW12: -4.00 | CX12: -2.66 | CY12: -2.66 | CZ12: 3.89 | DB12: 1.21 | DC12: -2.66 | DD12: -1.09 | DE12: -0.27 | DF12: 3.15 | DG12: -2.29 | DH12: -0.85 | DI12: 6.17 | DJ12: 2.66 | DK12: 2.66 | DL12: 2.20 | DM12: 3.44 | DO12: 2.23 | DP12: -0.90 | DQ12: 2.32 | DR12: 1.21 | DS12: 5.46 | DT12: 2.62 | DU12: 2.69 | DV12: -0.02 | DW12: 1.10 | DX12: 4.14 | DY12: 2.66 | DZ12: 0.00 | EA12: 0.00 | EB12: -0.56 | EC12: -2.66 | ED12: 2.02 | EE12: 2.53 | EF12: 2.53 | EG12: 1.87 | EH12: 2.53 | EI12: 0.89 | EJ12: 2.01 | EK12: 3.18 | EL12: 0.00 | EO12: -3.14 | EQ12: 0.15 | ER12: 1.81 | ES12: 5.40 | ET12: 1.31 | EU12: -0.69 | EV12: -0.50 | EW12: 0.86 | EX12: -0.05 | EY12: 0.58 | EZ12: -0.48 | FA12: 1.33 | FB12: 2.63 | FC12: 0.57 | FD12: 2.56 | FE12: 0.99 | FF12: 2.48 | FG12: 3.76 | FH12: 1.73 | FI12: 1.47 | FJ12: -2.12 | FK12: -2.12 | FL12: 3.10 | FM12: 1.06 | FN12: 2.09 | FO12: 3.16 | FP12: -0.69 | FQ12: -0.08 | FR12: 2.72 | FS12: 2.52 | FT12: 4.22 | FU12: -0.01 | FV12: -0.62 | FW12: 1.50 | FX12: 3.16 | FY12: 3.16 | FZ12: 3.16 | GA12: 0.86 | GB12: 0.15 | GC12: 3.74 | GD12: 3.46 | GE12: 5.36 | GF12: 0.05 | GG12: -2.12 | GH12: 1.73 | GI12: 2.23 | GJ12: 3.76 | GK12: 1.98 | GL12: -1.00 | GM12: -0.27 | GN12: 1.25 | GO12: 3.30 | GP12: 2.85 | GQ12: 3.76 | GR12: 3.82 | GS12: 1.98 | GT12: -1.00 | GU12: 0.86 | GV12: -1.00 | GW12: -1.00 | GX12: -0.75 | GY12: 0.59 | GZ12: -1.17 | HA12: -2.12 | HB12: 0.86 | HC12: 0.86 | HD12: 0.86 | HE12: -0.85 | HF12: 0.13 | HG12: -3.35 | HH12: 0.68 | HI12: -3.35 | HJ12: 4.22 | HK12: 2.53 | HL12: 2.53 | HM12: -2.29 | HN12: 0.19 | HO12: -2.29 | HP12: 1.94 | HQ12: -6.95 | HR12: 3.46 | HS12: 0.90 | HT12: 0.90 | HU12: 0.16 | HV12: 0.16 | HW12: 0.16 | HX12: 0.16 | HY12: 2.18 | HZ12: 2.26 | IA12: 2.18 | IB12: 0.16 | IC12: 4.89 | ID12: 4.85 | IE12: 1.83 | IF12: -2.29 | IG12: -2.29 | IH12: -7.60 | II12: 1.83 | IJ12: -1.00 | IK12: 0.68 | IL12: 1.83 | IM12: 1.83 | IN12: 1.62 | IO12: 2.30 | IP12: -2.95 | IQ12: -2.95 | IR12: 0.00 | IS12: 1.94 | IT12: 2.85 | IU12: 2.65 | IV12: -0.30 | IW12: -0.32 | IX12: 1.81 | IY12: -1.00 | IZ12: 3.82 | JA12: -0.42 | JB12: 1.81 | JC12: -0.71 | JD12: 2.47 | JE12: 1.47 | JF12: 1.09 | JG12: 2.95 | JH12: 2.85 | JI12: 2.17 | JJ12: -2.55 | JK12: 0.27 | JM12: -0.42 | JN12: -0.16 | JO12: 2.18 | JP12: -0.30 | JR12: 2.33 | JS12: 1.47 | JT12: 1.81 | JU12: 0.27 | JV12: 1.35 | JW12: 3.30 | JX12: 3.30 | JY12: 6.29 | JZ12: 1.09 | KA12: 1.06 | KB12: -2.00 | KC12: 1.31 | KD12: 0.48 | KE12: 0.02 | KF12: 1.98 | KG12: 0.26 | KH12: -0.85 | KI12: 0.50 | KJ12: -1.11 | KK12: -1.62 | KL12: 1.06 | KM12: 2.45 | KN12: 0.90 | KO12: 2.50 | KP12: 3.18 | KQ12: -0.30 | KR12: 1.87 | KS12: 3.38 | KT12: 0.00 | KU12: 1.73 | KV12: 3.98 | KW12: -1.35 | KX12: -3.14 | KY12: 4.22 | KZ12: 1.00 | LA12: 1.41 | LB12: 1.41 | LC12: 3.20 | LD12: 3.23 | LE12: 3.53 | LF12: 2.30 | LG12: 1.03 | LH12: 2.29 | LI12: 5.29 | LJ12: 2.57 | LK12: 2.00 | LL12: 1.71 | LM12: 1.02 | LN12: 1.02 | LO12: 3.18 | LP12: 2.95 | LQ12: -0.10 | LR12: 5.46 | LS12: 2.63 | LT12: 2.26 | LW12: 0.48 | LX12: 2.48 | LY12: -0.18 | LZ12: 1.73 | MA12: 2.53 | MB12: 0.86 | MC12: -2.12 | MD12: 2.85 | ME12: 3.18 | MF12: 0.00 | MG12: -0.02 | MH12: 2.29 | MI12: 3.76 | MJ12: 0.02 | MK12: -1.10 | ML12: -1.11 | MM12: -0.75 | MN12: 3.38 | MO12: 1.94 | MQ12: 0.59 | MR12: 0.52 | MS12: 3.30 | MT12: 2.33 | MU12: 0.86 | MV12: -0.49 | MW12: 1.06 | MX12: -0.49 | MY12: 0.26 | MZ12: -6.95 | NA12: -6.95 | NB12: 1.03 | NC12: 5.46 | ND12: 1.18 | NE12: 1.64 | NF12: 2.25 | NH12: 0.57 | NI12: -1.09 | NJ12: 2.56 | NL12: -6.95 | NM12: -0.32 | NN12: 0.52 | NO12: 1.83 | NP12: -2.12 | NQ12: 4.58 | NR12: 4.58 | NS12: 4.58 | NT12: 4.58 | NU12: 0.03 | NV12: -0.32 | NW12: 0.72 | NX12: 2.85 | NY12: 1.01 | NZ12: 0.86 | OA12: 0.61 | OB12: 0.61 | OC12: 6.76 | OD12: 3.87 | OE12: 1.98 | OF12: 5.42 | OG12: 3.90 | OH12: -0.13 | OI12: 3.76 | OJ12: 3.76 | OK12: 0.48 | OL12: 5.40 | OM12: 0.16 | OO12: -0.82 | OP12: 2.18 | OQ12: 0.27 | OR12: 1.50 | OS12: -2.66 | OT12: 2.45 | OU12: 3.02 | OV12: 0.99 | OW12: 1.01 | OX12: 1.30 | OY12: 0.58 | OZ12: 0.86 | PA12: 1.99 | PB12: -0.10 | PC12: 1.51 | PD12: -3.35 | PE12: -3.35 | PF12: 1.58 | PG12: -4.00 | PH12: -1.67 | PI12: 1.83 | PK12: 2.50 | PL12: 1.59 | PM12: 1.99 | PN12: 6.21 | PO12: 3.87 | PP12: 0.15 | PQ12: 3.44 | PR12: -0.71 | PS12: 3.79 | PT12: 1.08 | PU12: 0.00 | PV12: -1.67 | PW12: 2.20 | PX12: -0.02 | PY12: 5.46 | PZ12: 1.06 | QA12: 2.03 | QB12: 2.03 | QC12: 0.15 | QD12: -0.75 | QE12: 2.69 | QF12: 2.45 | QG12: 0.61 | QH12: 4.58 | QI12: 0.00 | QJ12: -0.13 | QK12: -1.00 | QL12: 1.22 | QM12: -1.00 | QN12: 2.45 | QO12: 0.89 | QP12: -0.75 | QQ12: 1.71 | QR12: -1.35 | QS12: 4.85 | QT12: 3.13 | QU12: 1.06 | QV12: -0.85 | QW12: 2.69 | QX12: 0.00 | QY12: 0.72 | QZ12: 2.69 | RA12: 2.69 | RB12: -0.56 | RC12: -1.05 | RD12: 1.71 | RE12: 2.32 | RF12: 2.03 | RG12: 2.20 | RH12: 1.18 | RI12: -1.65 | RJ12: 1.94 | RK12: 1.94 | RL12: 2.20 | RM12: 3.02 | RN12: 2.57 | RO12: 2.18 | RP12: 2.40 | RQ12: 2.40 | RR12: 3.30 | RS12: 1.72 | RT12: 2.57 | RV12: 0.49 | RW12: 2.29 | RY12: 0.00 | RZ12: 3.79 | SA12: 2.85 | SC12: 3.25 | SD12: 3.25 | SE12: 3.25 | SF12: 1.51 | SG12: -0.82 | SH12: 0.00 | SI12: 0.02 | SJ12: 0.15 | SK12: 2.40 | SL12: 3.76 | SM12: -6.95 | SN12: -0.16 | SO12: 2.85 | SP12: -1.17 | SQ12: -0.86 | SR12: 5.42 | SS12: 3.87 | ST12: 2.47 | SU12: 2.03 | SV12: 2.85 | SW12: 2.57 | SX12: 1.81 | SY12: 0.00 | SZ12: 1.59 | TA12: 0.26 | TB12: 1.97 | TC12: 0.38 | TD12: -1.00 | TE12: 0.26 | TF12: 2.97 | TG12: -0.11 | TH12: 3.16 | TI12: -6.95 | TJ12: 1.06 | TK12: 0.49 | TL12: -0.32 | TM12: -1.00 | TN12: 1.56 | TO12: -1.62 | TP12: -1.00 | TQ12: 3.34 | TR12: 4.14 | TS12: 1.35 | TT12: 2.57 | TU12: 0.00 | TV12: 1.33 | TW12: 0.05 | TX12: -0.01 | TY12: -2.55 | TZ12: -1.20 | UA12: 2.17 | UB12: 1.03 | UC12: -0.27 | UE12: 2.22 | UF12: 3.87 | UG12: 1.49 | UH12: 0.02 | UI12: 0.19 | UJ12: -1.65 | UK12: 3.74 | UL12: 6.23 | UM12: 0.02 | UN12: -0.69 | UO12: -0.07 | UP12: 2.47 | UQ12: 0.13 | UR12: 4.22 | US12: 2.70 | UT12: 4.22 | UU12: 3.30 | UV12: 3.30 | UW12: 3.30 | UX12: 3.30 | UY12: 3.10 | UZ12: 3.30 | VA12: 2.65 | VB12: 2.65 | VC12: 0.90 | VD12: -0.27 | VE12: 4.12 | VG12: 0.59 | VH12: 0.47 | VI12: 1.98 | VJ12: -0.18 | VK12: 0.59 | VL12: -0.51 | VM12: -0.86 | VN12: 1.51 | VO12: 1.51 | VQ12: 2.47 | VR12: -0.18 | VS12: -0.10 | VT12: 2.18 | VU12: 6.29 | VV12: -0.29 | VW12: -0.11 | VX12: 1.00 | VY12: 0.00 | VZ12: 1.94 | WA12: 1.30 | WB12: 1.81 | WC12: 1.94 | WD12: 0.02 | WE12: 6.76 | WF12: 1.56 | WG12: 2.72 | WH12: 0.15 | WI12: 2.45 | WJ12: -2.29 | WK12: -7.60 | WL12: 2.45 | WM12: 1.00 | WN12: 1.22 | WO12: 0.01 | WP12: 2.45 | WQ12: -1.00 | WR12: 3.76 | WS12: 0.02 | WT12: 1.21 | WU12: 2.40 | WV12: 1.97 | WW12: 4.12 | WX12: -0.49 | WY12: -0.49 | WZ12: -0.49 | XA12: 0.58 | XB12: -0.92 | XC12: 2.62 | XD12: -0.30 | XF12: -1.20 | XG12: 3.79 | XH12: 0.00 | XI12: 0.90 | XJ12: 4.22 | XK12: -0.69 | XL12: 0.02 | XM12: 0.01 | XN12: -0.02 | XO12: 2.25 | XP12: 2.57 | XQ12: 1.94 | XR12: 1.49 | XS12: 2.02 | XT12: 4.12 | XU12: 2.20 | XV12: 3.53 | XW12: 5.29 | XY12: 3.22 | XZ12: 6.24 | YA12: 3.76 | YB12: 5.42 | YC12: 0.90 | YD12: -2.66 | YE12: 3.10 | YF12: 3.46 | YG12: 5.46 | YH12: 2.66 | YI12: 0.00 | YJ12: -1.11 | YK12: -0.51 | YL12: 2.45 | YM12: 2.45 | YO12: -2.66 | YP12: 2.45 | YQ12: 3.25 | YR12: 1.51 | YT12: -0.02 | YU12: 6.16 | YW12: 3.92 | YX12: 1.35 | YY12: -2.55 | YZ12: 0.48 | ZA12: 0.48 | ZB12: 4.12 | ZC12: 4.12 | ZD12: 1.41 | ZE12: 0.48 | ZF12: 1.37 | ZG12: -0.32 | ZH12: -0.50 | ZI12: 1.18 | ZJ12: 1.58 | ZK12: 2.85 | ZL12: 3.30 | ZM12: 0.03 | ZN12: -2.66 | ZO12: -2.66 | ZP12: -0.29 | ZQ12: 5.29 | ZR12: 2.85 | ZS12: 2.85 | ZT12: 1.72 | ZU12: 2.85 | ZV12: 5.46 | ZW12: 2.53 | ZX12: 1.94 | ZY12: -0.82 | ZZ12: 3.22 | AAA12: 2.57 | AAB12: 4.77 | AAC12: 1.25 | AAD12: 2.19 | AAE12: 2.19 | AAF12: 1.47 | AAG12: 1.81 | AAH12: 1.64 | AAI12: -0.05 | AAJ12: 1.94 | AAK12: 1.10 | AAL12: 3.42 | AAM12: -0.27 | AAN12: 1.51 | AAO12: -0.56 | AAP12: -0.50 | AAQ12: 0.01 | AAR12: -6.95 | AAS12: 4.58 | AAT12: -0.48 | AAU12: -0.08 | AAV12: -0.50 | AAW12: 3.34 | AAX12: 5.29 | AAY12: 1.99 | AAZ12: 0.86 | ABA12: -0.30 | ABB12: 3.34 | ABC12: 3.89 | ABE12: 2.65 | ABF12: 0.96 | ABG12: -0.30 | ABH12: 1.81 | ABI12: 0.96 | ABJ12: -0.05 | ABK12: 0.13 | ABL12: 5.29 | ABM12: 2.09 | ABO12: 5.29 | ABP12: 2.70 | ABR12: -0.49 | ABS12: 1.06 | ABT12: -0.90 | ABU12: -0.32 | ABV12: 3.16 | ABW12: 2.57 | ABX12: 2.65 | ABY12: 3.10 | ABZ12: 3.23 | ACA12: 3.10 | ACC12: 2.63 | ACD12: -1.05 | ACE12: 0.50 | ACF12: 0.26 | ACG12: 0.15 | ACH12: 5.29 | ACI12: 0.01 | ACJ12: 2.01 | ACK12: 0.01 | ACM12: 2.30 | ACN12: -0.05 | ACO12: 3.20 | ACP12: 2.22 | ACQ12: 2.65 | ACR12: 0.55 | ACS12: 3.90 | ACT12: 2.40 | ACU12: 0.86 | ACV12: 0.86 | ACW12: 1.41 | ACX12: 5.29 | ACY12: 0.38 | ACZ12: 0.71
A13: Potencial de contaminação (1, 2 ou 3) | C13: 1 | D13: 3 | E13: 3 | F13: 3 | G13: 2 | H13: 1 | I13: 2 | J13: 2 | K13: 2 | L13: 1 | M13: 3 | O13: 3 | P13: 1 | Q13: 3 | R13: 2 | S13: 3 | T13: 3 | U13: 3 | V13: 1 | W13: 3 | X13: 3 | Y13: 2 | Z13: 2 | AA13: 2 | AB13: 3 | AC13: 2 | AD13: 3 | AE13: 3 | AF13: 1 | AG13: 2 | AH13: 3 | AI13: 2 | AJ13: 2 | AK13: 1 | AL13: 2 | AM13: 2 | AN13: 1 | AO13: 1 | AP13: 3 | AQ13: 3 | AR13: 1 | AS13: 3 | AT13: 2 | AU13: 1 | AV13: 3 | AW13: 3 | AX13: 1 | AY13: 2 | AZ13: 1 | BA13: 3 | BB13: 1 | BC13: 1 | BD13: 3 | BE13: 3 | BF13: 3 | BG13: 3 | BH13: 3 | BI13: 3 | BJ13: 1 | BK13: 3 | BL13: 3 | BM13: 3 | BN13: 3 | BO13: 1 | BP13: 3 | BQ13: 1 | BR13: 3 | BS13: 3 | BT13: 3 | BU13: 1 | BV13: 1 | BW13: 3 | BX13: 2 | BY13: 3 | BZ13: 3 | CC13: 2 | CD13: 3 | CE13: 3 | CF13: 2 | CG13: 2 | CH13: 1 | CI13: 2 | CJ13: 3 | CK13: 2 | CL13: 3 | CM13: 2 | CN13: 3 | CO13: 2 | CP13: 1 | CQ13: 1 | CR13: 2 | CS13: 2 | CU13: 3 | CV13: 2 | CW13: 3 | CX13: 2 | CY13: 2 | CZ13: 1 | DB13: 3 | DC13: 2 | DD13: 1 | DE13: 1 | DF13: 3 | DG13: 2 | DH13: 2 | DI13: 3 | DJ13: 3 | DK13: 3 | DL13: 3 | DM13: 1 | DO13: 3 | DP13: 2 | DQ13: 3 | DR13: 1 | DS13: 3 | DT13: 3 | DU13: 2 | DV13: 1 | DW13: 3 | DX13: 3 | DY13: 3 | DZ13: 1 | EA13: 1 | EB13: 1 | EC13: 2 | ED13: 2 | EE13: 3 | EF13: 3 | EG13: 3 | EH13: 3 | EI13: 3 | EJ13: 1 | EK13: 3 | EL13: 1 | EO13: 2 | EQ13: 3 | ER13: 2 | ES13: 3 | ET13: 2 | EU13: 1 | EV13: 1 | EW13: 1 | EX13: 2 | EY13: 1 | EZ13: 1 | FA13: 3 | FB13: 2 | FC13: 3 | FD13: 3 | FE13: 1 | FF13: 2 | FG13: 2 | FH13: 2 | FI13: 3 | FJ13: 2 | FK13: 2 | FL13: 3 | FM13: 3 | FN13: 2 | FO13: 3 | FP13: 1 | FQ13: 3 | FR13: 2 | FS13: 1 | FT13: 2 | FU13: 1 | FV13: 1 | FW13: 3 | FX13: 3 | FY13: 3 | FZ13: 3 | GA13: 1 | GB13: 3 | GC13: 3 | GD13: 2 | GE13: 3 | GF13: 2 | GG13: 2 | GH13: 2 | GI13: 3 | GJ13: 2 | GK13: 2 | GL13: 1 | GM13: 1 | GN13: 2 | GO13: 3 | GP13: 2 | GQ13: 2 | GR13: 3 | GS13: 2 | GT13: 1 | GU13: 1 | GV13: 1 | GW13: 1 | GX13: 1 | GY13: 2 | GZ13: 1 | HA13: 2 | HB13: 1 | HC13: 1 | HD13: 1 | HE13: 2 | HF13: 1 | HG13: 1 | HH13: 2 | HI13: 1 | HJ13: 2 | HK13: 3 | HL13: 3 | HM13: 2 | HN13: 1 | HO13: 2 | HP13: 3 | HQ13: 2 | HR13: 2 | HS13: 3 | HT13: 3 | HU13: 1 | HV13: 1 | HW13: 1 | HX13: 1 | HY13: 3 | HZ13: 3 | IA13: 3 | IB13: 1 | IC13: 1 | ID13: 1 | IE13: 2 | IF13: 2 | IG13: 2 | IH13: 2 | II13: 2 | IJ13: 1 | IK13: 2 | IL13: 2 | IM13: 2 | IN13: 1 | IO13: 2 | IP13: 1 | IQ13: 1 | IR13: 1 | IS13: 2 | IT13: 2 | IU13: 3 | IV13: 2 | IW13: 3 | IX13: 3 | IY13: 1 | IZ13: 3 | JA13: 1 | JB13: 3 | JC13: 1 | JD13: 3 | JE13: 3 | JF13: 3 | JG13: 2 | JH13: 2 | JI13: 3 | JJ13: 2 | JK13: 1 | JM13: 1 | JN13: 1 | JO13: 3 | JP13: 2 | JR13: 2 | JS13: 2 | JT13: 2 | JU13: 1 | JV13: 1 | JW13: 3 | JX13: 3 | JY13: 1 | JZ13: 3 | KA13: 1 | KB13: 2 | KC13: 2 | KD13: 1 | KE13: 1 | KF13: 3 | KG13: 3 | KH13: 2 | KI13: 3 | KJ13: 1 | KK13: 1 | KL13: 1 | KM13: 3 | KN13: 3 | KO13: 3 | KP13: 3 | KQ13: 1 | KR13: 3 | KS13: 2 | KT13: 1 | KU13: 2 | KV13: 2 | KW13: 2 | KX13: 2 | KY13: 3 | KZ13: 2 | LA13: 2 | LB13: 2 | LC13: 3 | LD13: 3 | LE13: 1 | LF13: 3 | LG13: 3 | LH13: 3 | LI13: 3 | LJ13: 2 | LK13: 2 | LL13: 1 | LM13: 1 | LN13: 1 | LO13: 3 | LP13: 2 | LQ13: 1 | LR13: 3 | LS13: 2 | LT13: 3 | LU13: 3 | LV13: 3 | LW13: 1 | LX13: 2 | LY13: 1 | LZ13: 2 | MA13: 3 | MB13: 1 | MC13: 2 | MD13: 2 | ME13: 3 | MF13: 1 | MG13: 1 | MH13: 2 | MI13: 2 | MJ13: 2 | MK13: 2 | ML13: 1 | MM13: 1 | MN13: 2 | MO13: 2 | MP13: 3 | MQ13: 1 | MR13: 2 | MS13: 3 | MT13: 2 | MU13: 1 | MV13: 1 | MW13: 1 | MX13: 1 | MY13: 1 | MZ13: 2 | NA13: 2 | NB13: 3 | NC13: 3 | ND13: 2 | NE13: 1 | NF13: 2 | NG13: 3 | NH13: 3 | NI13: 1 | NJ13: 3 | NL13: 2 | NM13: 2 | NN13: 2 | NO13: 2 | NP13: 2 | NQ13: 2 | NR13: 2 | NS13: 2 | NT13: 2 | NU13: 3 | NV13: 3 | NW13: 3 | NX13: 2 | NY13: 1 | NZ13: 1 | OA13: 2 | OB13: 2 | OC13: 2 | OD13: 2 | OE13: 2 | OF13: 3 | OG13: 1 | OH13: 2 | OI13: 2 | OJ13: 2 | OK13: 1 | OL13: 3 | OM13: 1 | OO13: 3 | OP13: 3 | OQ13: 3 | OR13: 3 | OS13: 2 | OT13: 3 | OU13: 3 | OV13: 1 | OW13: 1 | OX13: 3 | OY13: 1 | OZ13: 1 | PA13: 3 | PB13: 1 | PC13: 3 | PD13: 1 | PE13: 1 | PF13: 3 | PG13: 3 | PH13: 2 | PI13: 2 | PK13: 3 | PL13: 1 | PM13: 3 | PN13: 3 | PO13: 2 | PP13: 3 | PQ13: 1 | PR13: 1 | PS13: 2 | PT13: 2 | PU13: 1 | PV13: 2 | PW13: 3 | PX13: 1 | PY13: 3 | PZ13: 1 | QA13: 3 | QB13: 3 | QC13: 3 | QD13: 1 | QE13: 2 | QF13: 3 | QG13: 2 | QH13: 2 | QI13: 1 | QJ13: 2 | QK13: 1 | QL13: 3 | QM13: 1 | QN13: 3 | QO13: 3 | QP13: 1 | QQ13: 1 | QR13: 2 | QS13: 1 | QT13: 2 | QU13: 3 | QV13: 2 | QW13: 2 | QX13: 1 | QY13: 3 | QZ13: 2 | RA13: 2 | RB13: 2 | RC13: 2 | RD13: 1 | RE13: 3 | RF13: 3 | RG13: 3 | RH13: 3 | RI13: 1 | RJ13: 2 | RK13: 2 | RL13: 3 | RM13: 3 | RN13: 2 | RO13: 3 | RP13: 1 | RQ13: 1 | RR13: 3 | RS13: 3 | RT13: 3 | RV13: 3 | RW13: 3 | RY13: 1 | RZ13: 2 | SA13: 2 | SC13: 2 | SD13: 2 | SE13: 2 | SF13: 3 | SG13: 3 | SH13: 1 | SI13: 2 | SJ13: 3 | SK13: 1 | SL13: 2 | SM13: 2 | SN13: 1 | SO13: 2 | SP13: 1 | SQ13: 3 | SR13: 3 | SS13: 2 | ST13: 3 | SU13: 3 | SV13: 2 | SW13: 2 | SX13: 2 | SY13: 1 | SZ13: 1 | TA13: 3 | TB13: 3 | TC13: 3 | TD13: 1 | TE13: 1 | TF13: 2 | TG13: 1 | TH13: 3 | TI13: 2 | TJ13: 1 | TK13: 3 | TL13: 2 | TM13: 1 | TN13: 2 | TO13: 1 | TP13: 1 | TQ13: 2 | TR13: 3 | TS13: 1 | TT13: 3 | TU13: 1 | TV13: 3 | TW13: 3 | TX13: 1 | TY13: 2 | TZ13: 3 | UA13: 3 | UB13: 3 | UC13: 1 | UD13: 3 | UE13: 1 | UF13: 2 | UG13: 1 | UH13: 1 | UI13: 1 | UJ13: 1 | UK13: 3 | UL13: 3 | UM13: 2 | UN13: 1 | UO13: 1 | UP13: 3 | UQ13: 2 | UR13: 2 | US13: 3 | UT13: 3 | UU13: 3 | UV13: 3 | UW13: 3 | UX13: 3 | UY13: 3 | UZ13: 3 | VA13: 3 | VB13: 3 | VC13: 3 | VD13: 1 | VE13: 2 | VG13: 2 | VH13: 3 | VI13: 3 | VJ13: 1 | VK13: 1 | VL13: 1 | VM13: 3 | VN13: 3 | VO13: 3 | VP13: 3 | VQ13: 3 | VR13: 1 | VS13: 1 | VT13: 3 | VU13: 1 | VV13: 1 | VW13: 1 | VX13: 2 | VY13: 1 | VZ13: 3 | WA13: 3 | WB13: 2 | WC13: 2 | WD13: 1 | WE13: 2 | WF13: 2 | WG13: 2 | WH13: 3 | WI13: 3 | WJ13: 2 | WK13: 2 | WL13: 3 | WM13: 2 | WN13: 3 | WO13: 1 | WP13: 3 | WQ13: 1 | WR13: 2 | WS13: 2 | WT13: 3 | WU13: 1 | WV13: 3 | WW13: 2 | WX13: 1 | WY13: 1 | WZ13: 1 | XA13: 1 | XB13: 3 | XC13: 3 | XD13: 2 | XF13: 3 | XG13: 2 | XH13: 1 | XI13: 3 | XJ13: 3 | XK13: 1 | XL13: 1 | XM13: 1 | XN13: 1 | XO13: 2 | XP13: 2 | XQ13: 2 | XR13: 1 | XS13: 2 | XT13: 2 | XU13: 1 | XV13: 1 | XW13: 3 | XY13: 2 | XZ13: 3 | YA13: 2 | YB13: 3 | YC13: 3 | YD13: 2 | YE13: 3 | YF13: 2 | YG13: 3 | YH13: 3 | YI13: 1 | YJ13: 1 | YK13: 1 | YL13: 3 | YM13: 3 | YN13: 3 | YO13: 2 | YP13: 3 | YQ13: 2 | YR13: 3 | YT13: 1 | YU13: 3 | YW13: 1 | YX13: 1 | YY13: 2 | YZ13: 1 | ZA13: 1 | ZB13: 2 | ZC13: 2 | ZD13: 2 | ZE13: 1 | ZF13: 2 | ZG13: 3 | ZH13: 1 | ZI13: 3 | ZJ13: 3 | ZK13: 2 | ZL13: 3 | ZM13: 3 | ZN13: 2 | ZO13: 2 | ZP13: 1 | ZQ13: 3 | ZR13: 2 | ZS13: 2 | ZT13: 3 | ZU13: 2 | ZV13: 3 | ZW13: 3 | ZX13: 3 | ZY13: 3 | ZZ13: 2 | AAA13: 2 | AAB13: 3 | AAC13: 2 | AAD13: 3 | AAE13: 3 | AAF13: 2 | AAG13: 3 | AAH13: 1 | AAI13: 2 | AAJ13: 3 | AAK13: 3 | AAL13: 3 | AAM13: 1 | AAN13: 3 | AAO13: 1 | AAP13: 1 | AAQ13: 1 | AAR13: 2 | AAS13: 2 | AAT13: 1 | AAU13: 3 | AAV13: 1 | AAW13: 3 | AAX13: 3 | AAY13: 2 | AAZ13: 1 | ABA13: 2 | ABB13: 2 | ABC13: 1 | ABD13: 3 | ABE13: 3 | ABF13: 2 | ABG13: 1 | ABH13: 3 | ABI13: 2 | ABJ13: 2 | ABK13: 2 | ABL13: 3 | ABM13: 2 | ABO13: 3 | ABP13: 3 | ABR13: 1 | ABS13: 3 | ABT13: 2 | ABU13: 3 | ABV13: 3 | ABW13: 2 | ABX13: 3 | ABY13: 3 | ABZ13: 3 | ACA13: 3 | ACB13: 3 | ACC13: 2 | ACD13: 2 | ACE13: 3 | ACF13: 3 | ACG13: 3 | ACH13: 3 | ACI13: 1 | ACJ13: 1 | ACK13: 1 | ACM13: 2 | ACN13: 2 | ACO13: 3 | ACP13: 1 | ACQ13: 3 | ACR13: 1 | ACS13: 1 | ACT13: 1 | ACU13: 1 | ACV13: 1 | ACW13: 2 | ACX13: 3 | ACY13: 3 | ACZ13: 1
A14: EIQ Ingrediente ativo | C14: 2,4-D dimethylamine | D14: Epoxiconazol | E14: Abamectim | F14: Abamectim | G14: Nicossulfurom | H14: Metsulfurom-metílico | I14: Acefato | J14: Acefato | K14: Acefato | L14: Acetamiprido | M14: Acetocloro | N14: Acibenzolar-S-metílico | O14: Acifluorfem-sódico | P14: Lactofem | Q14: Acrinatrina | R14: Piraclostrobina | S14: Tiametoxam | T14: Tiencarbazona | U14: Linurom | V14: Carfentrazona-etílica | W14: Afidopiropeno | X14: Azoxistrobina | Y14: MCPA | Z14: Alacloro | AA14: Alacloro | AB14: Benzovindiflupir | AC14: Cipermetrina | AD14: Fosetil | AE14: Indaziflam | AF14: Sulfometuron metílico | AG14: Clorantraniliprole | AH14: Ciproconazol | AI14: Metaflumizone | AJ14: Cipermetrina | AK14: Ametoctradina | AL14: Ametrina | AM14: Ametrina | AN14: Amicarbazona | AO14: 2,4-D dimethylamine | AP14: Aminopiralide | AQ14: Azoxistrobina | AR14: Amitraz | AS14: Abamectim | AT14: Imazamoxi | AU14: Tiram | AV14: Propinebe | AW14: Teflubenzurom | AX14: Buprofezina | AY14: Fluazinam | AZ14: Picoxistrobina | BA14: Ciproconazol | BB14: Metalaxil-M | BC14: Lufenuron | BD14: Tepraloxidim | BE14: Tricopir-butolítico | BF14: Fluroxipir | BG14: Ciproconazol | BH14: Asulam | BI14: Asulam | BJ14: Clorfuazurom | BK14: Fluquinconazol | BL14: Epoxiconazol | BM14: Atrazina | BN14: Atrazina | BO14: Simazina | BP14: Atrazina | BQ14: Iprodiona | BR14: Propiconazol | BS14: Hidróxido de cobre | BT14: Profoxidim | BU14: Carfentrazona-etílica | BV14: Acetamiprido | BW14: Tebutiurom | BX14: Acefato | BY14: Indoxacarb | BZ14: Abamectim | CA14: Azadiractina | CB14: Azadiractina | CC14: Azimsulfurom | CD14: Azoxistrobina | CE14: Azoxistrobina | CF14: Imidacloprido | CG14: Bentazona | CH14: Dazomete | CI14: Triadimenol | CJ14: Metomil | CK14: Flubendiamida | CL14: mefentrifluconazol | CM14: Benalaxil | CN14: Carbendazim | CO14: Ciantraniliprole | CP14: Benfuracarb | CQ14: Benfuracarb | CR14: Bentazona | CS14: Bentiavalicarbe isopropílico | CT14: Benzoato de emamectina | CU14: Benzovindiflupir | CV14: Beta-ciflutrina | CW14: Bicarbonato de potássio | CX14: Bifentrina | CY14: Bifentrina | CZ14: Triciclazol | DA14: Acibenzolar-S-metílico | DB14: Bispirabaque | DC14: Bifentrina | DD14: Bistrifluron | DE14: Piriproxifem | DF14: Acifluorfem-sódico | DG14: Dibrometo de diquate | DH14: Fenpropatrina | DI14: Sulfentrazona | DJ14: Boscalid | DK14: Boscalid | DL14: Metomil | DM14: Bromacila | DN14: Brometo de metila | DO14: Bromuconazol | DP14: Beta-ciflutrina | DQ14: Metam-sódico | DR14: Buprofezina | DS14: Tebutiurom | DT14: Cadusafós | DU14: Mesotriona | DV14: Sulfato de cobre | DW14: Tiacloprido | DX14: Picloram | DY14: Boscalid | DZ14: Captana | EA14: Captana | EB14: Tiodicarbe | EC14: Bifentrina | ED14: Carbaryl | EE14: Carbendazim | EF14: Carbendazim | EG14: Flonicamida | EH14: Carbendazim | EI14: Carbossulfano | EJ14: Carboxina | EK14: Fomesafem | EL14: Carfentrazona-etílica | EM14: Cartape | EN14: Cartape | EO14: Flufenoxurom | EP14: Casugamicina | EQ14: Clorpirifós | ER14: Acefato | ES14: Flutriafol | ET14: Fenamidona | EU14: Cletodim | EV14: Tiofanato-metílico | EW14: Clorotalonil | EX14: Triflumurom | EY14: Iprodiona | EZ14: Tolfenpirade | FA14: Pimetrozina | FB14: Ciantraniliprole | FC14: Ciazofamida | FD14: Ciclaniliprole | FE14: Ciclossulfamurom | FF14: Fostiazato | FG14: Imidacloprido | FH14: Fluazinam | FI14: Cimoxanil | FJ14: Cipermetrina | FK14: Cipermetrina | FL14: Ciproconazol | FM14: ciprodinil | FN14: Ciromazina | FO14: Clorimurom-etílico | FP14: Cletodim | FQ14: Clodinafope-Propargil | FR14: Clomazona | FS14: Cloransulam-metílico | FT14: Clorantraniliprole | FU14: Clorfenapir | FV14: Clorfuazurom | FW14: Cloridrato de propamocarbe | FX14: Clorimurom-etílico | FY14: Clorimurom-etílico | FZ14: Clorimurom-etílico | GA14: Clorotalonil | GB14: Clorpirifós | GC14: Clotianidina | GD14: Diclosulam | GE14: Tebutiurom | GF14: Piraclostrobina | GG14: Cipermetrina | GH14: Fluazinam | GI14: Bromuconazol | GJ14: Imidacloprido | GK14: Imazapir | GL14: Mancozebe | GM14: Piriproxifem | GN14: Terbufós | GO14: Atrazina | GP14: Tebucozanol | GQ14: Imidacloprido | GR14: Tiametoxam | GS14: Imazapir | GT14: Oxicloreto de cobre | GU14: Clorotalonil | GV14: Mancozebe | GW14: Mancozebe | GX14: Lufenuron | GY14: Profenofós | GZ14: Cyflumetofen | HA14: Cipermetrina | HB14: Clorotalonil | HC14: Clorotalonil | HD14: Clorotalonil | HE14: Fenpropatrina | HF14: Dazomete | HG14: Deltametrina | HH14: Ditianona | HI14: Deltametrina | HJ14: Clorantraniliprole | HK14: Carbendazim | HL14: Carbendazim | HM14: Dibrometo de diquate | HN14: Diafenturiom | HO14: Dibrometo de diquate | HP14: Dicamba | HQ14: Dicloreto de Paraquate | HR14: Diclosulam | HS14: Difenoconazol | HT14: Difenoconazol | HU14: Diflubenzurom | HV14: Diflubenzurom | HW14: Diflubenzurom | HX14: Diflubenzurom | HY14: Dimetoato | HZ14: Dimetomorfe | IA14: Dimetoato | IB14: Diflubenzurom | IC14: Amicarbazona | ID14: Dinofeturam | IE14: Diurom | IF14: Dibrometo de diquate | IG14: Dibrometo de diquate | IH14: Diquate | II14: Diurom | IJ14: Mancozebe | IK14: Ditianona | IL14: Diurom | IM14: Diurom | IN14: 2,4-D dimethylamine | IO14: Bentazona | IP14: Dodina | IQ14: Dodina | IR14: Lactofem | IS14: Metolacloro | IT14: Tebucozanol | IU14: Azoxistrobina | IV14: Etofenproxi | IW14: Hidróxido de cobre | IX14: Tetraconazol | IY14: Mancozebe | IZ14: Tiametoxam | JA14: Espirodiclofeno | JB14: Trifloxisulfuron | JC14: Enxofre | JD14: Epoxiconazol | JE14: Cimoxanil | JF14: Famoxadona | JG14: Foransulfurom | JH14: Tebucozanol | JI14: Pirimetanil | JJ14: Esfenvalerato | JK14: Espinetoram | JL14: Espinosade | JM14: Espirodiclofeno | JN14: Espiromesifeno | JO14: Indaziflam | JP14: Etofenproxi | JQ14: Etoxazol | JR14: Etoxissulfurom | JS14: Etridiazol | JT14: Acefato | JU14: Espinetoram | JV14: Sulfoxaflor | JW14: Atrazina | JX14: Atrazina | JY14: Quincloraque | JZ14: Famoxadona | KA14: Glufosinato de amônio | KB14: Cipermetrina | KC14: Fenamidona | KD14: Fenitrotiona | KE14: Fenoxaprop-P-ethyl | KF14: Fenpirazamina | KG14: Fenpiroximato | KH14: Fenpropatrina | KI14: Fenpropimorfe | KJ14: Gama-Cialotrina | KK14: Permetrina | KL14: Glufosinato de amônio | KM14: Fipronil | KN14: Difenoconazol | KO14: Flazassulfurom | KP14: Fomesafem | KQ14: Trifloxistrobina | KR14: Flonicamida | KS14: Florpirauxifen-benzil | KT14: Fluazifope-p-butil | KU14: Fluazinam | KV14: Flubendiamida | KW14: Fludioxonil | KX14: Flufenoxurom | KY14: Flumetsulam | KZ14: Flumicloraque-pentílico | LA14: Flumioxazina | LB14: Flumioxazina | LC14: Fluopicolide | LD14: Fluopiram | LE14: Flupiradifurona | LF14: Fluquinconazol | LG14: Fluroxipir | LH14: Flutolanil | LI14: Flutriafol | LJ14: Fluxapiroxade | LK14: Tebucozanol | LL14: Metalaxil-M | LM14: Folpete | LN14: Folpete | LO14: Fomesafem | LP14: Foransulfurom | LQ14: Isoxaflutol | LR14: Tebutiurom | LS14: Ciantraniliprole | LT14: Dimetomorfe | LU14: Fosetil | LV14: Fosfeto de alúminio | LW14: Fosmete | LX14: Fostiazato | LY14: Protioconazol | LZ14: Fluazinam | MA14: Carbendazim | MB14: Clorotalonil | MC14: Cipermetrina | MD14: Tebucozanol | ME14: Fomesafem | MF14: Fluazifope-p-butil | MG14: Tiodicarbe | MH14: Benalaxil | MI14: Imidacloprido | MJ14: Novalurom | MK14: Gama-cialotrina | ML14: Gama-Cialotrina | MM14: Lufenuron | MN14: Florpirauxifen-benzil | MO14: Metolacloro | MP14: Fosfeto de alúminio | MQ14: Prometrina | MR14: Ametrina | MS14: Atrazina | MT14: Etoxissulfurom | MU14: Clorotalonil | MV14: glifosato | MW14: Glufosinato de amônio | MX14: glifosato | MY14: Oxyfluorfem | MZ14: Dicloreto de Paraquate | NA14: Dicloreto de Paraquate | NB14: Pirimifós-metílico | NC14: Tebutiurom | ND14: Azimsulfurom | NE14: Halauxifen-metíl | NF14: Halossulfurom-metílico | NG14: Haloxifope-P-metílico | NH14: Ciazofamida | NI14: Bistrifluron | NJ14: Ciclaniliprole | NK14: Saflufenacil | NL14: Dicloreto de Paraquate | NM14: Pendimetalina | NN14: Ametrina | NO14: Diurom | NP14: Cipermetrina | NQ14: Hexazinona | NR14: Hexazinona | NS14: Hexazinona | NT14: Hexazinona | NU14: Hexitiazox | NV14: Hidróxido de cobre | NW14: Hidróxido de Fentina | NX14: Tebucozanol | NY14: Iodossulfurom-metílico-sódico | NZ14: Clorotalonil | OA14: Imazalil | OB14: Imazalil | OC14: Imazamoxi | OD14: Imazapique | OE14: Imazapir | OF14: Imazaquim | OG14: Imazetapir | OH14: Imibenconazol | OI14: Imidacloprido | OJ14: Imidacloprido | OK14: Fosmete | OL14: Flutriafol | OM14: Diflubenzurom | ON14: Impirfluxam | OO14: Teflubenzurom | OP14: Indaziflam | OQ14: Indoxacarb | OR14: Cloridrato de propamocarbe | OS14: Bifentrina | OT14: Fipronil | OU14: Metoxifenozida | OV14: Ciclossulfamurom | OW14: Iodossulfurom-metílico-sódico | OX14: Ipconazol | OY14: Iprodiona | OZ14: Clorotalonil | PA14: Isofetamida | PB14: Isoxaflutol | PC14: Propiconazol | PD14: Deltametrina | PE14: Deltametrina | PF14: Acetocloro | PG14: Bicarbonato de potássio | PH14: Lambda-Cialotrina | PI14: Diurom | PJ14: Casugamicina | PK14: Flazassulfurom | PL14: Orthosulfamuron | PM14: Isofetamida | PN14: Sulfentrazona | PO14: Imazapique | PP14: Clorpirifós | PQ14: Bromacila | PR14: Enxofre | PS14: Nicossulfurom | PT14: Alacloro | PU14: Lactofem | PV14: Lambda-Cialotrina | PW14: Metomil | PX14: Tiodicarbe | PY14: Tebutiurom | PZ14: Glufosinato de amônio | QA14: Linurom | QB14: Linurom | QC14: Clorpirifós | QD14: Lufenuron | QE14: Mesotriona | QF14: Fipronil | QG14: Imazalil | QH14: Hexazinona | QI14: Malation | QJ14: Imibenconazol | QK14: Mancozebe | QL14: mandipropamida | QM14: Mancozebe | QN14: Fipronil | QO14: Carbossulfano | QP14: Lufenuron | QQ14: Metalaxil-M | QR14: Fludioxonil | QS14: Dinofeturam | QT14: MCPA | QU14: mefentrifluconazol | QV14: Fenpropatrina | QW14: Mesotriona | QX14: Captana | QY14: Hidróxido de Fentina | QZ14: Mesotriona | RA14: Mesotriona | RB14: Metaflumizone | RC14: Metaflumizone | RD14: Metalaxil-M | RE14: Metam-sódico | RF14: Metconazol | RG14: Metomil | RH14: Metidationa | RI14: Metiram | RJ14: Metolacloro | RK14: Metolacloro | RL14: Metomil | RM14: Metoxifenozida | RN14: Metribuzim | RO14: Indaziflam | RP14: Metsulfurom-metílico | RQ14: Metsulfurom-metílico | RR14: Miclobutanil | RS14: Tebufenozida | RT14: pidiflumetofen | RU14: Sulfluramida | RV14: Pencicurom | RW14: Flutolanil | RX14: MSMA | RY14: Lactofem | RZ14: Nicossulfurom | SA14: Tebucozanol | SB14: Espinosade | SC14: Nicossulfurom | SD14: Nicossulfurom | SE14: Nicossulfurom | SF14: Propiconazol | SG14: Teflubenzurom | SH14: Malation | SI14: Novalurom | SJ14: Clorpirifós | SK14: Metsulfurom-metílico | SL14: Imidacloprido | SM14: Dicloreto de Paraquate | SN14: Espiromesifeno | SO14: Tebucozanol | SP14: Cyflumetofen | SQ14: Propargito | SR14: Imazaquim | SS14: Imazapique | ST14: Epoxiconazol | SU14: Metconazol | SV14: Tebucozanol | SW14: Fluxapiroxade | SX14: Acefato | SY14: Captana | SZ14: Orthosulfamuron | TA14: Fenpiroximato | TB14: Oxadiazona | TC14: Oxatiapiprolina | TD14: Oxicloreto de cobre | TE14: Oxyfluorfem | TF14: Cloransulam-metílico | TG14: Quizalofope-P-tefurílico | TH14: Clorimurom-etílico | TI14: Dicloreto de Paraquate | TJ14: Glufosinato de amônio | TK14: Pencicurom | TL14: Pendimetalina | TM14: Mancozebe | TN14: Penoxsulam | TO14: Permetrina | TP14: Mancozebe | TQ14: Triadimenol | TR14: Picloram | TS14: Picoxistrobina | TT14: pidiflumetofen | TU14: Fluazifope-p-butil | TV14: Pimetrozina | TW14: Piraclostrobina | TX14: Clorfenapir | TY14: Esfenvalerato | TZ14: Piridabem | UA14: Pirimetanil | UB14: Pirimifós-metílico | UC14: Piriproxifem | UD14: Piritiobaque-sódico | UE14: Piroxassulfona | UF14: Imazapique | UG14: Setoxidim | UH14: Fenoxaprop-P-ethyl | UI14: Diafenturiom | UJ14: Metiram | UK14: Clotianidina | UL14: Sulfentrazona | UM14: Novalurom | UN14: Cletodim | UO14: Benfuracarb | UP14: Epoxiconazol | UQ14: Trifluralina | UR14: Clorantraniliprole | US14: Triticonazol | UT14: Flumetsulam | UU14: Atrazina | UV14: Atrazina | UW14: Atrazina | UX14: Atrazina | UY14: Ciproconazol | UZ14: Atrazina | VA14: Azoxistrobina | VB14: Azoxistrobina | VC14: Difenoconazol | VD14: Piriproxifem | VE14: Procimidona | VF14: Benzoato de emamectina | VG14: Profenofós | VH14: Profoxidim | VI14: Fenpirazamina | VJ14: Protioconazol | VK14: Prometrina | VL14: Propanil | VM14: Propargito | VN14: Propiconazol | VO14: Propiconazol | VP14: Propinebe | VQ14: Epoxiconazol | VR14: Protioconazol | VS14: Isoxaflutol | VT14: Indaziflam | VU14: Quincloraque | VV14: Quizalofop-P-ethyl | VW14: Quizalofope-P-tefurílico | VX14: Flumicloraque-pentílico | VY14: Carfentrazona-etílica | VZ14: Dicamba | WA14: Ipconazol | WB14: Acefato | WC14: Metolacloro | WD14: Fenoxaprop-P-ethyl | WE14: Imazamoxi | WF14: Penoxsulam | WG14: Clomazona | WH14: Clorpirifós | WI14: Fipronil | WJ14: Dibrometo de diquate | WK14: Diquate | WL14: Fipronil | WM14: Flumicloraque-pentílico | WN14: mandipropamida | WO14: Tiram | WP14: Fipronil | WQ14: Mancozebe | WR14: Imidacloprido | WS14: Novalurom | WT14: Bispirabaque | WU14: Metsulfurom-metílico | WV14: Oxadiazona | WW14: Procimidona | WX14: glifosato | WY14: glifosato | WZ14: glifosato | XA14: Iprodiona | XB14: Acrinatrina | XC14: Cadusafós | XD14: Etofenproxi | XE14: Saflufenacil | XF14: Piridabem | XG14: Nicossulfurom | XH14: Carfentrazona-etílica | XI14: Difenoconazol | XJ14: Flumetsulam | XK14: Cletodim | XL14: Fenoxaprop-P-ethyl | XM14: Tiram | XN14: Tiodicarbe | XO14: Halossulfurom-metílico | XP14: Metribuzim | XQ14: Metolacloro | XR14: Setoxidim | XS14: Carbaryl | XT14: Procimidona | XU14: Simazina | XV14: Flupiradifurona | XW14: Flutriafol | XX14: Etoxazol | XY14: Tembotriona | XZ14: Sulfentrazona | YA14: Imidacloprido | YB14: Imazaquim | YC14: Difenoconazol | YD14: Bifentrina | YE14: Ciproconazol | YF14: Diclosulam | YG14: Tebutiurom | YH14: Boscalid | YI14: Carfentrazona-etílica | YJ14: Gama-Cialotrina | YK14: Propanil | YL14: Fipronil | YM14: Fipronil | YN14: Piritiobaque-sódico | YO14: Bifentrina | YP14: Fipronil | YQ14: Nicossulfurom | YR14: Propiconazol | YS14: Impirfluxam | YT14: Sulfato de cobre | YU14: Sulfentrazona | YV14: Sulfluramida | YW14: Sulfometuron metílico | YX14: Sulfoxaflor | YY14: Esfenvalerato | YZ14: Fenitrotiona | ZA14: Fenitrotiona | ZB14: Procimidona | ZC14: Procimidona | ZD14: Flumioxazina | ZE14: Fenitrotiona | ZF14: Flumioxazina | ZG14: Hidróxido de cobre | ZH14: Tiofanato-metílico | ZI14: Metidationa | ZJ14: Acetocloro | ZK14: Tebucozanol | ZL14: Miclobutanil | ZM14: Hexitiazox | ZN14: Bifentrina | ZO14: Bifentrina | ZP14: Quizalofop-P-ethyl | ZQ14: Flutriafol | ZR14: Tebucozanol | ZS14: Tebucozanol | ZT14: Tebufenozida | ZU14: Tebucozanol | ZV14: Tebutiurom | ZW14: Carbendazim | ZX14: Tiabendazol | ZY14: Teflubenzurom | ZZ14: Tembotriona | AAA14: Metribuzim | AAB14: Tepraloxidim | AAC14: Terbufós | AAD14: Terbutilazina | AAE14: Terbutilazina | AAF14: Etridiazol | AAG14: Tetraconazol | AAH14: Halauxifen-metíl | AAI14: Triflumurom | AAJ14: Tiabendazol | AAK14: Tiacloprido | AAL14: Tiencarbazona | AAM14: Piriproxifem | AAN14: Propiconazol | AAO14: Tiodicarbe | AAP14: Tiofanato-metílico | AAQ14: Tiram | AAR14: Dicloreto de Paraquate | AAS14: Hexazinona | AAT14: Tolfenpirade | AAU14: Clodinafope-Propargil | AAV14: Tiofanato-metílico | AAW14: Aminopiralide | AAX14: Flutriafol | AAY14: Bentiavalicarbe isopropílico | AAZ14: Clorotalonil | ABA14: Etofenproxi | ABB14: Triadimenol | ABC14: Triciclazol | ABD14: Tricopir-butolítico | ABE14: Azoxistrobina | ABF14: Triflumizol | ABG14: Trifloxistrobina | ABH14: Trifloxisulfuron | ABI14: Triflumizol | ABJ14: Triflumurom | ABK14: Trifluralina | ABL14: Flutriafol | ABM14: Ciromazina | ABN14: Trinexapaque-etílico | ABO14: Flutriafol | ABP14: Triticonazol | ABQ14: Trinexapaque-etílico | ABR14: glifosato | ABS14: ciprodinil | ABT14: Beta-ciflutrina | ABU14: Hidróxido de cobre | ABV14: Clorimurom-etílico | ABW14: Metribuzim | ABX14: Azoxistrobina | ABY14: Ciproconazol | ABZ14: Fluopiram | ACA14: Ciproconazol | ACB14: Haloxifope-P-metílico | ACC14: Ciantraniliprole | ACD14: Metaflumizone | ACE14: Fenpropimorfe | ACF14: Abamectim | ACG14: Clorpirifós | ACH14: Flutriafol | ACI14: Tiram | ACJ14: Carboxina | ACK14: Tiram | ACL14: MSMA | ACM14: Bentazona | ACN14: Triflumurom | ACO14: Fluopicolide | ACP14: Piroxassulfona | ACQ14: Azoxistrobina | ACR14: Ametoctradina | ACS14: Imazetapir | ACT14: Metsulfurom-metílico | ACU14: Clorotalonil | ACV14: Clorotalonil | ACW14: Flumioxazina | ACX14: Flutriafol | ACY14: Oxatiapiprolina | ACZ14: Zoxamida
A15: EIQ (<25; 25 - 40; >40) | C15: 20.7 | D15: 24.0 | E15: 34.7 | F15: 34.7 | G15: 19.5 | H15: 16.7 | I15: 24.9 | J15: 24.9 | K15: 24.9 | L15: 28.7 | M15: 19.9 | N15: 20.7 | O15: 23.6 | P15: 26.7 | Q15: 31.3 | R15: 27.0 | S15: 33.3 | T15: 18.7 | U15: 19.3 | V15: 27.3 | W15: 11.2 | X15: 26.9 | Y15: 36.7 | Z15: 17.9 | AA15: 17.9 | AB15: 19.3 | AC15: 36.4 | AD15: 12.0 | AF15: 19.9 | AG15: 18.3 | AH15: 38.0 | AI15: 32.9 | AJ15: 36.4 | AK15: 16.7 | AL15: 24.2 | AM15: 24.2 | AO15: 20.7 | AP15: 22.7 | AQ15: 26.9 | AR15: 25.2 | AS15: 34.7 | AT15: 19.5 | AU15: 29.3 | AV15: 16.9 | AW15: 23.9 | AX15: 35.0 | AY15: 23.3 | AZ15: 13.7 | BA15: 38.0 | BB15: 19.1 | BC15: 16.3 | BD15: 21.9 | BE15: 11.0 | BF15: 36.7 | BG15: 38.0 | BH15: 18.7 | BI15: 18.7 | BJ15: 30.3 | BL15: 24.0 | BM15: 22.9 | BN15: 22.9 | BO15: 21.5 | BP15: 22.9 | BQ15: 24.3 | BR15: 31.6 | BS15: 33.2 | BU15: 27.3 | BV15: 28.7 | BW15: 23.4 | BX15: 24.9 | BY15: 31.2 | BZ15: 34.7 | CA15: 12.1 | CB15: 12.1 | CC15: 14.7 | CD15: 26.9 | CE15: 26.9 | CF15: 36.7 | CG15: 18.7 | CH15: 13.2 | CI15: 24.8 | CJ15: 22.0 | CK15: 19.4 | CL15: 25.3 | CM15: 16.0 | CN15: 50.5 | CO15: 14.7 | CR15: 18.7 | CS15: 41.7 | CT15: 26.3 | CU15: 19.3 | CV15: 31.6 | CW15: 8.0 | CX15: 44.4 | CY15: 44.4 | DA15: 20.7 | DB15: 11.5 | DC15: 44.4 | DD15: 32.8 | DE15: 14.7 | DF15: 23.6 | DG15: 39.2 | DH15: 25.3 | DI15: 11.7 | DJ15: 26.4 | DK15: 26.4 | DL15: 22.0 | DM15: 12.6 | DN15: 53.6 | DO15: 24.3 | DP15: 31.6 | DQ15: 26.6 | DR15: 35.0 | DS15: 23.4 | DT15: 82.5 | DU15: 18.7 | DV15: 61.9 | DW15: 31.3 | DX15: 18.0 | DY15: 26.4 | DZ15: 15.8 | EA15: 15.8 | EB15: 23.3 | EC15: 44.4 | ED15: 22.7 | EE15: 50.5 | EF15: 50.5 | EG15: 8.7 | EH15: 50.5 | EI15: 47.3 | EJ15: 18.7 | EK15: 24.5 | EL15: 27.3 | EM15: 47.2 | EN15: 47.2 | EO15: 27.9 | EP15: 26.7 | EQ15: 26.9 | ER15: 24.9 | ES15: 25.7 | ET15: 18.3 | EU15: 17.0 | EV15: 23.8 | EW15: 37.4 | EX15: 34.5 | EY15: 24.3 | EZ15: 27.3 | FA15: 19.6 | FB15: 14.7 | FC15: 15.3 | FD15: 67.3 | FF15: 17.0 | FG15: 36.7 | FH15: 23.3 | FI15: 35.5 | FJ15: 36.4 | FK15: 36.4 | FL15: 38.0 | FM15: 26.8 | FN15: 18.3 | FO15: 19.2 | FP15: 17.0 | FQ15: 25.3 | FR15: 19.6 | FS15: 15.3 | FT15: 18.3 | FU15: 37.5 | FV15: 30.3 | FW15: 23.9 | FX15: 19.2 | FY15: 19.2 | FZ15: 19.2 | GA15: 37.4 | GB15: 26.9 | GC15: 32.1 | GD15: 9.7 | GE15: 23.4 | GF15: 27.0 | GG15: 36.4 | GH15: 23.3 | GI15: 24.3 | GJ15: 36.7 | GK15: 22.3 | GL15: 25.7 | GM15: 14.7 | GN15: 66.0 | GO15: 22.9 | GP15: 40.3 | GQ15: 36.7 | GR15: 33.3 | GS15: 22.3 | GT15: 29.8 | GU15: 37.4 | GV15: 25.7 | GW15: 25.7 | GX15: 16.3 | GY15: 59.5 | GZ15: 9.2 | HA15: 36.4 | HB15: 37.4 | HC15: 37.4 | HD15: 37.4 | HE15: 25.3 | HF15: 13.2 | HG15: 28.4 | HH15: 21.4 | HI15: 28.4 | HJ15: 18.3 | HK15: 50.5 | HL15: 50.5 | HM15: 39.2 | HN15: 31.9 | HO15: 39.2 | HP15: 26.3 | HQ15: 24.7 | HR15: 9.7 | HS15: 41.5 | HT15: 41.5 | HU15: 25.3 | HV15: 25.3 | HW15: 25.3 | HX15: 25.3 | HY15: 33.5 | HZ15: 24.0 | IA15: 33.5 | IB15: 25.3 | ID15: 22.3 | IE15: 26.5 | IF15: 39.2 | IG15: 39.2 | IH15: 44.0 | II15: 26.5 | IJ15: 25.7 | IK15: 21.4 | IL15: 26.5 | IM15: 26.5 | IN15: 20.7 | IO15: 18.7 | IP15: 23.5 | IQ15: 23.5 | IR15: 26.7 | IS15: 22.0 | IT15: 40.3 | IU15: 26.9 | IV15: 27.7 | IW15: 33.2 | IX15: 29.0 | IY15: 25.7 | IZ15: 33.3 | JA15: 17.2 | JB15: 15.3 | JC15: 32.7 | JD15: 24.0 | JE15: 35.5 | JF15: 10.4 | JG15: 15.3 | JH15: 40.3 | JI15: 12.7 | JJ15: 39.6 | JK15: 27.8 | JL15: 14.4 | JM15: 17.2 | JN15: 27.9 | JP15: 27.7 | JQ15: 13.4 | JR15: 12.7 | JS15: 34.9 | JT15: 24.9 | JU15: 27.8 | JV15: 18.8 | JW15: 22.9 | JX15: 22.9 | JY15: 32.1 | JZ15: 10.4 | KA15: 20.2 | KB15: 36.4 | KC15: 18.3 | KE15: 43.7 | KF15: 10.0 | KG15: 19.3 | KH15: 25.3 | KJ15: 44.1 | KK15: 29.3 | KL15: 20.2 | KM15: 88.3 | KN15: 41.5 | KO15: 18.5 | KP15: 24.5 | KQ15: 29.8 | KR15: 8.7 | KT15: 28.7 | KU15: 23.3 | KV15: 19.4 | KW15: 23.9 | KX15: 27.9 | KY15: 15.6 | KZ15: 25.1 | LA15: 24.0 | LB15: 24.0 | LC15: 26.0 | LD15: 17.8 | LE15: 28.7 | LG15: 36.7 | LH15: 23.1 | LI15: 25.7 | LJ15: 21.3 | LK15: 40.3 | LL15: 19.1 | LM15: 31.7 | LN15: 31.7 | LO15: 24.5 | LP15: 15.3 | LQ15: 24.0 | LR15: 23.4 | LS15: 14.7 | LT15: 24.0 | LU15: 12.0 | LW15: 32.8 | LX15: 17.0 | LY15: 13.5 | LZ15: 23.3 | MA15: 50.5 | MB15: 37.4 | MC15: 36.4 | MD15: 40.3 | ME15: 24.5 | MF15: 28.7 | MG15: 23.3 | MH15: 16.0 | MI15: 36.7 | MJ15: 14.3 | MK15: 44.1 | ML15: 44.1 | MM15: 16.3 | MO15: 22.0 | MQ15: 15.4 | MR15: 24.2 | MS15: 22.9 | MT15: 12.7 | MU15: 37.4 | MV15: 15.3 | MW15: 20.2 | MX15: 15.3 | MY15: 33.8 | MZ15: 24.7 | NA15: 24.7 | NC15: 23.4 | ND15: 14.7 | NF15: 20.2 | NG15: 30.3 | NH15: 15.3 | NI15: 32.8 | NJ15: 67.3 | NK15: 22.3 | NL15: 24.7 | NM15: 30.2 | NN15: 24.2 | NO15: 26.5 | NP15: 36.4 | NQ15: 18.0 | NR15: 18.0 | NS15: 18.0 | NT15: 18.0 | NU15: 33.0 | NV15: 33.2 | NX15: 40.3 | NY15: 15.3 | NZ15: 37.4 | OA15: 24.6 | OB15: 24.6 | OC15: 19.5 | OD15: 21.2 | OE15: 22.3 | OF15: 15.3 | OG15: 19.6 | OI15: 36.7 | OJ15: 36.7 | OK15: 32.8 | OL15: 25.7 | OM15: 25.3 | OO15: 23.9 | OQ15: 31.2 | OR15: 23.9 | OS15: 44.4 | OT15: 88.3 | OU15: 32.1 | OW15: 15.3 | OX15: 31.1 | OY15: 24.3 | OZ15: 37.4 | PA15: 17.8 | PB15: 24.0 | PC15: 31.6 | PD15: 28.4 | PE15: 28.4 | PF15: 19.9 | PG15: 8.0 | PH15: 44.2 | PI15: 26.5 | PJ15: 26.7 | PK15: 18.5 | PM15: 17.8 | PN15: 11.7 | PO15: 21.2 | PP15: 26.9 | PQ15: 12.6 | PR15: 32.7 | PS15: 19.5 | PT15: 17.9 | PU15: 26.7 | PV15: 44.2 | PW15: 22.0 | PX15: 23.3 | PY15: 23.4 | PZ15: 20.2 | QA15: 19.3 | QB15: 19.3 | QC15: 26.9 | QD15: 16.3 | QE15: 18.7 | QF15: 88.3 | QG15: 24.6 | QH15: 18.0 | QI15: 23.8 | QK15: 25.7 | QL15: 27.1 | QM15: 25.7 | QN15: 88.3 | QO15: 47.3 | QP15: 16.3 | QQ15: 19.1 | QR15: 23.9 | QS15: 22.3 | QT15: 36.7 | QU15: 25.3 | QV15: 25.3 | QW15: 18.7 | QX15: 15.8 | QZ15: 18.7 | RA15: 18.7 | RB15: 32.9 | RC15: 32.9 | RD15: 19.1 | RE15: 26.6 | RF15: 24.0 | RG15: 22.0 | RH15: 32.7 | RI15: 40.6 | RJ15: 22.0 | RK15: 22.0 | RL15: 22.0 | RM15: 32.1 | RN15: 28.4 | RP15: 16.7 | RQ15: 16.7 | RR15: 24.0 | RS15: 16.4 | RT15: 16.0 | RV15: 20.0 | RW15: 23.1 | RX15: 18.0 | RY15: 26.7 | RZ15: 19.5 | SA15: 40.3 | SB15: 14.4 | SC15: 19.5 | SD15: 19.5 | SE15: 19.5 | SF15: 31.6 | SG15: 23.9 | SH15: 23.8 | SI15: 14.3 | SJ15: 26.9 | SK15: 16.7 | SL15: 36.7 | SM15: 24.7 | SN15: 27.9 | SO15: 40.3 | SP15: 9.2 | SQ15: 68.7 | SR15: 15.3 | SS15: 21.2 | ST15: 24.0 | SU15: 24.0 | SV15: 40.3 | SW15: 21.3 | SX15: 24.9 | SY15: 15.8 | TA15: 19.3 | TB15: 44.7 | TC15: 19.3 | TD15: 29.8 | TE15: 33.8 | TF15: 15.3 | TG15: 23.3 | TH15: 19.2 | TI15: 24.7 | TJ15: 20.2 | TK15: 20.0 | TL15: 30.2 | TM15: 25.7 | TN15: 18.7 | TO15: 29.3 | TP15: 25.7 | TQ15: 24.8 | TR15: 18.0 | TS15: 13.7 | TT15: 16.0 | TU15: 28.7 | TV15: 19.6 | TW15: 27.0 | TX15: 37.5 | TY15: 39.6 | TZ15: 31.3 | UA15: 12.7 | UC15: 14.7 | UD15: 21.7 | UE15: 12.3 | UF15: 21.2 | UG15: 20.9 | UH15: 43.7 | UI15: 31.9 | UJ15: 40.6 | UK15: 32.1 | UL15: 11.7 | UM15: 14.3 | UN15: 17.0 | UP15: 24.0 | UQ15: 18.8 | UR15: 18.3 | US15: 11.7 | UT15: 15.6 | UU15: 22.9 | UV15: 22.9 | UW15: 22.9 | UX15: 22.9 | UY15: 38.0 | UZ15: 22.9 | VA15: 26.9 | VB15: 26.9 | VC15: 41.5 | VD15: 14.7 | VE15: 22.2 | VF15: 26.3 | VG15: 59.5 | VI15: 10.0 | VJ15: 13.5 | VK15: 15.4 | VL15: 17.9 | VM15: 68.7 | VN15: 31.6 | VO15: 31.6 | VP15: 16.9 | VQ15: 24.0 | VR15: 13.5 | VS15: 24.0 | VU15: 32.1 | VV15: 22.1 | VW15: 23.3 | VX15: 25.1 | VY15: 27.3 | VZ15: 26.3 | WA15: 31.1 | WB15: 24.9 | WC15: 22.0 | WD15: 43.7 | WE15: 19.5 | WF15: 18.7 | WG15: 19.6 | WH15: 26.9 | WI15: 88.3 | WJ15: 39.2 | WK15: 44.0 | WL15: 88.3 | WM15: 25.1 | WN15: 27.1 | WO15: 29.3 | WP15: 88.3 | WQ15: 25.7 | WR15: 36.7 | WS15: 14.3 | WT15: 11.5 | WU15: 16.7 | WV15: 44.7 | WW15: 22.2 | WX15: 15.3 | WY15: 15.3 | WZ15: 15.3 | XA15: 24.3 | XB15: 31.3 | XC15: 82.5 | XD15: 27.7 | XE15: 22.3 | XF15: 31.3 | XG15: 19.5 | XH15: 27.3 | XI15: 41.5 | XJ15: 15.6 | XK15: 17.0 | XL15: 43.7 | XM15: 29.3 | XN15: 23.3 | XO15: 20.2 | XP15: 28.4 | XQ15: 22.0 | XR15: 20.9 | XS15: 22.7 | XT15: 22.2 | XU15: 21.5 | XV15: 28.7 | XW15: 25.7 | XX15: 13.4 | XY15: 45.8 | XZ15: 11.7 | YA15: 36.7 | YB15: 15.3 | YC15: 41.5 | YD15: 44.4 | YE15: 38.0 | YF15: 9.7 | YG15: 23.4 | YH15: 26.4 | YI15: 27.3 | YJ15: 44.1 | YK15: 17.9 | YL15: 88.3 | YM15: 88.3 | YN15: 21.7 | YO15: 44.4 | YP15: 88.3 | YQ15: 19.5 | YR15: 31.6 | YT15: 61.9 | YU15: 11.7 | YW15: 19.9 | YX15: 18.8 | YY15: 39.6 | ZB15: 22.2 | ZC15: 22.2 | ZD15: 24.0 | ZF15: 24.0 | ZG15: 33.2 | ZH15: 23.8 | ZI15: 32.7 | ZJ15: 19.9 | ZK15: 40.3 | ZL15: 24.0 | ZM15: 33.0 | ZN15: 44.4 | ZO15: 44.4 | ZP15: 22.1 | ZQ15: 25.7 | ZR15: 40.3 | ZS15: 40.3 | ZT15: 16.4 | ZU15: 40.3 | ZV15: 23.4 | ZW15: 50.5 | ZX15: 31.0 | ZY15: 23.9 | ZZ15: 45.8 | AAA15: 28.4 | AAB15: 21.9 | AAC15: 66.0 | AAD15: 23.5 | AAE15: 23.5 | AAF15: 34.9 | AAG15: 29.0 | AAI15: 34.5 | AAJ15: 31.0 | AAK15: 31.3 | AAL15: 18.7 | AAM15: 14.7 | AAN15: 31.6 | AAO15: 23.3 | AAP15: 23.8 | AAQ15: 29.3 | AAR15: 24.7 | AAS15: 18.0 | AAT15: 27.3 | AAU15: 25.3 | AAV15: 23.8 | AAW15: 22.7 | AAX15: 25.7 | AAY15: 41.7 | AAZ15: 37.4 | ABA15: 27.7 | ABB15: 24.8 | ABD15: 11.0 | ABE15: 26.9 | ABF15: 20.4 | ABG15: 29.8 | ABH15: 15.3 | ABI15: 20.4 | ABJ15: 34.5 | ABK15: 18.8 | ABL15: 25.7 | ABM15: 18.3 | ABN15: 19.0 | ABO15: 25.7 | ABP15: 11.7 | ABQ15: 19.0 | ABR15: 15.3 | ABS15: 26.8 | ABT15: 31.6 | ABU15: 33.2 | ABV15: 19.2 | ABW15: 28.4 | ABX15: 26.9 | ABY15: 38.0 | ABZ15: 17.8 | ACA15: 38.0 | ACB15: 30.3 | ACC15: 14.7 | ACD15: 32.9 | ACF15: 34.7 | ACG15: 26.9 | ACH15: 25.7 | ACI15: 29.3 | ACJ15: 18.7 | ACK15: 29.3 | ACL15: 18.0 | ACM15: 18.7 | ACN15: 34.5 | ACO15: 26.0 | ACP15: 12.3 | ACQ15: 26.9 | ACR15: 16.7 | ACS15: 19.6 | ACT15: 16.7 | ACU15: 37.4 | ACV15: 37.4 | ACW15: 24.0 | ACX15: 25.7 | ACY15: 19.3 | ACZ15: 22.4
A16: EIQ Impacto trabalhador rural (<20; 20 - 40; >40) | C16: 24.0 | D16: 18.0 | E16: 13.8 | F16: 13.8 | G16: 8.0 | H16: 8.0 | I16: 15.0 | J16: 15.0 | K16: 15.0 | L16: 6.9 | M16: 10.7 | N16: 6.9 | O16: 16.0 | P16: 24.0 | Q16: 16.0 | R16: 8.1 | S16: 10.4 | T16: 16.0 | U16: 10.7 | V16: 8.0 | W16: 9.0 | X16: 8.1 | Y16: 32.0 | Z16: 10.7 | AA16: 10.7 | AB16: 6.0 | AC16: 13.8 | AD16: 6.0 | AF16: 8.0 | AG16: 6.9 | AH16: 20.3 | AI16: 13.1 | AJ16: 13.8 | AK16: 6.0 | AL16: 21.3 | AM16: 21.3 | AO16: 24.0 | AP16: 8.0 | AQ16: 8.1 | AR16: 27.0 | AS16: 13.8 | AT16: 8.0 | AU16: 20.3 | AV16: 9.0 | AW16: 6.9 | AX16: 12.0 | AY16: 8.0 | AZ16: 6.0 | BA16: 20.3 | BB16: 8.1 | BC16: 6.9 | BD16: 12.0 | BE16: 6.0 | BF16: 8.0 | BG16: 20.3 | BH16: 16.0 | BI16: 16.0 | BJ16: 13.1 | BL16: 18.0 | BM16: 8.0 | BN16: 8.0 | BO16: 10.7 | BP16: 8.0 | BQ16: 16.2 | BR16: 12.0 | BS16: 24.3 | BU16: 8.0 | BV16: 6.9 | BW16: 13.3 | BX16: 15.0 | BY16: 6.9 | BZ16: 13.8 | CA16: 6.0 | CB16: 6.0 | CC16: 8.0 | CD16: 8.1 | CE16: 8.1 | CF16: 6.9 | CG16: 16.0 | CH16: 9.0 | CI16: 16.2 | CJ16: 6.0 | CK16: 10.4 | CL16: 10.0 | CM16: 9.0 | CN16: 25.0 | CO16: 6.0 | CR16: 16.0 | CS16: 32.0 | CT16: 9.0 | CU16: 6.0 | CV16: 6.9 | CW16: 6.0 | CX16: 13.8 | CY16: 13.8 | DA16: 6.9 | DB16: 6.9 | DC16: 13.8 | DD16: 13.1 | DE16: 6.0 | DF16: 16.0 | DG16: 36.0 | DH16: 6.0 | DI16: 6.0 | DJ16: 12.2 | DK16: 12.2 | DL16: 6.0 | DM16: 6.9 | DN16: 74.0 | DO16: 8.1 | DP16: 6.9 | DQ16: 24.2 | DR16: 12.0 | DS16: 13.3 | DT16: 60.0 | DU16: 16.0 | DV16: 24.3 | DW16: 16.0 | DX16: 8.0 | DY16: 12.2 | DZ16: 12.0 | EA16: 12.0 | EB16: 18.0 | EC16: 13.8 | ED16: 15.0 | EE16: 25.0 | EF16: 25.0 | EG16: 6.0 | EH16: 25.0 | EI16: 6.9 | EJ16: 8.1 | EK16: 32.0 | EL16: 8.0 | EM16: 39.3 | EN16: 39.3 | EO16: 13.1 | EP16: 8.0 | EQ16: 6.0 | ER16: 15.0 | ES16: 12.0 | ET16: 6.9 | EU16: 12.0 | EV16: 16.2 | EW16: 20.0 | EX16: 13.1 | EY16: 16.2 | EZ16: 6.0 | FA16: 12.0 | FB16: 6.0 | FC16: 6.0 | FD16: 10.0 | FF16: 10.4 | FG16: 6.9 | FH16: 8.0 | FI16: 21.9 | FJ16: 13.8 | FK16: 13.8 | FL16: 20.3 | FM16: 12.2 | FN16: 6.9 | FO16: 8.0 | FP16: 12.0 | FQ16: 16.0 | FR16: 10.7 | FS16: 8.0 | FT16: 6.9 | FU16: 6.0 | FV16: 13.1 | FW16: 12.2 | FX16: 8.0 | FY16: 8.0 | FZ16: 8.0 | GA16: 20.0 | GB16: 6.0 | GC16: 10.4 | GD16: 6.0 | GE16: 13.3 | GF16: 8.1 | GG16: 13.8 | GH16: 8.0 | GI16: 8.1 | GJ16: 6.9 | GK16: 8.0 | GL16: 20.3 | GM16: 6.0 | GN16: 40.0 | GO16: 8.0 | GP16: 20.0 | GQ16: 6.9 | GR16: 10.4 | GS16: 8.0 | GT16: 8.1 | GU16: 20.0 | GV16: 20.3 | GW16: 20.3 | GX16: 6.9 | GY16: 8.1 | GZ16: 9.0 | HA16: 13.8 | HB16: 20.0 | HC16: 20.0 | HD16: 20.0 | HE16: 6.0 | HF16: 9.0 | HG16: 18.0 | HH16: 9.0 | HI16: 18.0 | HJ16: 6.9 | HK16: 25.0 | HL16: 25.0 | HM16: 36.0 | HN16: 6.0 | HO16: 36.0 | HP16: 12.0 | HQ16: 32.0 | HR16: 6.0 | HS16: 15.0 | HT16: 15.0 | HU16: 8.0 | HV16: 8.0 | HW16: 8.0 | HX16: 8.0 | HY16: 10.4 | HZ16: 8.1 | IA16: 10.4 | IB16: 8.0 | ID16: 6.9 | IE16: 20.0 | IF16: 36.0 | IG16: 36.0 | IH16: 48.0 | II16: 20.0 | IJ16: 20.3 | IK16: 9.0 | IL16: 20.0 | IM16: 20.0 | IN16: 24.0 | IO16: 16.0 | IP16: 8.0 | IQ16: 8.0 | IR16: 24.0 | IS16: 12.0 | IT16: 20.0 | IU16: 8.1 | IV16: 12.0 | IW16: 24.3 | IX16: 12.0 | IY16: 20.3 | IZ16: 10.4 | JA16: 6.9 | JB16: 8.0 | JC16: 21.9 | JD16: 18.0 | JE16: 21.9 | JF16: 9.0 | JG16: 8.0 | JH16: 20.0 | JI16: 9.0 | JJ16: 6.9 | JK16: 6.9 | JL16: 6.0 | JM16: 6.9 | JN16: 6.9 | JP16: 12.0 | JQ16: 6.9 | JR16: 6.0 | JS16: 24.3 | JT16: 15.0 | JU16: 6.9 | JV16: 15.0 | JW16: 8.0 | JX16: 8.0 | JY16: 8.0 | JZ16: 9.0 | KA16: 12.0 | KB16: 13.8 | KC16: 6.9 | KE16: 12.0 | KF16: 6.0 | KG16: 6.0 | KH16: 6.0 | KJ16: 13.1 | KK16: 12.0 | KL16: 12.0 | KM16: 60.0 | KN16: 15.0 | KO16: 8.0 | KP16: 32.0 | KQ16: 12.2 | KR16: 6.0 | KT16: 10.7 | KU16: 8.0 | KV16: 10.4 | KW16: 8.1 | KX16: 13.1 | KY16: 7.1 | KZ16: 17.6 | LA16: 16.0 | LB16: 16.0 | LC16: 14.0 | LD16: 6.0 | LE16: 10.0 | LG16: 8.0 | LH16: 8.1 | LI16: 12.0 | LJ16: 8.0 | LK16: 20.0 | LL16: 8.1 | LM16: 12.2 | LN16: 12.2 | LO16: 32.0 | LP16: 8.0 | LQ16: 24.0 | LR16: 13.3 | LS16: 6.0 | LT16: 8.1 | LU16: 6.0 | LW16: 6.9 | LX16: 10.4 | LY16: 9.0 | LZ16: 8.0 | MA16: 25.0 | MB16: 20.0 | MC16: 13.8 | MD16: 20.0 | ME16: 32.0 | MF16: 10.7 | MG16: 18.0 | MH16: 9.0 | MI16: 6.9 | MJ16: 6.0 | MK16: 13.1 | ML16: 13.1 | MM16: 6.9 | MO16: 12.0 | MQ16: 7.1 | MR16: 21.3 | MS16: 8.0 | MT16: 6.0 | MU16: 20.0 | MV16: 8.0 | MW16: 12.0 | MX16: 8.0 | MY16: 12.0 | MZ16: 32.0 | NA16: 32.0 | NC16: 13.3 | ND16: 8.0 | NF16: 12.0 | NG16: 12.0 | NH16: 6.0 | NI16: 13.1 | NJ16: 10.0 | NK16: 13.3 | NL16: 32.0 | NM16: 12.0 | NN16: 21.3 | NO16: 20.0 | NP16: 13.8 | NQ16: 8.0 | NR16: 8.0 | NS16: 8.0 | NT16: 8.0 | NU16: 15.0 | NV16: 24.3 | NX16: 20.0 | NY16: 8.0 | NZ16: 20.0 | OA16: 15.0 | OB16: 15.0 | OC16: 8.0 | OD16: 8.0 | OE16: 8.0 | OF16: 6.0 | OG16: 15.6 | OI16: 6.9 | OJ16: 6.9 | OK16: 6.9 | OL16: 12.0 | OM16: 8.0 | OO16: 6.9 | OQ16: 6.9 | OR16: 12.2 | OS16: 13.8 | OT16: 60.0 | OU16: 10.0 | OW16: 8.0 | OX16: 8.1 | OY16: 16.2 | OZ16: 20.0 | PA16: 6.0 | PB16: 24.0 | PC16: 12.0 | PD16: 18.0 | PE16: 18.0 | PF16: 10.7 | PG16: 6.0 | PH16: 20.7 | PI16: 20.0 | PJ16: 8.0 | PK16: 8.0 | PM16: 6.0 | PN16: 6.0 | PO16: 8.0 | PP16: 6.0 | PQ16: 6.9 | PR16: 21.9 | PS16: 8.0 | PT16: 10.7 | PU16: 24.0 | PV16: 20.7 | PW16: 6.0 | PX16: 18.0 | PY16: 13.3 | PZ16: 12.0 | QA16: 10.7 | QB16: 10.7 | QC16: 6.0 | QD16: 6.9 | QE16: 16.0 | QF16: 60.0 | QG16: 15.0 | QH16: 8.0 | QI16: 9.0 | QK16: 20.3 | QL16: 21.9 | QM16: 20.3 | QN16: 60.0 | QO16: 6.9 | QP16: 6.9 | QQ16: 8.1 | QR16: 8.1 | QS16: 6.9 | QT16: 32.0 | QU16: 10.0 | QV16: 6.0 | QW16: 16.0 | QX16: 12.0 | QZ16: 16.0 | RA16: 16.0 | RB16: 13.1 | RC16: 13.1 | RD16: 8.1 | RE16: 24.2 | RF16: 12.0 | RG16: 6.0 | RH16: 30.0 | RI16: 29.7 | RJ16: 12.0 | RK16: 12.0 | RL16: 6.0 | RM16: 10.0 | RN16: 8.0 | RP16: 8.0 | RQ16: 8.0 | RR16: 8.1 | RS16: 6.9 | RT16: 6.0 | RV16: 8.1 | RW16: 8.1 | RX16: 8.0 | RY16: 24.0 | RZ16: 8.0 | SA16: 20.0 | SB16: 6.0 | SC16: 8.0 | SD16: 8.0 | SE16: 8.0 | SF16: 12.0 | SG16: 6.9 | SH16: 9.0 | SI16: 6.0 | SJ16: 6.0 | SK16: 8.0 | SL16: 6.9 | SM16: 32.0 | SN16: 6.9 | SO16: 20.0 | SP16: 9.0 | SQ16: 20.0 | SR16: 6.0 | SS16: 8.0 | ST16: 18.0 | SU16: 12.0 | SV16: 20.0 | SW16: 8.0 | SX16: 15.0 | SY16: 12.0 | TA16: 6.0 | TB16: 28.0 | TC16: 6.0 | TD16: 8.1 | TE16: 12.0 | TF16: 8.0 | TG16: 8.0 | TH16: 8.0 | TI16: 32.0 | TJ16: 12.0 | TK16: 8.1 | TL16: 12.0 | TM16: 20.3 | TN16: 12.0 | TO16: 12.0 | TP16: 20.3 | TQ16: 16.2 | TR16: 8.0 | TS16: 6.0 | TT16: 6.0 | TU16: 10.7 | TV16: 12.0 | TW16: 8.1 | TX16: 6.0 | TY16: 6.9 | TZ16: 6.9 | UA16: 9.0 | UC16: 6.0 | UD16: 12.0 | UE16: 12.0 | UF16: 8.0 | UG16: 7.1 | UH16: 12.0 | UI16: 6.0 | UJ16: 29.7 | UK16: 10.4 | UL16: 6.0 | UM16: 6.0 | UN16: 12.0 | UP16: 18.0 | UQ16: 9.0 | UR16: 6.9 | US16: 6.0 | UT16: 7.1 | UU16: 8.0 | UV16: 8.0 | UW16: 8.0 | UX16: 8.0 | UY16: 20.3 | UZ16: 8.0 | VA16: 8.1 | VB16: 8.1 | VC16: 15.0 | VD16: 6.0 | VE16: 15.0 | VF16: 9.0 | VG16: 8.1 | VI16: 6.0 | VJ16: 9.0 | VK16: 7.1 | VL16: 10.7 | VM16: 20.0 | VN16: 12.0 | VO16: 12.0 | VP16: 9.0 | VQ16: 18.0 | VR16: 9.0 | VS16: 24.0 | VU16: 8.0 | VV16: 10.7 | VW16: 8.0 | VX16: 17.6 | VY16: 8.0 | VZ16: 12.0 | WA16: 8.1 | WB16: 15.0 | WC16: 12.0 | WD16: 12.0 | WE16: 8.0 | WF16: 12.0 | WG16: 10.7 | WH16: 6.0 | WI16: 60.0 | WJ16: 36.0 | WK16: 48.0 | WL16: 60.0 | WM16: 17.6 | WN16: 21.9 | WO16: 20.3 | WP16: 60.0 | WQ16: 20.3 | WR16: 6.9 | WS16: 6.0 | WT16: 6.9 | WU16: 8.0 | WV16: 28.0 | WW16: 15.0 | WX16: 8.0 | WY16: 8.0 | WZ16: 8.0 | XA16: 16.2 | XB16: 16.0 | XC16: 60.0 | XD16: 12.0 | XE16: 13.3 | XF16: 6.9 | XG16: 8.0 | XH16: 8.0 | XI16: 15.0 | XJ16: 7.1 | XK16: 12.0 | XL16: 12.0 | XM16: 20.3 | XN16: 18.0 | XO16: 12.0 | XP16: 8.0 | XQ16: 12.0 | XR16: 7.1 | XS16: 15.0 | XT16: 15.0 | XU16: 10.7 | XV16: 10.0 | XW16: 12.0 | XX16: 6.9 | XY16: 18.7 | XZ16: 6.0 | YA16: 6.9 | YB16: 6.0 | YC16: 15.0 | YD16: 13.8 | YE16: 20.3 | YF16: 6.0 | YG16: 13.3 | YH16: 12.2 | YI16: 8.0 | YJ16: 13.1 | YK16: 10.7 | YL16: 60.0 | YM16: 60.0 | YN16: 12.0 | YO16: 13.8 | YP16: 60.0 | YQ16: 8.0 | YR16: 12.0 | YT16: 24.3 | YU16: 6.0 | YW16: 8.0 | YX16: 15.0 | YY16: 6.9 | ZB16: 15.0 | ZC16: 15.0 | ZD16: 16.0 | ZF16: 16.0 | ZG16: 24.3 | ZH16: 16.2 | ZI16: 30.0 | ZJ16: 10.7 | ZK16: 20.0 | ZL16: 8.1 | ZM16: 15.0 | ZN16: 13.8 | ZO16: 13.8 | ZP16: 10.7 | ZQ16: 12.0 | ZR16: 20.0 | ZS16: 20.0 | ZT16: 6.9 | ZU16: 20.0 | ZV16: 13.3 | ZW16: 25.0 | ZX16: 8.1 | ZY16: 6.9 | ZZ16: 18.7 | AAA16: 8.0 | AAB16: 12.0 | AAC16: 40.0 | AAD16: 12.0 | AAE16: 12.0 | AAF16: 24.3 | AAG16: 12.0 | AAI16: 13.1 | AAJ16: 8.1 | AAK16: 16.0 | AAL16: 16.0 | AAM16: 6.0 | AAN16: 12.0 | AAO16: 18.0 | AAP16: 16.2 | AAQ16: 20.3 | AAR16: 32.0 | AAS16: 8.0 | AAT16: 6.0 | AAU16: 16.0 | AAV16: 16.2 | AAW16: 8.0 | AAX16: 12.0 | AAY16: 32.0 | AAZ16: 20.0 | ABA16: 12.0 | ABB16: 16.2 | ABD16: 6.0 | ABE16: 8.1 | ABF16: 11.4 | ABG16: 12.2 | ABH16: 8.0 | ABI16: 11.4 | ABJ16: 13.1 | ABK16: 9.0 | ABL16: 12.0 | ABM16: 6.9 | ABN16: 7.1 | ABO16: 12.0 | ABP16: 6.0 | ABQ16: 7.1 | ABR16: 8.0 | ABS16: 12.2 | ABT16: 6.9 | ABU16: 24.3 | ABV16: 8.0 | ABW16: 8.0 | ABX16: 8.1 | ABY16: 20.3 | ABZ16: 6.0 | ACA16: 20.3 | ACB16: 12.0 | ACC16: 6.0 | ACD16: 13.1 | ACF16: 13.8 | ACG16: 6.0 | ACH16: 12.0 | ACI16: 20.3 | ACJ16: 8.1 | ACK16: 20.3 | ACL16: 8.0 | ACM16: 16.0 | ACN16: 13.1 | ACO16: 14.0 | ACP16: 12.0 | ACQ16: 8.1 | ACR16: 6.0 | ACS16: 15.6 | ACT16: 8.0 | ACU16: 20.0 | ACV16: 20.0 | ACW16: 16.0 | ACX16: 12.0 | ACY16: 6.0 | ACZ16: 8.1
A17: EIQ Impacto consumidor (<10; 10 - 20; >20) | C17: 7.0 | D17: 14.0 | E17: 3.9 | F17: 3.9 | G17: 8.0 | H17: 8.0 | I17: 12.5 | J17: 12.5 | K17: 12.5 | L17: 7.4 | M17: 5.3 | N17: 5.4 | O17: 8.8 | P17: 11.0 | Q17: 15.0 | R17: 4.1 | S17: 12.0 | T17: 7.0 | U17: 6.8 | V17: 5.0 | W17: 2.5 | X17: 6.1 | Y17: 9.0 | Z17: 5.3 | AA17: 5.3 | AB17: 10.0 | AC17: 5.9 | AD17: 4.0 | AF17: 6.0 | AG17: 6.5 | AH17: 25.9 | AI17: 6.0 | AJ17: 5.9 | AK17: 2.0 | AL17: 10.7 | AM17: 10.7 | AO17: 7.0 | AP17: 1.0 | AQ17: 6.1 | AR17: 2.5 | AS17: 3.9 | AT17: 8.0 | AU17: 8.6 | AV17: 2.5 | AW17: 8.4 | AX17: 19.0 | AY17: 4.0 | AZ17: 6.0 | BA17: 25.9 | BB17: 12.2 | BC17: 8.4 | BD17: 9.5 | BE17: 7.0 | BF17: 8.0 | BG17: 25.9 | BH17: 7.0 | BI17: 7.0 | BJ17: 5.0 | BL17: 14.0 | BM17: 7.0 | BN17: 7.0 | BO17: 14.5 | BP17: 7.0 | BQ17: 9.1 | BR17: 19.0 | BS17: 9.1 | BU17: 5.0 | BV17: 7.4 | BW17: 9.7 | BX17: 12.5 | BY17: 2.5 | BZ17: 3.9 | CA17: 5.5 | CB17: 5.5 | CC17: 5.0 | CD17: 6.1 | CE17: 6.1 | CF17: 10.4 | CG17: 9.0 | CH17: 4.5 | CI17: 21.3 | CJ17: 11.0 | CK17: 3.2 | CL17: 18.0 | CM17: 10.0 | CN17: 40.5 | CO17: 9.0 | CR17: 9.0 | CS17: 39.0 | CT17: 4.0 | CU17: 10.0 | CV17: 2.5 | CW17: 2.0 | CX17: 7.9 | CY17: 7.9 | DA17: 5.4 | DB17: 4.6 | DC17: 7.9 | DD17: 2.8 | DE17: 2.0 | DF17: 8.8 | DG17: 7.0 | DH17: 2.0 | DI17: 8.0 | DJ17: 21.2 | DK17: 21.2 | DL17: 11.0 | DM17: 7.5 | DN17: 10.4 | DO17: 10.5 | DP17: 2.5 | DQ17: 8.1 | DR17: 19.0 | DS17: 9.7 | DT17: 7.5 | DU17: 7.0 | DV17: 13.2 | DW17: 15.0 | DX17: 9.0 | DY17: 21.2 | DZ17: 5.0 | EA17: 5.0 | EB17: 6.0 | EC17: 7.9 | ED17: 5.5 | EE17: 40.5 | EF17: 40.5 | EG17: 8.0 | EH17: 40.5 | EI17: 8.4 | EJ17: 7.2 | EK17: 8.8 | EL17: 5.0 | EM17: 14.0 | EN17: 14.0 | EO17: 5.0 | EP17: 6.0 | EQ17: 2.0 | ER17: 12.5 | ES17: 21.0 | ET17: 7.4 | EU17: 8.0 | EV17: 15.3 | EW17: 11.0 | EX17: 3.8 | EY17: 9.1 | EZ17: 2.0 | FA17: 19.0 | FB17: 9.0 | FC17: 4.0 | FD17: 18.0 | FF17: 11.5 | FG17: 10.4 | FH17: 4.0 | FI17: 21.3 | FJ17: 5.9 | FK17: 5.9 | FL17: 25.9 | FM17: 14.7 | FN17: 13.4 | FO17: 7.0 | FP17: 8.0 | FQ17: 5.0 | FR17: 6.8 | FS17: 5.0 | FT17: 6.5 | FU17: 4.0 | FV17: 5.0 | FW17: 12.2 | FX17: 7.0 | FY17: 7.0 | FZ17: 7.0 | GA17: 11.0 | GB17: 2.0 | GC17: 8.2 | GD17: 5.0 | GE17: 9.7 | GF17: 4.1 | GG17: 5.9 | GH17: 4.0 | GI17: 10.5 | GJ17: 10.4 | GK17: 5.0 | GL17: 8.1 | GM17: 2.0 | GN17: 6.0 | GO17: 7.0 | GP17: 31.0 | GQ17: 10.4 | GR17: 12.0 | GS17: 5.0 | GT17: 5.1 | GU17: 11.0 | GV17: 8.1 | GW17: 8.1 | GX17: 8.4 | GY17: 3.1 | GZ17: 2.5 | HA17: 5.9 | HB17: 11.0 | HC17: 11.0 | HD17: 11.0 | HE17: 2.0 | HF17: 4.5 | HG17: 2.0 | HH17: 4.0 | HI17: 2.0 | HJ17: 6.5 | HK17: 40.5 | HL17: 40.5 | HM17: 7.0 | HN17: 2.5 | HO17: 7.0 | HP17: 8.0 | HQ17: 6.3 | HR17: 5.0 | HS17: 23.5 | HT17: 23.5 | HU17: 3.0 | HV17: 3.0 | HW17: 3.0 | HX17: 3.0 | HY17: 11.5 | HZ17: 12.2 | IA17: 11.5 | IB17: 3.0 | ID17: 7.5 | IE17: 8.5 | IF17: 7.0 | IG17: 7.0 | IH17: 9.0 | II17: 8.5 | IJ17: 8.1 | IK17: 4.0 | IL17: 8.5 | IM17: 8.5 | IN17: 7.0 | IO17: 9.0 | IP17: 3.0 | IQ17: 3.0 | IR17: 11.0 | IS17: 9.0 | IT17: 31.0 | IU17: 6.1 | IV17: 3.0 | IW17: 9.1 | IX17: 21.0 | IY17: 8.1 | IZ17: 12.0 | JA17: 2.5 | JB17: 5.0 | JC17: 8.3 | JD17: 14.0 | JE17: 21.3 | JF17: 2.5 | JG17: 7.0 | JH17: 31.0 | JI17: 6.0 | JJ17: 3.5 | JK17: 2.5 | JL17: 2.0 | JM17: 2.5 | JN17: 2.5 | JP17: 3.0 | JQ17: 2.5 | JR17: 5.0 | JS17: 9.2 | JT17: 12.5 | JU17: 2.5 | JV17: 12.5 | JW17: 7.0 | JX17: 7.0 | JY17: 9.0 | JZ17: 2.5 | KA17: 6.0 | KB17: 5.9 | KC17: 7.4 | KE17: 4.0 | KF17: 4.0 | KG17: 3.0 | KH17: 2.0 | KJ17: 5.0 | KK17: 5.0 | KL17: 6.0 | KM17: 11.0 | KN17: 23.5 | KO17: 7.0 | KP17: 8.8 | KQ17: 10.2 | KR17: 8.0 | KT17: 3.3 | KU17: 4.0 | KV17: 3.2 | KW17: 3.1 | KX17: 5.0 | KY17: 7.5 | KZ17: 11.6 | LA17: 6.1 | LB17: 6.1 | LC17: 15.0 | LD17: 8.0 | LE17: 18.0 | LG17: 8.0 | LH17: 15.2 | LI17: 21.0 | LJ17: 15.0 | LK17: 31.0 | LL17: 12.2 | LM17: 6.1 | LN17: 6.1 | LO17: 8.8 | LP17: 7.0 | LQ17: 9.0 | LR17: 9.7 | LS17: 9.0 | LT17: 12.2 | LU17: 4.0 | LW17: 2.5 | LX17: 11.5 | LY17: 5.5 | LZ17: 4.0 | MA17: 40.5 | MB17: 11.0 | MC17: 5.9 | MD17: 31.0 | ME17: 8.8 | MF17: 3.3 | MG17: 6.0 | MH17: 10.0 | MI17: 10.4 | MJ17: 3.0 | MK17: 5.0 | ML17: 5.0 | MM17: 8.4 | MO17: 9.0 | MQ17: 5.6 | MR17: 10.7 | MS17: 7.0 | MT17: 5.0 | MU17: 11.0 | MV17: 3.0 | MW17: 6.0 | MX17: 3.0 | MY17: 7.0 | MZ17: 6.3 | NA17: 6.3 | NC17: 9.7 | ND17: 5.0 | NF17: 6.0 | NG17: 8.0 | NH17: 4.0 | NI17: 2.8 | NJ17: 18.0 | NK17: 8.3 | NL17: 6.3 | NM17: 5.5 | NN17: 10.7 | NO17: 8.5 | NP17: 5.9 | NQ17: 7.0 | NR17: 7.0 | NS17: 7.0 | NT17: 7.0 | NU17: 7.0 | NV17: 9.1 | NX17: 31.0 | NY17: 7.0 | NZ17: 11.0 | OA17: 23.5 | OB17: 23.5 | OC17: 8.0 | OD17: 9.0 | OE17: 5.0 | OF17: 8.0 | OG17: 10.6 | OI17: 10.4 | OJ17: 10.4 | OK17: 2.5 | OL17: 21.0 | OM17: 3.0 | OO17: 8.4 | OQ17: 2.5 | OR17: 12.2 | OS17: 7.9 | OT17: 11.0 | OU17: 8.0 | OW17: 7.0 | OX17: 13.2 | OY17: 9.1 | OZ17: 11.0 | PA17: 8.0 | PB17: 9.0 | PC17: 19.0 | PD17: 2.0 | PE17: 2.0 | PF17: 5.3 | PG17: 2.0 | PH17: 3.5 | PI17: 8.5 | PJ17: 6.0 | PK17: 7.0 | PM17: 8.0 | PN17: 8.0 | PO17: 9.0 | PP17: 2.0 | PQ17: 7.5 | PR17: 8.3 | PS17: 8.0 | PT17: 5.3 | PU17: 11.0 | PV17: 3.5 | PW17: 11.0 | PX17: 6.0 | PY17: 9.7 | PZ17: 6.0 | QA17: 6.8 | QB17: 6.8 | QC17: 2.0 | QD17: 8.4 | QE17: 7.0 | QF17: 11.0 | QG17: 23.5 | QH17: 7.0 | QI17: 4.5 | QK17: 8.1 | QL17: 19.6 | QM17: 8.1 | QN17: 11.0 | QO17: 8.4 | QP17: 8.4 | QQ17: 12.2 | QR17: 3.1 | QS17: 7.5 | QT17: 9.0 | QU17: 18.0 | QV17: 2.0 | QW17: 7.0 | QX17: 5.0 | QZ17: 7.0 | RA17: 7.0 | RB17: 6.0 | RC17: 6.0 | RD17: 12.2 | RE17: 8.1 | RF17: 15.0 | RG17: 11.0 | RH17: 4.0 | RI17: 12.2 | RJ17: 9.0 | RK17: 9.0 | RL17: 11.0 | RM17: 8.0 | RN17: 8.0 | RP17: 8.0 | RQ17: 8.0 | RR17: 12.2 | RS17: 5.5 | RT17: 10.0 | RV17: 5.0 | RW17: 15.2 | RX17: 5.0 | RY17: 11.0 | RZ17: 8.0 | SA17: 31.0 | SB17: 2.0 | SC17: 8.0 | SD17: 8.0 | SE17: 8.0 | SF17: 19.0 | SG17: 8.4 | SH17: 4.5 | SI17: 3.0 | SJ17: 2.0 | SK17: 8.0 | SL17: 10.4 | SM17: 6.3 | SN17: 2.5 | SO17: 31.0 | SP17: 2.5 | SQ17: 9.0 | SR17: 8.0 | SS17: 9.0 | ST17: 14.0 | SU17: 15.0 | SV17: 31.0 | SW17: 15.0 | SX17: 12.5 | SY17: 5.0 | TA17: 3.0 | TB17: 15.0 | TC17: 10.0 | TD17: 5.1 | TE17: 7.0 | TF17: 5.0 | TG17: 5.0 | TH17: 7.0 | TI17: 6.3 | TJ17: 6.0 | TK17: 5.0 | TL17: 5.5 | TM17: 8.1 | TN17: 9.4 | TO17: 5.0 | TP17: 8.1 | TQ17: 21.3 | TR17: 9.0 | TS17: 6.0 | TT17: 10.0 | TU17: 3.3 | TV17: 19.0 | TW17: 4.1 | TX17: 4.0 | TY17: 3.5 | TZ17: 2.5 | UA17: 6.0 | UC17: 2.0 | UD17: 9.5 | UE17: 7.0 | UF17: 9.0 | UG17: 4.6 | UH17: 4.0 | UI17: 2.5 | UJ17: 12.2 | UK17: 8.2 | UL17: 8.0 | UM17: 3.0 | UN17: 8.0 | UP17: 14.0 | UQ17: 5.5 | UR17: 6.5 | US17: 6.0 | UT17: 7.5 | UU17: 7.0 | UV17: 7.0 | UW17: 7.0 | UX17: 7.0 | UY17: 25.9 | UZ17: 7.0 | VA17: 6.1 | VB17: 6.1 | VC17: 23.5 | VD17: 2.0 | VE17: 25.5 | VF17: 4.0 | VG17: 3.1 | VI17: 4.0 | VJ17: 5.5 | VK17: 5.6 | VL17: 5.3 | VM17: 9.0 | VN17: 19.0 | VO17: 19.0 | VP17: 2.5 | VQ17: 14.0 | VR17: 5.5 | VS17: 9.0 | VU17: 9.0 | VV17: 3.3 | VW17: 5.0 | VX17: 11.6 | VY17: 5.0 | VZ17: 8.0 | WA17: 13.2 | WB17: 12.5 | WC17: 9.0 | WD17: 4.0 | WE17: 8.0 | WF17: 9.4 | WG17: 6.8 | WH17: 2.0 | WI17: 11.0 | WJ17: 7.0 | WK17: 9.0 | WL17: 11.0 | WM17: 11.6 | WN17: 19.6 | WO17: 8.6 | WP17: 11.0 | WQ17: 8.1 | WR17: 10.4 | WS17: 3.0 | WT17: 4.6 | WU17: 8.0 | WV17: 15.0 | WW17: 25.5 | WX17: 3.0 | WY17: 3.0 | WZ17: 3.0 | XA17: 9.1 | XB17: 15.0 | XC17: 7.5 | XD17: 3.0 | XE17: 8.3 | XF17: 2.5 | XG17: 8.0 | XH17: 5.0 | XI17: 23.5 | XJ17: 7.5 | XK17: 8.0 | XL17: 4.0 | XM17: 8.6 | XN17: 6.0 | XO17: 6.0 | XP17: 8.0 | XQ17: 9.0 | XR17: 4.6 | XS17: 5.5 | XT17: 25.5 | XU17: 14.5 | XV17: 18.0 | XW17: 21.0 | XX17: 2.5 | XY17: 1.0 | XZ17: 8.0 | YA17: 10.4 | YB17: 8.0 | YC17: 23.5 | YD17: 7.9 | YE17: 25.9 | YF17: 5.0 | YG17: 9.7 | YH17: 21.2 | YI17: 5.0 | YJ17: 5.0 | YK17: 5.3 | YL17: 11.0 | YM17: 11.0 | YN17: 9.5 | YO17: 7.9 | YP17: 11.0 | YQ17: 8.0 | YR17: 19.0 | YT17: 13.2 | YU17: 8.0 | YW17: 6.0 | YX17: 12.5 | YY17: 3.5 | ZB17: 25.5 | ZC17: 25.5 | ZD17: 6.1 | ZF17: 6.1 | ZG17: 9.1 | ZH17: 15.3 | ZI17: 4.0 | ZJ17: 5.3 | ZK17: 31.0 | ZL17: 12.2 | ZM17: 7.0 | ZN17: 7.9 | ZO17: 7.9 | ZP17: 3.3 | ZQ17: 21.0 | ZR17: 31.0 | ZS17: 31.0 | ZT17: 5.5 | ZU17: 31.0 | ZV17: 9.7 | ZW17: 40.5 | ZX17: 13.2 | ZY17: 8.4 | ZZ17: 1.0 | AAA17: 8.0 | AAB17: 9.5 | AAC17: 6.0 | AAD17: 16.5 | AAE17: 16.5 | AAF17: 9.2 | AAG17: 21.0 | AAI17: 3.8 | AAJ17: 13.2 | AAK17: 15.0 | AAL17: 7.0 | AAM17: 2.0 | AAN17: 19.0 | AAO17: 6.0 | AAP17: 15.3 | AAQ17: 8.6 | AAR17: 6.3 | AAS17: 7.0 | AAT17: 2.0 | AAU17: 5.0 | AAV17: 15.3 | AAW17: 1.0 | AAX17: 21.0 | AAY17: 39.0 | AAZ17: 11.0 | ABA17: 3.0 | ABB17: 21.3 | ABD17: 7.0 | ABE17: 6.1 | ABF17: 6.7 | ABG17: 10.2 | ABH17: 5.0 | ABI17: 6.7 | ABJ17: 3.8 | ABK17: 5.5 | ABL17: 21.0 | ABM17: 13.4 | ABN17: 4.6 | ABO17: 21.0 | ABP17: 6.0 | ABQ17: 4.6 | ABR17: 3.0 | ABS17: 14.7 | ABT17: 2.5 | ABU17: 9.1 | ABV17: 7.0 | ABW17: 8.0 | ABX17: 6.1 | ABY17: 25.9 | ABZ17: 8.0 | ACA17: 25.9 | ACB17: 8.0 | ACC17: 9.0 | ACD17: 6.0 | ACF17: 3.9 | ACG17: 2.0 | ACH17: 21.0 | ACI17: 8.6 | ACJ17: 7.2 | ACK17: 8.6 | ACL17: 5.0 | ACM17: 9.0 | ACN17: 3.8 | ACO17: 15.0 | ACP17: 7.0 | ACQ17: 6.1 | ACR17: 2.0 | ACS17: 10.6 | ACT17: 8.0 | ACU17: 11.0 | ACV17: 11.0 | ACW17: 6.1 | ACX17: 21.0 | ACY17: 10.0 | ACZ17: 3.1
